Workbook

Sheet INTRO
B2: PC Joint Reporting Form v.3.1
B4: The purpose of this template Joint Reporting Form (JRF) - available as an Excel file - is to provide national health authorities and data managers with a standardized tool to address these reporting challenges, facilitate integration and thereby further contribute to improving overall programme management. This template aims to standardize national reporting of programme implementation outcomes, improve availability and coordination of preventive chemotherapy data across the World Health Organization regions. National authorities are requested to complete this form for submission to the World Health Organization any time before 15 August of the current year for reporting data on PC interventions implemented during the previous year.
B6: Structure of the application (worksheets):
B8: INTRO | C8: This worksheet includes guides on how to complete the joint reporting form and information about status of PC for endemic diseases in the country
B9: COUNTRY_INFO | C9: This worksheet includes information about administrative structure of the country, population by age group, status of endemicity for each disease, population requiring PC, planned interventions and interventions implemented
B10: MDA1, MDA2, MDA3, T1, T2 and T3 | C10: These worksheets include information about endemic districts targeted for treatment with specified PC medicines, treatment plan, and number of people who received treatment by age group
B11: DISTRICT | C11: This worksheet includes summary of people treated by disease at the level of implementation. If data by gender is available, it requires to enter.
B12: SUMMARY | C12: This worksheet includes summary of people treated by disease and by PC intervention. Before generating the report (run macros) please select the disease for which you need the report. Follow the same rule to generate various reports. This worksheet should be printed and submitted as a Joint Report (see the instruction for submission in the SUMMARY worksheet).
B14: Instruction for data entry
B16: Most of the cells in the above-mentioned worksheets include formula that are calculated automatically according to the treatment policy recommended by WHO for each disease. See the link http://www.who.int/neglected_diseases/preventive_chemotherapy/pct_manual/en/index.html
B18: Please enter your data into the cells according to their colour code:
C20: White - cell is not protected. Please enter the value of the requested indicator.
C22: Yellow - cell is protected and includes name of indicator. No data entry required.
C24: Orange - cell is not protected and includes a drop-down menu. Please select the value from the drop-down list.
C27: Green - cell is not protected and includes formula. Please change the value only if your data are different from those that are calculated automatically.
C30: Blue - cell is protected and includes formula. No data entry required.
B32: Country data
B34: COUNTRY | E34: Rwanda
B36: Year of reporting data | E36: 2021
B38: Is country endemic for lymphatic filariasis (LF)? | E38: Non-endemic
B40: Is country endemic for onchocerciasis (ONCHO)? | E40: Non-endemic
B42: Is country endemic for soil-transmitted helminthiases (STH)? | E42: Endemic
B44: Is country endemic for schistosomiasis (SCH)? | E44: Endemic
B46: How many administrative units in the country? | E46: 30
B47: If demographical data at the second administrative level are not available by age group, please enter the proportion (%) of population by age group in the country. If data are available, please leave these cells blank.
B48: 1-4 years age | C48: Preschool-age children (PreSAC) | E48: 0.117
B49: 5-15 years age | C49: School-age children (SAC) | E49: 0.288
B50: 16 years + | C50: Adults | E50: 0.566

Sheet COUNTRY_INFO
A1: COUNTRY INFORMATION
A2: Administrative structure, population by age group, endemicity status, planned interventions and interventions implemented | U2: 1.0233
A4: TOTAL | D4: =SUM(D$9:D$1000) -> 13231595.19 | E4: =SUM(E$9:E$1000) -> 1562018.447 | F4: =SUM(F$9:F$1000) -> 3766445.654 | G4: =SUM(G$9:G$1000) -> 7470502.01 | L4: =SUM(L$9:L$1000) -> 0 | M4: =SUM(M$9:M$1000) -> 0 | N4: =SUM(N$9:N$1000) -> 4199615.63 | O4: =SUM(O$9:O$1000) -> 1480813
A6: Country administrative structure | D6: Population | H6: Endemicity | L6: Population requiring PC | P6: Number of treatment rounds planned for the year | T6: PC implemented | V6: Click to see the recommended strategy | AD6: t2 | AE6: t3r1 | AF6: t3r2 | AJ6: EPIRF 2021
A7: Country | B7: Province/State | C7: District | D7: Total | E7: PreSAC | F7: SAC | G7: Adults | H7: LF | I7: Oncho | J7: STH | K7: SCH | L7: LF | M7: Oncho | N7: STH | O7: SCH | P7: LF | Q7: Oncho | R7: STH | S7: SCH | T7: ROUND 1 | U7: ROUND2 | Y7: IU_ID | Z7: IU_Name | AA7: x | AB7: x | AC7: x | AD7: x | AE7: x | AF7: x | AG7: x | AH7: x | AJ7: Prev SAC | AK7: Endemicity | AL7: x | AM7: x | AN7: x | AO7: x | AP7: x | AQ7: x | AR7: x | AS7: x | AT7: x
A9: =IF(INTRO!$E$34<>0,INTRO!$E$34,"") -> Rwanda | B9: Eastern | C9: Bugesera | D9: 455965.5567 | E9: 60187.45349 | F9: 129038.2526 | G9: 251237.0218 | H9: 0 | I9: 0 | J9: 1 | K9: 2 | L9: 0 | M9: 0 | N9: =IF(INTRO!$E$42="Endemic", IF(AND($J9>1,$J9<5), IF($J9=4, "Unknown", E9+F9), 0),"Not required") -> 0 | O9: 69225 | P9: 0 | Q9: 0 | R9: 2 | S9: 1 | T9: T3 (ALB/MBD) | U9: T2 (PZQ) | Y9: 38111 | Z9: Bugesera | AD9: ='T2'!K9 -> 55601 | AE9: =T3_R1!L9 -> 84309 | AF9: =T3_R2!L9 -> 144904 | AJ9: 15.04093567 | AK9: 1
A10: =IF(INTRO!$E$34<>0,INTRO!$E$34,"") -> Rwanda | B10: Northern | C10: Burera | D10: 424050.5258 | E10: 45797.45678 | F10: 137816.4209 | G10: 228563.2334 | H10: 0 | I10: 0 | J10: 3 | K10: 2 | L10: 0 | M10: 0 | N10: =IF(INTRO!$E$42="Endemic", IF(AND($J10>1,$J10<5), IF($J10=4, "Unknown", E10+F10), 0),"Not required") -> 183613.8777 | O10: 87749 | P10: 0 | Q10: 0 | R10: 2 | S10: 1 | T10: T3 (ALB/MBD) | U10: T2 (PZQ) | Y10: 38121 | Z10: Burera | AD10: ='T2'!K10 -> 72584 | AE10: =T3_R1!L10 -> 116984 | AF10: =T3_R2!L10 -> 107288 | AJ10: 73.9004329 | AK10: 3
A11: =IF(INTRO!$E$34<>0,INTRO!$E$34,"") -> Rwanda | B11: Northern | C11: Gakenke | D11: 448035.7484 | E11: 47043.75358 | F11: 131722.51 | G11: 258068.5911 | H11: 0 | I11: 0 | J11: 2 | K11: 2 | L11: 0 | M11: 0 | N11: =IF(INTRO!$E$42="Endemic", IF(AND($J11>1,$J11<5), IF($J11=4, "Unknown", E11+F11), 0),"Not required") -> 178766.2636 | O11: 48990 | P11: 0 | Q11: 0 | R11: 2 | S11: 1 | T11: T3 (ALB/MBD) | U11: T2 (PZQ) | Y11: 38122 | Z11: Gakenke | AD11: ='T2'!K11 -> 36283 | AE11: =T3_R1!L11 -> 100548 | AF11: =T3_R2!L11 -> 95173 | AJ11: 34.53095826 | AK11: 2
A12: =IF(INTRO!$E$34<>0,INTRO!$E$34,"") -> Rwanda | B12: Kigali | C12: Gasabo | D12: 667178.6801 | E12: 75391.19085 | F12: 145444.9523 | G12: 424992.8192 | H12: 0 | I12: 0 | J12: 2 | K12: 1 | L12: 0 | M12: 0 | N12: =IF(INTRO!$E$42="Endemic", IF(AND($J12>1,$J12<5), IF($J12=4, "Unknown", E12+F12), 0),"Not required") -> 220836.1431 | O12: 47979 | P12: 0 | Q12: 0 | R12: 2 | S12: 1 | T12: T3 (ALB/MBD) | Y12: 38118 | Z12: Gasabo | AD12: ='T2'!K12 -> 0 | AE12: =T3_R1!L12 -> 115350 | AF12: =T3_R2!L12 -> 197626 | AJ12: 20.60671937 | AK12: 2
A13: =IF(INTRO!$E$34<>0,INTRO!$E$34,"") -> Rwanda | B13: Eastern | C13: Gatsibo | D13: 512853.2204 | E13: 63593.79933 | F13: 157445.9387 | G13: 276940.739 | H13: 0 | I13: 0 | J13: 2 | K13: 2 | L13: 0 | M13: 0 | N13: =IF(INTRO!$E$42="Endemic", IF(AND($J13>1,$J13<5), IF($J13=4, "Unknown", E13+F13), 0),"Not required") -> 221039.738 | O13: 45277 | P13: 0 | Q13: 0 | R13: 2 | S13: 1 | T13: T3 (ALB/MBD) | U13: T2 (PZQ) | Y13: 38112 | Z13: Gatsibo | AD13: ='T2'!K13 -> 21485 | AE13: =T3_R1!L13 -> 153663 | AF13: =T3_R2!L13 -> 161816 | AJ13: 33.36512317 | AK13: 2
A14: =IF(INTRO!$E$34<>0,INTRO!$E$34,"") -> Rwanda | B14: Northern | C14: Gicumbi | D14: 498413.6637 | E14: 52333.43469 | F14: 154009.8221 | G14: 278613.238 | H14: 0 | I14: 0 | J14: 2 | K14: 2 | L14: 0 | M14: 0 | N14: =IF(INTRO!$E$42="Endemic", IF(AND($J14>1,$J14<5), IF($J14=4, "Unknown", E14+F14), 0),"Not required") -> 206343.2568 | O14: 24456 | P14: 0 | Q14: 0 | R14: 2 | S14: 1 | T14: T3 (ALB/MBD) | U14: T2 (PZQ) | Y14: 38123 | Z14: Gicumbi | AD14: ='T2'!K14 -> 21296 | AE14: =T3_R1!L14 -> 130079 | AF14: =T3_R2!L14 -> 107251 | AJ14: 41.52882206 | AK14: 2
A15: =IF(INTRO!$E$34<>0,INTRO!$E$34,"") -> Rwanda | B15: Southern | C15: Gisagara | D15: 406317.1459 | E15: 53633.86325 | F15: 116206.7037 | G15: 223880.7474 | H15: 0 | I15: 0 | J15: 2 | K15: 2 | L15: 0 | M15: 0 | N15: =IF(INTRO!$E$42="Endemic", IF(AND($J15>1,$J15<5), IF($J15=4, "Unknown", E15+F15), 0),"Not required") -> 169840.567 | O15: 77780 | P15: 0 | Q15: 0 | R15: 2 | S15: 1 | T15: T3 (ALB/MBD) | U15: T2 (PZQ) | Y15: 38126 | Z15: Gisagara | AD15: ='T2'!K15 -> 78212 | AE15: =T3_R1!L15 -> 106381 | AF15: =T3_R2!L15 -> 100822 | AJ15: 46.94759626 | AK15: 2
A16: =IF(INTRO!$E$34<>0,INTRO!$E$34,"") -> Rwanda | B16: Southern | C16: Huye | D16: 413739.5643 | E16: 46752.57077 | F16: 108813.5054 | G16: 246588.7803 | H16: 0 | I16: 0 | J16: 2 | K16: 1 | L16: 0 | M16: 0 | N16: =IF(INTRO!$E$42="Endemic", IF(AND($J16>1,$J16<5), IF($J16=4, "Unknown", E16+F16), 0),"Not required") -> 155566.0762 | O16: 35895 | P16: 0 | Q16: 0 | R16: 2 | S16: 1 | T16: T3 (ALB/MBD) | Y16: 38127 | Z16: Huye | AD16: ='T2'!K16 -> 0 | AE16: =T3_R1!L16 -> 94695 | AF16: =T3_R2!L16 -> 96677 | AJ16: 47.05709267 | AK16: 2
A17: =IF(INTRO!$E$34<>0,INTRO!$E$34,"") -> Rwanda | B17: Southern | C17: Kamonyi | D17: 428987.5762 | E17: 48904.58369 | F17: 120116.5213 | G17: 236801.1421 | H17: 0 | I17: 0 | J17: 1 | K17: 2 | L17: 0 | M17: 0 | N17: =IF(INTRO!$E$42="Endemic", IF(AND($J17>1,$J17<5), IF($J17=4, "Unknown", E17+F17), 0),"Not required") -> 0 | O17: 41971 | P17: 0 | Q17: 0 | R17: 2 | S17: 1 | T17: T3 (ALB/MBD) | U17: T2 (PZQ) | Y17: 38128 | Z17: Kamonyi | AD17: ='T2'!K17 -> 41174 | AE17: =T3_R1!L17 -> 105353 | AF17: =T3_R2!L17 -> 108208 | AJ17: 17.86883711 | AK17: 1
A18: =IF(INTRO!$E$34<>0,INTRO!$E$34,"") -> Rwanda | B18: Western | C18: Karongi | D18: 425789.5465 | E18: 49391.58739 | F18: 126459.4953 | G18: 237590.567 | H18: 0 | I18: 0 | J18: 3 | K18: 2 | L18: 0 | M18: 0 | N18: =IF(INTRO!$E$42="Endemic", IF(AND($J18>1,$J18<5), IF($J18=4, "Unknown", E18+F18), 0),"Not required") -> 175851.0827 | O18: 28801 | P18: 0 | Q18: 0 | R18: 2 | S18: 1 | T18: T3 (ALB/MBD) | U18: T2 (PZQ) | Y18: 38134 | Z18: Karongi | AD18: ='T2'!K18 -> 23019 | AE18: =T3_R1!L18 -> 110295 | AF18: =T3_R2!L18 -> 93328 | AJ18: 53.20258651 | AK18: 3
A19: =IF(INTRO!$E$34<>0,INTRO!$E$34,"") -> Rwanda | B19: Eastern | C19: Kayonza | D19: 437264.7676 | E19: 54658.09595 | F19: 131179.4303 | G19: 237434.7688 | H19: 0 | I19: 0 | J19: 2 | K19: 2 | L19: 0 | M19: 0 | N19: =IF(INTRO!$E$42="Endemic", IF(AND($J19>1,$J19<5), IF($J19=4, "Unknown", E19+F19), 0),"Not required") -> 185837.5262 | O19: 52810 | P19: 0 | Q19: 0 | R19: 2 | S19: 1 | T19: T3 (ALB/MBD) | U19: T2 (PZQ) | Y19: 38113 | Z19: Kayonza | AD19: ='T2'!K19 -> 46722 | AE19: =T3_R1!L19 -> 73013 | AF19: =T3_R2!L19 -> 116123 | AJ19: 35.43059249 | AK19: 2
A20: =IF(INTRO!$E$34<>0,INTRO!$E$34,"") -> Rwanda | B20: Kigali | C20: Kicukiro | D20: 401350.6205 | E20: 40536.41267 | F20: 88698.48713 | G20: 260877.9033 | H20: 0 | I20: 0 | J20: 1 | K20: 1 | L20: 0 | M20: 0 | N20: =IF(INTRO!$E$42="Endemic", IF(AND($J20>1,$J20<5), IF($J20=4, "Unknown", E20+F20), 0),"Not required") -> 0 | O20: 37998 | P20: 0 | Q20: 0 | R20: 2 | S20: 1 | T20: T3 (ALB/MBD) | Y20: 38119 | Z20: Kicukiro | AD20: ='T2'!K20 -> 0 | AE20: =T3_R1!L20 -> 49350 | AF20: =T3_R2!L20 -> 109313 | AJ20: 9.557992575 | AK20: 1
A21: =IF(INTRO!$E$34<>0,INTRO!$E$34,"") -> Rwanda | B21: Eastern | C21: Kirehe | D21: 428820.2007 | E21: 53602.52509 | F21: 129503.7006 | G21: 233278.1892 | H21: 0 | I21: 0 | J21: 1 | K21: 1 | L21: 0 | M21: 0 | N21: =IF(INTRO!$E$42="Endemic", IF(AND($J21>1,$J21<5), IF($J21=4, "Unknown", E21+F21), 0),"Not required") -> 0 | O21: 42721 | P21: 0 | Q21: 0 | R21: 2 | S21: 1 | T21: T3 (ALB/MBD) | Y21: 38114 | Z21: Kirehe | AD21: ='T2'!K21 -> 0 | AE21: =T3_R1!L21 -> 107278 | AF21: =T3_R2!L21 -> 121294 | AJ21: 16.83971962 | AK21: 1
A22: =IF(INTRO!$E$34<>0,INTRO!$E$34,"") -> Rwanda | B22: Southern | C22: Muhanga | D22: 402076.9669 | E22: 41413.92759 | F22: 112179.4738 | G22: 228781.7942 | H22: 0 | I22: 0 | J22: 2 | K22: 2 | L22: 0 | M22: 0 | N22: =IF(INTRO!$E$42="Endemic", IF(AND($J22>1,$J22<5), IF($J22=4, "Unknown", E22+F22), 0),"Not required") -> 153593.4014 | O22: 22840 | P22: 0 | Q22: 0 | R22: 2 | S22: 1 | T22: T3 (ALB/MBD) | U22: T2 (PZQ) | Y22: 38129 | Z22: Muhanga | AD22: ='T2'!K22 -> 15908 | AE22: =T3_R1!L22 -> 98055 | AF22: =T3_R2!L22 -> 94806 | AJ22: 26.03132832 | AK22: 2
A23: =IF(INTRO!$E$34<>0,INTRO!$E$34,"") -> Rwanda | B23: Northern | C23: Musanze | D23: 463969.0524 | E23: 51036.59576 | F23: 136870.8704 | G23: 263070.4527 | H23: 0 | I23: 0 | J23: 3 | K23: 2 | L23: 0 | M23: 0 | N23: =IF(INTRO!$E$42="Endemic", IF(AND($J23>1,$J23<5), IF($J23=4, "Unknown", E23+F23), 0),"Not required") -> 187907.4662 | O23: 19130 | P23: 0 | Q23: 0 | R23: 2 | S23: 1 | T23: T3 (ALB/MBD) | U23: T2 (PZQ) | Y23: 38124 | Z23: Musanze | AD23: ='T2'!K23 -> 2967 | AE23: =T3_R1!L23 -> 89405 | AF23: =T3_R2!L23 -> 108575 | AJ23: 54.27615718 | AK23: 3
A24: =IF(INTRO!$E$34<>0,INTRO!$E$34,"") -> Rwanda | B24: Eastern | C24: Ngoma | D24: 424486.3336 | E24: 68342.29971 | F24: 119705.1461 | G24: 223279.8115 | H24: 0 | I24: 0 | J24: 1 | K24: 2 | L24: 0 | M24: 0 | N24: =IF(INTRO!$E$42="Endemic", IF(AND($J24>1,$J24<5), IF($J24=4, "Unknown", E24+F24), 0),"Not required") -> 0 | O24: 50770 | P24: 0 | Q24: 0 | R24: 2 | S24: 1 | T24: T3 (ALB/MBD) | U24: T2 (PZQ) | Y24: 38115 | Z24: Ngoma | AD24: ='T2'!K24 -> 37616 | AE24: =T3_R1!L24 -> 90141 | AF24: =T3_R2!L24 -> 95824 | AJ24: 15.68067897 | AK24: 1
A25: =IF(INTRO!$E$34<>0,INTRO!$E$34,"") -> Rwanda | B25: Western | C25: Ngororero | D25: 427231.7126 | E25: 51267.80552 | F25: 131587.3675 | G25: 231132.3565 | H25: 0 | I25: 0 | J25: 2 | K25: 2 | L25: 0 | M25: 0 | N25: =IF(INTRO!$E$42="Endemic", IF(AND($J25>1,$J25<5), IF($J25=4, "Unknown", E25+F25), 0),"Not required") -> 182855.173 | O25: 8795 | P25: 0 | Q25: 0 | R25: 2 | S25: 1 | T25: T3 (ALB/MBD) | U25: T2 (PZQ) | Y25: 38136 | Z25: Ngororero | AD25: ='T2'!K25 -> 7737 | AE25: =T3_R1!L25 -> 113173 | AF25: =T3_R2!L25 -> 105850 | AJ25: 48.91045796 | AK25: 2
A26: =IF(INTRO!$E$34<>0,INTRO!$E$34,"") -> Rwanda | B26: Western | C26: Nyabihu | D26: 371334.617 | E26: 43817.48481 | F26: 116970.4044 | G26: 199406.6893 | H26: 0 | I26: 0 | J26: 3 | K26: 1 | L26: 0 | M26: 0 | N26: =IF(INTRO!$E$42="Endemic", IF(AND($J26>1,$J26<5), IF($J26=4, "Unknown", E26+F26), 0),"Not required") -> 160787.8892 | O26: 38587 | P26: 0 | Q26: 0 | R26: 2 | S26: 1 | T26: T3 (ALB/MBD) | Y26: 38137 | Z26: Nyabihu | AD26: ='T2'!K26 -> 0 | AE26: =T3_R1!L26 -> 69578 | AF26: =T3_R2!L26 -> 103696 | AJ26: 82.03896104 | AK26: 3
A27: =IF(INTRO!$E$34<>0,INTRO!$E$34,"") -> Rwanda | B27: Eastern | C27: Nyagatare | D27: 586917.3984 | E27: 73364.67481 | F27: 180770.5587 | G27: 314587.7256 | H27: 0 | I27: 0 | J27: 2 | K27: 2 | L27: 0 | M27: 0 | N27: =IF(INTRO!$E$42="Endemic", IF(AND($J27>1,$J27<5), IF($J27=4, "Unknown", E27+F27), 0),"Not required") -> 254135.2335 | O27: 154567 | P27: 0 | Q27: 0 | R27: 2 | S27: 1 | T27: T3 (ALB/MBD) | U27: T2 (PZQ) | Y27: 38116 | Z27: Nyagatare | AD27: ='T2'!K27 -> 164499 | AE27: =T3_R1!L27 -> 186514 | AF27: =T3_R2!L27 -> 170502 | AJ27: 21.96945963 | AK27: 2
A28: =IF(INTRO!$E$34<>0,INTRO!$E$34,"") -> Rwanda | B28: Southern | C28: Nyamagabe | D28: 424824.2426 | E28: 47580.31517 | F28: 130421.0425 | G28: 224732.0243 | H28: 0 | I28: 0 | J28: 3 | K28: 1 | L28: 0 | M28: 0 | N28: =IF(INTRO!$E$42="Endemic", IF(AND($J28>1,$J28<5), IF($J28=4, "Unknown", E28+F28), 0),"Not required") -> 178001.3577 | O28: 41575 | P28: 0 | Q28: 0 | R28: 2 | S28: 1 | T28: T3 (ALB/MBD) | Y28: 38130 | Z28: Nyamagabe | AD28: ='T2'!K28 -> 0 | AE28: =T3_R1!L28 -> 94243 | AF28: =T3_R2!L28 -> 100557 | AJ28: 59.46103896 | AK28: 3
A29: =IF(INTRO!$E$34<>0,INTRO!$E$34,"") -> Rwanda | B29: Western | C29: Nyamasheke | D29: 492658.6841 | E29: 59611.70077 | F29: 129076.5752 | G29: 288697.9889 | H29: 0 | I29: 0 | J29: 3 | K29: 2 | L29: 0 | M29: 0 | N29: =IF(INTRO!$E$42="Endemic", IF(AND($J29>1,$J29<5), IF($J29=4, "Unknown", E29+F29), 0),"Not required") -> 188688.276 | O29: 87346 | P29: 0 | Q29: 0 | R29: 2 | S29: 1 | T29: T3 (ALB/MBD) | U29: T2 (PZQ) | Y29: 38138 | Z29: Nyamasheke | AD29: ='T2'!K29 -> 73388 | AE29: =T3_R1!L29 -> 122463 | AF29: =T3_R2!L29 -> 119392 | AJ29: 52.46365915 | AK29: 3
A30: =IF(INTRO!$E$34<>0,INTRO!$E$34,"") -> Rwanda | B30: Southern | C30: Nyanza | D30: 407843.5261 | E30: 48941.22313 | F30: 108078.5344 | G30: 238588.4627 | H30: 0 | I30: 0 | J30: 2 | K30: 2 | L30: 0 | M30: 0 | N30: =IF(INTRO!$E$42="Endemic", IF(AND($J30>1,$J30<5), IF($J30=4, "Unknown", E30+F30), 0),"Not required") -> 157019.7575 | O30: 49773 | P30: 0 | Q30: 0 | R30: 2 | S30: 1 | T30: T3 (ALB/MBD) | U30: T2 (PZQ) | Y30: 38131 | Z30: Nyanza | AD30: ='T2'!K30 -> 42350 | AE30: =T3_R1!L30 -> 93026 | AF30: =T3_R2!L30 -> 99069 | AJ30: 24.91125541 | AK30: 2
A31: =IF(INTRO!$E$34<>0,INTRO!$E$34,"") -> Rwanda | B31: Kigali | C31: Nyarugenge | D31: 358510.918 | E31: 37285.13547 | F31: 78513.89104 | G31: 232673.5858 | H31: 0 | I31: 0 | J31: 1 | K31: 2 | L31: 0 | M31: 0 | N31: =IF(INTRO!$E$42="Endemic", IF(AND($J31>1,$J31<5), IF($J31=4, "Unknown", E31+F31), 0),"Not required") -> 0 | O31: 6463 | P31: 0 | Q31: 0 | R31: 2 | S31: 1 | T31: T3 (ALB/MBD) | U31: T2 (PZQ) | Y31: 38120 | Z31: Nyarugenge | AD31: ='T2'!K31 -> 12786 | AE31: =T3_R1!L31 -> 41901 | AF31: =T3_R2!L31 -> 102690 | AJ31: 19.5993277 | AK31: 1
A32: =IF(INTRO!$E$34<>0,INTRO!$E$34,"") -> Rwanda | B32: Southern | C32: Nyaruguru | D32: 370823.0165 | E32: 43386.29293 | F32: 118663.3653 | G32: 198019.4908 | H32: 0 | I32: 0 | J32: 3 | K32: 1 | L32: 0 | M32: 0 | N32: =IF(INTRO!$E$42="Endemic", IF(AND($J32>1,$J32<5), IF($J32=4, "Unknown", E32+F32), 0),"Not required") -> 162049.6582 | O32: 39145 | P32: 0 | Q32: 0 | R32: 2 | S32: 1 | T32: T3 (ALB/MBD) | Y32: 38132 | Z32: Nyaruguru | AD32: ='T2'!K32 -> 0 | AE32: =T3_R1!L32 -> 74834 | AF32: =T3_R2!L32 -> 111393 | AJ32: 74.28465102 | AK32: 3
A33: =IF(INTRO!$E$34<>0,INTRO!$E$34,"") -> Rwanda | B33: Western | C33: Rubavu | D33: 508561.4604 | E33: 65095.86693 | F33: 137311.5943 | G33: 289371.471 | H33: 0 | I33: 0 | J33: 3 | K33: 2 | L33: 0 | M33: 0 | N33: =IF(INTRO!$E$42="Endemic", IF(AND($J33>1,$J33<5), IF($J33=4, "Unknown", E33+F33), 0),"Not required") -> 202407.4612 | O33: 45365 | P33: 0 | Q33: 0 | R33: 2 | S33: 1 | T33: T3 (ALB/MBD) | U33: T2 (PZQ) | Y33: 38139 | Z33: Rubavu | AD33: ='T2'!K33 -> 34895 | AE33: =T3_R1!L33 -> 126626 | AF33: =T3_R2!L33 -> 146058 | AJ33: 87.07539683 | AK33: 3
A34: =IF(INTRO!$E$34<>0,INTRO!$E$34,"") -> Rwanda | B34: Southern | C34: Ruhango | D34: 361281.5612 | E34: 41908.6611 | F34: 103687.8081 | G34: 196175.8877 | H34: 0 | I34: 0 | J34: 2 | K34: 2 | L34: 0 | M34: 0 | N34: =IF(INTRO!$E$42="Endemic", IF(AND($J34>1,$J34<5), IF($J34=4, "Unknown", E34+F34), 0),"Not required") -> 145596.4692 | O34: 16902 | P34: 0 | Q34: 0 | R34: 2 | S34: 1 | T34: T3 (ALB/MBD) | U34: T2 (PZQ) | Y34: 38133 | Z34: Ruhango | AD34: ='T2'!K34 -> 16456 | AE34: =T3_R1!L34 -> 70325 | AF34: =T3_R2!L34 -> 101793 | AJ34: 29.54279638 | AK34: 2
A35: =IF(INTRO!$E$34<>0,INTRO!$E$34,"") -> Rwanda | B35: Northern | C35: Rulindo | D35: 356908.7451 | E35: 37475.41824 | F35: 102789.7186 | G35: 206650.1634 | H35: 0 | I35: 0 | J35: 3 | K35: 2 | L35: 0 | M35: 0 | N35: =IF(INTRO!$E$42="Endemic", IF(AND($J35>1,$J35<5), IF($J35=4, "Unknown", E35+F35), 0),"Not required") -> 140265.1368 | O35: 11953 | P35: 0 | Q35: 0 | R35: 2 | S35: 1 | T35: T3 (ALB/MBD) | U35: T2 (PZQ) | Y35: 38125 | Z35: Rulindo | AD35: ='T2'!K35 -> 5037 | AE35: =T3_R1!L35 -> 93240 | AF35: =T3_R2!L35 -> 98704 | AJ35: 60.3564098 | AK35: 3
A36: =IF(INTRO!$E$34<>0,INTRO!$E$34,"") -> Rwanda | B36: Western | C36: Rusizi | D36: 506910.8644 | E36: 62350.03632 | F36: 144976.5072 | G36: 283870.0841 | H36: 0 | I36: 0 | J36: 2 | K36: 2 | L36: 0 | M36: 0 | N36: =IF(INTRO!$E$42="Endemic", IF(AND($J36>1,$J36<5), IF($J36=4, "Unknown", E36+F36), 0),"Not required") -> 207326.5435 | O36: 132522 | P36: 0 | Q36: 0 | R36: 2 | S36: 1 | T36: T3 (ALB/MBD) | U36: T2 (PZQ) | Y36: 38140 | Z36: Rusizi | AD36: ='T2'!K36 -> 107852 | AE36: =T3_R1!L36 -> 113951 | AF36: =T3_R2!L36 -> 100296 | AJ36: 38.90490307 | AK36: 2
A37: =IF(INTRO!$E$34<>0,INTRO!$E$34,"") -> Rwanda | B37: Western | C37: Rutsiro | D37: 423568.4001 | E37: 49133.93442 | F37: 132153.3408 | G37: 228726.9361 | H37: 0 | I37: 0 | J37: 3 | K37: 2 | L37: 0 | M37: 0 | N37: =IF(INTRO!$E$42="Endemic", IF(AND($J37>1,$J37<5), IF($J37=4, "Unknown", E37+F37), 0),"Not required") -> 181287.2753 | O37: 50377 | P37: 0 | Q37: 0 | R37: 2 | S37: 1 | T37: T3 (ALB/MBD) | U37: T2 (PZQ) | Y37: 38141 | Z37: Rutsiro | AD37: ='T2'!K37 -> 36579 | AE37: =T3_R1!L37 -> 81483 | AF37: =T3_R2!L37 -> 117390 | AJ37: 71.40271132 | AK37: 3
A38: =IF(INTRO!$E$34<>0,INTRO!$E$34,"") -> Rwanda | B38: Eastern | C38: Rwamagana | D38: 394920.8755 | E38: 48180.34681 | F38: 106233.7155 | G38: 227869.3452 | H38: 0 | I38: 0 | J38: 1 | K38: 2 | L38: 0 | M38: 0 | N38: =IF(INTRO!$E$42="Endemic", IF(AND($J38>1,$J38<5), IF($J38=4, "Unknown", E38+F38), 0),"Not required") -> 0 | O38: 63051 | P38: 0 | Q38: 0 | R38: 2 | S38: 1 | T38: T3 (ALB/MBD) | U38: T2 (PZQ) | Y38: 38117 | Z38: Rwamagana | AD38: ='T2'!K38 -> 72564 | AE38: =T3_R1!L38 -> 100401 | AF38: =T3_R2!L38 -> 122410 | AJ38: 12.91729323 | AK38: 1

Sheet MDA1 (hidden)
A1: MDA 1 - Ivermectin (IVM) and Albendazole (ALB)
A2: Administrative structure, population requiring PC by age group, population treated by age group and coverage
A4: TOTAL | G4: =SUM(G$9:G$1000) -> 0 | H4: =SUM(H$9:H$1000) -> 0 | I4: =SUM(I$9:I$1000) -> 0 | K4: =SUM(K$9:K$1000) -> 0 | L4: =SUM(L$9:L$1000) -> 0 | M4: =SUM(M$9:M$1000) -> 0 | O4: =IF(G4<>0, IF(K4/G4*100=0, "-", K4/G4*100), " ") ->  | P4: =IF(H4<>0, IF(L4/H4*100=0, "-", L4/H4*100), " ") ->  | Q4: =IF(I4<>0, IF(M4/I4*100=0, "-", M4/I4*100), " ") -> 
D6: PC implemented | E6: Date | F6: Population targeted for MDA 1 | J6: Population treated | N6: Programme coverage (%)
A7: Country | B7: Province/State | C7: District | F7: PreSAC | G7: SAC | H7: Adults | I7: Total | J7: PreSAC | K7: SAC | L7: Adults | M7: Total | N7: PreSAC | O7: SAC | P7: Adults | Q7: Total
A9: =IF(COUNTRY_INFO!A9=0," ",COUNTRY_INFO!A9) -> Rwanda | B9: =IF(COUNTRY_INFO!B9=0," ",COUNTRY_INFO!B9) -> Eastern | C9: =IF(COUNTRY_INFO!C9=0," ",COUNTRY_INFO!C9) -> Bugesera | D9: =IF(COUNTRY_INFO!$T$9:$T$1000="MDA1 (IVM+ALB)", COUNTRY_INFO!$T$9:$T$1000, " ") ->  | I9: =SUM(F9:H9) -> 0 | M9: =SUM(J9:L9) -> 0 | O9: =IF(G9<>0, IF(K9/G9*100=0, "-", K9/G9*100), " ") ->  | P9: =IF(H9<>0, IF(L9/H9*100=0, "-", L9/H9*100), " ") ->  | Q9: =IF(I9<>0, IF(M9/I9*100=0, "-", M9/I9*100), " ") -> 
A10: =IF(COUNTRY_INFO!A10=0," ",COUNTRY_INFO!A10) -> Rwanda | B10: =IF(COUNTRY_INFO!B10=0," ",COUNTRY_INFO!B10) -> Northern | C10: =IF(COUNTRY_INFO!C10=0," ",COUNTRY_INFO!C10) -> Burera | D10: =IF(COUNTRY_INFO!$T$9:$T$1000="MDA1 (IVM+ALB)", COUNTRY_INFO!$T$9:$T$1000, " ") ->  | I10: =SUM(F10:H10) -> 0 | M10: =SUM(J10:L10) -> 0 | O10: =IF(G10<>0, IF(K10/G10*100=0, "-", K10/G10*100), " ") ->  | P10: =IF(H10<>0, IF(L10/H10*100=0, "-", L10/H10*100), " ") ->  | Q10: =IF(I10<>0, IF(M10/I10*100=0, "-", M10/I10*100), " ") -> 
A11: =IF(COUNTRY_INFO!A11=0," ",COUNTRY_INFO!A11) -> Rwanda | B11: =IF(COUNTRY_INFO!B11=0," ",COUNTRY_INFO!B11) -> Northern | C11: =IF(COUNTRY_INFO!C11=0," ",COUNTRY_INFO!C11) -> Gakenke | D11: =IF(COUNTRY_INFO!$T$9:$T$1000="MDA1 (IVM+ALB)", COUNTRY_INFO!$T$9:$T$1000, " ") ->  | I11: 0 | M11: 0
A12: =IF(COUNTRY_INFO!A12=0," ",COUNTRY_INFO!A12) -> Rwanda | B12: =IF(COUNTRY_INFO!B12=0," ",COUNTRY_INFO!B12) -> Kigali | C12: =IF(COUNTRY_INFO!C12=0," ",COUNTRY_INFO!C12) -> Gasabo | D12: =IF(COUNTRY_INFO!$T$9:$T$1000="MDA1 (IVM+ALB)", COUNTRY_INFO!$T$9:$T$1000, " ") ->  | I12: 0 | M12: 0
A13: =IF(COUNTRY_INFO!A13=0," ",COUNTRY_INFO!A13) -> Rwanda | B13: =IF(COUNTRY_INFO!B13=0," ",COUNTRY_INFO!B13) -> Eastern | C13: =IF(COUNTRY_INFO!C13=0," ",COUNTRY_INFO!C13) -> Gatsibo | D13: =IF(COUNTRY_INFO!$T$9:$T$1000="MDA1 (IVM+ALB)", COUNTRY_INFO!$T$9:$T$1000, " ") ->  | I13: 0 | M13: 0
A14: =IF(COUNTRY_INFO!A14=0," ",COUNTRY_INFO!A14) -> Rwanda | B14: =IF(COUNTRY_INFO!B14=0," ",COUNTRY_INFO!B14) -> Northern | C14: =IF(COUNTRY_INFO!C14=0," ",COUNTRY_INFO!C14) -> Gicumbi | D14: =IF(COUNTRY_INFO!$T$9:$T$1000="MDA1 (IVM+ALB)", COUNTRY_INFO!$T$9:$T$1000, " ") ->  | I14: 0 | M14: 0
A15: =IF(COUNTRY_INFO!A15=0," ",COUNTRY_INFO!A15) -> Rwanda | B15: =IF(COUNTRY_INFO!B15=0," ",COUNTRY_INFO!B15) -> Southern | C15: =IF(COUNTRY_INFO!C15=0," ",COUNTRY_INFO!C15) -> Gisagara | D15: =IF(COUNTRY_INFO!$T$9:$T$1000="MDA1 (IVM+ALB)", COUNTRY_INFO!$T$9:$T$1000, " ") ->  | I15: 0 | M15: 0
A16: =IF(COUNTRY_INFO!A16=0," ",COUNTRY_INFO!A16) -> Rwanda | B16: =IF(COUNTRY_INFO!B16=0," ",COUNTRY_INFO!B16) -> Southern | C16: =IF(COUNTRY_INFO!C16=0," ",COUNTRY_INFO!C16) -> Huye | D16: =IF(COUNTRY_INFO!$T$9:$T$1000="MDA1 (IVM+ALB)", COUNTRY_INFO!$T$9:$T$1000, " ") ->  | I16: 0 | M16: 0
A17: =IF(COUNTRY_INFO!A17=0," ",COUNTRY_INFO!A17) -> Rwanda | B17: =IF(COUNTRY_INFO!B17=0," ",COUNTRY_INFO!B17) -> Southern | C17: =IF(COUNTRY_INFO!C17=0," ",COUNTRY_INFO!C17) -> Kamonyi | D17: =IF(COUNTRY_INFO!$T$9:$T$1000="MDA1 (IVM+ALB)", COUNTRY_INFO!$T$9:$T$1000, " ") ->  | I17: 0 | M17: 0
A18: =IF(COUNTRY_INFO!A18=0," ",COUNTRY_INFO!A18) -> Rwanda | B18: =IF(COUNTRY_INFO!B18=0," ",COUNTRY_INFO!B18) -> Western | C18: =IF(COUNTRY_INFO!C18=0," ",COUNTRY_INFO!C18) -> Karongi | D18: =IF(COUNTRY_INFO!$T$9:$T$1000="MDA1 (IVM+ALB)", COUNTRY_INFO!$T$9:$T$1000, " ") ->  | I18: 0 | M18: 0
A19: =IF(COUNTRY_INFO!A19=0," ",COUNTRY_INFO!A19) -> Rwanda | B19: =IF(COUNTRY_INFO!B19=0," ",COUNTRY_INFO!B19) -> Eastern | C19: =IF(COUNTRY_INFO!C19=0," ",COUNTRY_INFO!C19) -> Kayonza | D19: =IF(COUNTRY_INFO!$T$9:$T$1000="MDA1 (IVM+ALB)", COUNTRY_INFO!$T$9:$T$1000, " ") ->  | I19: 0 | M19: 0
A20: =IF(COUNTRY_INFO!A20=0," ",COUNTRY_INFO!A20) -> Rwanda | B20: =IF(COUNTRY_INFO!B20=0," ",COUNTRY_INFO!B20) -> Kigali | C20: =IF(COUNTRY_INFO!C20=0," ",COUNTRY_INFO!C20) -> Kicukiro | D20: =IF(COUNTRY_INFO!$T$9:$T$1000="MDA1 (IVM+ALB)", COUNTRY_INFO!$T$9:$T$1000, " ") ->  | I20: 0 | M20: 0
A21: =IF(COUNTRY_INFO!A21=0," ",COUNTRY_INFO!A21) -> Rwanda | B21: =IF(COUNTRY_INFO!B21=0," ",COUNTRY_INFO!B21) -> Eastern | C21: =IF(COUNTRY_INFO!C21=0," ",COUNTRY_INFO!C21) -> Kirehe | D21: =IF(COUNTRY_INFO!$T$9:$T$1000="MDA1 (IVM+ALB)", COUNTRY_INFO!$T$9:$T$1000, " ") ->  | I21: 0 | M21: 0
A22: =IF(COUNTRY_INFO!A22=0," ",COUNTRY_INFO!A22) -> Rwanda | B22: =IF(COUNTRY_INFO!B22=0," ",COUNTRY_INFO!B22) -> Southern | C22: =IF(COUNTRY_INFO!C22=0," ",COUNTRY_INFO!C22) -> Muhanga | D22: =IF(COUNTRY_INFO!$T$9:$T$1000="MDA1 (IVM+ALB)", COUNTRY_INFO!$T$9:$T$1000, " ") ->  | I22: 0 | M22: 0
A23: =IF(COUNTRY_INFO!A23=0," ",COUNTRY_INFO!A23) -> Rwanda | B23: =IF(COUNTRY_INFO!B23=0," ",COUNTRY_INFO!B23) -> Northern | C23: =IF(COUNTRY_INFO!C23=0," ",COUNTRY_INFO!C23) -> Musanze | D23: =IF(COUNTRY_INFO!$T$9:$T$1000="MDA1 (IVM+ALB)", COUNTRY_INFO!$T$9:$T$1000, " ") ->  | I23: 0 | M23: 0
A24: =IF(COUNTRY_INFO!A24=0," ",COUNTRY_INFO!A24) -> Rwanda | B24: =IF(COUNTRY_INFO!B24=0," ",COUNTRY_INFO!B24) -> Eastern | C24: =IF(COUNTRY_INFO!C24=0," ",COUNTRY_INFO!C24) -> Ngoma | D24: =IF(COUNTRY_INFO!$T$9:$T$1000="MDA1 (IVM+ALB)", COUNTRY_INFO!$T$9:$T$1000, " ") ->  | I24: 0 | M24: 0
A25: =IF(COUNTRY_INFO!A25=0," ",COUNTRY_INFO!A25) -> Rwanda | B25: =IF(COUNTRY_INFO!B25=0," ",COUNTRY_INFO!B25) -> Western | C25: =IF(COUNTRY_INFO!C25=0," ",COUNTRY_INFO!C25) -> Ngororero | D25: =IF(COUNTRY_INFO!$T$9:$T$1000="MDA1 (IVM+ALB)", COUNTRY_INFO!$T$9:$T$1000, " ") ->  | I25: 0 | M25: 0
A26: =IF(COUNTRY_INFO!A26=0," ",COUNTRY_INFO!A26) -> Rwanda | B26: =IF(COUNTRY_INFO!B26=0," ",COUNTRY_INFO!B26) -> Western | C26: =IF(COUNTRY_INFO!C26=0," ",COUNTRY_INFO!C26) -> Nyabihu | D26: =IF(COUNTRY_INFO!$T$9:$T$1000="MDA1 (IVM+ALB)", COUNTRY_INFO!$T$9:$T$1000, " ") ->  | I26: 0 | M26: 0
A27: =IF(COUNTRY_INFO!A27=0," ",COUNTRY_INFO!A27) -> Rwanda | B27: =IF(COUNTRY_INFO!B27=0," ",COUNTRY_INFO!B27) -> Eastern | C27: =IF(COUNTRY_INFO!C27=0," ",COUNTRY_INFO!C27) -> Nyagatare | D27: =IF(COUNTRY_INFO!$T$9:$T$1000="MDA1 (IVM+ALB)", COUNTRY_INFO!$T$9:$T$1000, " ") ->  | I27: 0 | M27: 0
A28: =IF(COUNTRY_INFO!A28=0," ",COUNTRY_INFO!A28) -> Rwanda | B28: =IF(COUNTRY_INFO!B28=0," ",COUNTRY_INFO!B28) -> Southern | C28: =IF(COUNTRY_INFO!C28=0," ",COUNTRY_INFO!C28) -> Nyamagabe | D28: =IF(COUNTRY_INFO!$T$9:$T$1000="MDA1 (IVM+ALB)", COUNTRY_INFO!$T$9:$T$1000, " ") ->  | I28: 0 | M28: 0
A29: =IF(COUNTRY_INFO!A29=0," ",COUNTRY_INFO!A29) -> Rwanda | B29: =IF(COUNTRY_INFO!B29=0," ",COUNTRY_INFO!B29) -> Western | C29: =IF(COUNTRY_INFO!C29=0," ",COUNTRY_INFO!C29) -> Nyamasheke | D29: =IF(COUNTRY_INFO!$T$9:$T$1000="MDA1 (IVM+ALB)", COUNTRY_INFO!$T$9:$T$1000, " ") ->  | I29: 0 | M29: 0
A30: =IF(COUNTRY_INFO!A30=0," ",COUNTRY_INFO!A30) -> Rwanda | B30: =IF(COUNTRY_INFO!B30=0," ",COUNTRY_INFO!B30) -> Southern | C30: =IF(COUNTRY_INFO!C30=0," ",COUNTRY_INFO!C30) -> Nyanza | D30: =IF(COUNTRY_INFO!$T$9:$T$1000="MDA1 (IVM+ALB)", COUNTRY_INFO!$T$9:$T$1000, " ") ->  | I30: 0 | M30: 0
A31: =IF(COUNTRY_INFO!A31=0," ",COUNTRY_INFO!A31) -> Rwanda | B31: =IF(COUNTRY_INFO!B31=0," ",COUNTRY_INFO!B31) -> Kigali | C31: =IF(COUNTRY_INFO!C31=0," ",COUNTRY_INFO!C31) -> Nyarugenge | D31: =IF(COUNTRY_INFO!$T$9:$T$1000="MDA1 (IVM+ALB)", COUNTRY_INFO!$T$9:$T$1000, " ") ->  | I31: 0 | M31: 0
A32: =IF(COUNTRY_INFO!A32=0," ",COUNTRY_INFO!A32) -> Rwanda | B32: =IF(COUNTRY_INFO!B32=0," ",COUNTRY_INFO!B32) -> Southern | C32: =IF(COUNTRY_INFO!C32=0," ",COUNTRY_INFO!C32) -> Nyaruguru | D32: =IF(COUNTRY_INFO!$T$9:$T$1000="MDA1 (IVM+ALB)", COUNTRY_INFO!$T$9:$T$1000, " ") ->  | I32: 0 | M32: 0
A33: =IF(COUNTRY_INFO!A33=0," ",COUNTRY_INFO!A33) -> Rwanda | B33: =IF(COUNTRY_INFO!B33=0," ",COUNTRY_INFO!B33) -> Western | C33: =IF(COUNTRY_INFO!C33=0," ",COUNTRY_INFO!C33) -> Rubavu | D33: =IF(COUNTRY_INFO!$T$9:$T$1000="MDA1 (IVM+ALB)", COUNTRY_INFO!$T$9:$T$1000, " ") ->  | I33: 0 | M33: 0
A34: =IF(COUNTRY_INFO!A34=0," ",COUNTRY_INFO!A34) -> Rwanda | B34: =IF(COUNTRY_INFO!B34=0," ",COUNTRY_INFO!B34) -> Southern | C34: =IF(COUNTRY_INFO!C34=0," ",COUNTRY_INFO!C34) -> Ruhango | D34: =IF(COUNTRY_INFO!$T$9:$T$1000="MDA1 (IVM+ALB)", COUNTRY_INFO!$T$9:$T$1000, " ") ->  | I34: 0 | M34: 0
A35: =IF(COUNTRY_INFO!A35=0," ",COUNTRY_INFO!A35) -> Rwanda | B35: =IF(COUNTRY_INFO!B35=0," ",COUNTRY_INFO!B35) -> Northern | C35: =IF(COUNTRY_INFO!C35=0," ",COUNTRY_INFO!C35) -> Rulindo | D35: =IF(COUNTRY_INFO!$T$9:$T$1000="MDA1 (IVM+ALB)", COUNTRY_INFO!$T$9:$T$1000, " ") ->  | I35: 0 | M35: 0
A36: =IF(COUNTRY_INFO!A36=0," ",COUNTRY_INFO!A36) -> Rwanda | B36: =IF(COUNTRY_INFO!B36=0," ",COUNTRY_INFO!B36) -> Western | C36: =IF(COUNTRY_INFO!C36=0," ",COUNTRY_INFO!C36) -> Rusizi | D36: =IF(COUNTRY_INFO!$T$9:$T$1000="MDA1 (IVM+ALB)", COUNTRY_INFO!$T$9:$T$1000, " ") ->  | I36: 0 | M36: 0
A37: =IF(COUNTRY_INFO!A37=0," ",COUNTRY_INFO!A37) -> Rwanda | B37: =IF(COUNTRY_INFO!B37=0," ",COUNTRY_INFO!B37) -> Western | C37: =IF(COUNTRY_INFO!C37=0," ",COUNTRY_INFO!C37) -> Rutsiro | D37: =IF(COUNTRY_INFO!$T$9:$T$1000="MDA1 (IVM+ALB)", COUNTRY_INFO!$T$9:$T$1000, " ") ->  | I37: 0 | M37: 0
A38: =IF(COUNTRY_INFO!A38=0," ",COUNTRY_INFO!A38) -> Rwanda | B38: =IF(COUNTRY_INFO!B38=0," ",COUNTRY_INFO!B38) -> Eastern | C38: =IF(COUNTRY_INFO!C38=0," ",COUNTRY_INFO!C38) -> Rwamagana | D38: =IF(COUNTRY_INFO!$T$9:$T$1000="MDA1 (IVM+ALB)", COUNTRY_INFO!$T$9:$T$1000, " ") ->  | I38: 0 | M38: 0

Sheet MDA2 (hidden)
A1: MDA 2 - Diethylcarbamazine citrate (DEC) + Albendazole (ALB)
A2: Administrative structure, population requiring PC by age group, population treated by age group and coverage
A4: TOTAL | F4: =SUM(F$9:F$1000) -> 0 | G4: =SUM(G$9:G$1000) -> 0 | H4: 0 | I4: 0 | J4: 0 | K4: 0 | L4: 0 | M4: 0 | N4: =IF(F4<>0, IF(J4/F4*100=0, "-", J4/F4*100), " ") ->  | O4: =IF(G4<>0, IF(K4/G4*100=0, "-", K4/G4*100), " ") ->  | P4: =IF(H4<>0, IF(L4/H4*100=0, "-", L4/H4*100), " ") ->  | Q4: =IF(I4<>0, IF(M4/I4*100=0, "-", M4/I4*100), " ") -> 
D6: PC implemented | E6: Date | F6: Population targeted for MDA 2 | J6: Population treated | N6: Programme coverage (%)
A7: Country | B7: Province/State | C7: District | F7: PreSAC | G7: SAC | H7: Adults | I7: Total | J7: PreSAC | K7: SAC | L7: Adults | M7: Total | N7: PreSAC | O7: SAC | P7: Adults | Q7: Total
A9: =IF(COUNTRY_INFO!A9=0," ",COUNTRY_INFO!A9) -> Rwanda | B9: =IF(COUNTRY_INFO!B9=0," ",COUNTRY_INFO!B9) -> Eastern | C9: =IF(COUNTRY_INFO!C9=0," ",COUNTRY_INFO!C9) -> Bugesera | D9: =IF(COUNTRY_INFO!$T$9:$T$1000="MDA2 (DEC+ALB)", COUNTRY_INFO!$T$9:$T$1000, " ") ->  | I9: =SUM(F9:H9) -> 0 | M9: =SUM(J9:L9) -> 0 | N9: =IF(F9<>0, IF(J9/F9*100=0, "-", J9/F9*100), " ") ->  | O9: =IF(G9<>0, IF(K9/G9*100=0, "-", K9/G9*100), " ") ->  | P9: =IF(H9<>0, IF(L9/H9*100=0, "-", L9/H9*100), " ") ->  | Q9: =IF(I9<>0, IF(M9/I9*100=0, "-", M9/I9*100), " ") -> 
A10: =IF(COUNTRY_INFO!A10=0," ",COUNTRY_INFO!A10) -> Rwanda | B10: =IF(COUNTRY_INFO!B10=0," ",COUNTRY_INFO!B10) -> Northern | C10: =IF(COUNTRY_INFO!C10=0," ",COUNTRY_INFO!C10) -> Burera | D10: =IF(COUNTRY_INFO!$T$9:$T$1000="MDA2 (DEC+ALB)", COUNTRY_INFO!$T$9:$T$1000, " ") ->  | I10: =SUM(F10:H10) -> 0 | M10: =SUM(J10:L10) -> 0 | N10: =IF(F10<>0, IF(J10/F10*100=0, "-", J10/F10*100), " ") ->  | O10: =IF(G10<>0, IF(K10/G10*100=0, "-", K10/G10*100), " ") ->  | P10: =IF(H10<>0, IF(L10/H10*100=0, "-", L10/H10*100), " ") ->  | Q10: =IF(I10<>0, IF(M10/I10*100=0, "-", M10/I10*100), " ") -> 
A11: =IF(COUNTRY_INFO!A11=0," ",COUNTRY_INFO!A11) -> Rwanda | B11: =IF(COUNTRY_INFO!B11=0," ",COUNTRY_INFO!B11) -> Northern | C11: =IF(COUNTRY_INFO!C11=0," ",COUNTRY_INFO!C11) -> Gakenke | D11: =IF(COUNTRY_INFO!$T$9:$T$1000="MDA2 (DEC+ALB)", COUNTRY_INFO!$T$9:$T$1000, " ") ->  | I11: 0 | M11: 0
A12: =IF(COUNTRY_INFO!A12=0," ",COUNTRY_INFO!A12) -> Rwanda | B12: =IF(COUNTRY_INFO!B12=0," ",COUNTRY_INFO!B12) -> Kigali | C12: =IF(COUNTRY_INFO!C12=0," ",COUNTRY_INFO!C12) -> Gasabo | D12: =IF(COUNTRY_INFO!$T$9:$T$1000="MDA2 (DEC+ALB)", COUNTRY_INFO!$T$9:$T$1000, " ") ->  | I12: 0 | M12: 0
A13: =IF(COUNTRY_INFO!A13=0," ",COUNTRY_INFO!A13) -> Rwanda | B13: =IF(COUNTRY_INFO!B13=0," ",COUNTRY_INFO!B13) -> Eastern | C13: =IF(COUNTRY_INFO!C13=0," ",COUNTRY_INFO!C13) -> Gatsibo | D13: =IF(COUNTRY_INFO!$T$9:$T$1000="MDA2 (DEC+ALB)", COUNTRY_INFO!$T$9:$T$1000, " ") ->  | I13: 0 | M13: 0
A14: =IF(COUNTRY_INFO!A14=0," ",COUNTRY_INFO!A14) -> Rwanda | B14: =IF(COUNTRY_INFO!B14=0," ",COUNTRY_INFO!B14) -> Northern | C14: =IF(COUNTRY_INFO!C14=0," ",COUNTRY_INFO!C14) -> Gicumbi | D14: =IF(COUNTRY_INFO!$T$9:$T$1000="MDA2 (DEC+ALB)", COUNTRY_INFO!$T$9:$T$1000, " ") ->  | I14: 0 | M14: 0
A15: =IF(COUNTRY_INFO!A15=0," ",COUNTRY_INFO!A15) -> Rwanda | B15: =IF(COUNTRY_INFO!B15=0," ",COUNTRY_INFO!B15) -> Southern | C15: =IF(COUNTRY_INFO!C15=0," ",COUNTRY_INFO!C15) -> Gisagara | D15: =IF(COUNTRY_INFO!$T$9:$T$1000="MDA2 (DEC+ALB)", COUNTRY_INFO!$T$9:$T$1000, " ") ->  | I15: 0 | M15: 0
A16: =IF(COUNTRY_INFO!A16=0," ",COUNTRY_INFO!A16) -> Rwanda | B16: =IF(COUNTRY_INFO!B16=0," ",COUNTRY_INFO!B16) -> Southern | C16: =IF(COUNTRY_INFO!C16=0," ",COUNTRY_INFO!C16) -> Huye | D16: =IF(COUNTRY_INFO!$T$9:$T$1000="MDA2 (DEC+ALB)", COUNTRY_INFO!$T$9:$T$1000, " ") ->  | I16: 0 | M16: 0
A17: =IF(COUNTRY_INFO!A17=0," ",COUNTRY_INFO!A17) -> Rwanda | B17: =IF(COUNTRY_INFO!B17=0," ",COUNTRY_INFO!B17) -> Southern | C17: =IF(COUNTRY_INFO!C17=0," ",COUNTRY_INFO!C17) -> Kamonyi | D17: =IF(COUNTRY_INFO!$T$9:$T$1000="MDA2 (DEC+ALB)", COUNTRY_INFO!$T$9:$T$1000, " ") ->  | I17: 0 | M17: 0
A18: =IF(COUNTRY_INFO!A18=0," ",COUNTRY_INFO!A18) -> Rwanda | B18: =IF(COUNTRY_INFO!B18=0," ",COUNTRY_INFO!B18) -> Western | C18: =IF(COUNTRY_INFO!C18=0," ",COUNTRY_INFO!C18) -> Karongi | D18: =IF(COUNTRY_INFO!$T$9:$T$1000="MDA2 (DEC+ALB)", COUNTRY_INFO!$T$9:$T$1000, " ") ->  | I18: 0 | M18: 0
A19: =IF(COUNTRY_INFO!A19=0," ",COUNTRY_INFO!A19) -> Rwanda | B19: =IF(COUNTRY_INFO!B19=0," ",COUNTRY_INFO!B19) -> Eastern | C19: =IF(COUNTRY_INFO!C19=0," ",COUNTRY_INFO!C19) -> Kayonza | D19: =IF(COUNTRY_INFO!$T$9:$T$1000="MDA2 (DEC+ALB)", COUNTRY_INFO!$T$9:$T$1000, " ") ->  | I19: 0 | M19: 0
A20: =IF(COUNTRY_INFO!A20=0," ",COUNTRY_INFO!A20) -> Rwanda | B20: =IF(COUNTRY_INFO!B20=0," ",COUNTRY_INFO!B20) -> Kigali | C20: =IF(COUNTRY_INFO!C20=0," ",COUNTRY_INFO!C20) -> Kicukiro | D20: =IF(COUNTRY_INFO!$T$9:$T$1000="MDA2 (DEC+ALB)", COUNTRY_INFO!$T$9:$T$1000, " ") ->  | I20: 0 | M20: 0
A21: =IF(COUNTRY_INFO!A21=0," ",COUNTRY_INFO!A21) -> Rwanda | B21: =IF(COUNTRY_INFO!B21=0," ",COUNTRY_INFO!B21) -> Eastern | C21: =IF(COUNTRY_INFO!C21=0," ",COUNTRY_INFO!C21) -> Kirehe | D21: =IF(COUNTRY_INFO!$T$9:$T$1000="MDA2 (DEC+ALB)", COUNTRY_INFO!$T$9:$T$1000, " ") ->  | I21: 0 | M21: 0
A22: =IF(COUNTRY_INFO!A22=0," ",COUNTRY_INFO!A22) -> Rwanda | B22: =IF(COUNTRY_INFO!B22=0," ",COUNTRY_INFO!B22) -> Southern | C22: =IF(COUNTRY_INFO!C22=0," ",COUNTRY_INFO!C22) -> Muhanga | D22: =IF(COUNTRY_INFO!$T$9:$T$1000="MDA2 (DEC+ALB)", COUNTRY_INFO!$T$9:$T$1000, " ") ->  | I22: 0 | M22: 0
A23: =IF(COUNTRY_INFO!A23=0," ",COUNTRY_INFO!A23) -> Rwanda | B23: =IF(COUNTRY_INFO!B23=0," ",COUNTRY_INFO!B23) -> Northern | C23: =IF(COUNTRY_INFO!C23=0," ",COUNTRY_INFO!C23) -> Musanze | D23: =IF(COUNTRY_INFO!$T$9:$T$1000="MDA2 (DEC+ALB)", COUNTRY_INFO!$T$9:$T$1000, " ") ->  | I23: 0 | M23: 0
A24: =IF(COUNTRY_INFO!A24=0," ",COUNTRY_INFO!A24) -> Rwanda | B24: =IF(COUNTRY_INFO!B24=0," ",COUNTRY_INFO!B24) -> Eastern | C24: =IF(COUNTRY_INFO!C24=0," ",COUNTRY_INFO!C24) -> Ngoma | D24: =IF(COUNTRY_INFO!$T$9:$T$1000="MDA2 (DEC+ALB)", COUNTRY_INFO!$T$9:$T$1000, " ") ->  | I24: 0 | M24: 0
A25: =IF(COUNTRY_INFO!A25=0," ",COUNTRY_INFO!A25) -> Rwanda | B25: =IF(COUNTRY_INFO!B25=0," ",COUNTRY_INFO!B25) -> Western | C25: =IF(COUNTRY_INFO!C25=0," ",COUNTRY_INFO!C25) -> Ngororero | D25: =IF(COUNTRY_INFO!$T$9:$T$1000="MDA2 (DEC+ALB)", COUNTRY_INFO!$T$9:$T$1000, " ") ->  | I25: 0 | M25: 0
A26: =IF(COUNTRY_INFO!A26=0," ",COUNTRY_INFO!A26) -> Rwanda | B26: =IF(COUNTRY_INFO!B26=0," ",COUNTRY_INFO!B26) -> Western | C26: =IF(COUNTRY_INFO!C26=0," ",COUNTRY_INFO!C26) -> Nyabihu | D26: =IF(COUNTRY_INFO!$T$9:$T$1000="MDA2 (DEC+ALB)", COUNTRY_INFO!$T$9:$T$1000, " ") ->  | I26: 0 | M26: 0
A27: =IF(COUNTRY_INFO!A27=0," ",COUNTRY_INFO!A27) -> Rwanda | B27: =IF(COUNTRY_INFO!B27=0," ",COUNTRY_INFO!B27) -> Eastern | C27: =IF(COUNTRY_INFO!C27=0," ",COUNTRY_INFO!C27) -> Nyagatare | D27: =IF(COUNTRY_INFO!$T$9:$T$1000="MDA2 (DEC+ALB)", COUNTRY_INFO!$T$9:$T$1000, " ") ->  | I27: 0 | M27: 0
A28: =IF(COUNTRY_INFO!A28=0," ",COUNTRY_INFO!A28) -> Rwanda | B28: =IF(COUNTRY_INFO!B28=0," ",COUNTRY_INFO!B28) -> Southern | C28: =IF(COUNTRY_INFO!C28=0," ",COUNTRY_INFO!C28) -> Nyamagabe | D28: =IF(COUNTRY_INFO!$T$9:$T$1000="MDA2 (DEC+ALB)", COUNTRY_INFO!$T$9:$T$1000, " ") ->  | I28: 0 | M28: 0
A29: =IF(COUNTRY_INFO!A29=0," ",COUNTRY_INFO!A29) -> Rwanda | B29: =IF(COUNTRY_INFO!B29=0," ",COUNTRY_INFO!B29) -> Western | C29: =IF(COUNTRY_INFO!C29=0," ",COUNTRY_INFO!C29) -> Nyamasheke | D29: =IF(COUNTRY_INFO!$T$9:$T$1000="MDA2 (DEC+ALB)", COUNTRY_INFO!$T$9:$T$1000, " ") ->  | I29: 0 | M29: 0
A30: =IF(COUNTRY_INFO!A30=0," ",COUNTRY_INFO!A30) -> Rwanda | B30: =IF(COUNTRY_INFO!B30=0," ",COUNTRY_INFO!B30) -> Southern | C30: =IF(COUNTRY_INFO!C30=0," ",COUNTRY_INFO!C30) -> Nyanza | D30: =IF(COUNTRY_INFO!$T$9:$T$1000="MDA2 (DEC+ALB)", COUNTRY_INFO!$T$9:$T$1000, " ") ->  | I30: 0 | M30: 0
A31: =IF(COUNTRY_INFO!A31=0," ",COUNTRY_INFO!A31) -> Rwanda | B31: =IF(COUNTRY_INFO!B31=0," ",COUNTRY_INFO!B31) -> Kigali | C31: =IF(COUNTRY_INFO!C31=0," ",COUNTRY_INFO!C31) -> Nyarugenge | D31: =IF(COUNTRY_INFO!$T$9:$T$1000="MDA2 (DEC+ALB)", COUNTRY_INFO!$T$9:$T$1000, " ") ->  | I31: 0 | M31: 0
A32: =IF(COUNTRY_INFO!A32=0," ",COUNTRY_INFO!A32) -> Rwanda | B32: =IF(COUNTRY_INFO!B32=0," ",COUNTRY_INFO!B32) -> Southern | C32: =IF(COUNTRY_INFO!C32=0," ",COUNTRY_INFO!C32) -> Nyaruguru | D32: =IF(COUNTRY_INFO!$T$9:$T$1000="MDA2 (DEC+ALB)", COUNTRY_INFO!$T$9:$T$1000, " ") ->  | I32: 0 | M32: 0
A33: =IF(COUNTRY_INFO!A33=0," ",COUNTRY_INFO!A33) -> Rwanda | B33: =IF(COUNTRY_INFO!B33=0," ",COUNTRY_INFO!B33) -> Western | C33: =IF(COUNTRY_INFO!C33=0," ",COUNTRY_INFO!C33) -> Rubavu | D33: =IF(COUNTRY_INFO!$T$9:$T$1000="MDA2 (DEC+ALB)", COUNTRY_INFO!$T$9:$T$1000, " ") ->  | I33: 0 | M33: 0
A34: =IF(COUNTRY_INFO!A34=0," ",COUNTRY_INFO!A34) -> Rwanda | B34: =IF(COUNTRY_INFO!B34=0," ",COUNTRY_INFO!B34) -> Southern | C34: =IF(COUNTRY_INFO!C34=0," ",COUNTRY_INFO!C34) -> Ruhango | D34: =IF(COUNTRY_INFO!$T$9:$T$1000="MDA2 (DEC+ALB)", COUNTRY_INFO!$T$9:$T$1000, " ") ->  | I34: 0 | M34: 0
A35: =IF(COUNTRY_INFO!A35=0," ",COUNTRY_INFO!A35) -> Rwanda | B35: =IF(COUNTRY_INFO!B35=0," ",COUNTRY_INFO!B35) -> Northern | C35: =IF(COUNTRY_INFO!C35=0," ",COUNTRY_INFO!C35) -> Rulindo | D35: =IF(COUNTRY_INFO!$T$9:$T$1000="MDA2 (DEC+ALB)", COUNTRY_INFO!$T$9:$T$1000, " ") ->  | I35: 0 | M35: 0
A36: =IF(COUNTRY_INFO!A36=0," ",COUNTRY_INFO!A36) -> Rwanda | B36: =IF(COUNTRY_INFO!B36=0," ",COUNTRY_INFO!B36) -> Western | C36: =IF(COUNTRY_INFO!C36=0," ",COUNTRY_INFO!C36) -> Rusizi | D36: =IF(COUNTRY_INFO!$T$9:$T$1000="MDA2 (DEC+ALB)", COUNTRY_INFO!$T$9:$T$1000, " ") ->  | I36: 0 | M36: 0
A37: =IF(COUNTRY_INFO!A37=0," ",COUNTRY_INFO!A37) -> Rwanda | B37: =IF(COUNTRY_INFO!B37=0," ",COUNTRY_INFO!B37) -> Western | C37: =IF(COUNTRY_INFO!C37=0," ",COUNTRY_INFO!C37) -> Rutsiro | D37: =IF(COUNTRY_INFO!$T$9:$T$1000="MDA2 (DEC+ALB)", COUNTRY_INFO!$T$9:$T$1000, " ") ->  | I37: 0 | M37: 0
A38: =IF(COUNTRY_INFO!A38=0," ",COUNTRY_INFO!A38) -> Rwanda | B38: =IF(COUNTRY_INFO!B38=0," ",COUNTRY_INFO!B38) -> Eastern | C38: =IF(COUNTRY_INFO!C38=0," ",COUNTRY_INFO!C38) -> Rwamagana | D38: =IF(COUNTRY_INFO!$T$9:$T$1000="MDA2 (DEC+ALB)", COUNTRY_INFO!$T$9:$T$1000, " ") ->  | I38: 0 | M38: 0

Sheet MDA3 (hidden)
A1: MDA 3 - Ivermectin (IVM)
A2: Administrative structure, population requiring PC by age group, population treated by age group and coverage
A4: TOTAL | F4: =SUM(F$9:F$1000) -> 0 | G4: 0 | H4: 0 | I4: 0 | J4: 0 | K4: 0 | L4: 0 | M4: 0 | N4: 0 | O4: 0 | P4: 0 | Q4: 0 | R4: =IF(F4<>0, IF(O4/F4*100=0, "-", O4/F4*100), " ") ->  | S4: =IF(G4<>0, IF(P4/G4*100=0, "-", P4/G4*100), " ") ->  | T4: =IF(H4<>0, IF(Q4/H4*100=0, "-", Q4/H4*100), " ") -> 
D6: PC implemented | E6: Date | F6: Population targeted for MDA 3 | I6: Population treated - 1st round | L6: Population treated - 2nd round | O6: Population treated | R6: Programme coverage (%)
A7: Country | B7: Province/State | C7: District | F7: SAC | G7: Adults | H7: Total | I7: SAC | J7: Adults | K7: Total | L7: SAC | M7: Adults | N7: Total | O7: SAC | P7: Adults | Q7: Total | R7: SAC | S7: Adults | T7: Total
A9: =IF(COUNTRY_INFO!A9=0," ",COUNTRY_INFO!A9) -> Rwanda | B9: =IF(COUNTRY_INFO!B9=0," ",COUNTRY_INFO!B9) -> Eastern | C9: =IF(COUNTRY_INFO!C9=0," ",COUNTRY_INFO!C9) -> Bugesera | D9: =IF(COUNTRY_INFO!$T$9:$T$1000="MDA3 (IVM)", COUNTRY_INFO!$T$9:$T$1000, " ") ->  | H9: =SUM(F9:G9) -> 0 | K9: =SUM(I9:J9) -> 0 | N9: =SUM(L9:M9) -> 0 | O9: =MAX(I9,L9) -> 0 | P9: =MAX(J9,M9) -> 0 | Q9: =SUM(O9:P9) -> 0 | R9: =IF(F9<>0, IF(MAX(I9,L9)/F9*100=0, "-", MAX(I9,L9)/F9*100), " ") ->  | S9: =IF(G9<>0, IF(MAX(J9,M9)/G9*100=0, "-", MAX(J9,M9)/G9*100), " ") ->  | T9: =IF(H9<>0, IF((MAX(I9,L9)+MAX(J9,M9))/H9*100=0, "-",(MAX(I9,L9)+MAX(J9,M9))/H9*100), " ") -> 
A10: =IF(COUNTRY_INFO!A10=0," ",COUNTRY_INFO!A10) -> Rwanda | B10: =IF(COUNTRY_INFO!B10=0," ",COUNTRY_INFO!B10) -> Northern | C10: =IF(COUNTRY_INFO!C10=0," ",COUNTRY_INFO!C10) -> Burera | D10: =IF(COUNTRY_INFO!$T$9:$T$1000="MDA3 (IVM)", COUNTRY_INFO!$T$9:$T$1000, " ") ->  | H10: =SUM(F10:G10) -> 0 | K10: =SUM(I10:J10) -> 0 | N10: =SUM(L10:M10) -> 0 | O10: =MAX(I10,L10) -> 0 | P10: =MAX(J10,M10) -> 0 | Q10: =SUM(O10:P10) -> 0 | R10: =IF(F10<>0, IF(MAX(I10,L10)/F10*100=0, "-", MAX(I10,L10)/F10*100), " ") ->  | S10: =IF(G10<>0, IF(MAX(J10,M10)/G10*100=0, "-", MAX(J10,M10)/G10*100), " ") ->  | T10: =IF(H10<>0, IF((MAX(I10,L10)+MAX(J10,M10))/H10*100=0, "-",(MAX(I10,L10)+MAX(J10,M10))/H10*100), " ") -> 
A11: =IF(COUNTRY_INFO!A11=0," ",COUNTRY_INFO!A11) -> Rwanda | B11: =IF(COUNTRY_INFO!B11=0," ",COUNTRY_INFO!B11) -> Northern | C11: =IF(COUNTRY_INFO!C11=0," ",COUNTRY_INFO!C11) -> Gakenke | D11: =IF(COUNTRY_INFO!$T$9:$T$1000="MDA3 (IVM)", COUNTRY_INFO!$T$9:$T$1000, " ") ->  | H11: 0 | K11: 0 | N11: 0 | O11: 0 | P11: 0 | Q11: 0
A12: =IF(COUNTRY_INFO!A12=0," ",COUNTRY_INFO!A12) -> Rwanda | B12: =IF(COUNTRY_INFO!B12=0," ",COUNTRY_INFO!B12) -> Kigali | C12: =IF(COUNTRY_INFO!C12=0," ",COUNTRY_INFO!C12) -> Gasabo | D12: =IF(COUNTRY_INFO!$T$9:$T$1000="MDA3 (IVM)", COUNTRY_INFO!$T$9:$T$1000, " ") ->  | H12: 0 | K12: 0 | N12: 0 | O12: 0 | P12: 0 | Q12: 0
A13: =IF(COUNTRY_INFO!A13=0," ",COUNTRY_INFO!A13) -> Rwanda | B13: =IF(COUNTRY_INFO!B13=0," ",COUNTRY_INFO!B13) -> Eastern | C13: =IF(COUNTRY_INFO!C13=0," ",COUNTRY_INFO!C13) -> Gatsibo | D13: =IF(COUNTRY_INFO!$T$9:$T$1000="MDA3 (IVM)", COUNTRY_INFO!$T$9:$T$1000, " ") ->  | H13: 0 | K13: 0 | N13: 0 | O13: 0 | P13: 0 | Q13: 0
A14: =IF(COUNTRY_INFO!A14=0," ",COUNTRY_INFO!A14) -> Rwanda | B14: =IF(COUNTRY_INFO!B14=0," ",COUNTRY_INFO!B14) -> Northern | C14: =IF(COUNTRY_INFO!C14=0," ",COUNTRY_INFO!C14) -> Gicumbi | D14: =IF(COUNTRY_INFO!$T$9:$T$1000="MDA3 (IVM)", COUNTRY_INFO!$T$9:$T$1000, " ") ->  | H14: 0 | K14: 0 | N14: 0 | O14: 0 | P14: 0 | Q14: 0
A15: =IF(COUNTRY_INFO!A15=0," ",COUNTRY_INFO!A15) -> Rwanda | B15: =IF(COUNTRY_INFO!B15=0," ",COUNTRY_INFO!B15) -> Southern | C15: =IF(COUNTRY_INFO!C15=0," ",COUNTRY_INFO!C15) -> Gisagara | D15: =IF(COUNTRY_INFO!$T$9:$T$1000="MDA3 (IVM)", COUNTRY_INFO!$T$9:$T$1000, " ") ->  | H15: 0 | K15: 0 | N15: 0 | O15: 0 | P15: 0 | Q15: 0
A16: =IF(COUNTRY_INFO!A16=0," ",COUNTRY_INFO!A16) -> Rwanda | B16: =IF(COUNTRY_INFO!B16=0," ",COUNTRY_INFO!B16) -> Southern | C16: =IF(COUNTRY_INFO!C16=0," ",COUNTRY_INFO!C16) -> Huye | D16: =IF(COUNTRY_INFO!$T$9:$T$1000="MDA3 (IVM)", COUNTRY_INFO!$T$9:$T$1000, " ") ->  | H16: 0 | K16: 0 | N16: 0 | O16: 0 | P16: 0 | Q16: 0
A17: =IF(COUNTRY_INFO!A17=0," ",COUNTRY_INFO!A17) -> Rwanda | B17: =IF(COUNTRY_INFO!B17=0," ",COUNTRY_INFO!B17) -> Southern | C17: =IF(COUNTRY_INFO!C17=0," ",COUNTRY_INFO!C17) -> Kamonyi | D17: =IF(COUNTRY_INFO!$T$9:$T$1000="MDA3 (IVM)", COUNTRY_INFO!$T$9:$T$1000, " ") ->  | H17: 0 | K17: 0 | N17: 0 | O17: 0 | P17: 0 | Q17: 0
A18: =IF(COUNTRY_INFO!A18=0," ",COUNTRY_INFO!A18) -> Rwanda | B18: =IF(COUNTRY_INFO!B18=0," ",COUNTRY_INFO!B18) -> Western | C18: =IF(COUNTRY_INFO!C18=0," ",COUNTRY_INFO!C18) -> Karongi | D18: =IF(COUNTRY_INFO!$T$9:$T$1000="MDA3 (IVM)", COUNTRY_INFO!$T$9:$T$1000, " ") ->  | H18: 0 | K18: 0 | N18: 0 | O18: 0 | P18: 0 | Q18: 0
A19: =IF(COUNTRY_INFO!A19=0," ",COUNTRY_INFO!A19) -> Rwanda | B19: =IF(COUNTRY_INFO!B19=0," ",COUNTRY_INFO!B19) -> Eastern | C19: =IF(COUNTRY_INFO!C19=0," ",COUNTRY_INFO!C19) -> Kayonza | D19: =IF(COUNTRY_INFO!$T$9:$T$1000="MDA3 (IVM)", COUNTRY_INFO!$T$9:$T$1000, " ") ->  | H19: 0 | K19: 0 | N19: 0 | O19: 0 | P19: 0 | Q19: 0
A20: =IF(COUNTRY_INFO!A20=0," ",COUNTRY_INFO!A20) -> Rwanda | B20: =IF(COUNTRY_INFO!B20=0," ",COUNTRY_INFO!B20) -> Kigali | C20: =IF(COUNTRY_INFO!C20=0," ",COUNTRY_INFO!C20) -> Kicukiro | D20: =IF(COUNTRY_INFO!$T$9:$T$1000="MDA3 (IVM)", COUNTRY_INFO!$T$9:$T$1000, " ") ->  | H20: 0 | K20: 0 | N20: 0 | O20: 0 | P20: 0 | Q20: 0
A21: =IF(COUNTRY_INFO!A21=0," ",COUNTRY_INFO!A21) -> Rwanda | B21: =IF(COUNTRY_INFO!B21=0," ",COUNTRY_INFO!B21) -> Eastern | C21: =IF(COUNTRY_INFO!C21=0," ",COUNTRY_INFO!C21) -> Kirehe | D21: =IF(COUNTRY_INFO!$T$9:$T$1000="MDA3 (IVM)", COUNTRY_INFO!$T$9:$T$1000, " ") ->  | H21: 0 | K21: 0 | N21: 0 | O21: 0 | P21: 0 | Q21: 0
A22: =IF(COUNTRY_INFO!A22=0," ",COUNTRY_INFO!A22) -> Rwanda | B22: =IF(COUNTRY_INFO!B22=0," ",COUNTRY_INFO!B22) -> Southern | C22: =IF(COUNTRY_INFO!C22=0," ",COUNTRY_INFO!C22) -> Muhanga | D22: =IF(COUNTRY_INFO!$T$9:$T$1000="MDA3 (IVM)", COUNTRY_INFO!$T$9:$T$1000, " ") ->  | H22: 0 | K22: 0 | N22: 0 | O22: 0 | P22: 0 | Q22: 0
A23: =IF(COUNTRY_INFO!A23=0," ",COUNTRY_INFO!A23) -> Rwanda | B23: =IF(COUNTRY_INFO!B23=0," ",COUNTRY_INFO!B23) -> Northern | C23: =IF(COUNTRY_INFO!C23=0," ",COUNTRY_INFO!C23) -> Musanze | D23: =IF(COUNTRY_INFO!$T$9:$T$1000="MDA3 (IVM)", COUNTRY_INFO!$T$9:$T$1000, " ") ->  | H23: 0 | K23: 0 | N23: 0 | O23: 0 | P23: 0 | Q23: 0
A24: =IF(COUNTRY_INFO!A24=0," ",COUNTRY_INFO!A24) -> Rwanda | B24: =IF(COUNTRY_INFO!B24=0," ",COUNTRY_INFO!B24) -> Eastern | C24: =IF(COUNTRY_INFO!C24=0," ",COUNTRY_INFO!C24) -> Ngoma | D24: =IF(COUNTRY_INFO!$T$9:$T$1000="MDA3 (IVM)", COUNTRY_INFO!$T$9:$T$1000, " ") ->  | H24: 0 | K24: 0 | N24: 0 | O24: 0 | P24: 0 | Q24: 0
A25: =IF(COUNTRY_INFO!A25=0," ",COUNTRY_INFO!A25) -> Rwanda | B25: =IF(COUNTRY_INFO!B25=0," ",COUNTRY_INFO!B25) -> Western | C25: =IF(COUNTRY_INFO!C25=0," ",COUNTRY_INFO!C25) -> Ngororero | D25: =IF(COUNTRY_INFO!$T$9:$T$1000="MDA3 (IVM)", COUNTRY_INFO!$T$9:$T$1000, " ") ->  | H25: 0 | K25: 0 | N25: 0 | O25: 0 | P25: 0 | Q25: 0
A26: =IF(COUNTRY_INFO!A26=0," ",COUNTRY_INFO!A26) -> Rwanda | B26: =IF(COUNTRY_INFO!B26=0," ",COUNTRY_INFO!B26) -> Western | C26: =IF(COUNTRY_INFO!C26=0," ",COUNTRY_INFO!C26) -> Nyabihu | D26: =IF(COUNTRY_INFO!$T$9:$T$1000="MDA3 (IVM)", COUNTRY_INFO!$T$9:$T$1000, " ") ->  | H26: 0 | K26: 0 | N26: 0 | O26: 0 | P26: 0 | Q26: 0
A27: =IF(COUNTRY_INFO!A27=0," ",COUNTRY_INFO!A27) -> Rwanda | B27: =IF(COUNTRY_INFO!B27=0," ",COUNTRY_INFO!B27) -> Eastern | C27: =IF(COUNTRY_INFO!C27=0," ",COUNTRY_INFO!C27) -> Nyagatare | D27: =IF(COUNTRY_INFO!$T$9:$T$1000="MDA3 (IVM)", COUNTRY_INFO!$T$9:$T$1000, " ") ->  | H27: 0 | K27: 0 | N27: 0 | O27: 0 | P27: 0 | Q27: 0
A28: =IF(COUNTRY_INFO!A28=0," ",COUNTRY_INFO!A28) -> Rwanda | B28: =IF(COUNTRY_INFO!B28=0," ",COUNTRY_INFO!B28) -> Southern | C28: =IF(COUNTRY_INFO!C28=0," ",COUNTRY_INFO!C28) -> Nyamagabe | D28: =IF(COUNTRY_INFO!$T$9:$T$1000="MDA3 (IVM)", COUNTRY_INFO!$T$9:$T$1000, " ") ->  | H28: 0 | K28: 0 | N28: 0 | O28: 0 | P28: 0 | Q28: 0
A29: =IF(COUNTRY_INFO!A29=0," ",COUNTRY_INFO!A29) -> Rwanda | B29: =IF(COUNTRY_INFO!B29=0," ",COUNTRY_INFO!B29) -> Western | C29: =IF(COUNTRY_INFO!C29=0," ",COUNTRY_INFO!C29) -> Nyamasheke | D29: =IF(COUNTRY_INFO!$T$9:$T$1000="MDA3 (IVM)", COUNTRY_INFO!$T$9:$T$1000, " ") ->  | H29: 0 | K29: 0 | N29: 0 | O29: 0 | P29: 0 | Q29: 0
A30: =IF(COUNTRY_INFO!A30=0," ",COUNTRY_INFO!A30) -> Rwanda | B30: =IF(COUNTRY_INFO!B30=0," ",COUNTRY_INFO!B30) -> Southern | C30: =IF(COUNTRY_INFO!C30=0," ",COUNTRY_INFO!C30) -> Nyanza | D30: =IF(COUNTRY_INFO!$T$9:$T$1000="MDA3 (IVM)", COUNTRY_INFO!$T$9:$T$1000, " ") ->  | H30: 0 | K30: 0 | N30: 0 | O30: 0 | P30: 0 | Q30: 0
A31: =IF(COUNTRY_INFO!A31=0," ",COUNTRY_INFO!A31) -> Rwanda | B31: =IF(COUNTRY_INFO!B31=0," ",COUNTRY_INFO!B31) -> Kigali | C31: =IF(COUNTRY_INFO!C31=0," ",COUNTRY_INFO!C31) -> Nyarugenge | D31: =IF(COUNTRY_INFO!$T$9:$T$1000="MDA3 (IVM)", COUNTRY_INFO!$T$9:$T$1000, " ") ->  | H31: 0 | K31: 0 | N31: 0 | O31: 0 | P31: 0 | Q31: 0
A32: =IF(COUNTRY_INFO!A32=0," ",COUNTRY_INFO!A32) -> Rwanda | B32: =IF(COUNTRY_INFO!B32=0," ",COUNTRY_INFO!B32) -> Southern | C32: =IF(COUNTRY_INFO!C32=0," ",COUNTRY_INFO!C32) -> Nyaruguru | D32: =IF(COUNTRY_INFO!$T$9:$T$1000="MDA3 (IVM)", COUNTRY_INFO!$T$9:$T$1000, " ") ->  | H32: 0 | K32: 0 | N32: 0 | O32: 0 | P32: 0 | Q32: 0
A33: =IF(COUNTRY_INFO!A33=0," ",COUNTRY_INFO!A33) -> Rwanda | B33: =IF(COUNTRY_INFO!B33=0," ",COUNTRY_INFO!B33) -> Western | C33: =IF(COUNTRY_INFO!C33=0," ",COUNTRY_INFO!C33) -> Rubavu | D33: =IF(COUNTRY_INFO!$T$9:$T$1000="MDA3 (IVM)", COUNTRY_INFO!$T$9:$T$1000, " ") ->  | H33: 0 | K33: 0 | N33: 0 | O33: 0 | P33: 0 | Q33: 0
A34: =IF(COUNTRY_INFO!A34=0," ",COUNTRY_INFO!A34) -> Rwanda | B34: =IF(COUNTRY_INFO!B34=0," ",COUNTRY_INFO!B34) -> Southern | C34: =IF(COUNTRY_INFO!C34=0," ",COUNTRY_INFO!C34) -> Ruhango | D34: =IF(COUNTRY_INFO!$T$9:$T$1000="MDA3 (IVM)", COUNTRY_INFO!$T$9:$T$1000, " ") ->  | H34: 0 | K34: 0 | N34: 0 | O34: 0 | P34: 0 | Q34: 0
A35: =IF(COUNTRY_INFO!A35=0," ",COUNTRY_INFO!A35) -> Rwanda | B35: =IF(COUNTRY_INFO!B35=0," ",COUNTRY_INFO!B35) -> Northern | C35: =IF(COUNTRY_INFO!C35=0," ",COUNTRY_INFO!C35) -> Rulindo | D35: =IF(COUNTRY_INFO!$T$9:$T$1000="MDA3 (IVM)", COUNTRY_INFO!$T$9:$T$1000, " ") ->  | H35: 0 | K35: 0 | N35: 0 | O35: 0 | P35: 0 | Q35: 0
A36: =IF(COUNTRY_INFO!A36=0," ",COUNTRY_INFO!A36) -> Rwanda | B36: =IF(COUNTRY_INFO!B36=0," ",COUNTRY_INFO!B36) -> Western | C36: =IF(COUNTRY_INFO!C36=0," ",COUNTRY_INFO!C36) -> Rusizi | D36: =IF(COUNTRY_INFO!$T$9:$T$1000="MDA3 (IVM)", COUNTRY_INFO!$T$9:$T$1000, " ") ->  | H36: 0 | K36: 0 | N36: 0 | O36: 0 | P36: 0 | Q36: 0
A37: =IF(COUNTRY_INFO!A37=0," ",COUNTRY_INFO!A37) -> Rwanda | B37: =IF(COUNTRY_INFO!B37=0," ",COUNTRY_INFO!B37) -> Western | C37: =IF(COUNTRY_INFO!C37=0," ",COUNTRY_INFO!C37) -> Rutsiro | D37: =IF(COUNTRY_INFO!$T$9:$T$1000="MDA3 (IVM)", COUNTRY_INFO!$T$9:$T$1000, " ") ->  | H37: 0 | K37: 0 | N37: 0 | O37: 0 | P37: 0 | Q37: 0
A38: =IF(COUNTRY_INFO!A38=0," ",COUNTRY_INFO!A38) -> Rwanda | B38: =IF(COUNTRY_INFO!B38=0," ",COUNTRY_INFO!B38) -> Eastern | C38: =IF(COUNTRY_INFO!C38=0," ",COUNTRY_INFO!C38) -> Rwamagana | D38: =IF(COUNTRY_INFO!$T$9:$T$1000="MDA3 (IVM)", COUNTRY_INFO!$T$9:$T$1000, " ") ->  | H38: 0 | K38: 0 | N38: 0 | O38: 0 | P38: 0 | Q38: 0

Sheet MDA5 (hidden)
A1: MDA 5 - Ivermectin (IVM) + Diethylcarbamazine citrate (DEC) + Albendazole (ALB)
A2: Administrative structure, population requiring PC by age group, population treated by age group and coverage
A4: TOTAL | F4: =SUM(F$9:F$1000) -> 0 | G4: 0 | H4: 0 | I4: 0 | J4: 0 | K4: 0 | L4: 0 | M4: 0 | N4: =IF(F4<>0, IF(J4/F4*100=0, "-", J4/F4*100), " ") ->  | O4: =IF(G4<>0, IF(K4/G4*100=0, "-", K4/G4*100), " ") ->  | P4: =IF(H4<>0, IF(L4/H4*100=0, "-", L4/H4*100), " ") ->  | Q4: =IF(I4<>0, IF(M4/I4*100=0, "-", M4/I4*100), " ") -> 
D6: PC implemented | E6: Date | F6: Population targeted for MDA 5 | J6: Population treated | N6: Programme coverage (%)
A7: Country | B7: Province/State | C7: District | F7: PreSAC | G7: SAC | H7: Adults | I7: Total | J7: PreSAC | K7: SAC | L7: Adults | M7: Total | N7: PreSAC | O7: SAC | P7: Adults | Q7: Total
A9: =IF(COUNTRY_INFO!A9=0," ",COUNTRY_INFO!A9) -> Rwanda | B9: =IF(COUNTRY_INFO!B9=0," ",COUNTRY_INFO!B9) -> Eastern | C9: =IF(COUNTRY_INFO!C9=0," ",COUNTRY_INFO!C9) -> Bugesera | D9: =IF(COUNTRY_INFO!$T$9:$T$1000="MDA5 (IDA)", COUNTRY_INFO!$T$9:$T$1000, " ") ->  | I9: =SUM(F9:H9) -> 0 | M9: =SUM(J9:L9) -> 0 | N9: =IF(F9<>0, IF(J9/F9*100=0, "-", J9/F9*100), " ") ->  | O9: =IF(G9<>0, IF(K9/G9*100=0, "-", K9/G9*100), " ") ->  | P9: =IF(H9<>0, IF(L9/H9*100=0, "-", L9/H9*100), " ") ->  | Q9: =IF(I9<>0, IF(M9/I9*100=0, "-", M9/I9*100), " ") -> 
A10: =IF(COUNTRY_INFO!A10=0," ",COUNTRY_INFO!A10) -> Rwanda | B10: =IF(COUNTRY_INFO!B10=0," ",COUNTRY_INFO!B10) -> Northern | C10: =IF(COUNTRY_INFO!C10=0," ",COUNTRY_INFO!C10) -> Burera | D10: =IF(COUNTRY_INFO!$T$9:$T$1000="MDA5 (IDA)", COUNTRY_INFO!$T$9:$T$1000, " ") ->  | I10: =SUM(F10:H10) -> 0 | M10: =SUM(J10:L10) -> 0 | N10: =IF(F10<>0, IF(J10/F10*100=0, "-", J10/F10*100), " ") ->  | O10: =IF(G10<>0, IF(K10/G10*100=0, "-", K10/G10*100), " ") ->  | P10: =IF(H10<>0, IF(L10/H10*100=0, "-", L10/H10*100), " ") ->  | Q10: =IF(I10<>0, IF(M10/I10*100=0, "-", M10/I10*100), " ") -> 
A11: =IF(COUNTRY_INFO!A11=0," ",COUNTRY_INFO!A11) -> Rwanda | B11: =IF(COUNTRY_INFO!B11=0," ",COUNTRY_INFO!B11) -> Northern | C11: =IF(COUNTRY_INFO!C11=0," ",COUNTRY_INFO!C11) -> Gakenke | D11: =IF(COUNTRY_INFO!$T$9:$T$1000="MDA5 (IDA)", COUNTRY_INFO!$T$9:$T$1000, " ") ->  | I11: 0 | M11: 0
A12: =IF(COUNTRY_INFO!A12=0," ",COUNTRY_INFO!A12) -> Rwanda | B12: =IF(COUNTRY_INFO!B12=0," ",COUNTRY_INFO!B12) -> Kigali | C12: =IF(COUNTRY_INFO!C12=0," ",COUNTRY_INFO!C12) -> Gasabo | D12: =IF(COUNTRY_INFO!$T$9:$T$1000="MDA5 (IDA)", COUNTRY_INFO!$T$9:$T$1000, " ") ->  | I12: 0 | M12: 0
A13: =IF(COUNTRY_INFO!A13=0," ",COUNTRY_INFO!A13) -> Rwanda | B13: =IF(COUNTRY_INFO!B13=0," ",COUNTRY_INFO!B13) -> Eastern | C13: =IF(COUNTRY_INFO!C13=0," ",COUNTRY_INFO!C13) -> Gatsibo | D13: =IF(COUNTRY_INFO!$T$9:$T$1000="MDA5 (IDA)", COUNTRY_INFO!$T$9:$T$1000, " ") ->  | I13: 0 | M13: 0
A14: =IF(COUNTRY_INFO!A14=0," ",COUNTRY_INFO!A14) -> Rwanda | B14: =IF(COUNTRY_INFO!B14=0," ",COUNTRY_INFO!B14) -> Northern | C14: =IF(COUNTRY_INFO!C14=0," ",COUNTRY_INFO!C14) -> Gicumbi | D14: =IF(COUNTRY_INFO!$T$9:$T$1000="MDA5 (IDA)", COUNTRY_INFO!$T$9:$T$1000, " ") ->  | I14: 0 | M14: 0
A15: =IF(COUNTRY_INFO!A15=0," ",COUNTRY_INFO!A15) -> Rwanda | B15: =IF(COUNTRY_INFO!B15=0," ",COUNTRY_INFO!B15) -> Southern | C15: =IF(COUNTRY_INFO!C15=0," ",COUNTRY_INFO!C15) -> Gisagara | D15: =IF(COUNTRY_INFO!$T$9:$T$1000="MDA5 (IDA)", COUNTRY_INFO!$T$9:$T$1000, " ") ->  | I15: 0 | M15: 0
A16: =IF(COUNTRY_INFO!A16=0," ",COUNTRY_INFO!A16) -> Rwanda | B16: =IF(COUNTRY_INFO!B16=0," ",COUNTRY_INFO!B16) -> Southern | C16: =IF(COUNTRY_INFO!C16=0," ",COUNTRY_INFO!C16) -> Huye | D16: =IF(COUNTRY_INFO!$T$9:$T$1000="MDA5 (IDA)", COUNTRY_INFO!$T$9:$T$1000, " ") ->  | I16: 0 | M16: 0
A17: =IF(COUNTRY_INFO!A17=0," ",COUNTRY_INFO!A17) -> Rwanda | B17: =IF(COUNTRY_INFO!B17=0," ",COUNTRY_INFO!B17) -> Southern | C17: =IF(COUNTRY_INFO!C17=0," ",COUNTRY_INFO!C17) -> Kamonyi | D17: =IF(COUNTRY_INFO!$T$9:$T$1000="MDA5 (IDA)", COUNTRY_INFO!$T$9:$T$1000, " ") ->  | I17: 0 | M17: 0
A18: =IF(COUNTRY_INFO!A18=0," ",COUNTRY_INFO!A18) -> Rwanda | B18: =IF(COUNTRY_INFO!B18=0," ",COUNTRY_INFO!B18) -> Western | C18: =IF(COUNTRY_INFO!C18=0," ",COUNTRY_INFO!C18) -> Karongi | D18: =IF(COUNTRY_INFO!$T$9:$T$1000="MDA5 (IDA)", COUNTRY_INFO!$T$9:$T$1000, " ") ->  | I18: 0 | M18: 0
A19: =IF(COUNTRY_INFO!A19=0," ",COUNTRY_INFO!A19) -> Rwanda | B19: =IF(COUNTRY_INFO!B19=0," ",COUNTRY_INFO!B19) -> Eastern | C19: =IF(COUNTRY_INFO!C19=0," ",COUNTRY_INFO!C19) -> Kayonza | D19: =IF(COUNTRY_INFO!$T$9:$T$1000="MDA5 (IDA)", COUNTRY_INFO!$T$9:$T$1000, " ") ->  | I19: 0 | M19: 0
A20: =IF(COUNTRY_INFO!A20=0," ",COUNTRY_INFO!A20) -> Rwanda | B20: =IF(COUNTRY_INFO!B20=0," ",COUNTRY_INFO!B20) -> Kigali | C20: =IF(COUNTRY_INFO!C20=0," ",COUNTRY_INFO!C20) -> Kicukiro | D20: =IF(COUNTRY_INFO!$T$9:$T$1000="MDA5 (IDA)", COUNTRY_INFO!$T$9:$T$1000, " ") ->  | I20: 0 | M20: 0
A21: =IF(COUNTRY_INFO!A21=0," ",COUNTRY_INFO!A21) -> Rwanda | B21: =IF(COUNTRY_INFO!B21=0," ",COUNTRY_INFO!B21) -> Eastern | C21: =IF(COUNTRY_INFO!C21=0," ",COUNTRY_INFO!C21) -> Kirehe | D21: =IF(COUNTRY_INFO!$T$9:$T$1000="MDA5 (IDA)", COUNTRY_INFO!$T$9:$T$1000, " ") ->  | I21: 0 | M21: 0
A22: =IF(COUNTRY_INFO!A22=0," ",COUNTRY_INFO!A22) -> Rwanda | B22: =IF(COUNTRY_INFO!B22=0," ",COUNTRY_INFO!B22) -> Southern | C22: =IF(COUNTRY_INFO!C22=0," ",COUNTRY_INFO!C22) -> Muhanga | D22: =IF(COUNTRY_INFO!$T$9:$T$1000="MDA5 (IDA)", COUNTRY_INFO!$T$9:$T$1000, " ") ->  | I22: 0 | M22: 0
A23: =IF(COUNTRY_INFO!A23=0," ",COUNTRY_INFO!A23) -> Rwanda | B23: =IF(COUNTRY_INFO!B23=0," ",COUNTRY_INFO!B23) -> Northern | C23: =IF(COUNTRY_INFO!C23=0," ",COUNTRY_INFO!C23) -> Musanze | D23: =IF(COUNTRY_INFO!$T$9:$T$1000="MDA5 (IDA)", COUNTRY_INFO!$T$9:$T$1000, " ") ->  | I23: 0 | M23: 0
A24: =IF(COUNTRY_INFO!A24=0," ",COUNTRY_INFO!A24) -> Rwanda | B24: =IF(COUNTRY_INFO!B24=0," ",COUNTRY_INFO!B24) -> Eastern | C24: =IF(COUNTRY_INFO!C24=0," ",COUNTRY_INFO!C24) -> Ngoma | D24: =IF(COUNTRY_INFO!$T$9:$T$1000="MDA5 (IDA)", COUNTRY_INFO!$T$9:$T$1000, " ") ->  | I24: 0 | M24: 0
A25: =IF(COUNTRY_INFO!A25=0," ",COUNTRY_INFO!A25) -> Rwanda | B25: =IF(COUNTRY_INFO!B25=0," ",COUNTRY_INFO!B25) -> Western | C25: =IF(COUNTRY_INFO!C25=0," ",COUNTRY_INFO!C25) -> Ngororero | D25: =IF(COUNTRY_INFO!$T$9:$T$1000="MDA5 (IDA)", COUNTRY_INFO!$T$9:$T$1000, " ") ->  | I25: 0 | M25: 0
A26: =IF(COUNTRY_INFO!A26=0," ",COUNTRY_INFO!A26) -> Rwanda | B26: =IF(COUNTRY_INFO!B26=0," ",COUNTRY_INFO!B26) -> Western | C26: =IF(COUNTRY_INFO!C26=0," ",COUNTRY_INFO!C26) -> Nyabihu | D26: =IF(COUNTRY_INFO!$T$9:$T$1000="MDA5 (IDA)", COUNTRY_INFO!$T$9:$T$1000, " ") ->  | I26: 0 | M26: 0
A27: =IF(COUNTRY_INFO!A27=0," ",COUNTRY_INFO!A27) -> Rwanda | B27: =IF(COUNTRY_INFO!B27=0," ",COUNTRY_INFO!B27) -> Eastern | C27: =IF(COUNTRY_INFO!C27=0," ",COUNTRY_INFO!C27) -> Nyagatare | D27: =IF(COUNTRY_INFO!$T$9:$T$1000="MDA5 (IDA)", COUNTRY_INFO!$T$9:$T$1000, " ") ->  | I27: 0 | M27: 0
A28: =IF(COUNTRY_INFO!A28=0," ",COUNTRY_INFO!A28) -> Rwanda | B28: =IF(COUNTRY_INFO!B28=0," ",COUNTRY_INFO!B28) -> Southern | C28: =IF(COUNTRY_INFO!C28=0," ",COUNTRY_INFO!C28) -> Nyamagabe | D28: =IF(COUNTRY_INFO!$T$9:$T$1000="MDA5 (IDA)", COUNTRY_INFO!$T$9:$T$1000, " ") ->  | I28: 0 | M28: 0
A29: =IF(COUNTRY_INFO!A29=0," ",COUNTRY_INFO!A29) -> Rwanda | B29: =IF(COUNTRY_INFO!B29=0," ",COUNTRY_INFO!B29) -> Western | C29: =IF(COUNTRY_INFO!C29=0," ",COUNTRY_INFO!C29) -> Nyamasheke | D29: =IF(COUNTRY_INFO!$T$9:$T$1000="MDA5 (IDA)", COUNTRY_INFO!$T$9:$T$1000, " ") ->  | I29: 0 | M29: 0
A30: =IF(COUNTRY_INFO!A30=0," ",COUNTRY_INFO!A30) -> Rwanda | B30: =IF(COUNTRY_INFO!B30=0," ",COUNTRY_INFO!B30) -> Southern | C30: =IF(COUNTRY_INFO!C30=0," ",COUNTRY_INFO!C30) -> Nyanza | D30: =IF(COUNTRY_INFO!$T$9:$T$1000="MDA5 (IDA)", COUNTRY_INFO!$T$9:$T$1000, " ") ->  | I30: 0 | M30: 0
A31: =IF(COUNTRY_INFO!A31=0," ",COUNTRY_INFO!A31) -> Rwanda | B31: =IF(COUNTRY_INFO!B31=0," ",COUNTRY_INFO!B31) -> Kigali | C31: =IF(COUNTRY_INFO!C31=0," ",COUNTRY_INFO!C31) -> Nyarugenge | D31: =IF(COUNTRY_INFO!$T$9:$T$1000="MDA5 (IDA)", COUNTRY_INFO!$T$9:$T$1000, " ") ->  | I31: 0 | M31: 0
A32: =IF(COUNTRY_INFO!A32=0," ",COUNTRY_INFO!A32) -> Rwanda | B32: =IF(COUNTRY_INFO!B32=0," ",COUNTRY_INFO!B32) -> Southern | C32: =IF(COUNTRY_INFO!C32=0," ",COUNTRY_INFO!C32) -> Nyaruguru | D32: =IF(COUNTRY_INFO!$T$9:$T$1000="MDA5 (IDA)", COUNTRY_INFO!$T$9:$T$1000, " ") ->  | I32: 0 | M32: 0
A33: =IF(COUNTRY_INFO!A33=0," ",COUNTRY_INFO!A33) -> Rwanda | B33: =IF(COUNTRY_INFO!B33=0," ",COUNTRY_INFO!B33) -> Western | C33: =IF(COUNTRY_INFO!C33=0," ",COUNTRY_INFO!C33) -> Rubavu | D33: =IF(COUNTRY_INFO!$T$9:$T$1000="MDA5 (IDA)", COUNTRY_INFO!$T$9:$T$1000, " ") ->  | I33: 0 | M33: 0
A34: =IF(COUNTRY_INFO!A34=0," ",COUNTRY_INFO!A34) -> Rwanda | B34: =IF(COUNTRY_INFO!B34=0," ",COUNTRY_INFO!B34) -> Southern | C34: =IF(COUNTRY_INFO!C34=0," ",COUNTRY_INFO!C34) -> Ruhango | D34: =IF(COUNTRY_INFO!$T$9:$T$1000="MDA5 (IDA)", COUNTRY_INFO!$T$9:$T$1000, " ") ->  | I34: 0 | M34: 0
A35: =IF(COUNTRY_INFO!A35=0," ",COUNTRY_INFO!A35) -> Rwanda | B35: =IF(COUNTRY_INFO!B35=0," ",COUNTRY_INFO!B35) -> Northern | C35: =IF(COUNTRY_INFO!C35=0," ",COUNTRY_INFO!C35) -> Rulindo | D35: =IF(COUNTRY_INFO!$T$9:$T$1000="MDA5 (IDA)", COUNTRY_INFO!$T$9:$T$1000, " ") ->  | I35: 0 | M35: 0
A36: =IF(COUNTRY_INFO!A36=0," ",COUNTRY_INFO!A36) -> Rwanda | B36: =IF(COUNTRY_INFO!B36=0," ",COUNTRY_INFO!B36) -> Western | C36: =IF(COUNTRY_INFO!C36=0," ",COUNTRY_INFO!C36) -> Rusizi | D36: =IF(COUNTRY_INFO!$T$9:$T$1000="MDA5 (IDA)", COUNTRY_INFO!$T$9:$T$1000, " ") ->  | I36: 0 | M36: 0
A37: =IF(COUNTRY_INFO!A37=0," ",COUNTRY_INFO!A37) -> Rwanda | B37: =IF(COUNTRY_INFO!B37=0," ",COUNTRY_INFO!B37) -> Western | C37: =IF(COUNTRY_INFO!C37=0," ",COUNTRY_INFO!C37) -> Rutsiro | D37: =IF(COUNTRY_INFO!$T$9:$T$1000="MDA5 (IDA)", COUNTRY_INFO!$T$9:$T$1000, " ") ->  | I37: 0 | M37: 0
A38: =IF(COUNTRY_INFO!A38=0," ",COUNTRY_INFO!A38) -> Rwanda | B38: =IF(COUNTRY_INFO!B38=0," ",COUNTRY_INFO!B38) -> Eastern | C38: =IF(COUNTRY_INFO!C38=0," ",COUNTRY_INFO!C38) -> Rwamagana | D38: =IF(COUNTRY_INFO!$T$9:$T$1000="MDA5 (IDA)", COUNTRY_INFO!$T$9:$T$1000, " ") ->  | I38: 0 | M38: 0

Sheet T1
A1: T 1 - Praziquantel (PZQ) and Albendazole (ALB) or Mebendazole (MBD)
A2: Administrative structure, population requiring PC by age group, population treated by age group and coverage
A4: TOTAL | G4: =SUM(G$9:G$1000) -> 0 | H4: 0 | I4: 0 | J4: 0 | K4: =SUM(K$9:K$1000) -> 0 | L4: 0 | M4: 0 | N4: 0 | O4: 0 | P4: =IF(G4<>0, IF(L4/G4*100=0, "-", L4/G4*100), " ") ->  | Q4: =IF(OR(I4<>0,H4<>0), IF(M4/MAX(H4,I4)*100=0, "-", M4/MAX(H4,I4)*100), " ") ->  | R4: =IF(J4<>0, IF(N4/J4*100=0, "-", N4/J4*100), " ") ->  | S4: =IF(K4<>0, IF(O4/K4*100=0, "-", O4/K4*100), " ") -> 
D6: PC implemented | E6: Medicine | F6: Date | G6: Population targeted for T1 | L6: Population treated | P6: Programme coverage (%)
A7: Country | B7: Province/State | C7: District | G7: PreSAC (ALB) | H7: SAC (ALB) | I7: SAC (PZQ) | J7: Adults (PZQ) | K7: Total | L7: PreSAC | M7: SAC | N7: Adults | O7: Total | P7: PreSAC | Q7: SAC | R7: Adults | S7: Total
A9: =IF(COUNTRY_INFO!A9=0," ",COUNTRY_INFO!A9) -> Rwanda | B9: =IF(COUNTRY_INFO!B9=0," ",COUNTRY_INFO!B9) -> Eastern | C9: =IF(COUNTRY_INFO!C9=0," ",COUNTRY_INFO!C9) -> Bugesera | D9: =IF(OR(COUNTRY_INFO!$T$9:$T$1000="T1 (PZQ+ALB/MBD)",COUNTRY_INFO!$U$9:$U$1000="T1 (PZQ+ALB/MBD)"), "T1 (PZQ+ALB/MBD)", " ") ->  | K9: =MAX(H9:I9)+G9+J9 -> 0 | P9: =IF(G9<>0, IF(L9/G9*100=0, "-", L9/G9*100), " ") ->  | Q9: =IF(OR(I9<>0,H9<>0), IF(M9/MAX(H9,I9)*100=0, "-", M9/MAX(H9,I9)*100), " ") ->  | R9: =IF(J9<>0, IF(N9/J9*100=0, "-", N9/J9*100), " ") ->  | S9: =IF(K9<>0, IF(O9/K9*100=0, "-", O9/K9*100), " ") ->  | AA9: 65883 | AB9: 134412 | AC9: 70926 | AD9: 111182
A10: =IF(COUNTRY_INFO!A10=0," ",COUNTRY_INFO!A10) -> Rwanda | B10: =IF(COUNTRY_INFO!B10=0," ",COUNTRY_INFO!B10) -> Northern | C10: =IF(COUNTRY_INFO!C10=0," ",COUNTRY_INFO!C10) -> Burera | D10: =IF(OR(COUNTRY_INFO!$T$9:$T$1000="T1 (PZQ+ALB/MBD)",COUNTRY_INFO!$U$9:$U$1000="T1 (PZQ+ALB/MBD)"), "T1 (PZQ+ALB/MBD)", " ") ->  | K10: =MAX(H10:I10)+G10+J10 -> 0 | P10: =IF(G10<>0, IF(L10/G10*100=0, "-", L10/G10*100), " ") ->  | Q10: =IF(OR(I10<>0,H10<>0), IF(M10/MAX(H10,I10)*100=0, "-", M10/MAX(H10,I10)*100), " ") ->  | R10: =IF(J10<>0, IF(N10/J10*100=0, "-", N10/J10*100), " ") ->  | S10: =IF(K10<>0, IF(O10/K10*100=0, "-", O10/K10*100), " ") ->  | AA10: 45514 | AB10: 97765 | AC10: 76665 | AD10: 164975
A11: =IF(COUNTRY_INFO!A11=0," ",COUNTRY_INFO!A11) -> Rwanda | B11: =IF(COUNTRY_INFO!B11=0," ",COUNTRY_INFO!B11) -> Northern | C11: =IF(COUNTRY_INFO!C11=0," ",COUNTRY_INFO!C11) -> Gakenke | D11: =IF(OR(COUNTRY_INFO!$T$9:$T$1000="T1 (PZQ+ALB/MBD)",COUNTRY_INFO!$U$9:$U$1000="T1 (PZQ+ALB/MBD)"), "T1 (PZQ+ALB/MBD)", " ") ->  | K11: 0 | AA11: 40600 | AB11: 93808 | AC11: 44430 | AD11: 111731
A12: =IF(COUNTRY_INFO!A12=0," ",COUNTRY_INFO!A12) -> Rwanda | B12: =IF(COUNTRY_INFO!B12=0," ",COUNTRY_INFO!B12) -> Kigali | C12: =IF(COUNTRY_INFO!C12=0," ",COUNTRY_INFO!C12) -> Gasabo | D12: =IF(OR(COUNTRY_INFO!$T$9:$T$1000="T1 (PZQ+ALB/MBD)",COUNTRY_INFO!$U$9:$U$1000="T1 (PZQ+ALB/MBD)"), "T1 (PZQ+ALB/MBD)", " ") ->  | K12: 0 | AA12: 69045 | AB12: 144774 | AC12: 0 | AD12: 0
A13: =IF(COUNTRY_INFO!A13=0," ",COUNTRY_INFO!A13) -> Rwanda | B13: =IF(COUNTRY_INFO!B13=0," ",COUNTRY_INFO!B13) -> Eastern | C13: =IF(COUNTRY_INFO!C13=0," ",COUNTRY_INFO!C13) -> Gatsibo | D13: =IF(OR(COUNTRY_INFO!$T$9:$T$1000="T1 (PZQ+ALB/MBD)",COUNTRY_INFO!$U$9:$U$1000="T1 (PZQ+ALB/MBD)"), "T1 (PZQ+ALB/MBD)", " ") ->  | K13: 0 | AA13: 63710 | AB13: 147542 | AC13: 18426 | AD13: 39735
A14: =IF(COUNTRY_INFO!A14=0," ",COUNTRY_INFO!A14) -> Rwanda | B14: =IF(COUNTRY_INFO!B14=0," ",COUNTRY_INFO!B14) -> Northern | C14: =IF(COUNTRY_INFO!C14=0," ",COUNTRY_INFO!C14) -> Gicumbi | D14: =IF(OR(COUNTRY_INFO!$T$9:$T$1000="T1 (PZQ+ALB/MBD)",COUNTRY_INFO!$U$9:$U$1000="T1 (PZQ+ALB/MBD)"), "T1 (PZQ+ALB/MBD)", " ") ->  | K14: 0 | AA14: 54621 | AB14: 108434 | AC14: 16361 | AD14: 31331
A15: =IF(COUNTRY_INFO!A15=0," ",COUNTRY_INFO!A15) -> Rwanda | B15: =IF(COUNTRY_INFO!B15=0," ",COUNTRY_INFO!B15) -> Southern | C15: =IF(COUNTRY_INFO!C15=0," ",COUNTRY_INFO!C15) -> Gisagara | D15: =IF(OR(COUNTRY_INFO!$T$9:$T$1000="T1 (PZQ+ALB/MBD)",COUNTRY_INFO!$U$9:$U$1000="T1 (PZQ+ALB/MBD)"), "T1 (PZQ+ALB/MBD)", " ") ->  | K15: 0 | AA15: 45512 | AB15: 102470 | AC15: 66569 | AD15: 137739
A16: =IF(COUNTRY_INFO!A16=0," ",COUNTRY_INFO!A16) -> Rwanda | B16: =IF(COUNTRY_INFO!B16=0," ",COUNTRY_INFO!B16) -> Southern | C16: =IF(COUNTRY_INFO!C16=0," ",COUNTRY_INFO!C16) -> Huye | D16: =IF(OR(COUNTRY_INFO!$T$9:$T$1000="T1 (PZQ+ALB/MBD)",COUNTRY_INFO!$U$9:$U$1000="T1 (PZQ+ALB/MBD)"), "T1 (PZQ+ALB/MBD)", " ") ->  | K16: 0 | AA16: 42496 | AB16: 96755 | AC16: 0 | AD16: 0
A17: =IF(COUNTRY_INFO!A17=0," ",COUNTRY_INFO!A17) -> Rwanda | B17: =IF(COUNTRY_INFO!B17=0," ",COUNTRY_INFO!B17) -> Southern | C17: =IF(COUNTRY_INFO!C17=0," ",COUNTRY_INFO!C17) -> Kamonyi | D17: =IF(OR(COUNTRY_INFO!$T$9:$T$1000="T1 (PZQ+ALB/MBD)",COUNTRY_INFO!$U$9:$U$1000="T1 (PZQ+ALB/MBD)"), "T1 (PZQ+ALB/MBD)", " ") ->  | K17: 0 | AA17: 49326 | AB17: 107265 | AC17: 37951 | AD17: 73403
A18: =IF(COUNTRY_INFO!A18=0," ",COUNTRY_INFO!A18) -> Rwanda | B18: =IF(COUNTRY_INFO!B18=0," ",COUNTRY_INFO!B18) -> Western | C18: =IF(COUNTRY_INFO!C18=0," ",COUNTRY_INFO!C18) -> Karongi | D18: =IF(OR(COUNTRY_INFO!$T$9:$T$1000="T1 (PZQ+ALB/MBD)",COUNTRY_INFO!$U$9:$U$1000="T1 (PZQ+ALB/MBD)"), "T1 (PZQ+ALB/MBD)", " ") ->  | K18: 0 | AA18: 47439 | AB18: 98150 | AC18: 19571 | AD18: 48306
A19: =IF(COUNTRY_INFO!A19=0," ",COUNTRY_INFO!A19) -> Rwanda | B19: =IF(COUNTRY_INFO!B19=0," ",COUNTRY_INFO!B19) -> Eastern | C19: =IF(COUNTRY_INFO!C19=0," ",COUNTRY_INFO!C19) -> Kayonza | D19: =IF(OR(COUNTRY_INFO!$T$9:$T$1000="T1 (PZQ+ALB/MBD)",COUNTRY_INFO!$U$9:$U$1000="T1 (PZQ+ALB/MBD)"), "T1 (PZQ+ALB/MBD)", " ") ->  | K19: 0 | AA19: 49690 | AB19: 118397 | AC19: 46416 | AD19: 77250
A20: =IF(COUNTRY_INFO!A20=0," ",COUNTRY_INFO!A20) -> Rwanda | B20: =IF(COUNTRY_INFO!B20=0," ",COUNTRY_INFO!B20) -> Kigali | C20: =IF(COUNTRY_INFO!C20=0," ",COUNTRY_INFO!C20) -> Kicukiro | D20: =IF(OR(COUNTRY_INFO!$T$9:$T$1000="T1 (PZQ+ALB/MBD)",COUNTRY_INFO!$U$9:$U$1000="T1 (PZQ+ALB/MBD)"), "T1 (PZQ+ALB/MBD)", " ") ->  | K20: 0 | AA20: 38790 | AB20: 93776 | AC20: 0 | AD20: 0
A21: =IF(COUNTRY_INFO!A21=0," ",COUNTRY_INFO!A21) -> Rwanda | B21: =IF(COUNTRY_INFO!B21=0," ",COUNTRY_INFO!B21) -> Eastern | C21: =IF(COUNTRY_INFO!C21=0," ",COUNTRY_INFO!C21) -> Kirehe | D21: =IF(OR(COUNTRY_INFO!$T$9:$T$1000="T1 (PZQ+ALB/MBD)",COUNTRY_INFO!$U$9:$U$1000="T1 (PZQ+ALB/MBD)"), "T1 (PZQ+ALB/MBD)", " ") ->  | K21: 0 | AA21: 51958 | AB21: 118267 | AC21: 0 | AD21: 0
A22: =IF(COUNTRY_INFO!A22=0," ",COUNTRY_INFO!A22) -> Rwanda | B22: =IF(COUNTRY_INFO!B22=0," ",COUNTRY_INFO!B22) -> Southern | C22: =IF(COUNTRY_INFO!C22=0," ",COUNTRY_INFO!C22) -> Muhanga | D22: =IF(OR(COUNTRY_INFO!$T$9:$T$1000="T1 (PZQ+ALB/MBD)",COUNTRY_INFO!$U$9:$U$1000="T1 (PZQ+ALB/MBD)"), "T1 (PZQ+ALB/MBD)", " ") ->  | K22: 0 | AA22: 37168 | AB22: 95135 | AC22: 17684 | AD22: 26371
A23: =IF(COUNTRY_INFO!A23=0," ",COUNTRY_INFO!A23) -> Rwanda | B23: =IF(COUNTRY_INFO!B23=0," ",COUNTRY_INFO!B23) -> Northern | C23: =IF(COUNTRY_INFO!C23=0," ",COUNTRY_INFO!C23) -> Musanze | D23: =IF(OR(COUNTRY_INFO!$T$9:$T$1000="T1 (PZQ+ALB/MBD)",COUNTRY_INFO!$U$9:$U$1000="T1 (PZQ+ALB/MBD)"), "T1 (PZQ+ALB/MBD)", " ") ->  | K23: 0 | AA23: 38443 | AB23: 97548 | AC23: 11342 | AD23: 18872
A24: =IF(COUNTRY_INFO!A24=0," ",COUNTRY_INFO!A24) -> Rwanda | B24: =IF(COUNTRY_INFO!B24=0," ",COUNTRY_INFO!B24) -> Eastern | C24: =IF(COUNTRY_INFO!C24=0," ",COUNTRY_INFO!C24) -> Ngoma | D24: =IF(OR(COUNTRY_INFO!$T$9:$T$1000="T1 (PZQ+ALB/MBD)",COUNTRY_INFO!$U$9:$U$1000="T1 (PZQ+ALB/MBD)"), "T1 (PZQ+ALB/MBD)", " ") ->  | K24: 0 | AA24: 42420 | AB24: 105077 | AC24: 45376 | AD24: 86804
A25: =IF(COUNTRY_INFO!A25=0," ",COUNTRY_INFO!A25) -> Rwanda | B25: =IF(COUNTRY_INFO!B25=0," ",COUNTRY_INFO!B25) -> Western | C25: =IF(COUNTRY_INFO!C25=0," ",COUNTRY_INFO!C25) -> Ngororero | D25: =IF(OR(COUNTRY_INFO!$T$9:$T$1000="T1 (PZQ+ALB/MBD)",COUNTRY_INFO!$U$9:$U$1000="T1 (PZQ+ALB/MBD)"), "T1 (PZQ+ALB/MBD)", " ") ->  | K25: 0 | AA25: 46892 | AB25: 108488 | AC25: 6257 | AD25: 10916
A26: =IF(COUNTRY_INFO!A26=0," ",COUNTRY_INFO!A26) -> Rwanda | B26: =IF(COUNTRY_INFO!B26=0," ",COUNTRY_INFO!B26) -> Western | C26: =IF(COUNTRY_INFO!C26=0," ",COUNTRY_INFO!C26) -> Nyabihu | D26: =IF(OR(COUNTRY_INFO!$T$9:$T$1000="T1 (PZQ+ALB/MBD)",COUNTRY_INFO!$U$9:$U$1000="T1 (PZQ+ALB/MBD)"), "T1 (PZQ+ALB/MBD)", " ") ->  | K26: 0 | AA26: 33068 | AB26: 94061 | AC26: 0 | AD26: 0
A27: =IF(COUNTRY_INFO!A27=0," ",COUNTRY_INFO!A27) -> Rwanda | B27: =IF(COUNTRY_INFO!B27=0," ",COUNTRY_INFO!B27) -> Eastern | C27: =IF(COUNTRY_INFO!C27=0," ",COUNTRY_INFO!C27) -> Nyagatare | D27: =IF(OR(COUNTRY_INFO!$T$9:$T$1000="T1 (PZQ+ALB/MBD)",COUNTRY_INFO!$U$9:$U$1000="T1 (PZQ+ALB/MBD)"), "T1 (PZQ+ALB/MBD)", " ") ->  | K27: 0 | AA27: 81396 | AB27: 172796 | AC27: 149678 | AD27: 395016
A28: =IF(COUNTRY_INFO!A28=0," ",COUNTRY_INFO!A28) -> Rwanda | B28: =IF(COUNTRY_INFO!B28=0," ",COUNTRY_INFO!B28) -> Southern | C28: =IF(COUNTRY_INFO!C28=0," ",COUNTRY_INFO!C28) -> Nyamagabe | D28: =IF(OR(COUNTRY_INFO!$T$9:$T$1000="T1 (PZQ+ALB/MBD)",COUNTRY_INFO!$U$9:$U$1000="T1 (PZQ+ALB/MBD)"), "T1 (PZQ+ALB/MBD)", " ") ->  | K28: 0 | AA28: 45924 | AB28: 100214 | AC28: 0 | AD28: 0
A29: =IF(COUNTRY_INFO!A29=0," ",COUNTRY_INFO!A29) -> Rwanda | B29: =IF(COUNTRY_INFO!B29=0," ",COUNTRY_INFO!B29) -> Western | C29: =IF(COUNTRY_INFO!C29=0," ",COUNTRY_INFO!C29) -> Nyamasheke | D29: =IF(OR(COUNTRY_INFO!$T$9:$T$1000="T1 (PZQ+ALB/MBD)",COUNTRY_INFO!$U$9:$U$1000="T1 (PZQ+ALB/MBD)"), "T1 (PZQ+ALB/MBD)", " ") ->  | K29: 0 | AA29: 57041 | AB29: 123582 | AC29: 0 | AD29: 150519
A30: =IF(COUNTRY_INFO!A30=0," ",COUNTRY_INFO!A30) -> Rwanda | B30: =IF(COUNTRY_INFO!B30=0," ",COUNTRY_INFO!B30) -> Southern | C30: =IF(COUNTRY_INFO!C30=0," ",COUNTRY_INFO!C30) -> Nyanza | D30: =IF(OR(COUNTRY_INFO!$T$9:$T$1000="T1 (PZQ+ALB/MBD)",COUNTRY_INFO!$U$9:$U$1000="T1 (PZQ+ALB/MBD)"), "T1 (PZQ+ALB/MBD)", " ") ->  | K30: 0 | AA30: 34950 | AB30: 102404 | AC30: 41370 | AD30: 70144
A31: =IF(COUNTRY_INFO!A31=0," ",COUNTRY_INFO!A31) -> Rwanda | B31: =IF(COUNTRY_INFO!B31=0," ",COUNTRY_INFO!B31) -> Kigali | C31: =IF(COUNTRY_INFO!C31=0," ",COUNTRY_INFO!C31) -> Nyarugenge | D31: =IF(OR(COUNTRY_INFO!$T$9:$T$1000="T1 (PZQ+ALB/MBD)",COUNTRY_INFO!$U$9:$U$1000="T1 (PZQ+ALB/MBD)"), "T1 (PZQ+ALB/MBD)", " ") ->  | K31: 0 | AA31: 43696 | AB31: 80158 | AC31: 8805 | AD31: 12861
A32: =IF(COUNTRY_INFO!A32=0," ",COUNTRY_INFO!A32) -> Rwanda | B32: =IF(COUNTRY_INFO!B32=0," ",COUNTRY_INFO!B32) -> Southern | C32: =IF(COUNTRY_INFO!C32=0," ",COUNTRY_INFO!C32) -> Nyaruguru | D32: =IF(OR(COUNTRY_INFO!$T$9:$T$1000="T1 (PZQ+ALB/MBD)",COUNTRY_INFO!$U$9:$U$1000="T1 (PZQ+ALB/MBD)"), "T1 (PZQ+ALB/MBD)", " ") ->  | K32: 0 | AA32: 41169 | AB32: 109355 | AC32: 0 | AD32: 0
A33: =IF(COUNTRY_INFO!A33=0," ",COUNTRY_INFO!A33) -> Rwanda | B33: =IF(COUNTRY_INFO!B33=0," ",COUNTRY_INFO!B33) -> Western | C33: =IF(COUNTRY_INFO!C33=0," ",COUNTRY_INFO!C33) -> Rubavu | D33: =IF(OR(COUNTRY_INFO!$T$9:$T$1000="T1 (PZQ+ALB/MBD)",COUNTRY_INFO!$U$9:$U$1000="T1 (PZQ+ALB/MBD)"), "T1 (PZQ+ALB/MBD)", " ") ->  | K33: 0 | AA33: 70442 | AB33: 131555 | AC33: 28902 | AD33: 63189
A34: =IF(COUNTRY_INFO!A34=0," ",COUNTRY_INFO!A34) -> Rwanda | B34: =IF(COUNTRY_INFO!B34=0," ",COUNTRY_INFO!B34) -> Southern | C34: =IF(COUNTRY_INFO!C34=0," ",COUNTRY_INFO!C34) -> Ruhango | D34: =IF(OR(COUNTRY_INFO!$T$9:$T$1000="T1 (PZQ+ALB/MBD)",COUNTRY_INFO!$U$9:$U$1000="T1 (PZQ+ALB/MBD)"), "T1 (PZQ+ALB/MBD)", " ") ->  | K34: 0 | AA34: 40111 | AB34: 90762 | AC34: 9448 | AD34: 25825
A35: =IF(COUNTRY_INFO!A35=0," ",COUNTRY_INFO!A35) -> Rwanda | B35: =IF(COUNTRY_INFO!B35=0," ",COUNTRY_INFO!B35) -> Northern | C35: =IF(COUNTRY_INFO!C35=0," ",COUNTRY_INFO!C35) -> Rulindo | D35: =IF(OR(COUNTRY_INFO!$T$9:$T$1000="T1 (PZQ+ALB/MBD)",COUNTRY_INFO!$U$9:$U$1000="T1 (PZQ+ALB/MBD)"), "T1 (PZQ+ALB/MBD)", " ") ->  | K35: 0 | AA35: 41936 | AB35: 88007 | AC35: 8307 | AD35: 19705
A36: =IF(COUNTRY_INFO!A36=0," ",COUNTRY_INFO!A36) -> Rwanda | B36: =IF(COUNTRY_INFO!B36=0," ",COUNTRY_INFO!B36) -> Western | C36: =IF(COUNTRY_INFO!C36=0," ",COUNTRY_INFO!C36) -> Rusizi | D36: =IF(OR(COUNTRY_INFO!$T$9:$T$1000="T1 (PZQ+ALB/MBD)",COUNTRY_INFO!$U$9:$U$1000="T1 (PZQ+ALB/MBD)"), "T1 (PZQ+ALB/MBD)", " ") ->  | K36: 0 | AA36: 62387 | AB36: 146026 | AC36: 124779 | AD36: 234926
A37: =IF(COUNTRY_INFO!A37=0," ",COUNTRY_INFO!A37) -> Rwanda | B37: =IF(COUNTRY_INFO!B37=0," ",COUNTRY_INFO!B37) -> Western | C37: =IF(COUNTRY_INFO!C37=0," ",COUNTRY_INFO!C37) -> Rutsiro | D37: =IF(OR(COUNTRY_INFO!$T$9:$T$1000="T1 (PZQ+ALB/MBD)",COUNTRY_INFO!$U$9:$U$1000="T1 (PZQ+ALB/MBD)"), "T1 (PZQ+ALB/MBD)", " ") ->  | K37: 0 | AA37: 44946 | AB37: 105237 | AC37: 42379 | AD37: 81393
A38: =IF(COUNTRY_INFO!A38=0," ",COUNTRY_INFO!A38) -> Rwanda | B38: =IF(COUNTRY_INFO!B38=0," ",COUNTRY_INFO!B38) -> Eastern | C38: =IF(COUNTRY_INFO!C38=0," ",COUNTRY_INFO!C38) -> Rwamagana | D38: =IF(OR(COUNTRY_INFO!$T$9:$T$1000="T1 (PZQ+ALB/MBD)",COUNTRY_INFO!$U$9:$U$1000="T1 (PZQ+ALB/MBD)"), "T1 (PZQ+ALB/MBD)", " ") ->  | K38: 0 | AA38: 49093 | AB38: 118433 | AC38: 63455 | AD38: 87797

Sheet T2
A1: T 2 - Praziquantel (PZQ)
A2: Administrative structure, population requiring PC by age group, population treated by age group and coverage
A4: TOTAL | F4: =SUM(F$9:F$1000) -> 0 | G4: 1043943 | H4: 1967924 | I4: 3011867 | J4: 0 | K4: 1027010 | L4: 1829289 | M4: 2856299 | N4: =IF(F4<>0, IF(J4/F4*100=0, "-", J4/F4*100), " ") ->  | O4: =IF(G4<>0, IF(K4/G4*100=0, "-", K4/G4*100), " ") -> 98.37797658 | P4: =IF(H4<>0, IF(L4/H4*100=0, "-", L4/H4*100), " ") -> 92.95526657 | Q4: =IF(I4<>0, IF(M4/I4*100=0, "-", M4/I4*100), " ") -> 94.83483168
D6: PC implemented | E6: Date | F6: Population targeted for T2 | J6: Population treated | N6: Programme coverage (%)
A7: Country | B7: Province/State | C7: District | F7: PreSAC | G7: SAC | H7: Adults | I7: Total | J7: PreSAC | K7: SAC | L7: Adults | M7: Total | N7: PreSAC | O7: SAC | P7: Adults | Q7: Total
A9: =IF(COUNTRY_INFO!A9=0," ",COUNTRY_INFO!A9) -> Rwanda | B9: =IF(COUNTRY_INFO!B9=0," ",COUNTRY_INFO!B9) -> Eastern | C9: =IF(COUNTRY_INFO!C9=0," ",COUNTRY_INFO!C9) -> Bugesera | D9: =IF(OR(COUNTRY_INFO!$T$9:$T$1000="T2 (PZQ)",COUNTRY_INFO!$U$9:$U$1000="T2 (PZQ)"), "T2 (PZQ)", " ") -> T2 (PZQ) | E9: 15-28/11/2021 | G9: 70926 | H9: 111182 | I9: =SUM(F9:H9) -> 182108 | K9: 55601 | L9: 107028 | M9: =SUM(J9:L9) -> 162629 | N9: =IF(F9<>0, IF(J9/F9*100=0, "-", J9/F9*100), " ") ->  | O9: =IF(G9<>0, IF(K9/G9*100=0, "-", K9/G9*100), " ") -> 78.39297296 | P9: =IF(H9<>0, IF(L9/H9*100=0, "-", L9/H9*100), " ") -> 96.26378371 | Q9: =IF(I9<>0, IF(M9/I9*100=0, "-", M9/I9*100), " ") -> 89.30360006
A10: =IF(COUNTRY_INFO!A10=0," ",COUNTRY_INFO!A10) -> Rwanda | B10: =IF(COUNTRY_INFO!B10=0," ",COUNTRY_INFO!B10) -> Northern | C10: =IF(COUNTRY_INFO!C10=0," ",COUNTRY_INFO!C10) -> Burera | D10: =IF(OR(COUNTRY_INFO!$T$9:$T$1000="T2 (PZQ)",COUNTRY_INFO!$U$9:$U$1000="T2 (PZQ)"), "T2 (PZQ)", " ") -> T2 (PZQ) | E10: 15-28/11/2021 | G10: 76665 | H10: 164975 | I10: =SUM(F10:H10) -> 241640 | K10: 72584 | L10: 134103 | M10: =SUM(J10:L10) -> 206687 | N10: =IF(F10<>0, IF(J10/F10*100=0, "-", J10/F10*100), " ") ->  | O10: =IF(G10<>0, IF(K10/G10*100=0, "-", K10/G10*100), " ") -> 94.6768408 | P10: =IF(H10<>0, IF(L10/H10*100=0, "-", L10/H10*100), " ") -> 81.28686165 | Q10: =IF(I10<>0, IF(M10/I10*100=0, "-", M10/I10*100), " ") -> 85.53509353
A11: =IF(COUNTRY_INFO!A11=0," ",COUNTRY_INFO!A11) -> Rwanda | B11: =IF(COUNTRY_INFO!B11=0," ",COUNTRY_INFO!B11) -> Northern | C11: =IF(COUNTRY_INFO!C11=0," ",COUNTRY_INFO!C11) -> Gakenke | D11: =IF(OR(COUNTRY_INFO!$T$9:$T$1000="T2 (PZQ)",COUNTRY_INFO!$U$9:$U$1000="T2 (PZQ)"), "T2 (PZQ)", " ") -> T2 (PZQ) | E11: 15-28/11/2021 | G11: 44430 | H11: 111731 | I11: 156161 | K11: 36283 | L11: 71254 | M11: 107537 | O11: 81.66329057 | P11: 63.77281148 | Q11: 68.86290431
A12: =IF(COUNTRY_INFO!A12=0," ",COUNTRY_INFO!A12) -> Rwanda | B12: =IF(COUNTRY_INFO!B12=0," ",COUNTRY_INFO!B12) -> Kigali | C12: =IF(COUNTRY_INFO!C12=0," ",COUNTRY_INFO!C12) -> Gasabo | D12: =IF(OR(COUNTRY_INFO!$T$9:$T$1000="T2 (PZQ)",COUNTRY_INFO!$U$9:$U$1000="T2 (PZQ)"), "T2 (PZQ)", " ") ->  | G12: 0 | H12: 0 | I12: 0 | K12: 0 | L12: 0 | M12: 0
A13: =IF(COUNTRY_INFO!A13=0," ",COUNTRY_INFO!A13) -> Rwanda | B13: =IF(COUNTRY_INFO!B13=0," ",COUNTRY_INFO!B13) -> Eastern | C13: =IF(COUNTRY_INFO!C13=0," ",COUNTRY_INFO!C13) -> Gatsibo | D13: =IF(OR(COUNTRY_INFO!$T$9:$T$1000="T2 (PZQ)",COUNTRY_INFO!$U$9:$U$1000="T2 (PZQ)"), "T2 (PZQ)", " ") -> T2 (PZQ) | E13: 15-28/11/2021 | G13: 18426 | H13: 39735 | I13: 58161 | K13: 21485 | L13: 35824 | M13: 57309 | O13: 116.6015413 | P13: 90.15729206 | Q13: 98.53510084
A14: =IF(COUNTRY_INFO!A14=0," ",COUNTRY_INFO!A14) -> Rwanda | B14: =IF(COUNTRY_INFO!B14=0," ",COUNTRY_INFO!B14) -> Northern | C14: =IF(COUNTRY_INFO!C14=0," ",COUNTRY_INFO!C14) -> Gicumbi | D14: =IF(OR(COUNTRY_INFO!$T$9:$T$1000="T2 (PZQ)",COUNTRY_INFO!$U$9:$U$1000="T2 (PZQ)"), "T2 (PZQ)", " ") -> T2 (PZQ) | E14: 15-28/11/2021 | G14: 22967 | H14: 46231 | I14: 69198 | K14: 21296 | L14: 43735 | M14: 65031 | O14: 92.72434362 | P14: 94.60102529 | Q14: 93.97814966
A15: =IF(COUNTRY_INFO!A15=0," ",COUNTRY_INFO!A15) -> Rwanda | B15: =IF(COUNTRY_INFO!B15=0," ",COUNTRY_INFO!B15) -> Southern | C15: =IF(COUNTRY_INFO!C15=0," ",COUNTRY_INFO!C15) -> Gisagara | D15: =IF(OR(COUNTRY_INFO!$T$9:$T$1000="T2 (PZQ)",COUNTRY_INFO!$U$9:$U$1000="T2 (PZQ)"), "T2 (PZQ)", " ") -> T2 (PZQ) | E15: 15-28/11/2021 | G15: 66569 | H15: 137739 | I15: 204308 | K15: 78212 | L15: 134367 | M15: 212579 | O15: 117.490123 | P15: 97.55189162 | Q15: 104.0482996
A16: =IF(COUNTRY_INFO!A16=0," ",COUNTRY_INFO!A16) -> Rwanda | B16: =IF(COUNTRY_INFO!B16=0," ",COUNTRY_INFO!B16) -> Southern | C16: =IF(COUNTRY_INFO!C16=0," ",COUNTRY_INFO!C16) -> Huye | D16: =IF(OR(COUNTRY_INFO!$T$9:$T$1000="T2 (PZQ)",COUNTRY_INFO!$U$9:$U$1000="T2 (PZQ)"), "T2 (PZQ)", " ") ->  | G16: 0 | H16: 0 | I16: 0 | K16: 0 | L16: 0 | M16: 0
A17: =IF(COUNTRY_INFO!A17=0," ",COUNTRY_INFO!A17) -> Rwanda | B17: =IF(COUNTRY_INFO!B17=0," ",COUNTRY_INFO!B17) -> Southern | C17: =IF(COUNTRY_INFO!C17=0," ",COUNTRY_INFO!C17) -> Kamonyi | D17: =IF(OR(COUNTRY_INFO!$T$9:$T$1000="T2 (PZQ)",COUNTRY_INFO!$U$9:$U$1000="T2 (PZQ)"), "T2 (PZQ)", " ") -> T2 (PZQ) | E17: 15-28/11/2021 | G17: 37951 | H17: 73403 | I17: 111354 | K17: 41174 | L17: 67474 | M17: 108648 | O17: 108.4925298 | P17: 91.92267346 | Q17: 97.56991217
A18: =IF(COUNTRY_INFO!A18=0," ",COUNTRY_INFO!A18) -> Rwanda | B18: =IF(COUNTRY_INFO!B18=0," ",COUNTRY_INFO!B18) -> Western | C18: =IF(COUNTRY_INFO!C18=0," ",COUNTRY_INFO!C18) -> Karongi | D18: =IF(OR(COUNTRY_INFO!$T$9:$T$1000="T2 (PZQ)",COUNTRY_INFO!$U$9:$U$1000="T2 (PZQ)"), "T2 (PZQ)", " ") -> T2 (PZQ) | E18: 15-28/11/2021 | G18: 19571 | H18: 48306 | I18: 67877 | K18: 23019 | L18: 54749 | M18: 77768 | O18: 117.617904 | P18: 113.3378876 | Q18: 114.5719463
A19: =IF(COUNTRY_INFO!A19=0," ",COUNTRY_INFO!A19) -> Rwanda | B19: =IF(COUNTRY_INFO!B19=0," ",COUNTRY_INFO!B19) -> Eastern | C19: =IF(COUNTRY_INFO!C19=0," ",COUNTRY_INFO!C19) -> Kayonza | D19: =IF(OR(COUNTRY_INFO!$T$9:$T$1000="T2 (PZQ)",COUNTRY_INFO!$U$9:$U$1000="T2 (PZQ)"), "T2 (PZQ)", " ") -> T2 (PZQ) | E19: 15-28/11/2021 | G19: 46416 | H19: 77250 | I19: 123666 | K19: 46722 | L19: 66449 | M19: 113171 | O19: 100.6592554 | P19: 86.01812298 | Q19: 91.51343134
A20: =IF(COUNTRY_INFO!A20=0," ",COUNTRY_INFO!A20) -> Rwanda | B20: =IF(COUNTRY_INFO!B20=0," ",COUNTRY_INFO!B20) -> Kigali | C20: =IF(COUNTRY_INFO!C20=0," ",COUNTRY_INFO!C20) -> Kicukiro | D20: =IF(OR(COUNTRY_INFO!$T$9:$T$1000="T2 (PZQ)",COUNTRY_INFO!$U$9:$U$1000="T2 (PZQ)"), "T2 (PZQ)", " ") ->  | G20: 0 | H20: 0 | I20: 0 | K20: 0 | L20: 0 | M20: 0
A21: =IF(COUNTRY_INFO!A21=0," ",COUNTRY_INFO!A21) -> Rwanda | B21: =IF(COUNTRY_INFO!B21=0," ",COUNTRY_INFO!B21) -> Eastern | C21: =IF(COUNTRY_INFO!C21=0," ",COUNTRY_INFO!C21) -> Kirehe | D21: =IF(OR(COUNTRY_INFO!$T$9:$T$1000="T2 (PZQ)",COUNTRY_INFO!$U$9:$U$1000="T2 (PZQ)"), "T2 (PZQ)", " ") ->  | G21: 0 | H21: 0 | I21: 0 | K21: 0 | L21: 0 | M21: 0
A22: =IF(COUNTRY_INFO!A22=0," ",COUNTRY_INFO!A22) -> Rwanda | B22: =IF(COUNTRY_INFO!B22=0," ",COUNTRY_INFO!B22) -> Southern | C22: =IF(COUNTRY_INFO!C22=0," ",COUNTRY_INFO!C22) -> Muhanga | D22: =IF(OR(COUNTRY_INFO!$T$9:$T$1000="T2 (PZQ)",COUNTRY_INFO!$U$9:$U$1000="T2 (PZQ)"), "T2 (PZQ)", " ") -> T2 (PZQ) | E22: 15-28/11/2021 | G22: 17684 | H22: 26371 | I22: 44055 | K22: 15908 | L22: 25657 | M22: 41565 | O22: 89.9570233 | P22: 97.29248038 | Q22: 94.34797412
A23: =IF(COUNTRY_INFO!A23=0," ",COUNTRY_INFO!A23) -> Rwanda | B23: =IF(COUNTRY_INFO!B23=0," ",COUNTRY_INFO!B23) -> Northern | C23: =IF(COUNTRY_INFO!C23=0," ",COUNTRY_INFO!C23) -> Musanze | D23: =IF(OR(COUNTRY_INFO!$T$9:$T$1000="T2 (PZQ)",COUNTRY_INFO!$U$9:$U$1000="T2 (PZQ)"), "T2 (PZQ)", " ") -> T2 (PZQ) | E23: 15-28/11/2021 | G23: 11342 | H23: 18872 | I23: 30214 | K23: 2967 | L23: 12220 | M23: 15187 | O23: 26.15940751 | P23: 64.75201357 | Q23: 50.26477792
A24: =IF(COUNTRY_INFO!A24=0," ",COUNTRY_INFO!A24) -> Rwanda | B24: =IF(COUNTRY_INFO!B24=0," ",COUNTRY_INFO!B24) -> Eastern | C24: =IF(COUNTRY_INFO!C24=0," ",COUNTRY_INFO!C24) -> Ngoma | D24: =IF(OR(COUNTRY_INFO!$T$9:$T$1000="T2 (PZQ)",COUNTRY_INFO!$U$9:$U$1000="T2 (PZQ)"), "T2 (PZQ)", " ") -> T2 (PZQ) | E24: 15-28/11/2021 | G24: 45376 | H24: 86804 | I24: 132180 | K24: 37616 | L24: 80532 | M24: 118148 | O24: 82.89844852 | P24: 92.77452652 | Q24: 89.3841731
A25: =IF(COUNTRY_INFO!A25=0," ",COUNTRY_INFO!A25) -> Rwanda | B25: =IF(COUNTRY_INFO!B25=0," ",COUNTRY_INFO!B25) -> Western | C25: =IF(COUNTRY_INFO!C25=0," ",COUNTRY_INFO!C25) -> Ngororero | D25: =IF(OR(COUNTRY_INFO!$T$9:$T$1000="T2 (PZQ)",COUNTRY_INFO!$U$9:$U$1000="T2 (PZQ)"), "T2 (PZQ)", " ") -> T2 (PZQ) | E25: 15-28/11/2021 | G25: 6257 | H25: 10916 | I25: 17173 | K25: 7737 | L25: 10131 | M25: 17868 | O25: 123.6535081 | P25: 92.80872114 | Q25: 104.0470506
A26: =IF(COUNTRY_INFO!A26=0," ",COUNTRY_INFO!A26) -> Rwanda | B26: =IF(COUNTRY_INFO!B26=0," ",COUNTRY_INFO!B26) -> Western | C26: =IF(COUNTRY_INFO!C26=0," ",COUNTRY_INFO!C26) -> Nyabihu | D26: =IF(OR(COUNTRY_INFO!$T$9:$T$1000="T2 (PZQ)",COUNTRY_INFO!$U$9:$U$1000="T2 (PZQ)"), "T2 (PZQ)", " ") ->  | G26: 0 | H26: 0 | I26: 0 | K26: 0 | L26: 0 | M26: 0
A27: =IF(COUNTRY_INFO!A27=0," ",COUNTRY_INFO!A27) -> Rwanda | B27: =IF(COUNTRY_INFO!B27=0," ",COUNTRY_INFO!B27) -> Eastern | C27: =IF(COUNTRY_INFO!C27=0," ",COUNTRY_INFO!C27) -> Nyagatare | D27: =IF(OR(COUNTRY_INFO!$T$9:$T$1000="T2 (PZQ)",COUNTRY_INFO!$U$9:$U$1000="T2 (PZQ)"), "T2 (PZQ)", " ") -> T2 (PZQ) | E27: 15-28/11/2021 | G27: 149678 | H27: 268050 | I27: 417728 | K27: 164499 | L27: 248815 | M27: 413314 | O27: 109.9019228 | P27: 92.82409998 | Q27: 98.94333155
A28: =IF(COUNTRY_INFO!A28=0," ",COUNTRY_INFO!A28) -> Rwanda | B28: =IF(COUNTRY_INFO!B28=0," ",COUNTRY_INFO!B28) -> Southern | C28: =IF(COUNTRY_INFO!C28=0," ",COUNTRY_INFO!C28) -> Nyamagabe | D28: =IF(OR(COUNTRY_INFO!$T$9:$T$1000="T2 (PZQ)",COUNTRY_INFO!$U$9:$U$1000="T2 (PZQ)"), "T2 (PZQ)", " ") ->  | G28: 0 | H28: 0 | I28: 0 | K28: 0 | L28: 0 | M28: 0
A29: =IF(COUNTRY_INFO!A29=0," ",COUNTRY_INFO!A29) -> Rwanda | B29: =IF(COUNTRY_INFO!B29=0," ",COUNTRY_INFO!B29) -> Western | C29: =IF(COUNTRY_INFO!C29=0," ",COUNTRY_INFO!C29) -> Nyamasheke | D29: =IF(OR(COUNTRY_INFO!$T$9:$T$1000="T2 (PZQ)",COUNTRY_INFO!$U$9:$U$1000="T2 (PZQ)"), "T2 (PZQ)", " ") -> T2 (PZQ) | G29: 73388 | H29: 150519 | I29: 223907 | K29: 73388 | L29: 139450 | M29: 212838 | O29: 100 | P29: 92.64611112 | Q29: 95.05642968
A30: =IF(COUNTRY_INFO!A30=0," ",COUNTRY_INFO!A30) -> Rwanda | B30: =IF(COUNTRY_INFO!B30=0," ",COUNTRY_INFO!B30) -> Southern | C30: =IF(COUNTRY_INFO!C30=0," ",COUNTRY_INFO!C30) -> Nyanza | D30: =IF(OR(COUNTRY_INFO!$T$9:$T$1000="T2 (PZQ)",COUNTRY_INFO!$U$9:$U$1000="T2 (PZQ)"), "T2 (PZQ)", " ") -> T2 (PZQ) | E30: 15-28/11/2021 | G30: 41370 | H30: 70144 | I30: 111514 | K30: 42350 | L30: 70797 | M30: 113147 | O30: 102.3688663 | P30: 100.9309421 | Q30: 101.4643901
A31: =IF(COUNTRY_INFO!A31=0," ",COUNTRY_INFO!A31) -> Rwanda | B31: =IF(COUNTRY_INFO!B31=0," ",COUNTRY_INFO!B31) -> Kigali | C31: =IF(COUNTRY_INFO!C31=0," ",COUNTRY_INFO!C31) -> Nyarugenge | D31: =IF(OR(COUNTRY_INFO!$T$9:$T$1000="T2 (PZQ)",COUNTRY_INFO!$U$9:$U$1000="T2 (PZQ)"), "T2 (PZQ)", " ") -> T2 (PZQ) | E31: 15-28/11/2021 | G31: 17657 | H31: 12861 | I31: 30518 | K31: 12786 | L31: 14791 | M31: 27577 | O31: 72.41320723 | P31: 115.0066091 | Q31: 90.36306442
A32: =IF(COUNTRY_INFO!A32=0," ",COUNTRY_INFO!A32) -> Rwanda | B32: =IF(COUNTRY_INFO!B32=0," ",COUNTRY_INFO!B32) -> Southern | C32: =IF(COUNTRY_INFO!C32=0," ",COUNTRY_INFO!C32) -> Nyaruguru | D32: =IF(OR(COUNTRY_INFO!$T$9:$T$1000="T2 (PZQ)",COUNTRY_INFO!$U$9:$U$1000="T2 (PZQ)"), "T2 (PZQ)", " ") ->  | G32: 0 | H32: 0 | I32: 0 | K32: 0 | L32: 0 | M32: 0
A33: =IF(COUNTRY_INFO!A33=0," ",COUNTRY_INFO!A33) -> Rwanda | B33: =IF(COUNTRY_INFO!B33=0," ",COUNTRY_INFO!B33) -> Western | C33: =IF(COUNTRY_INFO!C33=0," ",COUNTRY_INFO!C33) -> Rubavu | D33: =IF(OR(COUNTRY_INFO!$T$9:$T$1000="T2 (PZQ)",COUNTRY_INFO!$U$9:$U$1000="T2 (PZQ)"), "T2 (PZQ)", " ") -> T2 (PZQ) | E33: 15-28/11/2021 | G33: 28902 | H33: 63189 | I33: 92091 | K33: 34895 | L33: 64107 | M33: 99002 | O33: 120.7355892 | P33: 101.4527845 | Q33: 107.5045336
A34: =IF(COUNTRY_INFO!A34=0," ",COUNTRY_INFO!A34) -> Rwanda | B34: =IF(COUNTRY_INFO!B34=0," ",COUNTRY_INFO!B34) -> Southern | C34: =IF(COUNTRY_INFO!C34=0," ",COUNTRY_INFO!C34) -> Ruhango | D34: =IF(OR(COUNTRY_INFO!$T$9:$T$1000="T2 (PZQ)",COUNTRY_INFO!$U$9:$U$1000="T2 (PZQ)"), "T2 (PZQ)", " ") -> T2 (PZQ) | E34: 15-28/11/2021 | G34: 9448 | H34: 25825 | I34: 35273 | K34: 16456 | L34: 24154 | M34: 40610 | O34: 174.1744285 | P34: 93.52952565 | Q34: 115.1305531
A35: =IF(COUNTRY_INFO!A35=0," ",COUNTRY_INFO!A35) -> Rwanda | B35: =IF(COUNTRY_INFO!B35=0," ",COUNTRY_INFO!B35) -> Northern | C35: =IF(COUNTRY_INFO!C35=0," ",COUNTRY_INFO!C35) -> Rulindo | D35: =IF(OR(COUNTRY_INFO!$T$9:$T$1000="T2 (PZQ)",COUNTRY_INFO!$U$9:$U$1000="T2 (PZQ)"), "T2 (PZQ)", " ") -> T2 (PZQ) | E35: 15-28/11/2021 | G35: 8307 | H35: 19705 | I35: 28012 | K35: 5037 | L35: 17962 | M35: 22999 | O35: 60.63560852 | P35: 91.15452931 | Q35: 82.10409824
A36: =IF(COUNTRY_INFO!A36=0," ",COUNTRY_INFO!A36) -> Rwanda | B36: =IF(COUNTRY_INFO!B36=0," ",COUNTRY_INFO!B36) -> Western | C36: =IF(COUNTRY_INFO!C36=0," ",COUNTRY_INFO!C36) -> Rusizi | D36: =IF(OR(COUNTRY_INFO!$T$9:$T$1000="T2 (PZQ)",COUNTRY_INFO!$U$9:$U$1000="T2 (PZQ)"), "T2 (PZQ)", " ") -> T2 (PZQ) | E36: 15-28/11/2021 | G36: 124779 | H36: 234926 | I36: 359705 | K36: 107852 | L36: 241630 | M36: 349482 | O36: 86.43441605 | P36: 102.8536646 | Q36: 97.15794887
A37: =IF(COUNTRY_INFO!A37=0," ",COUNTRY_INFO!A37) -> Rwanda | B37: =IF(COUNTRY_INFO!B37=0," ",COUNTRY_INFO!B37) -> Western | C37: =IF(COUNTRY_INFO!C37=0," ",COUNTRY_INFO!C37) -> Rutsiro | D37: =IF(OR(COUNTRY_INFO!$T$9:$T$1000="T2 (PZQ)",COUNTRY_INFO!$U$9:$U$1000="T2 (PZQ)"), "T2 (PZQ)", " ") -> T2 (PZQ) | E37: 15-28/11/2021 | G37: 42379 | H37: 81393 | I37: 123772 | K37: 36579 | L37: 72053 | M37: 108632 | O37: 86.31397626 | P37: 88.52481172 | Q37: 87.76783117
A38: =IF(COUNTRY_INFO!A38=0," ",COUNTRY_INFO!A38) -> Rwanda | B38: =IF(COUNTRY_INFO!B38=0," ",COUNTRY_INFO!B38) -> Eastern | C38: =IF(COUNTRY_INFO!C38=0," ",COUNTRY_INFO!C38) -> Rwamagana | D38: =IF(OR(COUNTRY_INFO!$T$9:$T$1000="T2 (PZQ)",COUNTRY_INFO!$U$9:$U$1000="T2 (PZQ)"), "T2 (PZQ)", " ") -> T2 (PZQ) | E38: 15-28/11/2021 | G38: 63455 | H38: 87797 | I38: 151252 | K38: 72564 | L38: 92007 | M38: 164571 | O38: 114.3550548 | P38: 104.7951525 | Q38: 108.805834

Sheet T3_R1
A1: T 3 - Albendazole (ALB) or Mebendazole (MBD) - Round 1
A2: Administrative structure, population requiring PC by age group, population treated by age group and coverage
A4: TOTAL | G4: =SUM(G$9:G$1000) -> 1358771.321 | H4: 3180166.313 | I4: 6232821.201 | J4: 10771758.84 | K4: 1359742 | L4: 3006657 | M4: 5033961 | N4: 9400360 | O4: =IF(G4<>0, IF(K4/G4*100=0, "-", K4/G4*100), " ") -> 100.071438 | P4: =IF(H4<>0, IF(L4/H4*100=0, "-", L4/H4*100), " ") -> 94.54401764 | Q4: =IF(I4<>0, IF(M4/I4*100=0, "-", M4/I4*100), " ") -> 80.76536832 | R4: =IF(J4<>0, IF(N4/J4*100=0, "-", N4/J4*100), " ") -> 87.26857093
D6: PC implemented | E6: Medicine | F6: Date | G6: Population targeted for T3 | K6: Population treated | O6: Programme coverage (%)
A7: Country | B7: Province/State | C7: District | G7: PreSAC | H7: SAC | I7: Adults | J7: Total | K7: PreSAC | L7: SAC | M7: Adults | N7: Total | O7: PreSAC | P7: SAC | Q7: Adults | R7: Total
A9: =IF(COUNTRY_INFO!A9=0," ",COUNTRY_INFO!A9) -> Rwanda | B9: =IF(COUNTRY_INFO!B9=0," ",COUNTRY_INFO!B9) -> Eastern | C9: =IF(COUNTRY_INFO!C9=0," ",COUNTRY_INFO!C9) -> Bugesera | D9: =IF(OR(COUNTRY_INFO!$T$9:$T$1000="T3 (ALB/MBD)",COUNTRY_INFO!$U$9:$U$1000="T3 (ALB/MBD)"), "T3 (ALB/MBD)", " ") -> T3 (ALB/MBD) | E9: ALB | F9: 15-30 June 2021 | G9: 64565 | H9: 106503 | I9: 201379 | J9: =SUM(G9:I9) -> 372447 | K9: 43401 | L9: 84309 | M9: 94056 | N9: =SUM(K9:M9) -> 221766 | O9: =IF(G9<>0, IF(K9/G9*100=0, "-", K9/G9*100), " ") -> 67.22063037 | P9: =IF(H9<>0, IF(L9/H9*100=0, "-", L9/H9*100), " ") -> 79.16115039 | Q9: =IF(I9<>0, IF(M9/I9*100=0, "-", M9/I9*100), " ") -> 46.70596239 | R9: =IF(J9<>0, IF(N9/J9*100=0, "-", N9/J9*100), " ") -> 59.54296853
A10: =IF(COUNTRY_INFO!A10=0," ",COUNTRY_INFO!A10) -> Rwanda | B10: =IF(COUNTRY_INFO!B10=0," ",COUNTRY_INFO!B10) -> Northern | C10: =IF(COUNTRY_INFO!C10=0," ",COUNTRY_INFO!C10) -> Burera | D10: =IF(OR(COUNTRY_INFO!$T$9:$T$1000="T3 (ALB/MBD)",COUNTRY_INFO!$U$9:$U$1000="T3 (ALB/MBD)"), "T3 (ALB/MBD)", " ") -> T3 (ALB/MBD) | E10: ALB | F10: 15-30 June 2021 | G10: 51403 | H10: 125248 | I10: 242143 | J10: =SUM(G10:I10) -> 418794 | K10: 49984 | L10: 116984 | M10: 165087 | N10: =SUM(K10:M10) -> 332055 | O10: =IF(G10<>0, IF(K10/G10*100=0, "-", K10/G10*100), " ") -> 97.23946073 | P10: =IF(H10<>0, IF(L10/H10*100=0, "-", L10/H10*100), " ") -> 93.40189065 | Q10: =IF(I10<>0, IF(M10/I10*100=0, "-", M10/I10*100), " ") -> 68.1774819 | R10: =IF(J10<>0, IF(N10/J10*100=0, "-", N10/J10*100), " ") -> 79.28838522
A11: =IF(COUNTRY_INFO!A11=0," ",COUNTRY_INFO!A11) -> Rwanda | B11: =IF(COUNTRY_INFO!B11=0," ",COUNTRY_INFO!B11) -> Northern | C11: =IF(COUNTRY_INFO!C11=0," ",COUNTRY_INFO!C11) -> Gakenke | D11: =IF(OR(COUNTRY_INFO!$T$9:$T$1000="T3 (ALB/MBD)",COUNTRY_INFO!$U$9:$U$1000="T3 (ALB/MBD)"), "T3 (ALB/MBD)", " ") -> T3 (ALB/MBD) | E11: ALB | F11: 15-30 June 2021 | G11: 43926 | H11: 122417 | I11: 215957 | J11: 382300 | K11: 43676 | L11: 100548 | M11: 219219 | N11: 363443 | O11: 99.43086099 | P11: 82.13565109 | Q11: 101.5104859 | R11: 95.06748627
A12: =IF(COUNTRY_INFO!A12=0," ",COUNTRY_INFO!A12) -> Rwanda | B12: =IF(COUNTRY_INFO!B12=0," ",COUNTRY_INFO!B12) -> Kigali | C12: =IF(COUNTRY_INFO!C12=0," ",COUNTRY_INFO!C12) -> Gasabo | D12: =IF(OR(COUNTRY_INFO!$T$9:$T$1000="T3 (ALB/MBD)",COUNTRY_INFO!$U$9:$U$1000="T3 (ALB/MBD)"), "T3 (ALB/MBD)", " ") -> T3 (ALB/MBD) | E12: ALB | F12: 15-30 June 2021 | G12: 58918 | H12: 120766 | I12: 120350 | J12: 300034 | K12: 61529 | L12: 115350 | M12: 101016 | N12: 277895 | O12: 104.4315829 | P12: 95.51529404 | Q12: 83.93518903 | R12: 92.6211696
A13: =IF(COUNTRY_INFO!A13=0," ",COUNTRY_INFO!A13) -> Rwanda | B13: =IF(COUNTRY_INFO!B13=0," ",COUNTRY_INFO!B13) -> Eastern | C13: =IF(COUNTRY_INFO!C13=0," ",COUNTRY_INFO!C13) -> Gatsibo | D13: =IF(OR(COUNTRY_INFO!$T$9:$T$1000="T3 (ALB/MBD)",COUNTRY_INFO!$U$9:$U$1000="T3 (ALB/MBD)"), "T3 (ALB/MBD)", " ") -> T3 (ALB/MBD) | E13: ALB | F13: 15-30 June 2021 | G13: 68639 | H13: 139919 | I13: 277211 | J13: 485769 | K13: 74530 | L13: 153663 | M13: 170494 | N13: 398687 | O13: 108.5825842 | P13: 109.8228261 | Q13: 61.5033314 | R13: 82.07337232
A14: =IF(COUNTRY_INFO!A14=0," ",COUNTRY_INFO!A14) -> Rwanda | B14: =IF(COUNTRY_INFO!B14=0," ",COUNTRY_INFO!B14) -> Northern | C14: =IF(COUNTRY_INFO!C14=0," ",COUNTRY_INFO!C14) -> Gicumbi | D14: =IF(OR(COUNTRY_INFO!$T$9:$T$1000="T3 (ALB/MBD)",COUNTRY_INFO!$U$9:$U$1000="T3 (ALB/MBD)"), "T3 (ALB/MBD)", " ") -> T3 (ALB/MBD) | E14: ALB | F14: 15-30 June 2021 | G14: 60637 | H14: 128420 | I14: 300594 | J14: 489651 | K14: 59988 | L14: 130079 | M14: 280073 | N14: 470140 | O14: 98.92969639 | P14: 101.2918549 | Q14: 93.17318376 | R14: 96.0153252
A15: =IF(COUNTRY_INFO!A15=0," ",COUNTRY_INFO!A15) -> Rwanda | B15: =IF(COUNTRY_INFO!B15=0," ",COUNTRY_INFO!B15) -> Southern | C15: =IF(COUNTRY_INFO!C15=0," ",COUNTRY_INFO!C15) -> Gisagara | D15: =IF(OR(COUNTRY_INFO!$T$9:$T$1000="T3 (ALB/MBD)",COUNTRY_INFO!$U$9:$U$1000="T3 (ALB/MBD)"), "T3 (ALB/MBD)", " ") -> T3 (ALB/MBD) | E15: ALB | F15: 15-30 June 2021 | G15: 40508 | H15: 98516 | I15: 188723 | J15: 327747 | K15: 42441 | L15: 106381 | M15: 189877 | N15: 338699 | O15: 104.7718969 | P15: 107.9834748 | Q15: 100.6114782 | R15: 103.3416019
A16: =IF(COUNTRY_INFO!A16=0," ",COUNTRY_INFO!A16) -> Rwanda | B16: =IF(COUNTRY_INFO!B16=0," ",COUNTRY_INFO!B16) -> Southern | C16: =IF(COUNTRY_INFO!C16=0," ",COUNTRY_INFO!C16) -> Huye | D16: =IF(OR(COUNTRY_INFO!$T$9:$T$1000="T3 (ALB/MBD)",COUNTRY_INFO!$U$9:$U$1000="T3 (ALB/MBD)"), "T3 (ALB/MBD)", " ") -> T3 (ALB/MBD) | E16: ALB | F16: 15-30 June 2021 | G16: 43621 | H16: 109334 | I16: 228011 | J16: 380966 | K16: 42654 | L16: 94695 | M16: 204462 | N16: 341811 | O16: 97.78317783 | P16: 86.61075237 | Q16: 89.67198951 | R16: 89.72217993
A17: =IF(COUNTRY_INFO!A17=0," ",COUNTRY_INFO!A17) -> Rwanda | B17: =IF(COUNTRY_INFO!B17=0," ",COUNTRY_INFO!B17) -> Southern | C17: =IF(COUNTRY_INFO!C17=0," ",COUNTRY_INFO!C17) -> Kamonyi | D17: =IF(OR(COUNTRY_INFO!$T$9:$T$1000="T3 (ALB/MBD)",COUNTRY_INFO!$U$9:$U$1000="T3 (ALB/MBD)"), "T3 (ALB/MBD)", " ") -> T3 (ALB/MBD) | E17: ALB | F17: 15-30 June 2021 | G17: 36894 | H17: 107046 | I17: 212844 | J17: 356784 | K17: 30749 | L17: 105353 | M17: 162367 | N17: 298469 | O17: 83.3441752 | P17: 98.41843693 | Q17: 76.28450884 | R17: 83.65537692
A18: =IF(COUNTRY_INFO!A18=0," ",COUNTRY_INFO!A18) -> Rwanda | B18: =IF(COUNTRY_INFO!B18=0," ",COUNTRY_INFO!B18) -> Western | C18: =IF(COUNTRY_INFO!C18=0," ",COUNTRY_INFO!C18) -> Karongi | D18: =IF(OR(COUNTRY_INFO!$T$9:$T$1000="T3 (ALB/MBD)",COUNTRY_INFO!$U$9:$U$1000="T3 (ALB/MBD)"), "T3 (ALB/MBD)", " ") -> T3 (ALB/MBD) | E18: ALB | F18: 15-30 June 2021 | G18: 40651 | H18: 90751 | I18: 237590.567 | J18: 368992.567 | K18: 50981 | L18: 110295 | M18: 233034 | N18: 394310 | O18: 125.411429 | P18: 121.5358508 | Q18: 98.08217683 | R18: 106.8612312
A19: =IF(COUNTRY_INFO!A19=0," ",COUNTRY_INFO!A19) -> Rwanda | B19: =IF(COUNTRY_INFO!B19=0," ",COUNTRY_INFO!B19) -> Eastern | C19: =IF(COUNTRY_INFO!C19=0," ",COUNTRY_INFO!C19) -> Kayonza | D19: =IF(OR(COUNTRY_INFO!$T$9:$T$1000="T3 (ALB/MBD)",COUNTRY_INFO!$U$9:$U$1000="T3 (ALB/MBD)"), "T3 (ALB/MBD)", " ") -> T3 (ALB/MBD) | E19: ALB | F19: 15-30 June 2021 | G19: 32749 | H19: 81526 | I19: 166598 | J19: 280873 | K19: 36913 | L19: 73013 | M19: 96877 | N19: 206803 | O19: 112.7148921 | P19: 89.55793244 | Q19: 58.15015787 | R19: 73.62865067
A20: =IF(COUNTRY_INFO!A20=0," ",COUNTRY_INFO!A20) -> Rwanda | B20: =IF(COUNTRY_INFO!B20=0," ",COUNTRY_INFO!B20) -> Kigali | C20: =IF(COUNTRY_INFO!C20=0," ",COUNTRY_INFO!C20) -> Kicukiro | D20: =IF(OR(COUNTRY_INFO!$T$9:$T$1000="T3 (ALB/MBD)",COUNTRY_INFO!$U$9:$U$1000="T3 (ALB/MBD)"), "T3 (ALB/MBD)", " ") -> T3 (ALB/MBD) | E20: ALB | F20: 15-30 June 2021 | G20: 35626 | H20: 79257 | I20: 149794 | J20: 264677 | K20: 21956 | L20: 49350 | M20: 66511 | N20: 137817 | O20: 61.62914725 | P20: 62.26579356 | Q20: 44.40164493 | R20: 52.0698814
A21: =IF(COUNTRY_INFO!A21=0," ",COUNTRY_INFO!A21) -> Rwanda | B21: =IF(COUNTRY_INFO!B21=0," ",COUNTRY_INFO!B21) -> Eastern | C21: =IF(COUNTRY_INFO!C21=0," ",COUNTRY_INFO!C21) -> Kirehe | D21: =IF(OR(COUNTRY_INFO!$T$9:$T$1000="T3 (ALB/MBD)",COUNTRY_INFO!$U$9:$U$1000="T3 (ALB/MBD)"), "T3 (ALB/MBD)", " ") -> T3 (ALB/MBD) | E21: ALB | F21: 15-30 June 2021 | G21: 52141 | H21: 129346 | I21: 282151 | J21: 463638 | K21: 58095 | L21: 107278 | M21: 206536 | N21: 371909 | O21: 111.4190368 | P21: 82.93878435 | Q21: 73.20052029 | R21: 80.21538355
A22: =IF(COUNTRY_INFO!A22=0," ",COUNTRY_INFO!A22) -> Rwanda | B22: =IF(COUNTRY_INFO!B22=0," ",COUNTRY_INFO!B22) -> Southern | C22: =IF(COUNTRY_INFO!C22=0," ",COUNTRY_INFO!C22) -> Muhanga | D22: =IF(OR(COUNTRY_INFO!$T$9:$T$1000="T3 (ALB/MBD)",COUNTRY_INFO!$U$9:$U$1000="T3 (ALB/MBD)"), "T3 (ALB/MBD)", " ") -> T3 (ALB/MBD) | E22: ALB | F22: 15-30 June 2021 | G22: 41250 | H22: 105175 | I22: 263894 | J22: 410319 | K22: 37679 | L22: 98055 | M22: 207840 | N22: 343574 | O22: 91.3430303 | P22: 93.2303304 | Q22: 78.75889562 | R22: 83.73338793
A23: =IF(COUNTRY_INFO!A23=0," ",COUNTRY_INFO!A23) -> Rwanda | B23: =IF(COUNTRY_INFO!B23=0," ",COUNTRY_INFO!B23) -> Northern | C23: =IF(COUNTRY_INFO!C23=0," ",COUNTRY_INFO!C23) -> Musanze | D23: =IF(OR(COUNTRY_INFO!$T$9:$T$1000="T3 (ALB/MBD)",COUNTRY_INFO!$U$9:$U$1000="T3 (ALB/MBD)"), "T3 (ALB/MBD)", " ") -> T3 (ALB/MBD) | E23: ALB | F23: 15-30 June 2021 | G23: 39022 | H23: 90102 | I23: 185761 | J23: 314885 | K23: 33575 | L23: 89405 | M23: 133437 | N23: 256417 | O23: 86.04120752 | P23: 99.22643227 | Q23: 71.83262364 | R23: 81.43195135
A24: =IF(COUNTRY_INFO!A24=0," ",COUNTRY_INFO!A24) -> Rwanda | B24: =IF(COUNTRY_INFO!B24=0," ",COUNTRY_INFO!B24) -> Eastern | C24: =IF(COUNTRY_INFO!C24=0," ",COUNTRY_INFO!C24) -> Ngoma | D24: =IF(OR(COUNTRY_INFO!$T$9:$T$1000="T3 (ALB/MBD)",COUNTRY_INFO!$U$9:$U$1000="T3 (ALB/MBD)"), "T3 (ALB/MBD)", " ") -> T3 (ALB/MBD) | E24: ALB | F24: 15-30 June 2021 | G24: 39020 | H24: 95951 | I24: 196292 | J24: 331263 | K24: 41037 | L24: 90141 | M24: 178297 | N24: 309475 | O24: 105.169144 | P24: 93.944826 | Q24: 90.8325352 | R24: 93.42274869
A25: =IF(COUNTRY_INFO!A25=0," ",COUNTRY_INFO!A25) -> Rwanda | B25: =IF(COUNTRY_INFO!B25=0," ",COUNTRY_INFO!B25) -> Western | C25: =IF(COUNTRY_INFO!C25=0," ",COUNTRY_INFO!C25) -> Ngororero | D25: =IF(OR(COUNTRY_INFO!$T$9:$T$1000="T3 (ALB/MBD)",COUNTRY_INFO!$U$9:$U$1000="T3 (ALB/MBD)"), "T3 (ALB/MBD)", " ") -> T3 (ALB/MBD) | E25: ALB | F25: 15-30 June 2021 | G25: 48396 | H25: 119517 | I25: 230112 | J25: 398025 | K25: 49197 | L25: 113173 | M25: 194254 | N25: 356624 | O25: 101.6550955 | P25: 94.69196851 | Q25: 84.41715339 | R25: 89.59839206
A26: =IF(COUNTRY_INFO!A26=0," ",COUNTRY_INFO!A26) -> Rwanda | B26: =IF(COUNTRY_INFO!B26=0," ",COUNTRY_INFO!B26) -> Western | C26: =IF(COUNTRY_INFO!C26=0," ",COUNTRY_INFO!C26) -> Nyabihu | D26: =IF(OR(COUNTRY_INFO!$T$9:$T$1000="T3 (ALB/MBD)",COUNTRY_INFO!$U$9:$U$1000="T3 (ALB/MBD)"), "T3 (ALB/MBD)", " ") -> T3 (ALB/MBD) | E26: ALB | F26: 15-30 June 2021 | G26: 35068 | H26: 83100 | I26: 179048 | J26: 297216 | K26: 41283 | L26: 69578 | M26: 146089 | N26: 256950 | O26: 117.7227102 | P26: 83.72803851 | Q26: 81.59208704 | R26: 86.45227713
A27: =IF(COUNTRY_INFO!A27=0," ",COUNTRY_INFO!A27) -> Rwanda | B27: =IF(COUNTRY_INFO!B27=0," ",COUNTRY_INFO!B27) -> Eastern | C27: =IF(COUNTRY_INFO!C27=0," ",COUNTRY_INFO!C27) -> Nyagatare | D27: =IF(OR(COUNTRY_INFO!$T$9:$T$1000="T3 (ALB/MBD)",COUNTRY_INFO!$U$9:$U$1000="T3 (ALB/MBD)"), "T3 (ALB/MBD)", " ") -> T3 (ALB/MBD) | E27: ALB | F27: 15-30 June 2021 | G27: 72319 | H27: 163001 | I27: 300622 | J27: 535942 | K27: 75677 | L27: 186514 | M27: 225899 | N27: 488090 | O27: 104.6433164 | P27: 114.4250649 | Q27: 75.14386838 | R27: 91.07142191
A28: =IF(COUNTRY_INFO!A28=0," ",COUNTRY_INFO!A28) -> Rwanda | B28: =IF(COUNTRY_INFO!B28=0," ",COUNTRY_INFO!B28) -> Southern | C28: =IF(COUNTRY_INFO!C28=0," ",COUNTRY_INFO!C28) -> Nyamagabe | D28: =IF(OR(COUNTRY_INFO!$T$9:$T$1000="T3 (ALB/MBD)",COUNTRY_INFO!$U$9:$U$1000="T3 (ALB/MBD)"), "T3 (ALB/MBD)", " ") -> T3 (ALB/MBD) | E28: ALB | F28: 15-30 June 2021 | G28: 24871 | H28: 105302 | I28: 240592 | J28: 370765 | K28: 37808 | L28: 94243 | M28: 197875 | N28: 329926 | O28: 152.0164046 | P28: 89.4978253 | Q28: 82.24504555 | R28: 88.98520626
A29: =IF(COUNTRY_INFO!A29=0," ",COUNTRY_INFO!A29) -> Rwanda | B29: =IF(COUNTRY_INFO!B29=0," ",COUNTRY_INFO!B29) -> Western | C29: =IF(COUNTRY_INFO!C29=0," ",COUNTRY_INFO!C29) -> Nyamasheke | D29: =IF(OR(COUNTRY_INFO!$T$9:$T$1000="T3 (ALB/MBD)",COUNTRY_INFO!$U$9:$U$1000="T3 (ALB/MBD)"), "T3 (ALB/MBD)", " ") -> T3 (ALB/MBD) | E29: ALB | F29: 15-30 June 2021 | G29: 47693 | H29: 111123 | I29: 211387 | J29: 370203 | K29: 49812 | L29: 122463 | M29: 177904 | N29: 350179 | O29: 104.443 | P29: 110.2049081 | Q29: 84.16033152 | R29: 94.59107571
A30: =IF(COUNTRY_INFO!A30=0," ",COUNTRY_INFO!A30) -> Rwanda | B30: =IF(COUNTRY_INFO!B30=0," ",COUNTRY_INFO!B30) -> Southern | C30: =IF(COUNTRY_INFO!C30=0," ",COUNTRY_INFO!C30) -> Nyanza | D30: =IF(OR(COUNTRY_INFO!$T$9:$T$1000="T3 (ALB/MBD)",COUNTRY_INFO!$U$9:$U$1000="T3 (ALB/MBD)"), "T3 (ALB/MBD)", " ") -> T3 (ALB/MBD) | E30: ALB | F30: 15-30 June 2021 | G30: 37336 | H30: 99012 | I30: 191905 | J30: 328253 | K30: 34002 | L30: 93026 | M30: 152493 | N30: 279521 | O30: 91.07028069 | P30: 93.95426817 | Q30: 79.46275501 | R30: 85.15413416
A31: =IF(COUNTRY_INFO!A31=0," ",COUNTRY_INFO!A31) -> Rwanda | B31: =IF(COUNTRY_INFO!B31=0," ",COUNTRY_INFO!B31) -> Kigali | C31: =IF(COUNTRY_INFO!C31=0," ",COUNTRY_INFO!C31) -> Nyarugenge | D31: =IF(OR(COUNTRY_INFO!$T$9:$T$1000="T3 (ALB/MBD)",COUNTRY_INFO!$U$9:$U$1000="T3 (ALB/MBD)"), "T3 (ALB/MBD)", " ") -> T3 (ALB/MBD) | E31: ALB | F31: 15-30 June 2021 | G31: 25010 | H31: 58290 | I31: 72180 | J31: 155480 | K31: 17438 | L31: 41901 | M31: 37034 | N31: 96373 | O31: 69.72411036 | P31: 71.88368502 | Q31: 51.30784151 | R31: 61.98417803
A32: =IF(COUNTRY_INFO!A32=0," ",COUNTRY_INFO!A32) -> Rwanda | B32: =IF(COUNTRY_INFO!B32=0," ",COUNTRY_INFO!B32) -> Southern | C32: =IF(COUNTRY_INFO!C32=0," ",COUNTRY_INFO!C32) -> Nyaruguru | D32: =IF(OR(COUNTRY_INFO!$T$9:$T$1000="T3 (ALB/MBD)",COUNTRY_INFO!$U$9:$U$1000="T3 (ALB/MBD)"), "T3 (ALB/MBD)", " ") -> T3 (ALB/MBD) | E32: ALB | F32: 15-30 June 2021 | G32: 32744 | H32: 89014 | I32: 148589 | J32: 270347 | K32: 38371 | L32: 74834 | M32: 139109 | N32: 252314 | O32: 117.1848278 | P32: 84.06992159 | Q32: 93.61998533 | R32: 93.3296837
A33: =IF(COUNTRY_INFO!A33=0," ",COUNTRY_INFO!A33) -> Rwanda | B33: =IF(COUNTRY_INFO!B33=0," ",COUNTRY_INFO!B33) -> Western | C33: =IF(COUNTRY_INFO!C33=0," ",COUNTRY_INFO!C33) -> Rubavu | D33: =IF(OR(COUNTRY_INFO!$T$9:$T$1000="T3 (ALB/MBD)",COUNTRY_INFO!$U$9:$U$1000="T3 (ALB/MBD)"), "T3 (ALB/MBD)", " ") -> T3 (ALB/MBD) | E33: ALB | F33: 15-30 June 2021 | G33: 65095.86693 | H33: 137311.5943 | I33: 289371.471 | J33: 491778.9322 | K33: 69207 | L33: 126626 | M33: 211771 | N33: 407604 | O33: 106.3155055 | P33: 92.2179956 | Q33: 73.18309552 | R33: 82.88358311
A34: =IF(COUNTRY_INFO!A34=0," ",COUNTRY_INFO!A34) -> Rwanda | B34: =IF(COUNTRY_INFO!B34=0," ",COUNTRY_INFO!B34) -> Southern | C34: =IF(COUNTRY_INFO!C34=0," ",COUNTRY_INFO!C34) -> Ruhango | D34: =IF(OR(COUNTRY_INFO!$T$9:$T$1000="T3 (ALB/MBD)",COUNTRY_INFO!$U$9:$U$1000="T3 (ALB/MBD)"), "T3 (ALB/MBD)", " ") -> T3 (ALB/MBD) | E34: ALB | F34: 15-30 June 2021 | G34: 36699 | H34: 80127 | I34: 178344 | J34: 295170 | K34: 29890 | L34: 70325 | M34: 129089 | N34: 229304 | O34: 81.44636094 | P34: 87.76692001 | Q34: 72.38202575 | R34: 77.68540163
A35: =IF(COUNTRY_INFO!A35=0," ",COUNTRY_INFO!A35) -> Rwanda | B35: =IF(COUNTRY_INFO!B35=0," ",COUNTRY_INFO!B35) -> Northern | C35: =IF(COUNTRY_INFO!C35=0," ",COUNTRY_INFO!C35) -> Rulindo | D35: =IF(OR(COUNTRY_INFO!$T$9:$T$1000="T3 (ALB/MBD)",COUNTRY_INFO!$U$9:$U$1000="T3 (ALB/MBD)"), "T3 (ALB/MBD)", " ") -> T3 (ALB/MBD) | E35: ALB | F35: 15-30 June 2021 | G35: 37475.41824 | H35: 102789.7186 | I35: 206650.1634 | J35: 346915.3003 | K35: 45299 | L35: 93240 | M35: 192477 | N35: 331016 | O35: 120.8765696 | P35: 90.70946129 | Q35: 93.14147001 | R35: 95.41695041
A36: =IF(COUNTRY_INFO!A36=0," ",COUNTRY_INFO!A36) -> Rwanda | B36: =IF(COUNTRY_INFO!B36=0," ",COUNTRY_INFO!B36) -> Western | C36: =IF(COUNTRY_INFO!C36=0," ",COUNTRY_INFO!C36) -> Rusizi | D36: =IF(OR(COUNTRY_INFO!$T$9:$T$1000="T3 (ALB/MBD)",COUNTRY_INFO!$U$9:$U$1000="T3 (ALB/MBD)"), "T3 (ALB/MBD)", " ") -> T3 (ALB/MBD) | E36: ALB | F36: 15-30 June 2021 | G36: 62350.03632 | H36: 124930 | I36: 170303 | J36: 357583.0363 | K36: 57240 | L36: 113951 | M36: 177684 | N36: 348875 | O36: 91.80427691 | P36: 91.21187865 | Q36: 104.3340399 | R36: 97.56475128
A37: =IF(COUNTRY_INFO!A37=0," ",COUNTRY_INFO!A37) -> Rwanda | B37: =IF(COUNTRY_INFO!B37=0," ",COUNTRY_INFO!B37) -> Western | C37: =IF(COUNTRY_INFO!C37=0," ",COUNTRY_INFO!C37) -> Rutsiro | D37: =IF(OR(COUNTRY_INFO!$T$9:$T$1000="T3 (ALB/MBD)",COUNTRY_INFO!$U$9:$U$1000="T3 (ALB/MBD)"), "T3 (ALB/MBD)", " ") -> T3 (ALB/MBD) | E37: ALB | F37: 15-30 June 2021 | G37: 43700 | H37: 81288 | I37: 179120 | J37: 304108 | K37: 40051 | L37: 81483 | M37: 162603 | N37: 284137 | O37: 91.64988558 | P37: 100.2398878 | Q37: 90.7788075 | R37: 93.43292515
A38: =IF(COUNTRY_INFO!A38=0," ",COUNTRY_INFO!A38) -> Rwanda | B38: =IF(COUNTRY_INFO!B38=0," ",COUNTRY_INFO!B38) -> Eastern | C38: =IF(COUNTRY_INFO!C38=0," ",COUNTRY_INFO!C38) -> Rwamagana | D38: =IF(OR(COUNTRY_INFO!$T$9:$T$1000="T3 (ALB/MBD)",COUNTRY_INFO!$U$9:$U$1000="T3 (ALB/MBD)"), "T3 (ALB/MBD)", " ") -> T3 (ALB/MBD) | E38: ALB | F38: 15-30 June 2021 | G38: 40444 | H38: 95084 | I38: 165305 | J38: 300833 | K38: 45279 | L38: 100401 | M38: 180497 | N38: 326177 | O38: 111.9548017 | P38: 105.5918977 | Q38: 109.1902846 | R38: 108.4246077

Sheet T3_R2
A1: T 3 - Albendazole (ALB) or Mebendazole (MBD) - Round 2
A2: Administrative structure, population requiring PC by age group, population treated by age group and coverage
A4: TOTAL | G4: =SUM(G$9:G$1000) -> 1562018.447 | H4: 3766445.654 | I4: 6681169 | J4: 12009633.1 | K4: 1456139 | L4: 3458828 | M4: 5652115 | N4: 10567082 | O4: =IF(G4<>0, IF(K4/G4*100=0, "-", K4/G4*100), " ") -> 93.22162634 | P4: =IF(H4<>0, IF(L4/H4*100=0, "-", L4/H4*100), " ") -> 91.8326804 | Q4: =IF(I4<>0, IF(M4/I4*100=0, "-", M4/I4*100), " ") -> 84.5976954 | R4: =IF(J4<>0, IF(N4/J4*100=0, "-", N4/J4*100), " ") -> 87.98838325
D6: PC implemented | E6: Medicine | F6: Date | G6: Population targeted for T3 | K6: Population treated | O6: Programme coverage (%)
A7: Country | B7: Province/State | C7: District | G7: PreSAC | H7: SAC | I7: Adults | J7: Total | K7: PreSAC | L7: SAC | M7: Adults | N7: Total | O7: PreSAC | P7: SAC | Q7: Adults | R7: Total
A9: =IF(COUNTRY_INFO!A9=0," ",COUNTRY_INFO!A9) -> Rwanda | B9: =IF(COUNTRY_INFO!B9=0," ",COUNTRY_INFO!B9) -> Eastern | C9: =IF(COUNTRY_INFO!C9=0," ",COUNTRY_INFO!C9) -> Bugesera | D9: T3 (ALB/MBD) | E9: MBD | F9: 15-28/11/2021 | G9: 60187.45349 | H9: 129038.2526 | I9: 249271 | J9: =SUM(G9:I9) -> 438496.706 | K9: 53073 | L9: 144904 | M9: 236885 | N9: =SUM(K9:M9) -> 434862 | O9: =IF(G9<>0, IF(K9/G9*100=0, "-", K9/G9*100), " ") -> 88.1795074 | P9: =IF(H9<>0, IF(L9/H9*100=0, "-", L9/H9*100), " ") -> 112.2953831 | Q9: =IF(I9<>0, IF(M9/I9*100=0, "-", M9/I9*100), " ") -> 95.03111072 | R9: =IF(J9<>0, IF(N9/J9*100=0, "-", N9/J9*100), " ") -> 99.17109844 | S9: =G9/COUNTRY_INFO!E9*100 -> 100 | T9: =H9/COUNTRY_INFO!F9*100 -> 100
A10: =IF(COUNTRY_INFO!A10=0," ",COUNTRY_INFO!A10) -> Rwanda | B10: =IF(COUNTRY_INFO!B10=0," ",COUNTRY_INFO!B10) -> Northern | C10: =IF(COUNTRY_INFO!C10=0," ",COUNTRY_INFO!C10) -> Burera | D10: T3 (ALB/MBD) | E10: MBD | F10: 15-28/11/2021 | G10: 45797.45678 | H10: 137816.4209 | I10: 215055 | J10: =SUM(G10:I10) -> 398668.8777 | K10: 43597 | L10: 107288 | M10: 174713 | N10: =SUM(K10:M10) -> 325598 | O10: =IF(G10<>0, IF(K10/G10*100=0, "-", K10/G10*100), " ") -> 95.19524241 | P10: =IF(H10<>0, IF(L10/H10*100=0, "-", L10/H10*100), " ") -> 77.8484881 | Q10: =IF(I10<>0, IF(M10/I10*100=0, "-", M10/I10*100), " ") -> 81.24107786 | R10: =IF(J10<>0, IF(N10/J10*100=0, "-", N10/J10*100), " ") -> 81.67128619 | S10: =G10/COUNTRY_INFO!E10*100 -> 100 | T10: =H10/COUNTRY_INFO!F10*100 -> 100
A11: =IF(COUNTRY_INFO!A11=0," ",COUNTRY_INFO!A11) -> Rwanda | B11: =IF(COUNTRY_INFO!B11=0," ",COUNTRY_INFO!B11) -> Northern | C11: =IF(COUNTRY_INFO!C11=0," ",COUNTRY_INFO!C11) -> Gakenke | D11: T3 (ALB/MBD) | E11: MBD | F11: 15-28/11/2021 | G11: 47043.75358 | H11: 131722.51 | I11: 242424 | J11: 421190.2636 | K11: 40460 | L11: 95173 | M11: 240256 | N11: 375889 | O11: 86.00504194 | P11: 72.25264685 | Q11: 99.10569911 | R11: 89.24446562 | S11: =G11/COUNTRY_INFO!E11*100 -> 100 | T11: =H11/COUNTRY_INFO!F11*100 -> 100
A12: =IF(COUNTRY_INFO!A12=0," ",COUNTRY_INFO!A12) -> Rwanda | B12: =IF(COUNTRY_INFO!B12=0," ",COUNTRY_INFO!B12) -> Kigali | C12: =IF(COUNTRY_INFO!C12=0," ",COUNTRY_INFO!C12) -> Gasabo | D12: T3 (ALB/MBD) | E12: MBD | F12: 15-28/11/2021 | G12: 75391.19085 | H12: 145444.9523 | I12: 82631 | J12: 303467.1431 | K12: 80597 | L12: 197626 | M12: 75346 | N12: 353569 | O12: 106.9050629 | P12: 135.8768365 | Q12: 91.18369619 | R12: 116.5098127 | S12: =G12/COUNTRY_INFO!E12*100 -> 100 | T12: =H12/COUNTRY_INFO!F12*100 -> 100
A13: =IF(COUNTRY_INFO!A13=0," ",COUNTRY_INFO!A13) -> Rwanda | B13: =IF(COUNTRY_INFO!B13=0," ",COUNTRY_INFO!B13) -> Eastern | C13: =IF(COUNTRY_INFO!C13=0," ",COUNTRY_INFO!C13) -> Gatsibo | D13: T3 (ALB/MBD) | E13: MBD | F13: 15-28/11/2021 | G13: 63593.79933 | H13: 157445.9387 | I13: 283941 | J13: 504980.738 | K13: 59292 | L13: 161816 | M13: 241548 | N13: 462656 | O13: 93.23550507 | P13: 102.7755948 | Q13: 85.06978562 | R13: 91.61854407 | S13: =G13/COUNTRY_INFO!E13*100 -> 100 | T13: =H13/COUNTRY_INFO!F13*100 -> 100
A14: =IF(COUNTRY_INFO!A14=0," ",COUNTRY_INFO!A14) -> Rwanda | B14: =IF(COUNTRY_INFO!B14=0," ",COUNTRY_INFO!B14) -> Northern | C14: =IF(COUNTRY_INFO!C14=0," ",COUNTRY_INFO!C14) -> Gicumbi | D14: T3 (ALB/MBD) | E14: MBD | F14: 15-28/11/2021 | G14: 52333.43469 | H14: 154009.8221 | I14: 261622 | J14: 467965.2568 | K14: 49492 | L14: 107251 | M14: 256236 | N14: 412979 | O14: 94.57051747 | P14: 69.63906492 | Q14: 97.94130463 | R14: 88.24992753 | S14: =G14/COUNTRY_INFO!E14*100 -> 100 | T14: =H14/COUNTRY_INFO!F14*100 -> 100
A15: =IF(COUNTRY_INFO!A15=0," ",COUNTRY_INFO!A15) -> Rwanda | B15: =IF(COUNTRY_INFO!B15=0," ",COUNTRY_INFO!B15) -> Southern | C15: =IF(COUNTRY_INFO!C15=0," ",COUNTRY_INFO!C15) -> Gisagara | D15: T3 (ALB/MBD) | E15: MBD | F15: 15-28/11/2021 | G15: 53633.86325 | H15: 116206.7037 | I15: 223922 | J15: 393762.567 | K15: 52584 | L15: 100822 | M15: 208773 | N15: 362179 | O15: 98.04253658 | P15: 86.76091549 | Q15: 93.2346978 | R15: 91.97903264 | S15: =G15/COUNTRY_INFO!E15*100 -> 100 | T15: =H15/COUNTRY_INFO!F15*100 -> 100
A16: =IF(COUNTRY_INFO!A16=0," ",COUNTRY_INFO!A16) -> Rwanda | B16: =IF(COUNTRY_INFO!B16=0," ",COUNTRY_INFO!B16) -> Southern | C16: =IF(COUNTRY_INFO!C16=0," ",COUNTRY_INFO!C16) -> Huye | D16: T3 (ALB/MBD) | E16: MBD | F16: 15-28/11/2021 | G16: 46752.57077 | H16: 108813.5054 | I16: 218814 | J16: 374380.0762 | K16: 42463 | L16: 96677 | M16: 215291 | N16: 354431 | O16: 90.82495208 | P16: 88.84650819 | Q16: 98.38995677 | R16: 94.67143754 | S16: =G16/COUNTRY_INFO!E16*100 -> 100 | T16: =H16/COUNTRY_INFO!F16*100 -> 100
A17: =IF(COUNTRY_INFO!A17=0," ",COUNTRY_INFO!A17) -> Rwanda | B17: =IF(COUNTRY_INFO!B17=0," ",COUNTRY_INFO!B17) -> Southern | C17: =IF(COUNTRY_INFO!C17=0," ",COUNTRY_INFO!C17) -> Kamonyi | D17: T3 (ALB/MBD) | E17: MBD | F17: 15-28/11/2021 | G17: 48904.58369 | H17: 120116.5213 | I17: 210350 | J17: 379371.105 | K17: 38795 | L17: 108208 | M17: 189660 | N17: 336663 | O17: 79.32794245 | P17: 90.08585896 | Q17: 90.16401236 | R17: 88.7423938 | S17: =G17/COUNTRY_INFO!E17*100 -> 100 | T17: =H17/COUNTRY_INFO!F17*100 -> 100
A18: =IF(COUNTRY_INFO!A18=0," ",COUNTRY_INFO!A18) -> Rwanda | B18: =IF(COUNTRY_INFO!B18=0," ",COUNTRY_INFO!B18) -> Western | C18: =IF(COUNTRY_INFO!C18=0," ",COUNTRY_INFO!C18) -> Karongi | D18: T3 (ALB/MBD) | E18: MBD | F18: 15-28/11/2021 | G18: 49391.58739 | H18: 126459.4953 | I18: 231126 | J18: 406977.0827 | K18: 45163 | L18: 93328 | M18: 191026 | N18: 329517 | O18: 91.43864853 | P18: 73.80070573 | Q18: 82.65015619 | R18: 80.96696694 | S18: =G18/COUNTRY_INFO!E18*100 -> 100 | T18: =H18/COUNTRY_INFO!F18*100 -> 100
A19: =IF(COUNTRY_INFO!A19=0," ",COUNTRY_INFO!A19) -> Rwanda | B19: =IF(COUNTRY_INFO!B19=0," ",COUNTRY_INFO!B19) -> Eastern | C19: =IF(COUNTRY_INFO!C19=0," ",COUNTRY_INFO!C19) -> Kayonza | D19: T3 (ALB/MBD) | E19: MBD | F19: 15-28/11/2021 | G19: 54658.09595 | H19: 131179.4303 | I19: 241195 | J19: 427032.5262 | K19: 47016 | L19: 116123 | M19: 179597 | N19: 342736 | O19: 86.01836413 | P19: 88.52226279 | Q19: 74.46132797 | R19: 80.25992845 | S19: =G19/COUNTRY_INFO!E19*100 -> 100 | T19: =H19/COUNTRY_INFO!F19*100 -> 100
A20: =IF(COUNTRY_INFO!A20=0," ",COUNTRY_INFO!A20) -> Rwanda | B20: =IF(COUNTRY_INFO!B20=0," ",COUNTRY_INFO!B20) -> Kigali | C20: =IF(COUNTRY_INFO!C20=0," ",COUNTRY_INFO!C20) -> Kicukiro | D20: T3 (ALB/MBD) | E20: MBD | F20: 15-28/11/2021 | G20: 40536.41267 | H20: 88698.48713 | J20: 129234.8998 | K20: 42171 | L20: 109313 | M20: 0 | N20: 151484 | O20: 104.0323927 | P20: 123.2411099 | R20: 117.2160154 | S20: =G20/COUNTRY_INFO!E20*100 -> 100 | T20: =H20/COUNTRY_INFO!F20*100 -> 100
A21: =IF(COUNTRY_INFO!A21=0," ",COUNTRY_INFO!A21) -> Rwanda | B21: =IF(COUNTRY_INFO!B21=0," ",COUNTRY_INFO!B21) -> Eastern | C21: =IF(COUNTRY_INFO!C21=0," ",COUNTRY_INFO!C21) -> Kirehe | D21: T3 (ALB/MBD) | E21: MBD | F21: 15-28/11/2021 | G21: 53602.52509 | H21: 129503.7006 | I21: 261075 | J21: 444181.2257 | K21: 51305 | L21: 121294 | M21: 192213 | N21: 364812 | O21: 95.71377452 | P21: 93.660644 | Q21: 73.62367136 | R21: 82.13134164 | S21: =G21/COUNTRY_INFO!E21*100 -> 100 | T21: =H21/COUNTRY_INFO!F21*100 -> 100
A22: =IF(COUNTRY_INFO!A22=0," ",COUNTRY_INFO!A22) -> Rwanda | B22: =IF(COUNTRY_INFO!B22=0," ",COUNTRY_INFO!B22) -> Southern | C22: =IF(COUNTRY_INFO!C22=0," ",COUNTRY_INFO!C22) -> Muhanga | D22: T3 (ALB/MBD) | E22: MBD | F22: 15-28/11/2021 | G22: 41413.92759 | H22: 112179.4738 | I22: 249297 | J22: 402890.4014 | K22: 33252 | L22: 94806 | M22: 168280 | N22: 296338 | O22: 80.29182918 | P22: 84.51278724 | Q22: 67.5018151 | R22: 73.55300573 | S22: =G22/COUNTRY_INFO!E22*100 -> 100 | T22: =H22/COUNTRY_INFO!F22*100 -> 100
A23: =IF(COUNTRY_INFO!A23=0," ",COUNTRY_INFO!A23) -> Rwanda | B23: =IF(COUNTRY_INFO!B23=0," ",COUNTRY_INFO!B23) -> Northern | C23: =IF(COUNTRY_INFO!C23=0," ",COUNTRY_INFO!C23) -> Musanze | D23: T3 (ALB/MBD) | E23: MBD | F23: 15-28/11/2021 | G23: 51036.59576 | H23: 136870.8704 | I23: 242266 | J23: 430173.4662 | K23: 41363 | L23: 108575 | M23: 184085 | N23: 334023 | O23: 81.04576605 | P23: 79.32659422 | Q23: 75.98466149 | R23: 77.6484433 | S23: =G23/COUNTRY_INFO!E23*100 -> 100 | T23: =H23/COUNTRY_INFO!F23*100 -> 100
A24: =IF(COUNTRY_INFO!A24=0," ",COUNTRY_INFO!A24) -> Rwanda | B24: =IF(COUNTRY_INFO!B24=0," ",COUNTRY_INFO!B24) -> Eastern | C24: =IF(COUNTRY_INFO!C24=0," ",COUNTRY_INFO!C24) -> Ngoma | D24: T3 (ALB/MBD) | E24: MBD | F24: 15-28/11/2021 | G24: 68342.29971 | H24: 119705.1461 | I24: 218891 | J24: 406938.4458 | K24: 42538 | L24: 95824 | M24: 225433 | N24: 363795 | O24: 62.24256453 | P24: 80.05002553 | Q24: 102.9887021 | R24: 89.39804134 | S24: =G24/COUNTRY_INFO!E24*100 -> 100 | T24: =H24/COUNTRY_INFO!F24*100 -> 100
A25: =IF(COUNTRY_INFO!A25=0," ",COUNTRY_INFO!A25) -> Rwanda | B25: =IF(COUNTRY_INFO!B25=0," ",COUNTRY_INFO!B25) -> Western | C25: =IF(COUNTRY_INFO!C25=0," ",COUNTRY_INFO!C25) -> Ngororero | D25: T3 (ALB/MBD) | E25: MBD | F25: 15-28/11/2021 | G25: 51267.80552 | H25: 131587.3675 | I25: 233403 | J25: 416258.173 | K25: 46769 | L25: 105850 | M25: 200592 | N25: 353211 | O25: 91.22489159 | P25: 80.44085236 | Q25: 85.94234007 | R25: 84.8538294 | S25: =G25/COUNTRY_INFO!E25*100 -> 100 | T25: =H25/COUNTRY_INFO!F25*100 -> 100
A26: =IF(COUNTRY_INFO!A26=0," ",COUNTRY_INFO!A26) -> Rwanda | B26: =IF(COUNTRY_INFO!B26=0," ",COUNTRY_INFO!B26) -> Western | C26: =IF(COUNTRY_INFO!C26=0," ",COUNTRY_INFO!C26) -> Nyabihu | D26: T3 (ALB/MBD) | E26: MBD | F26: 15-28/11/2021 | G26: 43817.48481 | H26: 116970.4044 | I26: 141262 | J26: 302049.8892 | K26: 37085 | L26: 103696 | M26: 141015 | N26: 281796 | O26: 84.63516371 | P26: 88.65148459 | Q26: 99.8251476 | R26: 93.2945219 | S26: =G26/COUNTRY_INFO!E26*100 -> 100 | T26: =H26/COUNTRY_INFO!F26*100 -> 100
A27: =IF(COUNTRY_INFO!A27=0," ",COUNTRY_INFO!A27) -> Rwanda | B27: =IF(COUNTRY_INFO!B27=0," ",COUNTRY_INFO!B27) -> Eastern | C27: =IF(COUNTRY_INFO!C27=0," ",COUNTRY_INFO!C27) -> Nyagatare | D27: T3 (ALB/MBD) | E27: MBD | F27: 15-28/11/2021 | G27: 73364.67481 | H27: 180770.5587 | I27: 400358 | J27: 654493.2335 | K27: 76063 | L27: 170502 | M27: 203566 | N27: 450131 | O27: 103.6779625 | P27: 94.31956244 | Q27: 50.84599284 | R27: 68.77550094 | S27: =G27/COUNTRY_INFO!E27*100 -> 100 | T27: =H27/COUNTRY_INFO!F27*100 -> 100
A28: =IF(COUNTRY_INFO!A28=0," ",COUNTRY_INFO!A28) -> Rwanda | B28: =IF(COUNTRY_INFO!B28=0," ",COUNTRY_INFO!B28) -> Southern | C28: =IF(COUNTRY_INFO!C28=0," ",COUNTRY_INFO!C28) -> Nyamagabe | D28: T3 (ALB/MBD) | E28: MBD | F28: 15-28/11/2021 | G28: 47580.31517 | H28: 130421.0425 | I28: 244732 | J28: 422733.3577 | K28: 41352 | L28: 100557 | M28: 218203 | N28: 360112 | O28: 86.90989089 | P28: 77.10182198 | Q28: 89.15997908 | R28: 85.18655873 | S28: =G28/COUNTRY_INFO!E28*100 -> 100 | T28: =H28/COUNTRY_INFO!F28*100 -> 100
A29: =IF(COUNTRY_INFO!A29=0," ",COUNTRY_INFO!A29) -> Rwanda | B29: =IF(COUNTRY_INFO!B29=0," ",COUNTRY_INFO!B29) -> Western | C29: =IF(COUNTRY_INFO!C29=0," ",COUNTRY_INFO!C29) -> Nyamasheke | D29: T3 (ALB/MBD) | E29: MBD | F29: 15-28/11/2021 | G29: 59611.70077 | H29: 129076.5752 | I29: 262514 | J29: 451202.276 | K29: 57897 | L29: 119392 | M29: 188449 | N29: 365738 | O29: 97.12354999 | P29: 92.49703116 | Q29: 71.78626664 | R29: 81.05854502 | S29: =G29/COUNTRY_INFO!E29*100 -> 100 | T29: =H29/COUNTRY_INFO!F29*100 -> 100
A30: =IF(COUNTRY_INFO!A30=0," ",COUNTRY_INFO!A30) -> Rwanda | B30: =IF(COUNTRY_INFO!B30=0," ",COUNTRY_INFO!B30) -> Southern | C30: =IF(COUNTRY_INFO!C30=0," ",COUNTRY_INFO!C30) -> Nyanza | D30: T3 (ALB/MBD) | E30: MBD | F30: 15-28/11/2021 | G30: 48941.22313 | H30: 108078.5344 | I30: 191245 | J30: 348264.7575 | K30: 35966 | L30: 99069 | M30: 184525 | N30: 319560 | O30: 73.4881511 | P30: 91.66390028 | Q30: 96.48618265 | R30: 91.75777712 | S30: =G30/COUNTRY_INFO!E30*100 -> 100 | T30: =H30/COUNTRY_INFO!F30*100 -> 100
A31: =IF(COUNTRY_INFO!A31=0," ",COUNTRY_INFO!A31) -> Rwanda | B31: =IF(COUNTRY_INFO!B31=0," ",COUNTRY_INFO!B31) -> Kigali | C31: =IF(COUNTRY_INFO!C31=0," ",COUNTRY_INFO!C31) -> Nyarugenge | D31: T3 (ALB/MBD) | E31: MBD | F31: 15-28/11/2021 | G31: 37285.13547 | H31: 78513.89104 | I31: 180809 | J31: 296608.0265 | K31: 43369 | L31: 102690 | M31: 156295 | N31: 302354 | O31: 116.3171313 | P31: 130.7921422 | Q31: 86.44204658 | R31: 101.9372279 | S31: =G31/COUNTRY_INFO!E31*100 -> 100 | T31: =H31/COUNTRY_INFO!F31*100 -> 100
A32: =IF(COUNTRY_INFO!A32=0," ",COUNTRY_INFO!A32) -> Rwanda | B32: =IF(COUNTRY_INFO!B32=0," ",COUNTRY_INFO!B32) -> Southern | C32: =IF(COUNTRY_INFO!C32=0," ",COUNTRY_INFO!C32) -> Nyaruguru | D32: T3 (ALB/MBD) | E32: MBD | F32: 15-28/11/2021 | G32: 43386.29293 | H32: 118663.3653 | I32: 198471 | J32: 360520.6582 | K32: 41218 | L32: 111393 | M32: 190971 | N32: 343582 | O32: 95.00235493 | P32: 93.87311723 | Q32: 96.22111039 | R32: 95.30161232 | S32: =G32/COUNTRY_INFO!E32*100 -> 100 | T32: =H32/COUNTRY_INFO!F32*100 -> 100
A33: =IF(COUNTRY_INFO!A33=0," ",COUNTRY_INFO!A33) -> Rwanda | B33: =IF(COUNTRY_INFO!B33=0," ",COUNTRY_INFO!B33) -> Western | C33: =IF(COUNTRY_INFO!C33=0," ",COUNTRY_INFO!C33) -> Rubavu | D33: T3 (ALB/MBD) | E33: MBD | F33: 15-28/11/2021 | G33: 65095.86693 | H33: 137311.5943 | I33: 275269 | J33: 477676.4612 | K33: 72548 | L33: 146058 | M33: 196045 | N33: 414651 | O33: 111.4479358 | P33: 106.3697503 | Q33: 71.21942536 | R33: 86.80582646 | S33: =G33/COUNTRY_INFO!E33*100 -> 100 | T33: =H33/COUNTRY_INFO!F33*100 -> 100
A34: =IF(COUNTRY_INFO!A34=0," ",COUNTRY_INFO!A34) -> Rwanda | B34: =IF(COUNTRY_INFO!B34=0," ",COUNTRY_INFO!B34) -> Southern | C34: =IF(COUNTRY_INFO!C34=0," ",COUNTRY_INFO!C34) -> Ruhango | D34: T3 (ALB/MBD) | E34: MBD | F34: 15-28/11/2021 | G34: 41908.6611 | H34: 103687.8081 | I34: 203481 | J34: 349077.4692 | K34: 40303 | L34: 101793 | M34: 204336 | N34: 346432 | O34: 96.16866523 | P34: 98.17258354 | Q34: 100.4201867 | R34: 99.24215413 | S34: =G34/COUNTRY_INFO!E34*100 -> 100 | T34: =H34/COUNTRY_INFO!F34*100 -> 100
A35: =IF(COUNTRY_INFO!A35=0," ",COUNTRY_INFO!A35) -> Rwanda | B35: =IF(COUNTRY_INFO!B35=0," ",COUNTRY_INFO!B35) -> Northern | C35: =IF(COUNTRY_INFO!C35=0," ",COUNTRY_INFO!C35) -> Rulindo | D35: T3 (ALB/MBD) | E35: MBD | F35: 15-28/11/2021 | G35: 37475.41824 | H35: 102789.7186 | I35: 225436 | J35: 365701.1368 | K35: 44333 | L35: 98704 | M35: 195932 | N35: 338969 | O35: 118.2988799 | P35: 96.02516803 | Q35: 86.91247183 | R35: 92.69016852 | S35: =G35/COUNTRY_INFO!E35*100 -> 100 | T35: =H35/COUNTRY_INFO!F35*100 -> 100
A36: =IF(COUNTRY_INFO!A36=0," ",COUNTRY_INFO!A36) -> Rwanda | B36: =IF(COUNTRY_INFO!B36=0," ",COUNTRY_INFO!B36) -> Western | C36: =IF(COUNTRY_INFO!C36=0," ",COUNTRY_INFO!C36) -> Rusizi | D36: T3 (ALB/MBD) | E36: MBD | F36: 15-28/11/2021 | G36: 62350.03632 | H36: 144976.5072 | I36: 266931 | J36: 474257.5435 | K36: 67019 | L36: 100296 | M36: 197377 | N36: 364692 | O36: 107.4883095 | P36: 69.1808638 | Q36: 73.94307892 | R36: 76.89745898 | S36: =G36/COUNTRY_INFO!E36*100 -> 100 | T36: =H36/COUNTRY_INFO!F36*100 -> 100
A37: =IF(COUNTRY_INFO!A37=0," ",COUNTRY_INFO!A37) -> Rwanda | B37: =IF(COUNTRY_INFO!B37=0," ",COUNTRY_INFO!B37) -> Western | C37: =IF(COUNTRY_INFO!C37=0," ",COUNTRY_INFO!C37) -> Rutsiro | D37: T3 (ALB/MBD) | E37: MBD | F37: 15-28/11/2021 | G37: 49133.93442 | H37: 132153.3408 | I37: 211817 | J37: 393104.2753 | K37: 39848 | L37: 117390 | M37: 192660 | N37: 349898 | O37: 81.10077174 | P37: 88.82862836 | Q37: 90.95587229 | R37: 89.0089531 | S37: =G37/COUNTRY_INFO!E37*100 -> 100 | T37: =H37/COUNTRY_INFO!F37*100 -> 100
A38: =IF(COUNTRY_INFO!A38=0," ",COUNTRY_INFO!A38) -> Rwanda | B38: =IF(COUNTRY_INFO!B38=0," ",COUNTRY_INFO!B38) -> Eastern | C38: =IF(COUNTRY_INFO!C38=0," ",COUNTRY_INFO!C38) -> Rwamagana | D38: T3 (ALB/MBD) | E38: MBD | F38: 15-28/11/2021 | G38: 48180.34681 | H38: 106233.7155 | I38: 213561 | J38: 367975.0623 | K38: 49208 | L38: 122410 | M38: 202807 | N38: 374425 | O38: 102.1329302 | P38: 115.2270721 | Q38: 94.96443639 | R38: 101.7528192 | S38: =G38/COUNTRY_INFO!E38*100 -> 100 | T38: =H38/COUNTRY_INFO!F38*100 -> 100

Sheet DISTRICT
A1: Number of individuals treated
A2: Administrative structure, population treated by age group and gender
A4: TOTAL | D4: =SUM(D$9:D$1000) -> 0 | E4: =SUM(E$9:E$1000) -> 0 | F4: =SUM(F$9:F$1000) -> 0 | G4: =SUM(G$9:G$1000) -> 0 | H4: =SUM(H$9:H$1000) -> 0 | I4: =IF(D4>0, IF(H4/D4*100<>0, H4/D4*100, "-"),0) -> 0 | J4: =SUM(J$9:J$1000) -> 0 | K4: =SUM(K$9:K$1000) -> 0 | L4: =SUM(L$9:L$1000) -> 0 | M4: =SUM(M$9:M$1000) -> 0 | N4: =SUM(N$9:N$1000) -> 0 | O4: =IF(J4>0, IF(N4/J4*100<>0, N4/J4*100, "-"),0) -> 0 | P4: =SUM(P$9:P$1000) -> 4199615.63 | Q4: =SUM(Q$9:Q$1000) -> 0 | R4: =SUM(R$9:R$1000) -> 0 | S4: =SUM(S$9:S$1000) -> 10986217 | T4: =SUM(T$9:T$1000) -> 1137032.465 | V4: =SUM(V$9:V$1000) -> 2686879.044 | X4: =SUM(X$9:X$1000) -> 3823911.509 | Y4: =IF(P4>0, IF(X4/P4*100<>0, X4/P4*100, "-"),0) -> 91.05384507 | Z4: =SUM(Z$9:Z$1000) -> 1480813 | AA4: 0 | AB4: 0 | AC4: 2856299 | AD4: 865451.2406 | AF4: 938187.5793 | AH4: 1803638.82 | AI4: =IF(Z4>0, IF(AH4/Z4*100<>0, AH4/Z4*100, "-"),0) -> 121.8005798
D6: Population requiring PC for LF | E6: Population treated for lymphatic filariasis | J6: Population requiring PC for ONCHO | K6: Population treated for onchocerciasis | P6: Population requiring PC for STH | Q6: Population treated for STH | Z6: Population requiring PC for SCH | AA6: Population treated for schistosomiasis | AP6: =SUM(AP9:AP1000) -> 0 | AQ6: =SUM(AQ9:AQ1000) -> 1220488.568 | AR6: =SUM(AR9:AR1000) -> 3151996.016 | AS6: =SUM(AS9:AS1000) -> 519402.772 | AT6: =SUM(AT9:AT1000) -> 4891887.356 | AU6: =COUNTIF(AU9:AU1000,"Y") -> 23 | AV6: =SUM(AV9:AV1000) -> 1516497 | AW6: 3562563 | AX6: 5974326 | AY6: =SUM(AY9:AY1000) -> 11053386 | AZ6: 1137032.465 | BA6: 2887172.902 | BB6: 938187.5793 | BC6: 4613588.485 | BD6: =IF(AT6<>0,BC6/AT6,0) -> 0.9431101228
A7: Country | B7: Province/State | C7: District | E7: Male | F7: Female | G7: Total treated | H7: Total in need treated | I7: (%) | K7: Male | L7: Female | M7: Total treated | N7: Total in need treated | O7: (%) | Q7: Male | R7: Female | S7: Total treated | T7: PreSAC in need treated | U7: PreSAC (%) | V7: SAC in need treated | W7: SAC (%) | X7: Total in need treated | Y7: (%) | AA7: Male | AB7: Female | AC7: Total treated | AD7: SAC in need treated | AE7: SAC (%) | AF7: Adults in need treated | AG7: Adults (%) | AH7: Total in need treated | AI7: (%) | AK7: LF | AL7: ONCHO | AM7: STH | AN7: SCH-SAC | AO7: SCH_Adults | AP7: <1 | AQ7: PreSAC | AR7: SAC | AS7: Adults | AT7: Total | AU7: Dis | AV7: PreSAC | AW7: SAC | AX7: Adults | AY7: Total | AZ7: PreSAC | BA7: SAC | BB7: Adults | BC7: Total | BD7: Coverage
A9: =IF(COUNTRY_INFO!A9=0," ",COUNTRY_INFO!A9) -> Rwanda | B9: =IF(COUNTRY_INFO!B9=0," ",COUNTRY_INFO!B9) -> Eastern | C9: =IF(COUNTRY_INFO!C9=0," ",COUNTRY_INFO!C9) -> Bugesera | D9: =COUNTRY_INFO!L9 -> 0 | G9: =MAX('MDA1'!M9,'MDA2'!M9,'MDA5'!M9) -> 0 | H9: =IF(AND(COUNTRY_INFO!H9>0,COUNTRY_INFO!H9<4),IF(D9>MAX('MDA1'!M9,'MDA2'!M9,'MDA5'!M9),MAX('MDA1'!M9,'MDA2'!M9,'MDA5'!M9),D9),0) -> 0 | I9: =IF(AND(COUNTRY_INFO!H9>0,COUNTRY_INFO!H9<4), IF(G9/D9*100<>0, IF(G9/D9*100>100,100,G9/D9*100), "-"),0) -> 0 | J9: =COUNTRY_INFO!M9 -> 0 | M9: =MAX('MDA1'!M9,MAX('MDA3'!I9,'MDA3'!L9)+MAX('MDA3'!J9,'MDA3'!M9)) -> 0 | N9: =IF(AND(COUNTRY_INFO!I9>0,COUNTRY_INFO!I9<4),IF(J9>MAX('MDA1'!M9,MAX('MDA3'!I9,'MDA3'!L9)+MAX('MDA3'!J9,'MDA3'!M9)),MAX('MDA1'!M9,MAX('MDA3'!I9,'MDA3'!L9)+MAX('MDA3'!J9,'MDA3'!M9)),J9),0) -> 0 | O9: =IF(AND(COUNTRY_INFO!I9>0,COUNTRY_INFO!I9<4), IF(M9/J9*100<>0, IF(M9/J9*100>100,100,M9/J9*100), "-"),0) -> 0 | P9: =COUNTRY_INFO!N9 -> 0 | S9: =SUM(MAX('MDA2'!J9,'MDA5'!J9, 'T1'!L9, MAX(T3_R1!K9, T3_R2!K9)), MAX('MDA1'!K9, 'MDA2'!K9, 'MDA5'!K9,'T1'!M9, MAX(T3_R1!L9, T3_R2!L9)), MAX('MDA1'!L9, 'MDA2'!L9, 'MDA5'!L9,'T1'!N9, MAX(T3_R1!M9, T3_R2!M9))) -> 434862 | T9: =IF(AND(COUNTRY_INFO!J9>1,COUNTRY_INFO!J9<4),IF(COUNTRY_INFO!E9>MAX('MDA2'!J9,'MDA5'!J9,'T1'!L9,MAX(T3_R1!K9,T3_R2!K9)),MAX('MDA2'!J9,'MDA5'!J9,'T1'!L9,MAX(T3_R1!K9,T3_R2!K9)),COUNTRY_INFO!E9),0) -> 0 | U9: =IF(AND(COUNTRY_INFO!J9>1,COUNTRY_INFO!J9<4), IF(T9/COUNTRY_INFO!E9*100<>0, IF(T9/COUNTRY_INFO!E9*100>100,100,T9/COUNTRY_INFO!E9*100), "-"),0) -> 0 | V9: =IF(AND(COUNTRY_INFO!J9>1,COUNTRY_INFO!J9<4),IF(COUNTRY_INFO!F9>MAX('MDA1'!K9,'MDA2'!K9,'MDA5'!K9,'T1'!M9,MAX(T3_R1!L9,T3_R2!L9)),MAX('MDA1'!K9,'MDA2'!K9,'MDA5'!K9,'T1'!M9,MAX(T3_R1!L9,T3_R2!L9)),COUNTRY_INFO!F9),0) -> 0 | W9: =IF(AND(COUNTRY_INFO!J9>1,COUNTRY_INFO!J9<4), IF(V9/COUNTRY_INFO!F9*100<>0, IF(V9/COUNTRY_INFO!F9*100>100,100,V9/COUNTRY_INFO!F9*100), "-"),0) -> 0 | X9: =SUM(T9,V9) -> 0 | Y9: =IF(AND(COUNTRY_INFO!J9>1,COUNTRY_INFO!J9<4), IF(S9/P9*100<>0, IF(X9/P9*100>100,100,X9/P9*100), "-"),0) -> 0 | Z9: =COUNTRY_INFO!O9 -> 69225 | AC9: =MAX('T1'!L9,'T2'!J9)+MAX('T1'!M9,'T2'!K9)+MAX('T1'!N9,'T2'!L9) -> 162629 | AD9: =IF(COUNTRY_INFO!K9=1,IF(COUNTRY_INFO!F9*0.33>MAX('T1'!M9,'T2'!K9),MAX('T1'!M9,'T2'!K9),COUNTRY_INFO!F9*0.33),IF(COUNTRY_INFO!K9=2,IF(COUNTRY_INFO!F9*0.5>MAX('T1'!M9,'T2'!K9),MAX('T1'!M9,'T2'!K9),COUNTRY_INFO!F9*0.5),IF(COUNTRY_INFO!K9=3,IF(COUNTRY_INFO!F9>MAX('T1'!M9,'T2'!K9),MAX('T1'!M9,'T2'!K9),COUNTRY_INFO!F9),0))) -> 55601 | AE9: =IF(AND(COUNTRY_INFO!K9>0,COUNTRY_INFO!K9<4),IF(Z9>0,IF(COUNTRY_INFO!K9=1, AD9/(COUNTRY_INFO!F9*0.33)*100, IF(COUNTRY_INFO!K9=2, AD9/(COUNTRY_INFO!F9*0.5)*100, IF(COUNTRY_INFO!K9=3, AD9/COUNTRY_INFO!F9*100))),"-"),0) -> 86.17754643 | AF9: =IF(COUNTRY_INFO!K9=2,IF(COUNTRY_INFO!G9*0.2>MAX('T1'!N9,'T2'!L9),MAX('T1'!N9,'T2'!L9),COUNTRY_INFO!G9*0.2),IF(COUNTRY_INFO!K9=3,IF(COUNTRY_INFO!G9>MAX('T1'!N9,'T2'!L9),MAX('T1'!N9,'T2'!L9),COUNTRY_INFO!G9),0)) -> 50247.40435 | AG9: =IF(AND(COUNTRY_INFO!K9>0,COUNTRY_INFO!K9<4),IF(Z9>0,IF(COUNTRY_INFO!K9=1, 0, IF(COUNTRY_INFO!K9=2, AF9/(COUNTRY_INFO!G9*0.2)*100, IF(COUNTRY_INFO!K9=3, AF9/COUNTRY_INFO!G9*100))),"-"),0) -> 100 | AH9: =SUM(AD9,AF9) -> 105848.4044 | AI9: =IF(AND(COUNTRY_INFO!K9>0,COUNTRY_INFO!K9<4), IF(AC9/Z9*100<>0, IF(AH9/Z9*100>100,100,AH9/Z9*100), "-"),0) -> 100 | AK9: =IF(AND(D9<>0, D9<>"Unknown",D9<>"Stopped",D9<>"Not required"),D9/COUNTRY_INFO!D9, 0) -> 0 | AL9: =IF(AND(J9<>0,J9<>"Unknown",J9<>"Stopped",J9<>"Not required"),J9/COUNTRY_INFO!D9, 0) -> 0 | AM9: =IF(AND(P9<>0,P9<>"Unknown",P9<>"Not required"),P9/(COUNTRY_INFO!E9+COUNTRY_INFO!F9), 0) -> 0 | AN9: =IF(AND(Z9<>0,Z9<>"Unknown",Z9<>"Not required"),IF(COUNTRY_INFO!K9=1,1,IF(COUNTRY_INFO!K9=2,0.5*COUNTRY_INFO!F9/(0.5*COUNTRY_INFO!F9+0.2*COUNTRY_INFO!G9),IF(COUNTRY_INFO!K9=3,COUNTRY_INFO!F9/(COUNTRY_INFO!F9+COUNTRY_INFO!G9)))),0) -> 0.5621771951 | AO9: =IF(AND(Z9<>0,Z9<>"Unknown",Z9<>"Not required"),IF(COUNTRY_INFO!K9=1,0,IF(COUNTRY_INFO!K9=2,0.2*COUNTRY_INFO!G9/(0.5*COUNTRY_INFO!F9+0.2*COUNTRY_INFO!G9),IF(COUNTRY_INFO!K9=3,COUNTRY_INFO!G9/(COUNTRY_INFO!F9+COUNTRY_INFO!G9)))),0) -> 0.4378228049 | AP9: =MAX(COUNTRY_INFO!D9*AK9*PROFILE!$G$7,COUNTRY_INFO!D9*AL9*PROFILE!$G$7) -> 0 | AQ9: =MAX(COUNTRY_INFO!D9*AK9*PROFILE!$G$8,COUNTRY_INFO!D9*AL9*PROFILE!$G$8,COUNTRY_INFO!D9*AM9*PROFILE!$G$8) -> 0 | AR9: =MAX(COUNTRY_INFO!D9*AK9*PROFILE!$G$9,COUNTRY_INFO!D9*AL9*PROFILE!$G$9,COUNTRY_INFO!D9*AM9*PROFILE!$G$9,IF(AND(DISTRICT!Z9<>"Unknown",Z9<>"Not required"),COUNTRY_INFO!O9*DISTRICT!AN9,0)) -> 38916.71633 | AS9: =MAX(COUNTRY_INFO!D9*AK9*PROFILE!$G$10,COUNTRY_INFO!D9*AL9*PROFILE!$G$10,IF(AND(DISTRICT!Z9<>"Unknown",Z9<>"Not required"),COUNTRY_INFO!O9*DISTRICT!AO9,0)) -> 30308.28367 | AT9: =SUM(AP9:AS9) -> 69225 | AU9: =IF(COUNTIFS(AK9:AN9,">0")=0,0, IF(COUNTIFS(AK9:AN9,">0")<=IF(AND(OR(D9>=0,D9="Not required",D9="Unknown",D9="Stopped"),D9>0,H9>0),1,0)+IF(AND(OR(J9>=0,J9="Not required",J9="Unknown",J9="Stopped"),J9>0,N9>0),1,0)+IF(AND(OR(P9>=0,P9="Not required",P9="Unknown"),P9>0,X9>0),1,0)+IF(AND(OR(Z9>=0,Z9="Not required",Z9="Unknown"),Z9>0,AH9>0),1,0),"Y",0)) -> Y | AV9: =MAX('MDA2'!J9,'MDA5'!J9,'T1'!L9,'T2'!J9,T3_R1!K9,T3_R2!K9) -> 53073 | AW9: =MAX('MDA1'!K9,'MDA2'!K9,'MDA3'!I9,'MDA3'!L9,'MDA5'!K9,'T1'!M9,'T2'!K9,T3_R1!L9,T3_R2!L9) -> 144904 | AX9: =MAX('MDA1'!L9,'MDA2'!L9,'MDA3'!J9,'MDA3'!M9,'MDA5'!L9,'T1'!N9,'T2'!L9,T3_R1!M9,T3_R2!M9) -> 236885 | AY9: =SUM(AV9:AX9) -> 434862 | AZ9: =MAX('MDA2'!J9,'MDA5'!J9,T9) -> 0 | BA9: =MAX('MDA1'!K9,'MDA2'!K9,'MDA3'!I9,'MDA3'!L9,'MDA5'!K9,V9,AD9) -> 55601 | BB9: =MAX('MDA1'!L9,'MDA2'!L9,'MDA3'!J9,'MDA3'!M9,'MDA5'!L9,AF9) -> 50247.40435 | BC9: =IF(AT9<SUM(AZ9:BB9), AT9,SUM(AZ9:BB9)) -> 69225 | BD9: =IF(AT9<>0,BC9/AT9*100,0) -> 100
A10: =IF(COUNTRY_INFO!A10=0," ",COUNTRY_INFO!A10) -> Rwanda | B10: =IF(COUNTRY_INFO!B10=0," ",COUNTRY_INFO!B10) -> Northern | C10: =IF(COUNTRY_INFO!C10=0," ",COUNTRY_INFO!C10) -> Burera | D10: =COUNTRY_INFO!L10 -> 0 | G10: =MAX('MDA1'!M10,'MDA2'!M10,'MDA5'!M10) -> 0 | H10: =IF(AND(COUNTRY_INFO!H10>0,COUNTRY_INFO!H10<4),IF(D10>MAX('MDA1'!M10,'MDA2'!M10,'MDA5'!M10),MAX('MDA1'!M10,'MDA2'!M10,'MDA5'!M10),D10),0) -> 0 | I10: =IF(AND(COUNTRY_INFO!H10>0,COUNTRY_INFO!H10<4), IF(G10/D10*100<>0, IF(G10/D10*100>100,100,G10/D10*100), "-"),0) -> 0 | J10: =COUNTRY_INFO!M10 -> 0 | M10: =MAX('MDA1'!M10,MAX('MDA3'!I10,'MDA3'!L10)+MAX('MDA3'!J10,'MDA3'!M10)) -> 0 | N10: =IF(AND(COUNTRY_INFO!I10>0,COUNTRY_INFO!I10<4),IF(J10>MAX('MDA1'!M10,MAX('MDA3'!I10,'MDA3'!L10)+MAX('MDA3'!J10,'MDA3'!M10)),MAX('MDA1'!M10,MAX('MDA3'!I10,'MDA3'!L10)+MAX('MDA3'!J10,'MDA3'!M10)),J10),0) -> 0 | O10: =IF(AND(COUNTRY_INFO!I10>0,COUNTRY_INFO!I10<4), IF(M10/J10*100<>0, IF(M10/J10*100>100,100,M10/J10*100), "-"),0) -> 0 | P10: =COUNTRY_INFO!N10 -> 183613.8777 | S10: =SUM(MAX('MDA2'!J10,'MDA5'!J10, 'T1'!L10, MAX(T3_R1!K10, T3_R2!K10)), MAX('MDA1'!K10, 'MDA2'!K10, 'MDA5'!K10,'T1'!M10, MAX(T3_R1!L10, T3_R2!L10)), MAX('MDA1'!L10, 'MDA2'!L10, 'MDA5'!L10,'T1'!N10, MAX(T3_R1!M10, T3_R2!M10))) -> 341681 | T10: =IF(AND(COUNTRY_INFO!J10>1,COUNTRY_INFO!J10<4),IF(COUNTRY_INFO!E10>MAX('MDA2'!J10,'MDA5'!J10,'T1'!L10,MAX(T3_R1!K10,T3_R2!K10)),MAX('MDA2'!J10,'MDA5'!J10,'T1'!L10,MAX(T3_R1!K10,T3_R2!K10)),COUNTRY_INFO!E10),0) -> 45797.45678 | U10: =IF(AND(COUNTRY_INFO!J10>1,COUNTRY_INFO!J10<4), IF(T10/COUNTRY_INFO!E10*100<>0, IF(T10/COUNTRY_INFO!E10*100>100,100,T10/COUNTRY_INFO!E10*100), "-"),0) -> 100 | V10: =IF(AND(COUNTRY_INFO!J10>1,COUNTRY_INFO!J10<4),IF(COUNTRY_INFO!F10>MAX('MDA1'!K10,'MDA2'!K10,'MDA5'!K10,'T1'!M10,MAX(T3_R1!L10,T3_R2!L10)),MAX('MDA1'!K10,'MDA2'!K10,'MDA5'!K10,'T1'!M10,MAX(T3_R1!L10,T3_R2!L10)),COUNTRY_INFO!F10),0) -> 116984 | W10: =IF(AND(COUNTRY_INFO!J10>1,COUNTRY_INFO!J10<4), IF(V10/COUNTRY_INFO!F10*100<>0, IF(V10/COUNTRY_INFO!F10*100>100,100,V10/COUNTRY_INFO!F10*100), "-"),0) -> 84.88393419 | X10: =SUM(T10,V10) -> 162781.4568 | Y10: =IF(AND(COUNTRY_INFO!J10>1,COUNTRY_INFO!J10<4), IF(S10/P10*100<>0, IF(X10/P10*100>100,100,X10/P10*100), "-"),0) -> 88.65422312 | Z10: =COUNTRY_INFO!O10 -> 87749 | AC10: =MAX('T1'!L10,'T2'!J10)+MAX('T1'!M10,'T2'!K10)+MAX('T1'!N10,'T2'!L10) -> 206687 | AD10: =IF(COUNTRY_INFO!K10=1,IF(COUNTRY_INFO!F10*0.33>MAX('T1'!M10,'T2'!K10),MAX('T1'!M10,'T2'!K10),COUNTRY_INFO!F10*0.33),IF(COUNTRY_INFO!K10=2,IF(COUNTRY_INFO!F10*0.5>MAX('T1'!M10,'T2'!K10),MAX('T1'!M10,'T2'!K10),COUNTRY_INFO!F10*0.5),IF(COUNTRY_INFO!K10=3,IF(COUNTRY_INFO!F10>MAX('T1'!M10,'T2'!K10),MAX('T1'!M10,'T2'!K10),COUNTRY_INFO!F10),0))) -> 68908.21044 | AE10: =IF(AND(COUNTRY_INFO!K10>0,COUNTRY_INFO!K10<4),IF(Z10>0,IF(COUNTRY_INFO!K10=1, AD10/(COUNTRY_INFO!F10*0.33)*100, IF(COUNTRY_INFO!K10=2, AD10/(COUNTRY_INFO!F10*0.5)*100, IF(COUNTRY_INFO!K10=3, AD10/COUNTRY_INFO!F10*100))),"-"),0) -> 100 | AF10: =IF(COUNTRY_INFO!K10=2,IF(COUNTRY_INFO!G10*0.2>MAX('T1'!N10,'T2'!L10),MAX('T1'!N10,'T2'!L10),COUNTRY_INFO!G10*0.2),IF(COUNTRY_INFO!K10=3,IF(COUNTRY_INFO!G10>MAX('T1'!N10,'T2'!L10),MAX('T1'!N10,'T2'!L10),COUNTRY_INFO!G10),0)) -> 45712.64668 | AG10: =IF(AND(COUNTRY_INFO!K10>0,COUNTRY_INFO!K10<4),IF(Z10>0,IF(COUNTRY_INFO!K10=1, 0, IF(COUNTRY_INFO!K10=2, AF10/(COUNTRY_INFO!G10*0.2)*100, IF(COUNTRY_INFO!K10=3, AF10/COUNTRY_INFO!G10*100))),"-"),0) -> 100 | AH10: =SUM(AD10,AF10) -> 114620.8571 | AI10: =IF(AND(COUNTRY_INFO!K10>0,COUNTRY_INFO!K10<4), IF(AC10/Z10*100<>0, IF(AH10/Z10*100>100,100,AH10/Z10*100), "-"),0) -> 100 | AK10: =IF(AND(D10<>0, D10<>"Unknown",D10<>"Stopped",D10<>"Not required"),D10/COUNTRY_INFO!D10, 0) -> 0 | AL10: =IF(AND(J10<>0,J10<>"Unknown",J10<>"Stopped",J10<>"Not required"),J10/COUNTRY_INFO!D10, 0) -> 0 | AM10: =IF(AND(P10<>0,P10<>"Unknown",P10<>"Not required"),P10/(COUNTRY_INFO!E10+COUNTRY_INFO!F10), 0) -> 1 | AN10: =IF(AND(Z10<>0,Z10<>"Unknown",Z10<>"Not required"),IF(COUNTRY_INFO!K10=1,1,IF(COUNTRY_INFO!K10=2,0.5*COUNTRY_INFO!F10/(0.5*COUNTRY_INFO!F10+0.2*COUNTRY_INFO!G10),IF(COUNTRY_INFO!K10=3,COUNTRY_INFO!F10/(COUNTRY_INFO!F10+COUNTRY_INFO!G10)))),0) -> 0.6011838698 | AO10: =IF(AND(Z10<>0,Z10<>"Unknown",Z10<>"Not required"),IF(COUNTRY_INFO!K10=1,0,IF(COUNTRY_INFO!K10=2,0.2*COUNTRY_INFO!G10/(0.5*COUNTRY_INFO!F10+0.2*COUNTRY_INFO!G10),IF(COUNTRY_INFO!K10=3,COUNTRY_INFO!G10/(COUNTRY_INFO!F10+COUNTRY_INFO!G10)))),0) -> 0.3988161302 | AP10: =MAX(COUNTRY_INFO!D10*AK10*PROFILE!$G$7,COUNTRY_INFO!D10*AL10*PROFILE!$G$7) -> 0 | AQ10: =MAX(COUNTRY_INFO!D10*AK10*PROFILE!$G$8,COUNTRY_INFO!D10*AL10*PROFILE!$G$8,COUNTRY_INFO!D10*AM10*PROFILE!$G$8) -> 50060.08226 | AR10: =MAX(COUNTRY_INFO!D10*AK10*PROFILE!$G$9,COUNTRY_INFO!D10*AL10*PROFILE!$G$9,COUNTRY_INFO!D10*AM10*PROFILE!$G$9,IF(AND(DISTRICT!Z10<>"Unknown",Z10<>"Not required"),COUNTRY_INFO!O10*DISTRICT!AN10,0)) -> 120708.2923 | AS10: =MAX(COUNTRY_INFO!D10*AK10*PROFILE!$G$10,COUNTRY_INFO!D10*AL10*PROFILE!$G$10,IF(AND(DISTRICT!Z10<>"Unknown",Z10<>"Not required"),COUNTRY_INFO!O10*DISTRICT!AO10,0)) -> 34995.71661 | AT10: =SUM(AP10:AS10) -> 205764.0912 | AU10: =IF(COUNTIFS(AK10:AN10,">0")=0,0, IF(COUNTIFS(AK10:AN10,">0")<=IF(AND(OR(D10>=0,D10="Not required",D10="Unknown",D10="Stopped"),D10>0,H10>0),1,0)+IF(AND(OR(J10>=0,J10="Not required",J10="Unknown",J10="Stopped"),J10>0,N10>0),1,0)+IF(AND(OR(P10>=0,P10="Not required",P10="Unknown"),P10>0,X10>0),1,0)+IF(AND(OR(Z10>=0,Z10="Not required",Z10="Unknown"),Z10>0,AH10>0),1,0),"Y",0)) -> Y | AV10: =MAX('MDA2'!J10,'MDA5'!J10,'T1'!L10,'T2'!J10,T3_R1!K10,T3_R2!K10) -> 49984 | AW10: =MAX('MDA1'!K10,'MDA2'!K10,'MDA3'!I10,'MDA3'!L10,'MDA5'!K10,'T1'!M10,'T2'!K10,T3_R1!L10,T3_R2!L10) -> 116984 | AX10: =MAX('MDA1'!L10,'MDA2'!L10,'MDA3'!J10,'MDA3'!M10,'MDA5'!L10,'T1'!N10,'T2'!L10,T3_R1!M10,T3_R2!M10) -> 174713 | AY10: =SUM(AV10:AX10) -> 341681 | AZ10: =MAX('MDA2'!J10,'MDA5'!J10,T10) -> 45797.45678 | BA10: =MAX('MDA1'!K10,'MDA2'!K10,'MDA3'!I10,'MDA3'!L10,'MDA5'!K10,V10,AD10) -> 116984 | BB10: =MAX('MDA1'!L10,'MDA2'!L10,'MDA3'!J10,'MDA3'!M10,'MDA5'!L10,AF10) -> 45712.64668 | BC10: =IF(AT10<SUM(AZ10:BB10), AT10,SUM(AZ10:BB10)) -> 205764.0912 | BD10: =IF(AT10<>0,BC10/AT10*100,0) -> 100
A11: =IF(COUNTRY_INFO!A11=0," ",COUNTRY_INFO!A11) -> Rwanda | B11: =IF(COUNTRY_INFO!B11=0," ",COUNTRY_INFO!B11) -> Northern | C11: =IF(COUNTRY_INFO!C11=0," ",COUNTRY_INFO!C11) -> Gakenke | D11: =COUNTRY_INFO!L11 -> 0 | G11: =MAX('MDA1'!M11,'MDA2'!M11,'MDA5'!M11) -> 0 | H11: =IF(AND(COUNTRY_INFO!H11>0,COUNTRY_INFO!H11<4),IF(D11>MAX('MDA1'!M11,'MDA2'!M11,'MDA5'!M11),MAX('MDA1'!M11,'MDA2'!M11,'MDA5'!M11),D11),0) -> 0 | I11: =IF(AND(COUNTRY_INFO!H11>0,COUNTRY_INFO!H11<4), IF(G11/D11*100<>0, IF(G11/D11*100>100,100,G11/D11*100), "-"),0) -> 0 | J11: =COUNTRY_INFO!M11 -> 0 | M11: =MAX('MDA1'!M11,MAX('MDA3'!I11,'MDA3'!L11)+MAX('MDA3'!J11,'MDA3'!M11)) -> 0 | N11: =IF(AND(COUNTRY_INFO!I11>0,COUNTRY_INFO!I11<4),IF(J11>MAX('MDA1'!M11,MAX('MDA3'!I11,'MDA3'!L11)+MAX('MDA3'!J11,'MDA3'!M11)),MAX('MDA1'!M11,MAX('MDA3'!I11,'MDA3'!L11)+MAX('MDA3'!J11,'MDA3'!M11)),J11),0) -> 0 | O11: =IF(AND(COUNTRY_INFO!I11>0,COUNTRY_INFO!I11<4), IF(M11/J11*100<>0, IF(M11/J11*100>100,100,M11/J11*100), "-"),0) -> 0 | P11: =COUNTRY_INFO!N11 -> 178766.2636 | S11: =SUM(MAX('MDA2'!J11,'MDA5'!J11, 'T1'!L11, MAX(T3_R1!K11, T3_R2!K11)), MAX('MDA1'!K11, 'MDA2'!K11, 'MDA5'!K11,'T1'!M11, MAX(T3_R1!L11, T3_R2!L11)), MAX('MDA1'!L11, 'MDA2'!L11, 'MDA5'!L11,'T1'!N11, MAX(T3_R1!M11, T3_R2!M11))) -> 384480 | T11: =IF(AND(COUNTRY_INFO!J11>1,COUNTRY_INFO!J11<4),IF(COUNTRY_INFO!E11>MAX('MDA2'!J11,'MDA5'!J11,'T1'!L11,MAX(T3_R1!K11,T3_R2!K11)),MAX('MDA2'!J11,'MDA5'!J11,'T1'!L11,MAX(T3_R1!K11,T3_R2!K11)),COUNTRY_INFO!E11),0) -> 43676 | U11: =IF(AND(COUNTRY_INFO!J11>1,COUNTRY_INFO!J11<4), IF(T11/COUNTRY_INFO!E11*100<>0, IF(T11/COUNTRY_INFO!E11*100>100,100,T11/COUNTRY_INFO!E11*100), "-"),0) -> 92.84123114 | V11: =IF(AND(COUNTRY_INFO!J11>1,COUNTRY_INFO!J11<4),IF(COUNTRY_INFO!F11>MAX('MDA1'!K11,'MDA2'!K11,'MDA5'!K11,'T1'!M11,MAX(T3_R1!L11,T3_R2!L11)),MAX('MDA1'!K11,'MDA2'!K11,'MDA5'!K11,'T1'!M11,MAX(T3_R1!L11,T3_R2!L11)),COUNTRY_INFO!F11),0) -> 100548 | W11: =IF(AND(COUNTRY_INFO!J11>1,COUNTRY_INFO!J11<4), IF(V11/COUNTRY_INFO!F11*100<>0, IF(V11/COUNTRY_INFO!F11*100>100,100,V11/COUNTRY_INFO!F11*100), "-"),0) -> 76.33319466 | X11: 144224 | Y11: =IF(AND(COUNTRY_INFO!J11>1,COUNTRY_INFO!J11<4), IF(S11/P11*100<>0, IF(X11/P11*100>100,100,X11/P11*100), "-"),0) -> 80.67741479 | Z11: =COUNTRY_INFO!O11 -> 48990 | AC11: =MAX('T1'!L11,'T2'!J11)+MAX('T1'!M11,'T2'!K11)+MAX('T1'!N11,'T2'!L11) -> 107537 | AD11: =IF(COUNTRY_INFO!K11=1,IF(COUNTRY_INFO!F11*0.33>MAX('T1'!M11,'T2'!K11),MAX('T1'!M11,'T2'!K11),COUNTRY_INFO!F11*0.33),IF(COUNTRY_INFO!K11=2,IF(COUNTRY_INFO!F11*0.5>MAX('T1'!M11,'T2'!K11),MAX('T1'!M11,'T2'!K11),COUNTRY_INFO!F11*0.5),IF(COUNTRY_INFO!K11=3,IF(COUNTRY_INFO!F11>MAX('T1'!M11,'T2'!K11),MAX('T1'!M11,'T2'!K11),COUNTRY_INFO!F11),0))) -> 36283 | AE11: =IF(AND(COUNTRY_INFO!K11>0,COUNTRY_INFO!K11<4),IF(Z11>0,IF(COUNTRY_INFO!K11=1, AD11/(COUNTRY_INFO!F11*0.33)*100, IF(COUNTRY_INFO!K11=2, AD11/(COUNTRY_INFO!F11*0.5)*100, IF(COUNTRY_INFO!K11=3, AD11/COUNTRY_INFO!F11*100))),"-"),0) -> 55.09005255 | AF11: =IF(COUNTRY_INFO!K11=2,IF(COUNTRY_INFO!G11*0.2>MAX('T1'!N11,'T2'!L11),MAX('T1'!N11,'T2'!L11),COUNTRY_INFO!G11*0.2),IF(COUNTRY_INFO!K11=3,IF(COUNTRY_INFO!G11>MAX('T1'!N11,'T2'!L11),MAX('T1'!N11,'T2'!L11),COUNTRY_INFO!G11),0)) -> 51613.71822 | AG11: =IF(AND(COUNTRY_INFO!K11>0,COUNTRY_INFO!K11<4),IF(Z11>0,IF(COUNTRY_INFO!K11=1, 0, IF(COUNTRY_INFO!K11=2, AF11/(COUNTRY_INFO!G11*0.2)*100, IF(COUNTRY_INFO!K11=3, AF11/COUNTRY_INFO!G11*100))),"-"),0) -> 100 | AH11: 87896.71822 | AI11: =IF(AND(COUNTRY_INFO!K11>0,COUNTRY_INFO!K11<4), IF(AC11/Z11*100<>0, IF(AH11/Z11*100>100,100,AH11/Z11*100), "-"),0) -> 100 | AK11: =IF(AND(D11<>0, D11<>"Unknown",D11<>"Stopped",D11<>"Not required"),D11/COUNTRY_INFO!D11, 0) -> 0 | AL11: =IF(AND(J11<>0,J11<>"Unknown",J11<>"Stopped",J11<>"Not required"),J11/COUNTRY_INFO!D11, 0) -> 0 | AM11: =IF(AND(P11<>0,P11<>"Unknown",P11<>"Not required"),P11/(COUNTRY_INFO!E11+COUNTRY_INFO!F11), 0) -> 1 | AN11: =IF(AND(Z11<>0,Z11<>"Unknown",Z11<>"Not required"),IF(COUNTRY_INFO!K11=1,1,IF(COUNTRY_INFO!K11=2,0.5*COUNTRY_INFO!F11/(0.5*COUNTRY_INFO!F11+0.2*COUNTRY_INFO!G11),IF(COUNTRY_INFO!K11=3,COUNTRY_INFO!F11/(COUNTRY_INFO!F11+COUNTRY_INFO!G11)))),0) -> 0.5606407323 | AO11: =IF(AND(Z11<>0,Z11<>"Unknown",Z11<>"Not required"),IF(COUNTRY_INFO!K11=1,0,IF(COUNTRY_INFO!K11=2,0.2*COUNTRY_INFO!G11/(0.5*COUNTRY_INFO!F11+0.2*COUNTRY_INFO!G11),IF(COUNTRY_INFO!K11=3,COUNTRY_INFO!G11/(COUNTRY_INFO!F11+COUNTRY_INFO!G11)))),0) -> 0.4393592677 | AP11: =MAX(COUNTRY_INFO!D11*AK11*PROFILE!$G$7,COUNTRY_INFO!D11*AL11*PROFILE!$G$7) -> 0 | AQ11: =MAX(COUNTRY_INFO!D11*AK11*PROFILE!$G$8,COUNTRY_INFO!D11*AL11*PROFILE!$G$8,COUNTRY_INFO!D11*AM11*PROFILE!$G$8) -> 52891.5897 | AR11: =MAX(COUNTRY_INFO!D11*AK11*PROFILE!$G$9,COUNTRY_INFO!D11*AL11*PROFILE!$G$9,COUNTRY_INFO!D11*AM11*PROFILE!$G$9,IF(AND(DISTRICT!Z11<>"Unknown",Z11<>"Not required"),COUNTRY_INFO!O11*DISTRICT!AN11,0)) -> 127535.8166 | AS11: =MAX(COUNTRY_INFO!D11*AK11*PROFILE!$G$10,COUNTRY_INFO!D11*AL11*PROFILE!$G$10,IF(AND(DISTRICT!Z11<>"Unknown",Z11<>"Not required"),COUNTRY_INFO!O11*DISTRICT!AO11,0)) -> 21524.21053 | AT11: 201951.6168 | AU11: Y | AV11: =MAX('MDA2'!J11,'MDA5'!J11,'T1'!L11,'T2'!J11,T3_R1!K11,T3_R2!K11) -> 43676 | AW11: =MAX('MDA1'!K11,'MDA2'!K11,'MDA3'!I11,'MDA3'!L11,'MDA5'!K11,'T1'!M11,'T2'!K11,T3_R1!L11,T3_R2!L11) -> 100548 | AX11: =MAX('MDA1'!L11,'MDA2'!L11,'MDA3'!J11,'MDA3'!M11,'MDA5'!L11,'T1'!N11,'T2'!L11,T3_R1!M11,T3_R2!M11) -> 240256 | AY11: 384480 | AZ11: =MAX('MDA2'!J11,'MDA5'!J11,T11) -> 43676 | BA11: =MAX('MDA1'!K11,'MDA2'!K11,'MDA3'!I11,'MDA3'!L11,'MDA5'!K11,V11,AD11) -> 100548 | BB11: =MAX('MDA1'!L11,'MDA2'!L11,'MDA3'!J11,'MDA3'!M11,'MDA5'!L11,AF11) -> 51613.71822 | BC11: 195837.7182 | BD11: 96.9725924
A12: =IF(COUNTRY_INFO!A12=0," ",COUNTRY_INFO!A12) -> Rwanda | B12: =IF(COUNTRY_INFO!B12=0," ",COUNTRY_INFO!B12) -> Kigali | C12: =IF(COUNTRY_INFO!C12=0," ",COUNTRY_INFO!C12) -> Gasabo | D12: =COUNTRY_INFO!L12 -> 0 | G12: =MAX('MDA1'!M12,'MDA2'!M12,'MDA5'!M12) -> 0 | H12: =IF(AND(COUNTRY_INFO!H12>0,COUNTRY_INFO!H12<4),IF(D12>MAX('MDA1'!M12,'MDA2'!M12,'MDA5'!M12),MAX('MDA1'!M12,'MDA2'!M12,'MDA5'!M12),D12),0) -> 0 | I12: =IF(AND(COUNTRY_INFO!H12>0,COUNTRY_INFO!H12<4), IF(G12/D12*100<>0, IF(G12/D12*100>100,100,G12/D12*100), "-"),0) -> 0 | J12: =COUNTRY_INFO!M12 -> 0 | M12: =MAX('MDA1'!M12,MAX('MDA3'!I12,'MDA3'!L12)+MAX('MDA3'!J12,'MDA3'!M12)) -> 0 | N12: =IF(AND(COUNTRY_INFO!I12>0,COUNTRY_INFO!I12<4),IF(J12>MAX('MDA1'!M12,MAX('MDA3'!I12,'MDA3'!L12)+MAX('MDA3'!J12,'MDA3'!M12)),MAX('MDA1'!M12,MAX('MDA3'!I12,'MDA3'!L12)+MAX('MDA3'!J12,'MDA3'!M12)),J12),0) -> 0 | O12: =IF(AND(COUNTRY_INFO!I12>0,COUNTRY_INFO!I12<4), IF(M12/J12*100<>0, IF(M12/J12*100>100,100,M12/J12*100), "-"),0) -> 0 | P12: =COUNTRY_INFO!N12 -> 220836.1431 | S12: =SUM(MAX('MDA2'!J12,'MDA5'!J12, 'T1'!L12, MAX(T3_R1!K12, T3_R2!K12)), MAX('MDA1'!K12, 'MDA2'!K12, 'MDA5'!K12,'T1'!M12, MAX(T3_R1!L12, T3_R2!L12)), MAX('MDA1'!L12, 'MDA2'!L12, 'MDA5'!L12,'T1'!N12, MAX(T3_R1!M12, T3_R2!M12))) -> 379239 | T12: =IF(AND(COUNTRY_INFO!J12>1,COUNTRY_INFO!J12<4),IF(COUNTRY_INFO!E12>MAX('MDA2'!J12,'MDA5'!J12,'T1'!L12,MAX(T3_R1!K12,T3_R2!K12)),MAX('MDA2'!J12,'MDA5'!J12,'T1'!L12,MAX(T3_R1!K12,T3_R2!K12)),COUNTRY_INFO!E12),0) -> 75391.19085 | U12: =IF(AND(COUNTRY_INFO!J12>1,COUNTRY_INFO!J12<4), IF(T12/COUNTRY_INFO!E12*100<>0, IF(T12/COUNTRY_INFO!E12*100>100,100,T12/COUNTRY_INFO!E12*100), "-"),0) -> 100 | V12: =IF(AND(COUNTRY_INFO!J12>1,COUNTRY_INFO!J12<4),IF(COUNTRY_INFO!F12>MAX('MDA1'!K12,'MDA2'!K12,'MDA5'!K12,'T1'!M12,MAX(T3_R1!L12,T3_R2!L12)),MAX('MDA1'!K12,'MDA2'!K12,'MDA5'!K12,'T1'!M12,MAX(T3_R1!L12,T3_R2!L12)),COUNTRY_INFO!F12),0) -> 145444.9523 | W12: =IF(AND(COUNTRY_INFO!J12>1,COUNTRY_INFO!J12<4), IF(V12/COUNTRY_INFO!F12*100<>0, IF(V12/COUNTRY_INFO!F12*100>100,100,V12/COUNTRY_INFO!F12*100), "-"),0) -> 100 | X12: 220836.1431 | Y12: =IF(AND(COUNTRY_INFO!J12>1,COUNTRY_INFO!J12<4), IF(S12/P12*100<>0, IF(X12/P12*100>100,100,X12/P12*100), "-"),0) -> 100 | Z12: =COUNTRY_INFO!O12 -> 47979 | AC12: =MAX('T1'!L12,'T2'!J12)+MAX('T1'!M12,'T2'!K12)+MAX('T1'!N12,'T2'!L12) -> 0 | AD12: =IF(COUNTRY_INFO!K12=1,IF(COUNTRY_INFO!F12*0.33>MAX('T1'!M12,'T2'!K12),MAX('T1'!M12,'T2'!K12),COUNTRY_INFO!F12*0.33),IF(COUNTRY_INFO!K12=2,IF(COUNTRY_INFO!F12*0.5>MAX('T1'!M12,'T2'!K12),MAX('T1'!M12,'T2'!K12),COUNTRY_INFO!F12*0.5),IF(COUNTRY_INFO!K12=3,IF(COUNTRY_INFO!F12>MAX('T1'!M12,'T2'!K12),MAX('T1'!M12,'T2'!K12),COUNTRY_INFO!F12),0))) -> 0 | AE12: =IF(AND(COUNTRY_INFO!K12>0,COUNTRY_INFO!K12<4),IF(Z12>0,IF(COUNTRY_INFO!K12=1, AD12/(COUNTRY_INFO!F12*0.33)*100, IF(COUNTRY_INFO!K12=2, AD12/(COUNTRY_INFO!F12*0.5)*100, IF(COUNTRY_INFO!K12=3, AD12/COUNTRY_INFO!F12*100))),"-"),0) -> 0 | AF12: =IF(COUNTRY_INFO!K12=2,IF(COUNTRY_INFO!G12*0.2>MAX('T1'!N12,'T2'!L12),MAX('T1'!N12,'T2'!L12),COUNTRY_INFO!G12*0.2),IF(COUNTRY_INFO!K12=3,IF(COUNTRY_INFO!G12>MAX('T1'!N12,'T2'!L12),MAX('T1'!N12,'T2'!L12),COUNTRY_INFO!G12),0)) -> 0 | AG12: =IF(AND(COUNTRY_INFO!K12>0,COUNTRY_INFO!K12<4),IF(Z12>0,IF(COUNTRY_INFO!K12=1, 0, IF(COUNTRY_INFO!K12=2, AF12/(COUNTRY_INFO!G12*0.2)*100, IF(COUNTRY_INFO!K12=3, AF12/COUNTRY_INFO!G12*100))),"-"),0) -> 0 | AH12: 0 | AI12: =IF(AND(COUNTRY_INFO!K12>0,COUNTRY_INFO!K12<4), IF(AC12/Z12*100<>0, IF(AH12/Z12*100>100,100,AH12/Z12*100), "-"),0) -> - | AK12: =IF(AND(D12<>0, D12<>"Unknown",D12<>"Stopped",D12<>"Not required"),D12/COUNTRY_INFO!D12, 0) -> 0 | AL12: =IF(AND(J12<>0,J12<>"Unknown",J12<>"Stopped",J12<>"Not required"),J12/COUNTRY_INFO!D12, 0) -> 0 | AM12: =IF(AND(P12<>0,P12<>"Unknown",P12<>"Not required"),P12/(COUNTRY_INFO!E12+COUNTRY_INFO!F12), 0) -> 1 | AN12: =IF(AND(Z12<>0,Z12<>"Unknown",Z12<>"Not required"),IF(COUNTRY_INFO!K12=1,1,IF(COUNTRY_INFO!K12=2,0.5*COUNTRY_INFO!F12/(0.5*COUNTRY_INFO!F12+0.2*COUNTRY_INFO!G12),IF(COUNTRY_INFO!K12=3,COUNTRY_INFO!F12/(COUNTRY_INFO!F12+COUNTRY_INFO!G12)))),0) -> 1 | AO12: =IF(AND(Z12<>0,Z12<>"Unknown",Z12<>"Not required"),IF(COUNTRY_INFO!K12=1,0,IF(COUNTRY_INFO!K12=2,0.2*COUNTRY_INFO!G12/(0.5*COUNTRY_INFO!F12+0.2*COUNTRY_INFO!G12),IF(COUNTRY_INFO!K12=3,COUNTRY_INFO!G12/(COUNTRY_INFO!F12+COUNTRY_INFO!G12)))),0) -> 0 | AP12: =MAX(COUNTRY_INFO!D12*AK12*PROFILE!$G$7,COUNTRY_INFO!D12*AL12*PROFILE!$G$7) -> 0 | AQ12: =MAX(COUNTRY_INFO!D12*AK12*PROFILE!$G$8,COUNTRY_INFO!D12*AL12*PROFILE!$G$8,COUNTRY_INFO!D12*AM12*PROFILE!$G$8) -> 78761.88703 | AR12: =MAX(COUNTRY_INFO!D12*AK12*PROFILE!$G$9,COUNTRY_INFO!D12*AL12*PROFILE!$G$9,COUNTRY_INFO!D12*AM12*PROFILE!$G$9,IF(AND(DISTRICT!Z12<>"Unknown",Z12<>"Not required"),COUNTRY_INFO!O12*DISTRICT!AN12,0)) -> 189916.0459 | AS12: =MAX(COUNTRY_INFO!D12*AK12*PROFILE!$G$10,COUNTRY_INFO!D12*AL12*PROFILE!$G$10,IF(AND(DISTRICT!Z12<>"Unknown",Z12<>"Not required"),COUNTRY_INFO!O12*DISTRICT!AO12,0)) -> 0 | AT12: 268677.933 | AU12: 0 | AV12: =MAX('MDA2'!J12,'MDA5'!J12,'T1'!L12,'T2'!J12,T3_R1!K12,T3_R2!K12) -> 80597 | AW12: =MAX('MDA1'!K12,'MDA2'!K12,'MDA3'!I12,'MDA3'!L12,'MDA5'!K12,'T1'!M12,'T2'!K12,T3_R1!L12,T3_R2!L12) -> 197626 | AX12: =MAX('MDA1'!L12,'MDA2'!L12,'MDA3'!J12,'MDA3'!M12,'MDA5'!L12,'T1'!N12,'T2'!L12,T3_R1!M12,T3_R2!M12) -> 101016 | AY12: 379239 | AZ12: =MAX('MDA2'!J12,'MDA5'!J12,T12) -> 75391.19085 | BA12: =MAX('MDA1'!K12,'MDA2'!K12,'MDA3'!I12,'MDA3'!L12,'MDA5'!K12,V12,AD12) -> 145444.9523 | BB12: =MAX('MDA1'!L12,'MDA2'!L12,'MDA3'!J12,'MDA3'!M12,'MDA5'!L12,AF12) -> 0 | BC12: 220836.1431 | BD12: 82.19362888
A13: =IF(COUNTRY_INFO!A13=0," ",COUNTRY_INFO!A13) -> Rwanda | B13: =IF(COUNTRY_INFO!B13=0," ",COUNTRY_INFO!B13) -> Eastern | C13: =IF(COUNTRY_INFO!C13=0," ",COUNTRY_INFO!C13) -> Gatsibo | D13: =COUNTRY_INFO!L13 -> 0 | G13: =MAX('MDA1'!M13,'MDA2'!M13,'MDA5'!M13) -> 0 | H13: =IF(AND(COUNTRY_INFO!H13>0,COUNTRY_INFO!H13<4),IF(D13>MAX('MDA1'!M13,'MDA2'!M13,'MDA5'!M13),MAX('MDA1'!M13,'MDA2'!M13,'MDA5'!M13),D13),0) -> 0 | I13: =IF(AND(COUNTRY_INFO!H13>0,COUNTRY_INFO!H13<4), IF(G13/D13*100<>0, IF(G13/D13*100>100,100,G13/D13*100), "-"),0) -> 0 | J13: =COUNTRY_INFO!M13 -> 0 | M13: =MAX('MDA1'!M13,MAX('MDA3'!I13,'MDA3'!L13)+MAX('MDA3'!J13,'MDA3'!M13)) -> 0 | N13: =IF(AND(COUNTRY_INFO!I13>0,COUNTRY_INFO!I13<4),IF(J13>MAX('MDA1'!M13,MAX('MDA3'!I13,'MDA3'!L13)+MAX('MDA3'!J13,'MDA3'!M13)),MAX('MDA1'!M13,MAX('MDA3'!I13,'MDA3'!L13)+MAX('MDA3'!J13,'MDA3'!M13)),J13),0) -> 0 | O13: =IF(AND(COUNTRY_INFO!I13>0,COUNTRY_INFO!I13<4), IF(M13/J13*100<>0, IF(M13/J13*100>100,100,M13/J13*100), "-"),0) -> 0 | P13: =COUNTRY_INFO!N13 -> 221039.738 | S13: =SUM(MAX('MDA2'!J13,'MDA5'!J13, 'T1'!L13, MAX(T3_R1!K13, T3_R2!K13)), MAX('MDA1'!K13, 'MDA2'!K13, 'MDA5'!K13,'T1'!M13, MAX(T3_R1!L13, T3_R2!L13)), MAX('MDA1'!L13, 'MDA2'!L13, 'MDA5'!L13,'T1'!N13, MAX(T3_R1!M13, T3_R2!M13))) -> 477894 | T13: =IF(AND(COUNTRY_INFO!J13>1,COUNTRY_INFO!J13<4),IF(COUNTRY_INFO!E13>MAX('MDA2'!J13,'MDA5'!J13,'T1'!L13,MAX(T3_R1!K13,T3_R2!K13)),MAX('MDA2'!J13,'MDA5'!J13,'T1'!L13,MAX(T3_R1!K13,T3_R2!K13)),COUNTRY_INFO!E13),0) -> 63593.79933 | U13: =IF(AND(COUNTRY_INFO!J13>1,COUNTRY_INFO!J13<4), IF(T13/COUNTRY_INFO!E13*100<>0, IF(T13/COUNTRY_INFO!E13*100>100,100,T13/COUNTRY_INFO!E13*100), "-"),0) -> 100 | V13: =IF(AND(COUNTRY_INFO!J13>1,COUNTRY_INFO!J13<4),IF(COUNTRY_INFO!F13>MAX('MDA1'!K13,'MDA2'!K13,'MDA5'!K13,'T1'!M13,MAX(T3_R1!L13,T3_R2!L13)),MAX('MDA1'!K13,'MDA2'!K13,'MDA5'!K13,'T1'!M13,MAX(T3_R1!L13,T3_R2!L13)),COUNTRY_INFO!F13),0) -> 157445.9387 | W13: =IF(AND(COUNTRY_INFO!J13>1,COUNTRY_INFO!J13<4), IF(V13/COUNTRY_INFO!F13*100<>0, IF(V13/COUNTRY_INFO!F13*100>100,100,V13/COUNTRY_INFO!F13*100), "-"),0) -> 100 | X13: 221039.738 | Y13: =IF(AND(COUNTRY_INFO!J13>1,COUNTRY_INFO!J13<4), IF(S13/P13*100<>0, IF(X13/P13*100>100,100,X13/P13*100), "-"),0) -> 100 | Z13: =COUNTRY_INFO!O13 -> 45277 | AC13: =MAX('T1'!L13,'T2'!J13)+MAX('T1'!M13,'T2'!K13)+MAX('T1'!N13,'T2'!L13) -> 57309 | AD13: =IF(COUNTRY_INFO!K13=1,IF(COUNTRY_INFO!F13*0.33>MAX('T1'!M13,'T2'!K13),MAX('T1'!M13,'T2'!K13),COUNTRY_INFO!F13*0.33),IF(COUNTRY_INFO!K13=2,IF(COUNTRY_INFO!F13*0.5>MAX('T1'!M13,'T2'!K13),MAX('T1'!M13,'T2'!K13),COUNTRY_INFO!F13*0.5),IF(COUNTRY_INFO!K13=3,IF(COUNTRY_INFO!F13>MAX('T1'!M13,'T2'!K13),MAX('T1'!M13,'T2'!K13),COUNTRY_INFO!F13),0))) -> 21485 | AE13: =IF(AND(COUNTRY_INFO!K13>0,COUNTRY_INFO!K13<4),IF(Z13>0,IF(COUNTRY_INFO!K13=1, AD13/(COUNTRY_INFO!F13*0.33)*100, IF(COUNTRY_INFO!K13=2, AD13/(COUNTRY_INFO!F13*0.5)*100, IF(COUNTRY_INFO!K13=3, AD13/COUNTRY_INFO!F13*100))),"-"),0) -> 27.29190753 | AF13: =IF(COUNTRY_INFO!K13=2,IF(COUNTRY_INFO!G13*0.2>MAX('T1'!N13,'T2'!L13),MAX('T1'!N13,'T2'!L13),COUNTRY_INFO!G13*0.2),IF(COUNTRY_INFO!K13=3,IF(COUNTRY_INFO!G13>MAX('T1'!N13,'T2'!L13),MAX('T1'!N13,'T2'!L13),COUNTRY_INFO!G13),0)) -> 35824 | AG13: =IF(AND(COUNTRY_INFO!K13>0,COUNTRY_INFO!K13<4),IF(Z13>0,IF(COUNTRY_INFO!K13=1, 0, IF(COUNTRY_INFO!K13=2, AF13/(COUNTRY_INFO!G13*0.2)*100, IF(COUNTRY_INFO!K13=3, AF13/COUNTRY_INFO!G13*100))),"-"),0) -> 64.67809706 | AH13: 57309 | AI13: =IF(AND(COUNTRY_INFO!K13>0,COUNTRY_INFO!K13<4), IF(AC13/Z13*100<>0, IF(AH13/Z13*100>100,100,AH13/Z13*100), "-"),0) -> 100 | AK13: =IF(AND(D13<>0, D13<>"Unknown",D13<>"Stopped",D13<>"Not required"),D13/COUNTRY_INFO!D13, 0) -> 0 | AL13: =IF(AND(J13<>0,J13<>"Unknown",J13<>"Stopped",J13<>"Not required"),J13/COUNTRY_INFO!D13, 0) -> 0 | AM13: =IF(AND(P13<>0,P13<>"Unknown",P13<>"Not required"),P13/(COUNTRY_INFO!E13+COUNTRY_INFO!F13), 0) -> 1 | AN13: =IF(AND(Z13<>0,Z13<>"Unknown",Z13<>"Not required"),IF(COUNTRY_INFO!K13=1,1,IF(COUNTRY_INFO!K13=2,0.5*COUNTRY_INFO!F13/(0.5*COUNTRY_INFO!F13+0.2*COUNTRY_INFO!G13),IF(COUNTRY_INFO!K13=3,COUNTRY_INFO!F13/(COUNTRY_INFO!F13+COUNTRY_INFO!G13)))),0) -> 0.586998088 | AO13: =IF(AND(Z13<>0,Z13<>"Unknown",Z13<>"Not required"),IF(COUNTRY_INFO!K13=1,0,IF(COUNTRY_INFO!K13=2,0.2*COUNTRY_INFO!G13/(0.5*COUNTRY_INFO!F13+0.2*COUNTRY_INFO!G13),IF(COUNTRY_INFO!K13=3,COUNTRY_INFO!G13/(COUNTRY_INFO!F13+COUNTRY_INFO!G13)))),0) -> 0.413001912 | AP13: =MAX(COUNTRY_INFO!D13*AK13*PROFILE!$G$7,COUNTRY_INFO!D13*AL13*PROFILE!$G$7) -> 0 | AQ13: =MAX(COUNTRY_INFO!D13*AK13*PROFILE!$G$8,COUNTRY_INFO!D13*AL13*PROFILE!$G$8,COUNTRY_INFO!D13*AM13*PROFILE!$G$8) -> 60543.43254 | AR13: =MAX(COUNTRY_INFO!D13*AK13*PROFILE!$G$9,COUNTRY_INFO!D13*AL13*PROFILE!$G$9,COUNTRY_INFO!D13*AM13*PROFILE!$G$9,IF(AND(DISTRICT!Z13<>"Unknown",Z13<>"Not required"),COUNTRY_INFO!O13*DISTRICT!AN13,0)) -> 145986.4631 | AS13: =MAX(COUNTRY_INFO!D13*AK13*PROFILE!$G$10,COUNTRY_INFO!D13*AL13*PROFILE!$G$10,IF(AND(DISTRICT!Z13<>"Unknown",Z13<>"Not required"),COUNTRY_INFO!O13*DISTRICT!AO13,0)) -> 18699.48757 | AT13: 225229.3832 | AU13: Y | AV13: =MAX('MDA2'!J13,'MDA5'!J13,'T1'!L13,'T2'!J13,T3_R1!K13,T3_R2!K13) -> 74530 | AW13: =MAX('MDA1'!K13,'MDA2'!K13,'MDA3'!I13,'MDA3'!L13,'MDA5'!K13,'T1'!M13,'T2'!K13,T3_R1!L13,T3_R2!L13) -> 161816 | AX13: =MAX('MDA1'!L13,'MDA2'!L13,'MDA3'!J13,'MDA3'!M13,'MDA5'!L13,'T1'!N13,'T2'!L13,T3_R1!M13,T3_R2!M13) -> 241548 | AY13: 477894 | AZ13: =MAX('MDA2'!J13,'MDA5'!J13,T13) -> 63593.79933 | BA13: =MAX('MDA1'!K13,'MDA2'!K13,'MDA3'!I13,'MDA3'!L13,'MDA5'!K13,V13,AD13) -> 157445.9387 | BB13: =MAX('MDA1'!L13,'MDA2'!L13,'MDA3'!J13,'MDA3'!M13,'MDA5'!L13,AF13) -> 35824 | BC13: 225229.3832 | BD13: 100
A14: =IF(COUNTRY_INFO!A14=0," ",COUNTRY_INFO!A14) -> Rwanda | B14: =IF(COUNTRY_INFO!B14=0," ",COUNTRY_INFO!B14) -> Northern | C14: =IF(COUNTRY_INFO!C14=0," ",COUNTRY_INFO!C14) -> Gicumbi | D14: =COUNTRY_INFO!L14 -> 0 | G14: =MAX('MDA1'!M14,'MDA2'!M14,'MDA5'!M14) -> 0 | H14: =IF(AND(COUNTRY_INFO!H14>0,COUNTRY_INFO!H14<4),IF(D14>MAX('MDA1'!M14,'MDA2'!M14,'MDA5'!M14),MAX('MDA1'!M14,'MDA2'!M14,'MDA5'!M14),D14),0) -> 0 | I14: =IF(AND(COUNTRY_INFO!H14>0,COUNTRY_INFO!H14<4), IF(G14/D14*100<>0, IF(G14/D14*100>100,100,G14/D14*100), "-"),0) -> 0 | J14: =COUNTRY_INFO!M14 -> 0 | M14: =MAX('MDA1'!M14,MAX('MDA3'!I14,'MDA3'!L14)+MAX('MDA3'!J14,'MDA3'!M14)) -> 0 | N14: =IF(AND(COUNTRY_INFO!I14>0,COUNTRY_INFO!I14<4),IF(J14>MAX('MDA1'!M14,MAX('MDA3'!I14,'MDA3'!L14)+MAX('MDA3'!J14,'MDA3'!M14)),MAX('MDA1'!M14,MAX('MDA3'!I14,'MDA3'!L14)+MAX('MDA3'!J14,'MDA3'!M14)),J14),0) -> 0 | O14: =IF(AND(COUNTRY_INFO!I14>0,COUNTRY_INFO!I14<4), IF(M14/J14*100<>0, IF(M14/J14*100>100,100,M14/J14*100), "-"),0) -> 0 | P14: =COUNTRY_INFO!N14 -> 206343.2568 | S14: =SUM(MAX('MDA2'!J14,'MDA5'!J14, 'T1'!L14, MAX(T3_R1!K14, T3_R2!K14)), MAX('MDA1'!K14, 'MDA2'!K14, 'MDA5'!K14,'T1'!M14, MAX(T3_R1!L14, T3_R2!L14)), MAX('MDA1'!L14, 'MDA2'!L14, 'MDA5'!L14,'T1'!N14, MAX(T3_R1!M14, T3_R2!M14))) -> 470140 | T14: =IF(AND(COUNTRY_INFO!J14>1,COUNTRY_INFO!J14<4),IF(COUNTRY_INFO!E14>MAX('MDA2'!J14,'MDA5'!J14,'T1'!L14,MAX(T3_R1!K14,T3_R2!K14)),MAX('MDA2'!J14,'MDA5'!J14,'T1'!L14,MAX(T3_R1!K14,T3_R2!K14)),COUNTRY_INFO!E14),0) -> 52333.43469 | U14: =IF(AND(COUNTRY_INFO!J14>1,COUNTRY_INFO!J14<4), IF(T14/COUNTRY_INFO!E14*100<>0, IF(T14/COUNTRY_INFO!E14*100>100,100,T14/COUNTRY_INFO!E14*100), "-"),0) -> 100 | V14: =IF(AND(COUNTRY_INFO!J14>1,COUNTRY_INFO!J14<4),IF(COUNTRY_INFO!F14>MAX('MDA1'!K14,'MDA2'!K14,'MDA5'!K14,'T1'!M14,MAX(T3_R1!L14,T3_R2!L14)),MAX('MDA1'!K14,'MDA2'!K14,'MDA5'!K14,'T1'!M14,MAX(T3_R1!L14,T3_R2!L14)),COUNTRY_INFO!F14),0) -> 130079 | W14: =IF(AND(COUNTRY_INFO!J14>1,COUNTRY_INFO!J14<4), IF(V14/COUNTRY_INFO!F14*100<>0, IF(V14/COUNTRY_INFO!F14*100>100,100,V14/COUNTRY_INFO!F14*100), "-"),0) -> 84.46149617 | X14: 182412.4347 | Y14: =IF(AND(COUNTRY_INFO!J14>1,COUNTRY_INFO!J14<4), IF(S14/P14*100<>0, IF(X14/P14*100>100,100,X14/P14*100), "-"),0) -> 88.40242106 | Z14: =COUNTRY_INFO!O14 -> 24456 | AC14: =MAX('T1'!L14,'T2'!J14)+MAX('T1'!M14,'T2'!K14)+MAX('T1'!N14,'T2'!L14) -> 65031 | AD14: =IF(COUNTRY_INFO!K14=1,IF(COUNTRY_INFO!F14*0.33>MAX('T1'!M14,'T2'!K14),MAX('T1'!M14,'T2'!K14),COUNTRY_INFO!F14*0.33),IF(COUNTRY_INFO!K14=2,IF(COUNTRY_INFO!F14*0.5>MAX('T1'!M14,'T2'!K14),MAX('T1'!M14,'T2'!K14),COUNTRY_INFO!F14*0.5),IF(COUNTRY_INFO!K14=3,IF(COUNTRY_INFO!F14>MAX('T1'!M14,'T2'!K14),MAX('T1'!M14,'T2'!K14),COUNTRY_INFO!F14),0))) -> 21296 | AE14: =IF(AND(COUNTRY_INFO!K14>0,COUNTRY_INFO!K14<4),IF(Z14>0,IF(COUNTRY_INFO!K14=1, AD14/(COUNTRY_INFO!F14*0.33)*100, IF(COUNTRY_INFO!K14=2, AD14/(COUNTRY_INFO!F14*0.5)*100, IF(COUNTRY_INFO!K14=3, AD14/COUNTRY_INFO!F14*100))),"-"),0) -> 27.655379 | AF14: =IF(COUNTRY_INFO!K14=2,IF(COUNTRY_INFO!G14*0.2>MAX('T1'!N14,'T2'!L14),MAX('T1'!N14,'T2'!L14),COUNTRY_INFO!G14*0.2),IF(COUNTRY_INFO!K14=3,IF(COUNTRY_INFO!G14>MAX('T1'!N14,'T2'!L14),MAX('T1'!N14,'T2'!L14),COUNTRY_INFO!G14),0)) -> 43735 | AG14: =IF(AND(COUNTRY_INFO!K14>0,COUNTRY_INFO!K14<4),IF(Z14>0,IF(COUNTRY_INFO!K14=1, 0, IF(COUNTRY_INFO!K14=2, AF14/(COUNTRY_INFO!G14*0.2)*100, IF(COUNTRY_INFO!K14=3, AF14/COUNTRY_INFO!G14*100))),"-"),0) -> 78.48693822 | AH14: 65031 | AI14: =IF(AND(COUNTRY_INFO!K14>0,COUNTRY_INFO!K14<4), IF(AC14/Z14*100<>0, IF(AH14/Z14*100>100,100,AH14/Z14*100), "-"),0) -> 100 | AK14: =IF(AND(D14<>0, D14<>"Unknown",D14<>"Stopped",D14<>"Not required"),D14/COUNTRY_INFO!D14, 0) -> 0 | AL14: =IF(AND(J14<>0,J14<>"Unknown",J14<>"Stopped",J14<>"Not required"),J14/COUNTRY_INFO!D14, 0) -> 0 | AM14: =IF(AND(P14<>0,P14<>"Unknown",P14<>"Not required"),P14/(COUNTRY_INFO!E14+COUNTRY_INFO!F14), 0) -> 1 | AN14: =IF(AND(Z14<>0,Z14<>"Unknown",Z14<>"Not required"),IF(COUNTRY_INFO!K14=1,1,IF(COUNTRY_INFO!K14=2,0.5*COUNTRY_INFO!F14/(0.5*COUNTRY_INFO!F14+0.2*COUNTRY_INFO!G14),IF(COUNTRY_INFO!K14=3,COUNTRY_INFO!F14/(COUNTRY_INFO!F14+COUNTRY_INFO!G14)))),0) -> 0.5801727375 | AO14: =IF(AND(Z14<>0,Z14<>"Unknown",Z14<>"Not required"),IF(COUNTRY_INFO!K14=1,0,IF(COUNTRY_INFO!K14=2,0.2*COUNTRY_INFO!G14/(0.5*COUNTRY_INFO!F14+0.2*COUNTRY_INFO!G14),IF(COUNTRY_INFO!K14=3,COUNTRY_INFO!G14/(COUNTRY_INFO!F14+COUNTRY_INFO!G14)))),0) -> 0.4198272625 | AP14: =MAX(COUNTRY_INFO!D14*AK14*PROFILE!$G$7,COUNTRY_INFO!D14*AL14*PROFILE!$G$7) -> 0 | AQ14: =MAX(COUNTRY_INFO!D14*AK14*PROFILE!$G$8,COUNTRY_INFO!D14*AL14*PROFILE!$G$8,COUNTRY_INFO!D14*AM14*PROFILE!$G$8) -> 58838.81163 | AR14: =MAX(COUNTRY_INFO!D14*AK14*PROFILE!$G$9,COUNTRY_INFO!D14*AL14*PROFILE!$G$9,COUNTRY_INFO!D14*AM14*PROFILE!$G$9,IF(AND(DISTRICT!Z14<>"Unknown",Z14<>"Not required"),COUNTRY_INFO!O14*DISTRICT!AN14,0)) -> 141876.1646 | AS14: =MAX(COUNTRY_INFO!D14*AK14*PROFILE!$G$10,COUNTRY_INFO!D14*AL14*PROFILE!$G$10,IF(AND(DISTRICT!Z14<>"Unknown",Z14<>"Not required"),COUNTRY_INFO!O14*DISTRICT!AO14,0)) -> 10267.29553 | AT14: 210982.2718 | AU14: Y | AV14: =MAX('MDA2'!J14,'MDA5'!J14,'T1'!L14,'T2'!J14,T3_R1!K14,T3_R2!K14) -> 59988 | AW14: =MAX('MDA1'!K14,'MDA2'!K14,'MDA3'!I14,'MDA3'!L14,'MDA5'!K14,'T1'!M14,'T2'!K14,T3_R1!L14,T3_R2!L14) -> 130079 | AX14: =MAX('MDA1'!L14,'MDA2'!L14,'MDA3'!J14,'MDA3'!M14,'MDA5'!L14,'T1'!N14,'T2'!L14,T3_R1!M14,T3_R2!M14) -> 280073 | AY14: 470140 | AZ14: =MAX('MDA2'!J14,'MDA5'!J14,T14) -> 52333.43469 | BA14: =MAX('MDA1'!K14,'MDA2'!K14,'MDA3'!I14,'MDA3'!L14,'MDA5'!K14,V14,AD14) -> 130079 | BB14: =MAX('MDA1'!L14,'MDA2'!L14,'MDA3'!J14,'MDA3'!M14,'MDA5'!L14,AF14) -> 43735 | BC14: 210982.2718 | BD14: 100
A15: =IF(COUNTRY_INFO!A15=0," ",COUNTRY_INFO!A15) -> Rwanda | B15: =IF(COUNTRY_INFO!B15=0," ",COUNTRY_INFO!B15) -> Southern | C15: =IF(COUNTRY_INFO!C15=0," ",COUNTRY_INFO!C15) -> Gisagara | D15: =COUNTRY_INFO!L15 -> 0 | G15: =MAX('MDA1'!M15,'MDA2'!M15,'MDA5'!M15) -> 0 | H15: =IF(AND(COUNTRY_INFO!H15>0,COUNTRY_INFO!H15<4),IF(D15>MAX('MDA1'!M15,'MDA2'!M15,'MDA5'!M15),MAX('MDA1'!M15,'MDA2'!M15,'MDA5'!M15),D15),0) -> 0 | I15: =IF(AND(COUNTRY_INFO!H15>0,COUNTRY_INFO!H15<4), IF(G15/D15*100<>0, IF(G15/D15*100>100,100,G15/D15*100), "-"),0) -> 0 | J15: =COUNTRY_INFO!M15 -> 0 | M15: =MAX('MDA1'!M15,MAX('MDA3'!I15,'MDA3'!L15)+MAX('MDA3'!J15,'MDA3'!M15)) -> 0 | N15: =IF(AND(COUNTRY_INFO!I15>0,COUNTRY_INFO!I15<4),IF(J15>MAX('MDA1'!M15,MAX('MDA3'!I15,'MDA3'!L15)+MAX('MDA3'!J15,'MDA3'!M15)),MAX('MDA1'!M15,MAX('MDA3'!I15,'MDA3'!L15)+MAX('MDA3'!J15,'MDA3'!M15)),J15),0) -> 0 | O15: =IF(AND(COUNTRY_INFO!I15>0,COUNTRY_INFO!I15<4), IF(M15/J15*100<>0, IF(M15/J15*100>100,100,M15/J15*100), "-"),0) -> 0 | P15: =COUNTRY_INFO!N15 -> 169840.567 | S15: =SUM(MAX('MDA2'!J15,'MDA5'!J15, 'T1'!L15, MAX(T3_R1!K15, T3_R2!K15)), MAX('MDA1'!K15, 'MDA2'!K15, 'MDA5'!K15,'T1'!M15, MAX(T3_R1!L15, T3_R2!L15)), MAX('MDA1'!L15, 'MDA2'!L15, 'MDA5'!L15,'T1'!N15, MAX(T3_R1!M15, T3_R2!M15))) -> 367738 | T15: =IF(AND(COUNTRY_INFO!J15>1,COUNTRY_INFO!J15<4),IF(COUNTRY_INFO!E15>MAX('MDA2'!J15,'MDA5'!J15,'T1'!L15,MAX(T3_R1!K15,T3_R2!K15)),MAX('MDA2'!J15,'MDA5'!J15,'T1'!L15,MAX(T3_R1!K15,T3_R2!K15)),COUNTRY_INFO!E15),0) -> 52584 | U15: =IF(AND(COUNTRY_INFO!J15>1,COUNTRY_INFO!J15<4), IF(T15/COUNTRY_INFO!E15*100<>0, IF(T15/COUNTRY_INFO!E15*100>100,100,T15/COUNTRY_INFO!E15*100), "-"),0) -> 98.04253658 | V15: =IF(AND(COUNTRY_INFO!J15>1,COUNTRY_INFO!J15<4),IF(COUNTRY_INFO!F15>MAX('MDA1'!K15,'MDA2'!K15,'MDA5'!K15,'T1'!M15,MAX(T3_R1!L15,T3_R2!L15)),MAX('MDA1'!K15,'MDA2'!K15,'MDA5'!K15,'T1'!M15,MAX(T3_R1!L15,T3_R2!L15)),COUNTRY_INFO!F15),0) -> 106381 | W15: =IF(AND(COUNTRY_INFO!J15>1,COUNTRY_INFO!J15<4), IF(V15/COUNTRY_INFO!F15*100<>0, IF(V15/COUNTRY_INFO!F15*100>100,100,V15/COUNTRY_INFO!F15*100), "-"),0) -> 91.54463262 | X15: 158965 | Y15: =IF(AND(COUNTRY_INFO!J15>1,COUNTRY_INFO!J15<4), IF(S15/P15*100<>0, IF(X15/P15*100>100,100,X15/P15*100), "-"),0) -> 93.59660229 | Z15: =COUNTRY_INFO!O15 -> 77780 | AC15: =MAX('T1'!L15,'T2'!J15)+MAX('T1'!M15,'T2'!K15)+MAX('T1'!N15,'T2'!L15) -> 212579 | AD15: =IF(COUNTRY_INFO!K15=1,IF(COUNTRY_INFO!F15*0.33>MAX('T1'!M15,'T2'!K15),MAX('T1'!M15,'T2'!K15),COUNTRY_INFO!F15*0.33),IF(COUNTRY_INFO!K15=2,IF(COUNTRY_INFO!F15*0.5>MAX('T1'!M15,'T2'!K15),MAX('T1'!M15,'T2'!K15),COUNTRY_INFO!F15*0.5),IF(COUNTRY_INFO!K15=3,IF(COUNTRY_INFO!F15>MAX('T1'!M15,'T2'!K15),MAX('T1'!M15,'T2'!K15),COUNTRY_INFO!F15),0))) -> 58103.35186 | AE15: =IF(AND(COUNTRY_INFO!K15>0,COUNTRY_INFO!K15<4),IF(Z15>0,IF(COUNTRY_INFO!K15=1, AD15/(COUNTRY_INFO!F15*0.33)*100, IF(COUNTRY_INFO!K15=2, AD15/(COUNTRY_INFO!F15*0.5)*100, IF(COUNTRY_INFO!K15=3, AD15/COUNTRY_INFO!F15*100))),"-"),0) -> 100 | AF15: =IF(COUNTRY_INFO!K15=2,IF(COUNTRY_INFO!G15*0.2>MAX('T1'!N15,'T2'!L15),MAX('T1'!N15,'T2'!L15),COUNTRY_INFO!G15*0.2),IF(COUNTRY_INFO!K15=3,IF(COUNTRY_INFO!G15>MAX('T1'!N15,'T2'!L15),MAX('T1'!N15,'T2'!L15),COUNTRY_INFO!G15),0)) -> 44776.14947 | AG15: =IF(AND(COUNTRY_INFO!K15>0,COUNTRY_INFO!K15<4),IF(Z15>0,IF(COUNTRY_INFO!K15=1, 0, IF(COUNTRY_INFO!K15=2, AF15/(COUNTRY_INFO!G15*0.2)*100, IF(COUNTRY_INFO!K15=3, AF15/COUNTRY_INFO!G15*100))),"-"),0) -> 100 | AH15: 102879.5013 | AI15: =IF(AND(COUNTRY_INFO!K15>0,COUNTRY_INFO!K15<4), IF(AC15/Z15*100<>0, IF(AH15/Z15*100>100,100,AH15/Z15*100), "-"),0) -> 100 | AK15: =IF(AND(D15<>0, D15<>"Unknown",D15<>"Stopped",D15<>"Not required"),D15/COUNTRY_INFO!D15, 0) -> 0 | AL15: =IF(AND(J15<>0,J15<>"Unknown",J15<>"Stopped",J15<>"Not required"),J15/COUNTRY_INFO!D15, 0) -> 0 | AM15: =IF(AND(P15<>0,P15<>"Unknown",P15<>"Not required"),P15/(COUNTRY_INFO!E15+COUNTRY_INFO!F15), 0) -> 1 | AN15: =IF(AND(Z15<>0,Z15<>"Unknown",Z15<>"Not required"),IF(COUNTRY_INFO!K15=1,1,IF(COUNTRY_INFO!K15=2,0.5*COUNTRY_INFO!F15/(0.5*COUNTRY_INFO!F15+0.2*COUNTRY_INFO!G15),IF(COUNTRY_INFO!K15=3,COUNTRY_INFO!F15/(COUNTRY_INFO!F15+COUNTRY_INFO!G15)))),0) -> 0.5647709321 | AO15: =IF(AND(Z15<>0,Z15<>"Unknown",Z15<>"Not required"),IF(COUNTRY_INFO!K15=1,0,IF(COUNTRY_INFO!K15=2,0.2*COUNTRY_INFO!G15/(0.5*COUNTRY_INFO!F15+0.2*COUNTRY_INFO!G15),IF(COUNTRY_INFO!K15=3,COUNTRY_INFO!G15/(COUNTRY_INFO!F15+COUNTRY_INFO!G15)))),0) -> 0.4352290679 | AP15: =MAX(COUNTRY_INFO!D15*AK15*PROFILE!$G$7,COUNTRY_INFO!D15*AL15*PROFILE!$G$7) -> 0 | AQ15: =MAX(COUNTRY_INFO!D15*AK15*PROFILE!$G$8,COUNTRY_INFO!D15*AL15*PROFILE!$G$8,COUNTRY_INFO!D15*AM15*PROFILE!$G$8) -> 47966.61838 | AR15: =MAX(COUNTRY_INFO!D15*AK15*PROFILE!$G$9,COUNTRY_INFO!D15*AL15*PROFILE!$G$9,COUNTRY_INFO!D15*AM15*PROFILE!$G$9,IF(AND(DISTRICT!Z15<>"Unknown",Z15<>"Not required"),COUNTRY_INFO!O15*DISTRICT!AN15,0)) -> 115660.3891 | AS15: =MAX(COUNTRY_INFO!D15*AK15*PROFILE!$G$10,COUNTRY_INFO!D15*AL15*PROFILE!$G$10,IF(AND(DISTRICT!Z15<>"Unknown",Z15<>"Not required"),COUNTRY_INFO!O15*DISTRICT!AO15,0)) -> 33852.1169 | AT15: 197479.1244 | AU15: Y | AV15: =MAX('MDA2'!J15,'MDA5'!J15,'T1'!L15,'T2'!J15,T3_R1!K15,T3_R2!K15) -> 52584 | AW15: =MAX('MDA1'!K15,'MDA2'!K15,'MDA3'!I15,'MDA3'!L15,'MDA5'!K15,'T1'!M15,'T2'!K15,T3_R1!L15,T3_R2!L15) -> 106381 | AX15: =MAX('MDA1'!L15,'MDA2'!L15,'MDA3'!J15,'MDA3'!M15,'MDA5'!L15,'T1'!N15,'T2'!L15,T3_R1!M15,T3_R2!M15) -> 208773 | AY15: 367738 | AZ15: =MAX('MDA2'!J15,'MDA5'!J15,T15) -> 52584 | BA15: =MAX('MDA1'!K15,'MDA2'!K15,'MDA3'!I15,'MDA3'!L15,'MDA5'!K15,V15,AD15) -> 106381 | BB15: =MAX('MDA1'!L15,'MDA2'!L15,'MDA3'!J15,'MDA3'!M15,'MDA5'!L15,AF15) -> 44776.14947 | BC15: 197479.1244 | BD15: 100
A16: =IF(COUNTRY_INFO!A16=0," ",COUNTRY_INFO!A16) -> Rwanda | B16: =IF(COUNTRY_INFO!B16=0," ",COUNTRY_INFO!B16) -> Southern | C16: =IF(COUNTRY_INFO!C16=0," ",COUNTRY_INFO!C16) -> Huye | D16: =COUNTRY_INFO!L16 -> 0 | G16: =MAX('MDA1'!M16,'MDA2'!M16,'MDA5'!M16) -> 0 | H16: =IF(AND(COUNTRY_INFO!H16>0,COUNTRY_INFO!H16<4),IF(D16>MAX('MDA1'!M16,'MDA2'!M16,'MDA5'!M16),MAX('MDA1'!M16,'MDA2'!M16,'MDA5'!M16),D16),0) -> 0 | I16: =IF(AND(COUNTRY_INFO!H16>0,COUNTRY_INFO!H16<4), IF(G16/D16*100<>0, IF(G16/D16*100>100,100,G16/D16*100), "-"),0) -> 0 | J16: =COUNTRY_INFO!M16 -> 0 | M16: =MAX('MDA1'!M16,MAX('MDA3'!I16,'MDA3'!L16)+MAX('MDA3'!J16,'MDA3'!M16)) -> 0 | N16: =IF(AND(COUNTRY_INFO!I16>0,COUNTRY_INFO!I16<4),IF(J16>MAX('MDA1'!M16,MAX('MDA3'!I16,'MDA3'!L16)+MAX('MDA3'!J16,'MDA3'!M16)),MAX('MDA1'!M16,MAX('MDA3'!I16,'MDA3'!L16)+MAX('MDA3'!J16,'MDA3'!M16)),J16),0) -> 0 | O16: =IF(AND(COUNTRY_INFO!I16>0,COUNTRY_INFO!I16<4), IF(M16/J16*100<>0, IF(M16/J16*100>100,100,M16/J16*100), "-"),0) -> 0 | P16: =COUNTRY_INFO!N16 -> 155566.0762 | S16: =SUM(MAX('MDA2'!J16,'MDA5'!J16, 'T1'!L16, MAX(T3_R1!K16, T3_R2!K16)), MAX('MDA1'!K16, 'MDA2'!K16, 'MDA5'!K16,'T1'!M16, MAX(T3_R1!L16, T3_R2!L16)), MAX('MDA1'!L16, 'MDA2'!L16, 'MDA5'!L16,'T1'!N16, MAX(T3_R1!M16, T3_R2!M16))) -> 354622 | T16: =IF(AND(COUNTRY_INFO!J16>1,COUNTRY_INFO!J16<4),IF(COUNTRY_INFO!E16>MAX('MDA2'!J16,'MDA5'!J16,'T1'!L16,MAX(T3_R1!K16,T3_R2!K16)),MAX('MDA2'!J16,'MDA5'!J16,'T1'!L16,MAX(T3_R1!K16,T3_R2!K16)),COUNTRY_INFO!E16),0) -> 42654 | U16: =IF(AND(COUNTRY_INFO!J16>1,COUNTRY_INFO!J16<4), IF(T16/COUNTRY_INFO!E16*100<>0, IF(T16/COUNTRY_INFO!E16*100>100,100,T16/COUNTRY_INFO!E16*100), "-"),0) -> 91.23348577 | V16: =IF(AND(COUNTRY_INFO!J16>1,COUNTRY_INFO!J16<4),IF(COUNTRY_INFO!F16>MAX('MDA1'!K16,'MDA2'!K16,'MDA5'!K16,'T1'!M16,MAX(T3_R1!L16,T3_R2!L16)),MAX('MDA1'!K16,'MDA2'!K16,'MDA5'!K16,'T1'!M16,MAX(T3_R1!L16,T3_R2!L16)),COUNTRY_INFO!F16),0) -> 96677 | W16: =IF(AND(COUNTRY_INFO!J16>1,COUNTRY_INFO!J16<4), IF(V16/COUNTRY_INFO!F16*100<>0, IF(V16/COUNTRY_INFO!F16*100>100,100,V16/COUNTRY_INFO!F16*100), "-"),0) -> 88.84650819 | X16: 139331 | Y16: =IF(AND(COUNTRY_INFO!J16>1,COUNTRY_INFO!J16<4), IF(S16/P16*100<>0, IF(X16/P16*100>100,100,X16/P16*100), "-"),0) -> 89.56387113 | Z16: =COUNTRY_INFO!O16 -> 35895 | AC16: =MAX('T1'!L16,'T2'!J16)+MAX('T1'!M16,'T2'!K16)+MAX('T1'!N16,'T2'!L16) -> 0 | AD16: =IF(COUNTRY_INFO!K16=1,IF(COUNTRY_INFO!F16*0.33>MAX('T1'!M16,'T2'!K16),MAX('T1'!M16,'T2'!K16),COUNTRY_INFO!F16*0.33),IF(COUNTRY_INFO!K16=2,IF(COUNTRY_INFO!F16*0.5>MAX('T1'!M16,'T2'!K16),MAX('T1'!M16,'T2'!K16),COUNTRY_INFO!F16*0.5),IF(COUNTRY_INFO!K16=3,IF(COUNTRY_INFO!F16>MAX('T1'!M16,'T2'!K16),MAX('T1'!M16,'T2'!K16),COUNTRY_INFO!F16),0))) -> 0 | AE16: =IF(AND(COUNTRY_INFO!K16>0,COUNTRY_INFO!K16<4),IF(Z16>0,IF(COUNTRY_INFO!K16=1, AD16/(COUNTRY_INFO!F16*0.33)*100, IF(COUNTRY_INFO!K16=2, AD16/(COUNTRY_INFO!F16*0.5)*100, IF(COUNTRY_INFO!K16=3, AD16/COUNTRY_INFO!F16*100))),"-"),0) -> 0 | AF16: =IF(COUNTRY_INFO!K16=2,IF(COUNTRY_INFO!G16*0.2>MAX('T1'!N16,'T2'!L16),MAX('T1'!N16,'T2'!L16),COUNTRY_INFO!G16*0.2),IF(COUNTRY_INFO!K16=3,IF(COUNTRY_INFO!G16>MAX('T1'!N16,'T2'!L16),MAX('T1'!N16,'T2'!L16),COUNTRY_INFO!G16),0)) -> 0 | AG16: =IF(AND(COUNTRY_INFO!K16>0,COUNTRY_INFO!K16<4),IF(Z16>0,IF(COUNTRY_INFO!K16=1, 0, IF(COUNTRY_INFO!K16=2, AF16/(COUNTRY_INFO!G16*0.2)*100, IF(COUNTRY_INFO!K16=3, AF16/COUNTRY_INFO!G16*100))),"-"),0) -> 0 | AH16: 0 | AI16: =IF(AND(COUNTRY_INFO!K16>0,COUNTRY_INFO!K16<4), IF(AC16/Z16*100<>0, IF(AH16/Z16*100>100,100,AH16/Z16*100), "-"),0) -> - | AK16: =IF(AND(D16<>0, D16<>"Unknown",D16<>"Stopped",D16<>"Not required"),D16/COUNTRY_INFO!D16, 0) -> 0 | AL16: =IF(AND(J16<>0,J16<>"Unknown",J16<>"Stopped",J16<>"Not required"),J16/COUNTRY_INFO!D16, 0) -> 0 | AM16: =IF(AND(P16<>0,P16<>"Unknown",P16<>"Not required"),P16/(COUNTRY_INFO!E16+COUNTRY_INFO!F16), 0) -> 1 | AN16: =IF(AND(Z16<>0,Z16<>"Unknown",Z16<>"Not required"),IF(COUNTRY_INFO!K16=1,1,IF(COUNTRY_INFO!K16=2,0.5*COUNTRY_INFO!F16/(0.5*COUNTRY_INFO!F16+0.2*COUNTRY_INFO!G16),IF(COUNTRY_INFO!K16=3,COUNTRY_INFO!F16/(COUNTRY_INFO!F16+COUNTRY_INFO!G16)))),0) -> 1 | AO16: =IF(AND(Z16<>0,Z16<>"Unknown",Z16<>"Not required"),IF(COUNTRY_INFO!K16=1,0,IF(COUNTRY_INFO!K16=2,0.2*COUNTRY_INFO!G16/(0.5*COUNTRY_INFO!F16+0.2*COUNTRY_INFO!G16),IF(COUNTRY_INFO!K16=3,COUNTRY_INFO!G16/(COUNTRY_INFO!F16+COUNTRY_INFO!G16)))),0) -> 0 | AP16: =MAX(COUNTRY_INFO!D16*AK16*PROFILE!$G$7,COUNTRY_INFO!D16*AL16*PROFILE!$G$7) -> 0 | AQ16: =MAX(COUNTRY_INFO!D16*AK16*PROFILE!$G$8,COUNTRY_INFO!D16*AL16*PROFILE!$G$8,COUNTRY_INFO!D16*AM16*PROFILE!$G$8) -> 48842.85095 | AR16: =MAX(COUNTRY_INFO!D16*AK16*PROFILE!$G$9,COUNTRY_INFO!D16*AL16*PROFILE!$G$9,COUNTRY_INFO!D16*AM16*PROFILE!$G$9,IF(AND(DISTRICT!Z16<>"Unknown",Z16<>"Not required"),COUNTRY_INFO!O16*DISTRICT!AN16,0)) -> 117773.2209 | AS16: =MAX(COUNTRY_INFO!D16*AK16*PROFILE!$G$10,COUNTRY_INFO!D16*AL16*PROFILE!$G$10,IF(AND(DISTRICT!Z16<>"Unknown",Z16<>"Not required"),COUNTRY_INFO!O16*DISTRICT!AO16,0)) -> 0 | AT16: 166616.0719 | AU16: 0 | AV16: =MAX('MDA2'!J16,'MDA5'!J16,'T1'!L16,'T2'!J16,T3_R1!K16,T3_R2!K16) -> 42654 | AW16: =MAX('MDA1'!K16,'MDA2'!K16,'MDA3'!I16,'MDA3'!L16,'MDA5'!K16,'T1'!M16,'T2'!K16,T3_R1!L16,T3_R2!L16) -> 96677 | AX16: =MAX('MDA1'!L16,'MDA2'!L16,'MDA3'!J16,'MDA3'!M16,'MDA5'!L16,'T1'!N16,'T2'!L16,T3_R1!M16,T3_R2!M16) -> 215291 | AY16: 354622 | AZ16: =MAX('MDA2'!J16,'MDA5'!J16,T16) -> 42654 | BA16: =MAX('MDA1'!K16,'MDA2'!K16,'MDA3'!I16,'MDA3'!L16,'MDA5'!K16,V16,AD16) -> 96677 | BB16: =MAX('MDA1'!L16,'MDA2'!L16,'MDA3'!J16,'MDA3'!M16,'MDA5'!L16,AF16) -> 0 | BC16: 139331 | BD16: 83.62398562
A17: =IF(COUNTRY_INFO!A17=0," ",COUNTRY_INFO!A17) -> Rwanda | B17: =IF(COUNTRY_INFO!B17=0," ",COUNTRY_INFO!B17) -> Southern | C17: =IF(COUNTRY_INFO!C17=0," ",COUNTRY_INFO!C17) -> Kamonyi | D17: =COUNTRY_INFO!L17 -> 0 | G17: =MAX('MDA1'!M17,'MDA2'!M17,'MDA5'!M17) -> 0 | H17: =IF(AND(COUNTRY_INFO!H17>0,COUNTRY_INFO!H17<4),IF(D17>MAX('MDA1'!M17,'MDA2'!M17,'MDA5'!M17),MAX('MDA1'!M17,'MDA2'!M17,'MDA5'!M17),D17),0) -> 0 | I17: =IF(AND(COUNTRY_INFO!H17>0,COUNTRY_INFO!H17<4), IF(G17/D17*100<>0, IF(G17/D17*100>100,100,G17/D17*100), "-"),0) -> 0 | J17: =COUNTRY_INFO!M17 -> 0 | M17: =MAX('MDA1'!M17,MAX('MDA3'!I17,'MDA3'!L17)+MAX('MDA3'!J17,'MDA3'!M17)) -> 0 | N17: =IF(AND(COUNTRY_INFO!I17>0,COUNTRY_INFO!I17<4),IF(J17>MAX('MDA1'!M17,MAX('MDA3'!I17,'MDA3'!L17)+MAX('MDA3'!J17,'MDA3'!M17)),MAX('MDA1'!M17,MAX('MDA3'!I17,'MDA3'!L17)+MAX('MDA3'!J17,'MDA3'!M17)),J17),0) -> 0 | O17: =IF(AND(COUNTRY_INFO!I17>0,COUNTRY_INFO!I17<4), IF(M17/J17*100<>0, IF(M17/J17*100>100,100,M17/J17*100), "-"),0) -> 0 | P17: =COUNTRY_INFO!N17 -> 0 | S17: =SUM(MAX('MDA2'!J17,'MDA5'!J17, 'T1'!L17, MAX(T3_R1!K17, T3_R2!K17)), MAX('MDA1'!K17, 'MDA2'!K17, 'MDA5'!K17,'T1'!M17, MAX(T3_R1!L17, T3_R2!L17)), MAX('MDA1'!L17, 'MDA2'!L17, 'MDA5'!L17,'T1'!N17, MAX(T3_R1!M17, T3_R2!M17))) -> 336663 | T17: =IF(AND(COUNTRY_INFO!J17>1,COUNTRY_INFO!J17<4),IF(COUNTRY_INFO!E17>MAX('MDA2'!J17,'MDA5'!J17,'T1'!L17,MAX(T3_R1!K17,T3_R2!K17)),MAX('MDA2'!J17,'MDA5'!J17,'T1'!L17,MAX(T3_R1!K17,T3_R2!K17)),COUNTRY_INFO!E17),0) -> 0 | U17: =IF(AND(COUNTRY_INFO!J17>1,COUNTRY_INFO!J17<4), IF(T17/COUNTRY_INFO!E17*100<>0, IF(T17/COUNTRY_INFO!E17*100>100,100,T17/COUNTRY_INFO!E17*100), "-"),0) -> 0 | V17: =IF(AND(COUNTRY_INFO!J17>1,COUNTRY_INFO!J17<4),IF(COUNTRY_INFO!F17>MAX('MDA1'!K17,'MDA2'!K17,'MDA5'!K17,'T1'!M17,MAX(T3_R1!L17,T3_R2!L17)),MAX('MDA1'!K17,'MDA2'!K17,'MDA5'!K17,'T1'!M17,MAX(T3_R1!L17,T3_R2!L17)),COUNTRY_INFO!F17),0) -> 0 | W17: =IF(AND(COUNTRY_INFO!J17>1,COUNTRY_INFO!J17<4), IF(V17/COUNTRY_INFO!F17*100<>0, IF(V17/COUNTRY_INFO!F17*100>100,100,V17/COUNTRY_INFO!F17*100), "-"),0) -> 0 | X17: 0 | Y17: =IF(AND(COUNTRY_INFO!J17>1,COUNTRY_INFO!J17<4), IF(S17/P17*100<>0, IF(X17/P17*100>100,100,X17/P17*100), "-"),0) -> 0 | Z17: =COUNTRY_INFO!O17 -> 41971 | AC17: =MAX('T1'!L17,'T2'!J17)+MAX('T1'!M17,'T2'!K17)+MAX('T1'!N17,'T2'!L17) -> 108648 | AD17: =IF(COUNTRY_INFO!K17=1,IF(COUNTRY_INFO!F17*0.33>MAX('T1'!M17,'T2'!K17),MAX('T1'!M17,'T2'!K17),COUNTRY_INFO!F17*0.33),IF(COUNTRY_INFO!K17=2,IF(COUNTRY_INFO!F17*0.5>MAX('T1'!M17,'T2'!K17),MAX('T1'!M17,'T2'!K17),COUNTRY_INFO!F17*0.5),IF(COUNTRY_INFO!K17=3,IF(COUNTRY_INFO!F17>MAX('T1'!M17,'T2'!K17),MAX('T1'!M17,'T2'!K17),COUNTRY_INFO!F17),0))) -> 41174 | AE17: =IF(AND(COUNTRY_INFO!K17>0,COUNTRY_INFO!K17<4),IF(Z17>0,IF(COUNTRY_INFO!K17=1, AD17/(COUNTRY_INFO!F17*0.33)*100, IF(COUNTRY_INFO!K17=2, AD17/(COUNTRY_INFO!F17*0.5)*100, IF(COUNTRY_INFO!K17=3, AD17/COUNTRY_INFO!F17*100))),"-"),0) -> 68.55676395 | AF17: =IF(COUNTRY_INFO!K17=2,IF(COUNTRY_INFO!G17*0.2>MAX('T1'!N17,'T2'!L17),MAX('T1'!N17,'T2'!L17),COUNTRY_INFO!G17*0.2),IF(COUNTRY_INFO!K17=3,IF(COUNTRY_INFO!G17>MAX('T1'!N17,'T2'!L17),MAX('T1'!N17,'T2'!L17),COUNTRY_INFO!G17),0)) -> 47360.22841 | AG17: =IF(AND(COUNTRY_INFO!K17>0,COUNTRY_INFO!K17<4),IF(Z17>0,IF(COUNTRY_INFO!K17=1, 0, IF(COUNTRY_INFO!K17=2, AF17/(COUNTRY_INFO!G17*0.2)*100, IF(COUNTRY_INFO!K17=3, AF17/COUNTRY_INFO!G17*100))),"-"),0) -> 100 | AH17: 88534.22841 | AI17: =IF(AND(COUNTRY_INFO!K17>0,COUNTRY_INFO!K17<4), IF(AC17/Z17*100<>0, IF(AH17/Z17*100>100,100,AH17/Z17*100), "-"),0) -> 100 | AK17: =IF(AND(D17<>0, D17<>"Unknown",D17<>"Stopped",D17<>"Not required"),D17/COUNTRY_INFO!D17, 0) -> 0 | AL17: =IF(AND(J17<>0,J17<>"Unknown",J17<>"Stopped",J17<>"Not required"),J17/COUNTRY_INFO!D17, 0) -> 0 | AM17: =IF(AND(P17<>0,P17<>"Unknown",P17<>"Not required"),P17/(COUNTRY_INFO!E17+COUNTRY_INFO!F17), 0) -> 0 | AN17: =IF(AND(Z17<>0,Z17<>"Unknown",Z17<>"Not required"),IF(COUNTRY_INFO!K17=1,1,IF(COUNTRY_INFO!K17=2,0.5*COUNTRY_INFO!F17/(0.5*COUNTRY_INFO!F17+0.2*COUNTRY_INFO!G17),IF(COUNTRY_INFO!K17=3,COUNTRY_INFO!F17/(COUNTRY_INFO!F17+COUNTRY_INFO!G17)))),0) -> 0.5591054313 | AO17: =IF(AND(Z17<>0,Z17<>"Unknown",Z17<>"Not required"),IF(COUNTRY_INFO!K17=1,0,IF(COUNTRY_INFO!K17=2,0.2*COUNTRY_INFO!G17/(0.5*COUNTRY_INFO!F17+0.2*COUNTRY_INFO!G17),IF(COUNTRY_INFO!K17=3,COUNTRY_INFO!G17/(COUNTRY_INFO!F17+COUNTRY_INFO!G17)))),0) -> 0.4408945687 | AP17: =MAX(COUNTRY_INFO!D17*AK17*PROFILE!$G$7,COUNTRY_INFO!D17*AL17*PROFILE!$G$7) -> 0 | AQ17: =MAX(COUNTRY_INFO!D17*AK17*PROFILE!$G$8,COUNTRY_INFO!D17*AL17*PROFILE!$G$8,COUNTRY_INFO!D17*AM17*PROFILE!$G$8) -> 0 | AR17: =MAX(COUNTRY_INFO!D17*AK17*PROFILE!$G$9,COUNTRY_INFO!D17*AL17*PROFILE!$G$9,COUNTRY_INFO!D17*AM17*PROFILE!$G$9,IF(AND(DISTRICT!Z17<>"Unknown",Z17<>"Not required"),COUNTRY_INFO!O17*DISTRICT!AN17,0)) -> 23466.21406 | AS17: =MAX(COUNTRY_INFO!D17*AK17*PROFILE!$G$10,COUNTRY_INFO!D17*AL17*PROFILE!$G$10,IF(AND(DISTRICT!Z17<>"Unknown",Z17<>"Not required"),COUNTRY_INFO!O17*DISTRICT!AO17,0)) -> 18504.78594 | AT17: 41971 | AU17: Y | AV17: =MAX('MDA2'!J17,'MDA5'!J17,'T1'!L17,'T2'!J17,T3_R1!K17,T3_R2!K17) -> 38795 | AW17: =MAX('MDA1'!K17,'MDA2'!K17,'MDA3'!I17,'MDA3'!L17,'MDA5'!K17,'T1'!M17,'T2'!K17,T3_R1!L17,T3_R2!L17) -> 108208 | AX17: =MAX('MDA1'!L17,'MDA2'!L17,'MDA3'!J17,'MDA3'!M17,'MDA5'!L17,'T1'!N17,'T2'!L17,T3_R1!M17,T3_R2!M17) -> 189660 | AY17: 336663 | AZ17: =MAX('MDA2'!J17,'MDA5'!J17,T17) -> 0 | BA17: =MAX('MDA1'!K17,'MDA2'!K17,'MDA3'!I17,'MDA3'!L17,'MDA5'!K17,V17,AD17) -> 41174 | BB17: =MAX('MDA1'!L17,'MDA2'!L17,'MDA3'!J17,'MDA3'!M17,'MDA5'!L17,AF17) -> 47360.22841 | BC17: 41971 | BD17: 100
A18: =IF(COUNTRY_INFO!A18=0," ",COUNTRY_INFO!A18) -> Rwanda | B18: =IF(COUNTRY_INFO!B18=0," ",COUNTRY_INFO!B18) -> Western | C18: =IF(COUNTRY_INFO!C18=0," ",COUNTRY_INFO!C18) -> Karongi | D18: =COUNTRY_INFO!L18 -> 0 | G18: =MAX('MDA1'!M18,'MDA2'!M18,'MDA5'!M18) -> 0 | H18: =IF(AND(COUNTRY_INFO!H18>0,COUNTRY_INFO!H18<4),IF(D18>MAX('MDA1'!M18,'MDA2'!M18,'MDA5'!M18),MAX('MDA1'!M18,'MDA2'!M18,'MDA5'!M18),D18),0) -> 0 | I18: =IF(AND(COUNTRY_INFO!H18>0,COUNTRY_INFO!H18<4), IF(G18/D18*100<>0, IF(G18/D18*100>100,100,G18/D18*100), "-"),0) -> 0 | J18: =COUNTRY_INFO!M18 -> 0 | M18: =MAX('MDA1'!M18,MAX('MDA3'!I18,'MDA3'!L18)+MAX('MDA3'!J18,'MDA3'!M18)) -> 0 | N18: =IF(AND(COUNTRY_INFO!I18>0,COUNTRY_INFO!I18<4),IF(J18>MAX('MDA1'!M18,MAX('MDA3'!I18,'MDA3'!L18)+MAX('MDA3'!J18,'MDA3'!M18)),MAX('MDA1'!M18,MAX('MDA3'!I18,'MDA3'!L18)+MAX('MDA3'!J18,'MDA3'!M18)),J18),0) -> 0 | O18: =IF(AND(COUNTRY_INFO!I18>0,COUNTRY_INFO!I18<4), IF(M18/J18*100<>0, IF(M18/J18*100>100,100,M18/J18*100), "-"),0) -> 0 | P18: =COUNTRY_INFO!N18 -> 175851.0827 | S18: =SUM(MAX('MDA2'!J18,'MDA5'!J18, 'T1'!L18, MAX(T3_R1!K18, T3_R2!K18)), MAX('MDA1'!K18, 'MDA2'!K18, 'MDA5'!K18,'T1'!M18, MAX(T3_R1!L18, T3_R2!L18)), MAX('MDA1'!L18, 'MDA2'!L18, 'MDA5'!L18,'T1'!N18, MAX(T3_R1!M18, T3_R2!M18))) -> 394310 | T18: =IF(AND(COUNTRY_INFO!J18>1,COUNTRY_INFO!J18<4),IF(COUNTRY_INFO!E18>MAX('MDA2'!J18,'MDA5'!J18,'T1'!L18,MAX(T3_R1!K18,T3_R2!K18)),MAX('MDA2'!J18,'MDA5'!J18,'T1'!L18,MAX(T3_R1!K18,T3_R2!K18)),COUNTRY_INFO!E18),0) -> 49391.58739 | U18: =IF(AND(COUNTRY_INFO!J18>1,COUNTRY_INFO!J18<4), IF(T18/COUNTRY_INFO!E18*100<>0, IF(T18/COUNTRY_INFO!E18*100>100,100,T18/COUNTRY_INFO!E18*100), "-"),0) -> 100 | V18: =IF(AND(COUNTRY_INFO!J18>1,COUNTRY_INFO!J18<4),IF(COUNTRY_INFO!F18>MAX('MDA1'!K18,'MDA2'!K18,'MDA5'!K18,'T1'!M18,MAX(T3_R1!L18,T3_R2!L18)),MAX('MDA1'!K18,'MDA2'!K18,'MDA5'!K18,'T1'!M18,MAX(T3_R1!L18,T3_R2!L18)),COUNTRY_INFO!F18),0) -> 110295 | W18: =IF(AND(COUNTRY_INFO!J18>1,COUNTRY_INFO!J18<4), IF(V18/COUNTRY_INFO!F18*100<>0, IF(V18/COUNTRY_INFO!F18*100>100,100,V18/COUNTRY_INFO!F18*100), "-"),0) -> 87.21764999 | X18: 159686.5874 | Y18: =IF(AND(COUNTRY_INFO!J18>1,COUNTRY_INFO!J18<4), IF(S18/P18*100<>0, IF(X18/P18*100>100,100,X18/P18*100), "-"),0) -> 90.80784999 | Z18: =COUNTRY_INFO!O18 -> 28801 | AC18: =MAX('T1'!L18,'T2'!J18)+MAX('T1'!M18,'T2'!K18)+MAX('T1'!N18,'T2'!L18) -> 77768 | AD18: =IF(COUNTRY_INFO!K18=1,IF(COUNTRY_INFO!F18*0.33>MAX('T1'!M18,'T2'!K18),MAX('T1'!M18,'T2'!K18),COUNTRY_INFO!F18*0.33),IF(COUNTRY_INFO!K18=2,IF(COUNTRY_INFO!F18*0.5>MAX('T1'!M18,'T2'!K18),MAX('T1'!M18,'T2'!K18),COUNTRY_INFO!F18*0.5),IF(COUNTRY_INFO!K18=3,IF(COUNTRY_INFO!F18>MAX('T1'!M18,'T2'!K18),MAX('T1'!M18,'T2'!K18),COUNTRY_INFO!F18),0))) -> 23019 | AE18: =IF(AND(COUNTRY_INFO!K18>0,COUNTRY_INFO!K18<4),IF(Z18>0,IF(COUNTRY_INFO!K18=1, AD18/(COUNTRY_INFO!F18*0.33)*100, IF(COUNTRY_INFO!K18=2, AD18/(COUNTRY_INFO!F18*0.5)*100, IF(COUNTRY_INFO!K18=3, AD18/COUNTRY_INFO!F18*100))),"-"),0) -> 36.4053327 | AF18: =IF(COUNTRY_INFO!K18=2,IF(COUNTRY_INFO!G18*0.2>MAX('T1'!N18,'T2'!L18),MAX('T1'!N18,'T2'!L18),COUNTRY_INFO!G18*0.2),IF(COUNTRY_INFO!K18=3,IF(COUNTRY_INFO!G18>MAX('T1'!N18,'T2'!L18),MAX('T1'!N18,'T2'!L18),COUNTRY_INFO!G18),0)) -> 47518.11339 | AG18: =IF(AND(COUNTRY_INFO!K18>0,COUNTRY_INFO!K18<4),IF(Z18>0,IF(COUNTRY_INFO!K18=1, 0, IF(COUNTRY_INFO!K18=2, AF18/(COUNTRY_INFO!G18*0.2)*100, IF(COUNTRY_INFO!K18=3, AF18/COUNTRY_INFO!G18*100))),"-"),0) -> 100 | AH18: 70537.11339 | AI18: =IF(AND(COUNTRY_INFO!K18>0,COUNTRY_INFO!K18<4), IF(AC18/Z18*100<>0, IF(AH18/Z18*100>100,100,AH18/Z18*100), "-"),0) -> 100 | AK18: =IF(AND(D18<>0, D18<>"Unknown",D18<>"Stopped",D18<>"Not required"),D18/COUNTRY_INFO!D18, 0) -> 0 | AL18: =IF(AND(J18<>0,J18<>"Unknown",J18<>"Stopped",J18<>"Not required"),J18/COUNTRY_INFO!D18, 0) -> 0 | AM18: =IF(AND(P18<>0,P18<>"Unknown",P18<>"Not required"),P18/(COUNTRY_INFO!E18+COUNTRY_INFO!F18), 0) -> 1 | AN18: =IF(AND(Z18<>0,Z18<>"Unknown",Z18<>"Not required"),IF(COUNTRY_INFO!K18=1,1,IF(COUNTRY_INFO!K18=2,0.5*COUNTRY_INFO!F18/(0.5*COUNTRY_INFO!F18+0.2*COUNTRY_INFO!G18),IF(COUNTRY_INFO!K18=3,COUNTRY_INFO!F18/(COUNTRY_INFO!F18+COUNTRY_INFO!G18)))),0) -> 0.5709342561 | AO18: =IF(AND(Z18<>0,Z18<>"Unknown",Z18<>"Not required"),IF(COUNTRY_INFO!K18=1,0,IF(COUNTRY_INFO!K18=2,0.2*COUNTRY_INFO!G18/(0.5*COUNTRY_INFO!F18+0.2*COUNTRY_INFO!G18),IF(COUNTRY_INFO!K18=3,COUNTRY_INFO!G18/(COUNTRY_INFO!F18+COUNTRY_INFO!G18)))),0) -> 0.4290657439 | AP18: =MAX(COUNTRY_INFO!D18*AK18*PROFILE!$G$7,COUNTRY_INFO!D18*AL18*PROFILE!$G$7) -> 0 | AQ18: =MAX(COUNTRY_INFO!D18*AK18*PROFILE!$G$8,COUNTRY_INFO!D18*AL18*PROFILE!$G$8,COUNTRY_INFO!D18*AM18*PROFILE!$G$8) -> 50265.37742 | AR18: =MAX(COUNTRY_INFO!D18*AK18*PROFILE!$G$9,COUNTRY_INFO!D18*AL18*PROFILE!$G$9,COUNTRY_INFO!D18*AM18*PROFILE!$G$9,IF(AND(DISTRICT!Z18<>"Unknown",Z18<>"Not required"),COUNTRY_INFO!O18*DISTRICT!AN18,0)) -> 121203.314 | AS18: =MAX(COUNTRY_INFO!D18*AK18*PROFILE!$G$10,COUNTRY_INFO!D18*AL18*PROFILE!$G$10,IF(AND(DISTRICT!Z18<>"Unknown",Z18<>"Not required"),COUNTRY_INFO!O18*DISTRICT!AO18,0)) -> 12357.52249 | AT18: 183826.2139 | AU18: Y | AV18: =MAX('MDA2'!J18,'MDA5'!J18,'T1'!L18,'T2'!J18,T3_R1!K18,T3_R2!K18) -> 50981 | AW18: =MAX('MDA1'!K18,'MDA2'!K18,'MDA3'!I18,'MDA3'!L18,'MDA5'!K18,'T1'!M18,'T2'!K18,T3_R1!L18,T3_R2!L18) -> 110295 | AX18: =MAX('MDA1'!L18,'MDA2'!L18,'MDA3'!J18,'MDA3'!M18,'MDA5'!L18,'T1'!N18,'T2'!L18,T3_R1!M18,T3_R2!M18) -> 233034 | AY18: 394310 | AZ18: =MAX('MDA2'!J18,'MDA5'!J18,T18) -> 49391.58739 | BA18: =MAX('MDA1'!K18,'MDA2'!K18,'MDA3'!I18,'MDA3'!L18,'MDA5'!K18,V18,AD18) -> 110295 | BB18: =MAX('MDA1'!L18,'MDA2'!L18,'MDA3'!J18,'MDA3'!M18,'MDA5'!L18,AF18) -> 47518.11339 | BC18: 183826.2139 | BD18: 100
A19: =IF(COUNTRY_INFO!A19=0," ",COUNTRY_INFO!A19) -> Rwanda | B19: =IF(COUNTRY_INFO!B19=0," ",COUNTRY_INFO!B19) -> Eastern | C19: =IF(COUNTRY_INFO!C19=0," ",COUNTRY_INFO!C19) -> Kayonza | D19: =COUNTRY_INFO!L19 -> 0 | G19: =MAX('MDA1'!M19,'MDA2'!M19,'MDA5'!M19) -> 0 | H19: =IF(AND(COUNTRY_INFO!H19>0,COUNTRY_INFO!H19<4),IF(D19>MAX('MDA1'!M19,'MDA2'!M19,'MDA5'!M19),MAX('MDA1'!M19,'MDA2'!M19,'MDA5'!M19),D19),0) -> 0 | I19: =IF(AND(COUNTRY_INFO!H19>0,COUNTRY_INFO!H19<4), IF(G19/D19*100<>0, IF(G19/D19*100>100,100,G19/D19*100), "-"),0) -> 0 | J19: =COUNTRY_INFO!M19 -> 0 | M19: =MAX('MDA1'!M19,MAX('MDA3'!I19,'MDA3'!L19)+MAX('MDA3'!J19,'MDA3'!M19)) -> 0 | N19: =IF(AND(COUNTRY_INFO!I19>0,COUNTRY_INFO!I19<4),IF(J19>MAX('MDA1'!M19,MAX('MDA3'!I19,'MDA3'!L19)+MAX('MDA3'!J19,'MDA3'!M19)),MAX('MDA1'!M19,MAX('MDA3'!I19,'MDA3'!L19)+MAX('MDA3'!J19,'MDA3'!M19)),J19),0) -> 0 | O19: =IF(AND(COUNTRY_INFO!I19>0,COUNTRY_INFO!I19<4), IF(M19/J19*100<>0, IF(M19/J19*100>100,100,M19/J19*100), "-"),0) -> 0 | P19: =COUNTRY_INFO!N19 -> 185837.5262 | S19: =SUM(MAX('MDA2'!J19,'MDA5'!J19, 'T1'!L19, MAX(T3_R1!K19, T3_R2!K19)), MAX('MDA1'!K19, 'MDA2'!K19, 'MDA5'!K19,'T1'!M19, MAX(T3_R1!L19, T3_R2!L19)), MAX('MDA1'!L19, 'MDA2'!L19, 'MDA5'!L19,'T1'!N19, MAX(T3_R1!M19, T3_R2!M19))) -> 342736 | T19: =IF(AND(COUNTRY_INFO!J19>1,COUNTRY_INFO!J19<4),IF(COUNTRY_INFO!E19>MAX('MDA2'!J19,'MDA5'!J19,'T1'!L19,MAX(T3_R1!K19,T3_R2!K19)),MAX('MDA2'!J19,'MDA5'!J19,'T1'!L19,MAX(T3_R1!K19,T3_R2!K19)),COUNTRY_INFO!E19),0) -> 47016 | U19: =IF(AND(COUNTRY_INFO!J19>1,COUNTRY_INFO!J19<4), IF(T19/COUNTRY_INFO!E19*100<>0, IF(T19/COUNTRY_INFO!E19*100>100,100,T19/COUNTRY_INFO!E19*100), "-"),0) -> 86.01836413 | V19: =IF(AND(COUNTRY_INFO!J19>1,COUNTRY_INFO!J19<4),IF(COUNTRY_INFO!F19>MAX('MDA1'!K19,'MDA2'!K19,'MDA5'!K19,'T1'!M19,MAX(T3_R1!L19,T3_R2!L19)),MAX('MDA1'!K19,'MDA2'!K19,'MDA5'!K19,'T1'!M19,MAX(T3_R1!L19,T3_R2!L19)),COUNTRY_INFO!F19),0) -> 116123 | W19: =IF(AND(COUNTRY_INFO!J19>1,COUNTRY_INFO!J19<4), IF(V19/COUNTRY_INFO!F19*100<>0, IF(V19/COUNTRY_INFO!F19*100>100,100,V19/COUNTRY_INFO!F19*100), "-"),0) -> 88.52226279 | X19: 163139 | Y19: =IF(AND(COUNTRY_INFO!J19>1,COUNTRY_INFO!J19<4), IF(S19/P19*100<>0, IF(X19/P19*100>100,100,X19/P19*100), "-"),0) -> 87.78582201 | Z19: =COUNTRY_INFO!O19 -> 52810 | AC19: =MAX('T1'!L19,'T2'!J19)+MAX('T1'!M19,'T2'!K19)+MAX('T1'!N19,'T2'!L19) -> 113171 | AD19: =IF(COUNTRY_INFO!K19=1,IF(COUNTRY_INFO!F19*0.33>MAX('T1'!M19,'T2'!K19),MAX('T1'!M19,'T2'!K19),COUNTRY_INFO!F19*0.33),IF(COUNTRY_INFO!K19=2,IF(COUNTRY_INFO!F19*0.5>MAX('T1'!M19,'T2'!K19),MAX('T1'!M19,'T2'!K19),COUNTRY_INFO!F19*0.5),IF(COUNTRY_INFO!K19=3,IF(COUNTRY_INFO!F19>MAX('T1'!M19,'T2'!K19),MAX('T1'!M19,'T2'!K19),COUNTRY_INFO!F19),0))) -> 46722 | AE19: =IF(AND(COUNTRY_INFO!K19>0,COUNTRY_INFO!K19<4),IF(Z19>0,IF(COUNTRY_INFO!K19=1, AD19/(COUNTRY_INFO!F19*0.33)*100, IF(COUNTRY_INFO!K19=2, AD19/(COUNTRY_INFO!F19*0.5)*100, IF(COUNTRY_INFO!K19=3, AD19/COUNTRY_INFO!F19*100))),"-"),0) -> 71.2337291 | AF19: =IF(COUNTRY_INFO!K19=2,IF(COUNTRY_INFO!G19*0.2>MAX('T1'!N19,'T2'!L19),MAX('T1'!N19,'T2'!L19),COUNTRY_INFO!G19*0.2),IF(COUNTRY_INFO!K19=3,IF(COUNTRY_INFO!G19>MAX('T1'!N19,'T2'!L19),MAX('T1'!N19,'T2'!L19),COUNTRY_INFO!G19),0)) -> 47486.95376 | AG19: =IF(AND(COUNTRY_INFO!K19>0,COUNTRY_INFO!K19<4),IF(Z19>0,IF(COUNTRY_INFO!K19=1, 0, IF(COUNTRY_INFO!K19=2, AF19/(COUNTRY_INFO!G19*0.2)*100, IF(COUNTRY_INFO!K19=3, AF19/COUNTRY_INFO!G19*100))),"-"),0) -> 100 | AH19: 94208.95376 | AI19: =IF(AND(COUNTRY_INFO!K19>0,COUNTRY_INFO!K19<4), IF(AC19/Z19*100<>0, IF(AH19/Z19*100>100,100,AH19/Z19*100), "-"),0) -> 100 | AK19: =IF(AND(D19<>0, D19<>"Unknown",D19<>"Stopped",D19<>"Not required"),D19/COUNTRY_INFO!D19, 0) -> 0 | AL19: =IF(AND(J19<>0,J19<>"Unknown",J19<>"Stopped",J19<>"Not required"),J19/COUNTRY_INFO!D19, 0) -> 0 | AM19: =IF(AND(P19<>0,P19<>"Unknown",P19<>"Not required"),P19/(COUNTRY_INFO!E19+COUNTRY_INFO!F19), 0) -> 1 | AN19: =IF(AND(Z19<>0,Z19<>"Unknown",Z19<>"Not required"),IF(COUNTRY_INFO!K19=1,1,IF(COUNTRY_INFO!K19=2,0.5*COUNTRY_INFO!F19/(0.5*COUNTRY_INFO!F19+0.2*COUNTRY_INFO!G19),IF(COUNTRY_INFO!K19=3,COUNTRY_INFO!F19/(COUNTRY_INFO!F19+COUNTRY_INFO!G19)))),0) -> 0.5800464037 | AO19: =IF(AND(Z19<>0,Z19<>"Unknown",Z19<>"Not required"),IF(COUNTRY_INFO!K19=1,0,IF(COUNTRY_INFO!K19=2,0.2*COUNTRY_INFO!G19/(0.5*COUNTRY_INFO!F19+0.2*COUNTRY_INFO!G19),IF(COUNTRY_INFO!K19=3,COUNTRY_INFO!G19/(COUNTRY_INFO!F19+COUNTRY_INFO!G19)))),0) -> 0.4199535963 | AP19: =MAX(COUNTRY_INFO!D19*AK19*PROFILE!$G$7,COUNTRY_INFO!D19*AL19*PROFILE!$G$7) -> 0 | AQ19: =MAX(COUNTRY_INFO!D19*AK19*PROFILE!$G$8,COUNTRY_INFO!D19*AL19*PROFILE!$G$8,COUNTRY_INFO!D19*AM19*PROFILE!$G$8) -> 51620.0521 | AR19: =MAX(COUNTRY_INFO!D19*AK19*PROFILE!$G$9,COUNTRY_INFO!D19*AL19*PROFILE!$G$9,COUNTRY_INFO!D19*AM19*PROFILE!$G$9,IF(AND(DISTRICT!Z19<>"Unknown",Z19<>"Not required"),COUNTRY_INFO!O19*DISTRICT!AN19,0)) -> 124469.7982 | AS19: =MAX(COUNTRY_INFO!D19*AK19*PROFILE!$G$10,COUNTRY_INFO!D19*AL19*PROFILE!$G$10,IF(AND(DISTRICT!Z19<>"Unknown",Z19<>"Not required"),COUNTRY_INFO!O19*DISTRICT!AO19,0)) -> 22177.74942 | AT19: 198267.5997 | AU19: Y | AV19: =MAX('MDA2'!J19,'MDA5'!J19,'T1'!L19,'T2'!J19,T3_R1!K19,T3_R2!K19) -> 47016 | AW19: =MAX('MDA1'!K19,'MDA2'!K19,'MDA3'!I19,'MDA3'!L19,'MDA5'!K19,'T1'!M19,'T2'!K19,T3_R1!L19,T3_R2!L19) -> 116123 | AX19: =MAX('MDA1'!L19,'MDA2'!L19,'MDA3'!J19,'MDA3'!M19,'MDA5'!L19,'T1'!N19,'T2'!L19,T3_R1!M19,T3_R2!M19) -> 179597 | AY19: 342736 | AZ19: =MAX('MDA2'!J19,'MDA5'!J19,T19) -> 47016 | BA19: =MAX('MDA1'!K19,'MDA2'!K19,'MDA3'!I19,'MDA3'!L19,'MDA5'!K19,V19,AD19) -> 116123 | BB19: =MAX('MDA1'!L19,'MDA2'!L19,'MDA3'!J19,'MDA3'!M19,'MDA5'!L19,AF19) -> 47486.95376 | BC19: 198267.5997 | BD19: 100
A20: =IF(COUNTRY_INFO!A20=0," ",COUNTRY_INFO!A20) -> Rwanda | B20: =IF(COUNTRY_INFO!B20=0," ",COUNTRY_INFO!B20) -> Kigali | C20: =IF(COUNTRY_INFO!C20=0," ",COUNTRY_INFO!C20) -> Kicukiro | D20: =COUNTRY_INFO!L20 -> 0 | G20: =MAX('MDA1'!M20,'MDA2'!M20,'MDA5'!M20) -> 0 | H20: =IF(AND(COUNTRY_INFO!H20>0,COUNTRY_INFO!H20<4),IF(D20>MAX('MDA1'!M20,'MDA2'!M20,'MDA5'!M20),MAX('MDA1'!M20,'MDA2'!M20,'MDA5'!M20),D20),0) -> 0 | I20: =IF(AND(COUNTRY_INFO!H20>0,COUNTRY_INFO!H20<4), IF(G20/D20*100<>0, IF(G20/D20*100>100,100,G20/D20*100), "-"),0) -> 0 | J20: =COUNTRY_INFO!M20 -> 0 | M20: =MAX('MDA1'!M20,MAX('MDA3'!I20,'MDA3'!L20)+MAX('MDA3'!J20,'MDA3'!M20)) -> 0 | N20: =IF(AND(COUNTRY_INFO!I20>0,COUNTRY_INFO!I20<4),IF(J20>MAX('MDA1'!M20,MAX('MDA3'!I20,'MDA3'!L20)+MAX('MDA3'!J20,'MDA3'!M20)),MAX('MDA1'!M20,MAX('MDA3'!I20,'MDA3'!L20)+MAX('MDA3'!J20,'MDA3'!M20)),J20),0) -> 0 | O20: =IF(AND(COUNTRY_INFO!I20>0,COUNTRY_INFO!I20<4), IF(M20/J20*100<>0, IF(M20/J20*100>100,100,M20/J20*100), "-"),0) -> 0 | P20: =COUNTRY_INFO!N20 -> 0 | S20: =SUM(MAX('MDA2'!J20,'MDA5'!J20, 'T1'!L20, MAX(T3_R1!K20, T3_R2!K20)), MAX('MDA1'!K20, 'MDA2'!K20, 'MDA5'!K20,'T1'!M20, MAX(T3_R1!L20, T3_R2!L20)), MAX('MDA1'!L20, 'MDA2'!L20, 'MDA5'!L20,'T1'!N20, MAX(T3_R1!M20, T3_R2!M20))) -> 217995 | T20: =IF(AND(COUNTRY_INFO!J20>1,COUNTRY_INFO!J20<4),IF(COUNTRY_INFO!E20>MAX('MDA2'!J20,'MDA5'!J20,'T1'!L20,MAX(T3_R1!K20,T3_R2!K20)),MAX('MDA2'!J20,'MDA5'!J20,'T1'!L20,MAX(T3_R1!K20,T3_R2!K20)),COUNTRY_INFO!E20),0) -> 0 | U20: =IF(AND(COUNTRY_INFO!J20>1,COUNTRY_INFO!J20<4), IF(T20/COUNTRY_INFO!E20*100<>0, IF(T20/COUNTRY_INFO!E20*100>100,100,T20/COUNTRY_INFO!E20*100), "-"),0) -> 0 | V20: =IF(AND(COUNTRY_INFO!J20>1,COUNTRY_INFO!J20<4),IF(COUNTRY_INFO!F20>MAX('MDA1'!K20,'MDA2'!K20,'MDA5'!K20,'T1'!M20,MAX(T3_R1!L20,T3_R2!L20)),MAX('MDA1'!K20,'MDA2'!K20,'MDA5'!K20,'T1'!M20,MAX(T3_R1!L20,T3_R2!L20)),COUNTRY_INFO!F20),0) -> 0 | W20: =IF(AND(COUNTRY_INFO!J20>1,COUNTRY_INFO!J20<4), IF(V20/COUNTRY_INFO!F20*100<>0, IF(V20/COUNTRY_INFO!F20*100>100,100,V20/COUNTRY_INFO!F20*100), "-"),0) -> 0 | X20: 0 | Y20: =IF(AND(COUNTRY_INFO!J20>1,COUNTRY_INFO!J20<4), IF(S20/P20*100<>0, IF(X20/P20*100>100,100,X20/P20*100), "-"),0) -> 0 | Z20: =COUNTRY_INFO!O20 -> 37998 | AC20: =MAX('T1'!L20,'T2'!J20)+MAX('T1'!M20,'T2'!K20)+MAX('T1'!N20,'T2'!L20) -> 0 | AD20: =IF(COUNTRY_INFO!K20=1,IF(COUNTRY_INFO!F20*0.33>MAX('T1'!M20,'T2'!K20),MAX('T1'!M20,'T2'!K20),COUNTRY_INFO!F20*0.33),IF(COUNTRY_INFO!K20=2,IF(COUNTRY_INFO!F20*0.5>MAX('T1'!M20,'T2'!K20),MAX('T1'!M20,'T2'!K20),COUNTRY_INFO!F20*0.5),IF(COUNTRY_INFO!K20=3,IF(COUNTRY_INFO!F20>MAX('T1'!M20,'T2'!K20),MAX('T1'!M20,'T2'!K20),COUNTRY_INFO!F20),0))) -> 0 | AE20: =IF(AND(COUNTRY_INFO!K20>0,COUNTRY_INFO!K20<4),IF(Z20>0,IF(COUNTRY_INFO!K20=1, AD20/(COUNTRY_INFO!F20*0.33)*100, IF(COUNTRY_INFO!K20=2, AD20/(COUNTRY_INFO!F20*0.5)*100, IF(COUNTRY_INFO!K20=3, AD20/COUNTRY_INFO!F20*100))),"-"),0) -> 0 | AF20: =IF(COUNTRY_INFO!K20=2,IF(COUNTRY_INFO!G20*0.2>MAX('T1'!N20,'T2'!L20),MAX('T1'!N20,'T2'!L20),COUNTRY_INFO!G20*0.2),IF(COUNTRY_INFO!K20=3,IF(COUNTRY_INFO!G20>MAX('T1'!N20,'T2'!L20),MAX('T1'!N20,'T2'!L20),COUNTRY_INFO!G20),0)) -> 0 | AG20: =IF(AND(COUNTRY_INFO!K20>0,COUNTRY_INFO!K20<4),IF(Z20>0,IF(COUNTRY_INFO!K20=1, 0, IF(COUNTRY_INFO!K20=2, AF20/(COUNTRY_INFO!G20*0.2)*100, IF(COUNTRY_INFO!K20=3, AF20/COUNTRY_INFO!G20*100))),"-"),0) -> 0 | AH20: 0 | AI20: =IF(AND(COUNTRY_INFO!K20>0,COUNTRY_INFO!K20<4), IF(AC20/Z20*100<>0, IF(AH20/Z20*100>100,100,AH20/Z20*100), "-"),0) -> - | AK20: =IF(AND(D20<>0, D20<>"Unknown",D20<>"Stopped",D20<>"Not required"),D20/COUNTRY_INFO!D20, 0) -> 0 | AL20: =IF(AND(J20<>0,J20<>"Unknown",J20<>"Stopped",J20<>"Not required"),J20/COUNTRY_INFO!D20, 0) -> 0 | AM20: =IF(AND(P20<>0,P20<>"Unknown",P20<>"Not required"),P20/(COUNTRY_INFO!E20+COUNTRY_INFO!F20), 0) -> 0 | AN20: =IF(AND(Z20<>0,Z20<>"Unknown",Z20<>"Not required"),IF(COUNTRY_INFO!K20=1,1,IF(COUNTRY_INFO!K20=2,0.5*COUNTRY_INFO!F20/(0.5*COUNTRY_INFO!F20+0.2*COUNTRY_INFO!G20),IF(COUNTRY_INFO!K20=3,COUNTRY_INFO!F20/(COUNTRY_INFO!F20+COUNTRY_INFO!G20)))),0) -> 1 | AO20: =IF(AND(Z20<>0,Z20<>"Unknown",Z20<>"Not required"),IF(COUNTRY_INFO!K20=1,0,IF(COUNTRY_INFO!K20=2,0.2*COUNTRY_INFO!G20/(0.5*COUNTRY_INFO!F20+0.2*COUNTRY_INFO!G20),IF(COUNTRY_INFO!K20=3,COUNTRY_INFO!G20/(COUNTRY_INFO!F20+COUNTRY_INFO!G20)))),0) -> 0 | AP20: =MAX(COUNTRY_INFO!D20*AK20*PROFILE!$G$7,COUNTRY_INFO!D20*AL20*PROFILE!$G$7) -> 0 | AQ20: =MAX(COUNTRY_INFO!D20*AK20*PROFILE!$G$8,COUNTRY_INFO!D20*AL20*PROFILE!$G$8,COUNTRY_INFO!D20*AM20*PROFILE!$G$8) -> 0 | AR20: =MAX(COUNTRY_INFO!D20*AK20*PROFILE!$G$9,COUNTRY_INFO!D20*AL20*PROFILE!$G$9,COUNTRY_INFO!D20*AM20*PROFILE!$G$9,IF(AND(DISTRICT!Z20<>"Unknown",Z20<>"Not required"),COUNTRY_INFO!O20*DISTRICT!AN20,0)) -> 37998 | AS20: =MAX(COUNTRY_INFO!D20*AK20*PROFILE!$G$10,COUNTRY_INFO!D20*AL20*PROFILE!$G$10,IF(AND(DISTRICT!Z20<>"Unknown",Z20<>"Not required"),COUNTRY_INFO!O20*DISTRICT!AO20,0)) -> 0 | AT20: 37998 | AU20: 0 | AV20: =MAX('MDA2'!J20,'MDA5'!J20,'T1'!L20,'T2'!J20,T3_R1!K20,T3_R2!K20) -> 42171 | AW20: =MAX('MDA1'!K20,'MDA2'!K20,'MDA3'!I20,'MDA3'!L20,'MDA5'!K20,'T1'!M20,'T2'!K20,T3_R1!L20,T3_R2!L20) -> 109313 | AX20: =MAX('MDA1'!L20,'MDA2'!L20,'MDA3'!J20,'MDA3'!M20,'MDA5'!L20,'T1'!N20,'T2'!L20,T3_R1!M20,T3_R2!M20) -> 66511 | AY20: 217995 | AZ20: =MAX('MDA2'!J20,'MDA5'!J20,T20) -> 0 | BA20: =MAX('MDA1'!K20,'MDA2'!K20,'MDA3'!I20,'MDA3'!L20,'MDA5'!K20,V20,AD20) -> 0 | BB20: =MAX('MDA1'!L20,'MDA2'!L20,'MDA3'!J20,'MDA3'!M20,'MDA5'!L20,AF20) -> 0 | BC20: 0 | BD20: 0
A21: =IF(COUNTRY_INFO!A21=0," ",COUNTRY_INFO!A21) -> Rwanda | B21: =IF(COUNTRY_INFO!B21=0," ",COUNTRY_INFO!B21) -> Eastern | C21: =IF(COUNTRY_INFO!C21=0," ",COUNTRY_INFO!C21) -> Kirehe | D21: =COUNTRY_INFO!L21 -> 0 | G21: =MAX('MDA1'!M21,'MDA2'!M21,'MDA5'!M21) -> 0 | H21: =IF(AND(COUNTRY_INFO!H21>0,COUNTRY_INFO!H21<4),IF(D21>MAX('MDA1'!M21,'MDA2'!M21,'MDA5'!M21),MAX('MDA1'!M21,'MDA2'!M21,'MDA5'!M21),D21),0) -> 0 | I21: =IF(AND(COUNTRY_INFO!H21>0,COUNTRY_INFO!H21<4), IF(G21/D21*100<>0, IF(G21/D21*100>100,100,G21/D21*100), "-"),0) -> 0 | J21: =COUNTRY_INFO!M21 -> 0 | M21: =MAX('MDA1'!M21,MAX('MDA3'!I21,'MDA3'!L21)+MAX('MDA3'!J21,'MDA3'!M21)) -> 0 | N21: =IF(AND(COUNTRY_INFO!I21>0,COUNTRY_INFO!I21<4),IF(J21>MAX('MDA1'!M21,MAX('MDA3'!I21,'MDA3'!L21)+MAX('MDA3'!J21,'MDA3'!M21)),MAX('MDA1'!M21,MAX('MDA3'!I21,'MDA3'!L21)+MAX('MDA3'!J21,'MDA3'!M21)),J21),0) -> 0 | O21: =IF(AND(COUNTRY_INFO!I21>0,COUNTRY_INFO!I21<4), IF(M21/J21*100<>0, IF(M21/J21*100>100,100,M21/J21*100), "-"),0) -> 0 | P21: =COUNTRY_INFO!N21 -> 0 | S21: =SUM(MAX('MDA2'!J21,'MDA5'!J21, 'T1'!L21, MAX(T3_R1!K21, T3_R2!K21)), MAX('MDA1'!K21, 'MDA2'!K21, 'MDA5'!K21,'T1'!M21, MAX(T3_R1!L21, T3_R2!L21)), MAX('MDA1'!L21, 'MDA2'!L21, 'MDA5'!L21,'T1'!N21, MAX(T3_R1!M21, T3_R2!M21))) -> 385925 | T21: =IF(AND(COUNTRY_INFO!J21>1,COUNTRY_INFO!J21<4),IF(COUNTRY_INFO!E21>MAX('MDA2'!J21,'MDA5'!J21,'T1'!L21,MAX(T3_R1!K21,T3_R2!K21)),MAX('MDA2'!J21,'MDA5'!J21,'T1'!L21,MAX(T3_R1!K21,T3_R2!K21)),COUNTRY_INFO!E21),0) -> 0 | U21: =IF(AND(COUNTRY_INFO!J21>1,COUNTRY_INFO!J21<4), IF(T21/COUNTRY_INFO!E21*100<>0, IF(T21/COUNTRY_INFO!E21*100>100,100,T21/COUNTRY_INFO!E21*100), "-"),0) -> 0 | V21: =IF(AND(COUNTRY_INFO!J21>1,COUNTRY_INFO!J21<4),IF(COUNTRY_INFO!F21>MAX('MDA1'!K21,'MDA2'!K21,'MDA5'!K21,'T1'!M21,MAX(T3_R1!L21,T3_R2!L21)),MAX('MDA1'!K21,'MDA2'!K21,'MDA5'!K21,'T1'!M21,MAX(T3_R1!L21,T3_R2!L21)),COUNTRY_INFO!F21),0) -> 0 | W21: =IF(AND(COUNTRY_INFO!J21>1,COUNTRY_INFO!J21<4), IF(V21/COUNTRY_INFO!F21*100<>0, IF(V21/COUNTRY_INFO!F21*100>100,100,V21/COUNTRY_INFO!F21*100), "-"),0) -> 0 | X21: 0 | Y21: =IF(AND(COUNTRY_INFO!J21>1,COUNTRY_INFO!J21<4), IF(S21/P21*100<>0, IF(X21/P21*100>100,100,X21/P21*100), "-"),0) -> 0 | Z21: =COUNTRY_INFO!O21 -> 42721 | AC21: =MAX('T1'!L21,'T2'!J21)+MAX('T1'!M21,'T2'!K21)+MAX('T1'!N21,'T2'!L21) -> 0 | AD21: =IF(COUNTRY_INFO!K21=1,IF(COUNTRY_INFO!F21*0.33>MAX('T1'!M21,'T2'!K21),MAX('T1'!M21,'T2'!K21),COUNTRY_INFO!F21*0.33),IF(COUNTRY_INFO!K21=2,IF(COUNTRY_INFO!F21*0.5>MAX('T1'!M21,'T2'!K21),MAX('T1'!M21,'T2'!K21),COUNTRY_INFO!F21*0.5),IF(COUNTRY_INFO!K21=3,IF(COUNTRY_INFO!F21>MAX('T1'!M21,'T2'!K21),MAX('T1'!M21,'T2'!K21),COUNTRY_INFO!F21),0))) -> 0 | AE21: =IF(AND(COUNTRY_INFO!K21>0,COUNTRY_INFO!K21<4),IF(Z21>0,IF(COUNTRY_INFO!K21=1, AD21/(COUNTRY_INFO!F21*0.33)*100, IF(COUNTRY_INFO!K21=2, AD21/(COUNTRY_INFO!F21*0.5)*100, IF(COUNTRY_INFO!K21=3, AD21/COUNTRY_INFO!F21*100))),"-"),0) -> 0 | AF21: =IF(COUNTRY_INFO!K21=2,IF(COUNTRY_INFO!G21*0.2>MAX('T1'!N21,'T2'!L21),MAX('T1'!N21,'T2'!L21),COUNTRY_INFO!G21*0.2),IF(COUNTRY_INFO!K21=3,IF(COUNTRY_INFO!G21>MAX('T1'!N21,'T2'!L21),MAX('T1'!N21,'T2'!L21),COUNTRY_INFO!G21),0)) -> 0 | AG21: =IF(AND(COUNTRY_INFO!K21>0,COUNTRY_INFO!K21<4),IF(Z21>0,IF(COUNTRY_INFO!K21=1, 0, IF(COUNTRY_INFO!K21=2, AF21/(COUNTRY_INFO!G21*0.2)*100, IF(COUNTRY_INFO!K21=3, AF21/COUNTRY_INFO!G21*100))),"-"),0) -> 0 | AH21: 0 | AI21: =IF(AND(COUNTRY_INFO!K21>0,COUNTRY_INFO!K21<4), IF(AC21/Z21*100<>0, IF(AH21/Z21*100>100,100,AH21/Z21*100), "-"),0) -> - | AK21: =IF(AND(D21<>0, D21<>"Unknown",D21<>"Stopped",D21<>"Not required"),D21/COUNTRY_INFO!D21, 0) -> 0 | AL21: =IF(AND(J21<>0,J21<>"Unknown",J21<>"Stopped",J21<>"Not required"),J21/COUNTRY_INFO!D21, 0) -> 0 | AM21: =IF(AND(P21<>0,P21<>"Unknown",P21<>"Not required"),P21/(COUNTRY_INFO!E21+COUNTRY_INFO!F21), 0) -> 0 | AN21: =IF(AND(Z21<>0,Z21<>"Unknown",Z21<>"Not required"),IF(COUNTRY_INFO!K21=1,1,IF(COUNTRY_INFO!K21=2,0.5*COUNTRY_INFO!F21/(0.5*COUNTRY_INFO!F21+0.2*COUNTRY_INFO!G21),IF(COUNTRY_INFO!K21=3,COUNTRY_INFO!F21/(COUNTRY_INFO!F21+COUNTRY_INFO!G21)))),0) -> 1 | AO21: =IF(AND(Z21<>0,Z21<>"Unknown",Z21<>"Not required"),IF(COUNTRY_INFO!K21=1,0,IF(COUNTRY_INFO!K21=2,0.2*COUNTRY_INFO!G21/(0.5*COUNTRY_INFO!F21+0.2*COUNTRY_INFO!G21),IF(COUNTRY_INFO!K21=3,COUNTRY_INFO!G21/(COUNTRY_INFO!F21+COUNTRY_INFO!G21)))),0) -> 0 | AP21: =MAX(COUNTRY_INFO!D21*AK21*PROFILE!$G$7,COUNTRY_INFO!D21*AL21*PROFILE!$G$7) -> 0 | AQ21: =MAX(COUNTRY_INFO!D21*AK21*PROFILE!$G$8,COUNTRY_INFO!D21*AL21*PROFILE!$G$8,COUNTRY_INFO!D21*AM21*PROFILE!$G$8) -> 0 | AR21: =MAX(COUNTRY_INFO!D21*AK21*PROFILE!$G$9,COUNTRY_INFO!D21*AL21*PROFILE!$G$9,COUNTRY_INFO!D21*AM21*PROFILE!$G$9,IF(AND(DISTRICT!Z21<>"Unknown",Z21<>"Not required"),COUNTRY_INFO!O21*DISTRICT!AN21,0)) -> 42721 | AS21: =MAX(COUNTRY_INFO!D21*AK21*PROFILE!$G$10,COUNTRY_INFO!D21*AL21*PROFILE!$G$10,IF(AND(DISTRICT!Z21<>"Unknown",Z21<>"Not required"),COUNTRY_INFO!O21*DISTRICT!AO21,0)) -> 0 | AT21: 42721 | AU21: 0 | AV21: =MAX('MDA2'!J21,'MDA5'!J21,'T1'!L21,'T2'!J21,T3_R1!K21,T3_R2!K21) -> 58095 | AW21: =MAX('MDA1'!K21,'MDA2'!K21,'MDA3'!I21,'MDA3'!L21,'MDA5'!K21,'T1'!M21,'T2'!K21,T3_R1!L21,T3_R2!L21) -> 121294 | AX21: =MAX('MDA1'!L21,'MDA2'!L21,'MDA3'!J21,'MDA3'!M21,'MDA5'!L21,'T1'!N21,'T2'!L21,T3_R1!M21,T3_R2!M21) -> 206536 | AY21: 385925 | AZ21: =MAX('MDA2'!J21,'MDA5'!J21,T21) -> 0 | BA21: =MAX('MDA1'!K21,'MDA2'!K21,'MDA3'!I21,'MDA3'!L21,'MDA5'!K21,V21,AD21) -> 0 | BB21: =MAX('MDA1'!L21,'MDA2'!L21,'MDA3'!J21,'MDA3'!M21,'MDA5'!L21,AF21) -> 0 | BC21: 0 | BD21: 0
A22: =IF(COUNTRY_INFO!A22=0," ",COUNTRY_INFO!A22) -> Rwanda | B22: =IF(COUNTRY_INFO!B22=0," ",COUNTRY_INFO!B22) -> Southern | C22: =IF(COUNTRY_INFO!C22=0," ",COUNTRY_INFO!C22) -> Muhanga | D22: =COUNTRY_INFO!L22 -> 0 | G22: =MAX('MDA1'!M22,'MDA2'!M22,'MDA5'!M22) -> 0 | H22: =IF(AND(COUNTRY_INFO!H22>0,COUNTRY_INFO!H22<4),IF(D22>MAX('MDA1'!M22,'MDA2'!M22,'MDA5'!M22),MAX('MDA1'!M22,'MDA2'!M22,'MDA5'!M22),D22),0) -> 0 | I22: =IF(AND(COUNTRY_INFO!H22>0,COUNTRY_INFO!H22<4), IF(G22/D22*100<>0, IF(G22/D22*100>100,100,G22/D22*100), "-"),0) -> 0 | J22: =COUNTRY_INFO!M22 -> 0 | M22: =MAX('MDA1'!M22,MAX('MDA3'!I22,'MDA3'!L22)+MAX('MDA3'!J22,'MDA3'!M22)) -> 0 | N22: =IF(AND(COUNTRY_INFO!I22>0,COUNTRY_INFO!I22<4),IF(J22>MAX('MDA1'!M22,MAX('MDA3'!I22,'MDA3'!L22)+MAX('MDA3'!J22,'MDA3'!M22)),MAX('MDA1'!M22,MAX('MDA3'!I22,'MDA3'!L22)+MAX('MDA3'!J22,'MDA3'!M22)),J22),0) -> 0 | O22: =IF(AND(COUNTRY_INFO!I22>0,COUNTRY_INFO!I22<4), IF(M22/J22*100<>0, IF(M22/J22*100>100,100,M22/J22*100), "-"),0) -> 0 | P22: =COUNTRY_INFO!N22 -> 153593.4014 | S22: =SUM(MAX('MDA2'!J22,'MDA5'!J22, 'T1'!L22, MAX(T3_R1!K22, T3_R2!K22)), MAX('MDA1'!K22, 'MDA2'!K22, 'MDA5'!K22,'T1'!M22, MAX(T3_R1!L22, T3_R2!L22)), MAX('MDA1'!L22, 'MDA2'!L22, 'MDA5'!L22,'T1'!N22, MAX(T3_R1!M22, T3_R2!M22))) -> 343574 | T22: =IF(AND(COUNTRY_INFO!J22>1,COUNTRY_INFO!J22<4),IF(COUNTRY_INFO!E22>MAX('MDA2'!J22,'MDA5'!J22,'T1'!L22,MAX(T3_R1!K22,T3_R2!K22)),MAX('MDA2'!J22,'MDA5'!J22,'T1'!L22,MAX(T3_R1!K22,T3_R2!K22)),COUNTRY_INFO!E22),0) -> 37679 | U22: =IF(AND(COUNTRY_INFO!J22>1,COUNTRY_INFO!J22<4), IF(T22/COUNTRY_INFO!E22*100<>0, IF(T22/COUNTRY_INFO!E22*100>100,100,T22/COUNTRY_INFO!E22*100), "-"),0) -> 90.98146973 | V22: =IF(AND(COUNTRY_INFO!J22>1,COUNTRY_INFO!J22<4),IF(COUNTRY_INFO!F22>MAX('MDA1'!K22,'MDA2'!K22,'MDA5'!K22,'T1'!M22,MAX(T3_R1!L22,T3_R2!L22)),MAX('MDA1'!K22,'MDA2'!K22,'MDA5'!K22,'T1'!M22,MAX(T3_R1!L22,T3_R2!L22)),COUNTRY_INFO!F22),0) -> 98055 | W22: =IF(AND(COUNTRY_INFO!J22>1,COUNTRY_INFO!J22<4), IF(V22/COUNTRY_INFO!F22*100<>0, IF(V22/COUNTRY_INFO!F22*100>100,100,V22/COUNTRY_INFO!F22*100), "-"),0) -> 87.40903902 | X22: 135734 | Y22: =IF(AND(COUNTRY_INFO!J22>1,COUNTRY_INFO!J22<4), IF(S22/P22*100<>0, IF(X22/P22*100>100,100,X22/P22*100), "-"),0) -> 88.37228604 | Z22: =COUNTRY_INFO!O22 -> 22840 | AC22: =MAX('T1'!L22,'T2'!J22)+MAX('T1'!M22,'T2'!K22)+MAX('T1'!N22,'T2'!L22) -> 41565 | AD22: =IF(COUNTRY_INFO!K22=1,IF(COUNTRY_INFO!F22*0.33>MAX('T1'!M22,'T2'!K22),MAX('T1'!M22,'T2'!K22),COUNTRY_INFO!F22*0.33),IF(COUNTRY_INFO!K22=2,IF(COUNTRY_INFO!F22*0.5>MAX('T1'!M22,'T2'!K22),MAX('T1'!M22,'T2'!K22),COUNTRY_INFO!F22*0.5),IF(COUNTRY_INFO!K22=3,IF(COUNTRY_INFO!F22>MAX('T1'!M22,'T2'!K22),MAX('T1'!M22,'T2'!K22),COUNTRY_INFO!F22),0))) -> 15908 | AE22: =IF(AND(COUNTRY_INFO!K22>0,COUNTRY_INFO!K22<4),IF(Z22>0,IF(COUNTRY_INFO!K22=1, AD22/(COUNTRY_INFO!F22*0.33)*100, IF(COUNTRY_INFO!K22=2, AD22/(COUNTRY_INFO!F22*0.5)*100, IF(COUNTRY_INFO!K22=3, AD22/COUNTRY_INFO!F22*100))),"-"),0) -> 28.36169482 | AF22: =IF(COUNTRY_INFO!K22=2,IF(COUNTRY_INFO!G22*0.2>MAX('T1'!N22,'T2'!L22),MAX('T1'!N22,'T2'!L22),COUNTRY_INFO!G22*0.2),IF(COUNTRY_INFO!K22=3,IF(COUNTRY_INFO!G22>MAX('T1'!N22,'T2'!L22),MAX('T1'!N22,'T2'!L22),COUNTRY_INFO!G22),0)) -> 25657 | AG22: =IF(AND(COUNTRY_INFO!K22>0,COUNTRY_INFO!K22<4),IF(Z22>0,IF(COUNTRY_INFO!K22=1, 0, IF(COUNTRY_INFO!K22=2, AF22/(COUNTRY_INFO!G22*0.2)*100, IF(COUNTRY_INFO!K22=3, AF22/COUNTRY_INFO!G22*100))),"-"),0) -> 56.07308067 | AH22: 41565 | AI22: =IF(AND(COUNTRY_INFO!K22>0,COUNTRY_INFO!K22<4), IF(AC22/Z22*100<>0, IF(AH22/Z22*100>100,100,AH22/Z22*100), "-"),0) -> 100 | AK22: =IF(AND(D22<>0, D22<>"Unknown",D22<>"Stopped",D22<>"Not required"),D22/COUNTRY_INFO!D22, 0) -> 0 | AL22: =IF(AND(J22<>0,J22<>"Unknown",J22<>"Stopped",J22<>"Not required"),J22/COUNTRY_INFO!D22, 0) -> 0 | AM22: =IF(AND(P22<>0,P22<>"Unknown",P22<>"Not required"),P22/(COUNTRY_INFO!E22+COUNTRY_INFO!F22), 0) -> 1 | AN22: =IF(AND(Z22<>0,Z22<>"Unknown",Z22<>"Not required"),IF(COUNTRY_INFO!K22=1,1,IF(COUNTRY_INFO!K22=2,0.5*COUNTRY_INFO!F22/(0.5*COUNTRY_INFO!F22+0.2*COUNTRY_INFO!G22),IF(COUNTRY_INFO!K22=3,COUNTRY_INFO!F22/(COUNTRY_INFO!F22+COUNTRY_INFO!G22)))),0) -> 0.5507303593 | AO22: =IF(AND(Z22<>0,Z22<>"Unknown",Z22<>"Not required"),IF(COUNTRY_INFO!K22=1,0,IF(COUNTRY_INFO!K22=2,0.2*COUNTRY_INFO!G22/(0.5*COUNTRY_INFO!F22+0.2*COUNTRY_INFO!G22),IF(COUNTRY_INFO!K22=3,COUNTRY_INFO!G22/(COUNTRY_INFO!F22+COUNTRY_INFO!G22)))),0) -> 0.4492696407 | AP22: =MAX(COUNTRY_INFO!D22*AK22*PROFILE!$G$7,COUNTRY_INFO!D22*AL22*PROFILE!$G$7) -> 0 | AQ22: =MAX(COUNTRY_INFO!D22*AK22*PROFILE!$G$8,COUNTRY_INFO!D22*AL22*PROFILE!$G$8,COUNTRY_INFO!D22*AM22*PROFILE!$G$8) -> 47466.05609 | AR22: =MAX(COUNTRY_INFO!D22*AK22*PROFILE!$G$9,COUNTRY_INFO!D22*AL22*PROFILE!$G$9,COUNTRY_INFO!D22*AM22*PROFILE!$G$9,IF(AND(DISTRICT!Z22<>"Unknown",Z22<>"Not required"),COUNTRY_INFO!O22*DISTRICT!AN22,0)) -> 114453.3991 | AS22: =MAX(COUNTRY_INFO!D22*AK22*PROFILE!$G$10,COUNTRY_INFO!D22*AL22*PROFILE!$G$10,IF(AND(DISTRICT!Z22<>"Unknown",Z22<>"Not required"),COUNTRY_INFO!O22*DISTRICT!AO22,0)) -> 10261.31859 | AT22: 172180.7737 | AU22: Y | AV22: =MAX('MDA2'!J22,'MDA5'!J22,'T1'!L22,'T2'!J22,T3_R1!K22,T3_R2!K22) -> 37679 | AW22: =MAX('MDA1'!K22,'MDA2'!K22,'MDA3'!I22,'MDA3'!L22,'MDA5'!K22,'T1'!M22,'T2'!K22,T3_R1!L22,T3_R2!L22) -> 98055 | AX22: =MAX('MDA1'!L22,'MDA2'!L22,'MDA3'!J22,'MDA3'!M22,'MDA5'!L22,'T1'!N22,'T2'!L22,T3_R1!M22,T3_R2!M22) -> 207840 | AY22: 343574 | AZ22: =MAX('MDA2'!J22,'MDA5'!J22,T22) -> 37679 | BA22: =MAX('MDA1'!K22,'MDA2'!K22,'MDA3'!I22,'MDA3'!L22,'MDA5'!K22,V22,AD22) -> 98055 | BB22: =MAX('MDA1'!L22,'MDA2'!L22,'MDA3'!J22,'MDA3'!M22,'MDA5'!L22,AF22) -> 25657 | BC22: 161391 | BD22: 93.73346193
A23: =IF(COUNTRY_INFO!A23=0," ",COUNTRY_INFO!A23) -> Rwanda | B23: =IF(COUNTRY_INFO!B23=0," ",COUNTRY_INFO!B23) -> Northern | C23: =IF(COUNTRY_INFO!C23=0," ",COUNTRY_INFO!C23) -> Musanze | D23: =COUNTRY_INFO!L23 -> 0 | G23: =MAX('MDA1'!M23,'MDA2'!M23,'MDA5'!M23) -> 0 | H23: =IF(AND(COUNTRY_INFO!H23>0,COUNTRY_INFO!H23<4),IF(D23>MAX('MDA1'!M23,'MDA2'!M23,'MDA5'!M23),MAX('MDA1'!M23,'MDA2'!M23,'MDA5'!M23),D23),0) -> 0 | I23: =IF(AND(COUNTRY_INFO!H23>0,COUNTRY_INFO!H23<4), IF(G23/D23*100<>0, IF(G23/D23*100>100,100,G23/D23*100), "-"),0) -> 0 | J23: =COUNTRY_INFO!M23 -> 0 | M23: =MAX('MDA1'!M23,MAX('MDA3'!I23,'MDA3'!L23)+MAX('MDA3'!J23,'MDA3'!M23)) -> 0 | N23: =IF(AND(COUNTRY_INFO!I23>0,COUNTRY_INFO!I23<4),IF(J23>MAX('MDA1'!M23,MAX('MDA3'!I23,'MDA3'!L23)+MAX('MDA3'!J23,'MDA3'!M23)),MAX('MDA1'!M23,MAX('MDA3'!I23,'MDA3'!L23)+MAX('MDA3'!J23,'MDA3'!M23)),J23),0) -> 0 | O23: =IF(AND(COUNTRY_INFO!I23>0,COUNTRY_INFO!I23<4), IF(M23/J23*100<>0, IF(M23/J23*100>100,100,M23/J23*100), "-"),0) -> 0 | P23: =COUNTRY_INFO!N23 -> 187907.4662 | S23: =SUM(MAX('MDA2'!J23,'MDA5'!J23, 'T1'!L23, MAX(T3_R1!K23, T3_R2!K23)), MAX('MDA1'!K23, 'MDA2'!K23, 'MDA5'!K23,'T1'!M23, MAX(T3_R1!L23, T3_R2!L23)), MAX('MDA1'!L23, 'MDA2'!L23, 'MDA5'!L23,'T1'!N23, MAX(T3_R1!M23, T3_R2!M23))) -> 334023 | T23: =IF(AND(COUNTRY_INFO!J23>1,COUNTRY_INFO!J23<4),IF(COUNTRY_INFO!E23>MAX('MDA2'!J23,'MDA5'!J23,'T1'!L23,MAX(T3_R1!K23,T3_R2!K23)),MAX('MDA2'!J23,'MDA5'!J23,'T1'!L23,MAX(T3_R1!K23,T3_R2!K23)),COUNTRY_INFO!E23),0) -> 41363 | U23: =IF(AND(COUNTRY_INFO!J23>1,COUNTRY_INFO!J23<4), IF(T23/COUNTRY_INFO!E23*100<>0, IF(T23/COUNTRY_INFO!E23*100>100,100,T23/COUNTRY_INFO!E23*100), "-"),0) -> 81.04576605 | V23: =IF(AND(COUNTRY_INFO!J23>1,COUNTRY_INFO!J23<4),IF(COUNTRY_INFO!F23>MAX('MDA1'!K23,'MDA2'!K23,'MDA5'!K23,'T1'!M23,MAX(T3_R1!L23,T3_R2!L23)),MAX('MDA1'!K23,'MDA2'!K23,'MDA5'!K23,'T1'!M23,MAX(T3_R1!L23,T3_R2!L23)),COUNTRY_INFO!F23),0) -> 108575 | W23: =IF(AND(COUNTRY_INFO!J23>1,COUNTRY_INFO!J23<4), IF(V23/COUNTRY_INFO!F23*100<>0, IF(V23/COUNTRY_INFO!F23*100>100,100,V23/COUNTRY_INFO!F23*100), "-"),0) -> 79.32659422 | X23: 149938 | Y23: =IF(AND(COUNTRY_INFO!J23>1,COUNTRY_INFO!J23<4), IF(S23/P23*100<>0, IF(X23/P23*100>100,100,X23/P23*100), "-"),0) -> 79.79352978 | Z23: =COUNTRY_INFO!O23 -> 19130 | AC23: =MAX('T1'!L23,'T2'!J23)+MAX('T1'!M23,'T2'!K23)+MAX('T1'!N23,'T2'!L23) -> 15187 | AD23: =IF(COUNTRY_INFO!K23=1,IF(COUNTRY_INFO!F23*0.33>MAX('T1'!M23,'T2'!K23),MAX('T1'!M23,'T2'!K23),COUNTRY_INFO!F23*0.33),IF(COUNTRY_INFO!K23=2,IF(COUNTRY_INFO!F23*0.5>MAX('T1'!M23,'T2'!K23),MAX('T1'!M23,'T2'!K23),COUNTRY_INFO!F23*0.5),IF(COUNTRY_INFO!K23=3,IF(COUNTRY_INFO!F23>MAX('T1'!M23,'T2'!K23),MAX('T1'!M23,'T2'!K23),COUNTRY_INFO!F23),0))) -> 2967 | AE23: =IF(AND(COUNTRY_INFO!K23>0,COUNTRY_INFO!K23<4),IF(Z23>0,IF(COUNTRY_INFO!K23=1, AD23/(COUNTRY_INFO!F23*0.33)*100, IF(COUNTRY_INFO!K23=2, AD23/(COUNTRY_INFO!F23*0.5)*100, IF(COUNTRY_INFO!K23=3, AD23/COUNTRY_INFO!F23*100))),"-"),0) -> 4.335473268 | AF23: =IF(COUNTRY_INFO!K23=2,IF(COUNTRY_INFO!G23*0.2>MAX('T1'!N23,'T2'!L23),MAX('T1'!N23,'T2'!L23),COUNTRY_INFO!G23*0.2),IF(COUNTRY_INFO!K23=3,IF(COUNTRY_INFO!G23>MAX('T1'!N23,'T2'!L23),MAX('T1'!N23,'T2'!L23),COUNTRY_INFO!G23),0)) -> 12220 | AG23: =IF(AND(COUNTRY_INFO!K23>0,COUNTRY_INFO!K23<4),IF(Z23>0,IF(COUNTRY_INFO!K23=1, 0, IF(COUNTRY_INFO!K23=2, AF23/(COUNTRY_INFO!G23*0.2)*100, IF(COUNTRY_INFO!K23=3, AF23/COUNTRY_INFO!G23*100))),"-"),0) -> 23.22571744 | AH23: 15187 | AI23: =IF(AND(COUNTRY_INFO!K23>0,COUNTRY_INFO!K23<4), IF(AC23/Z23*100<>0, IF(AH23/Z23*100>100,100,AH23/Z23*100), "-"),0) -> 79.38839519 | AK23: =IF(AND(D23<>0, D23<>"Unknown",D23<>"Stopped",D23<>"Not required"),D23/COUNTRY_INFO!D23, 0) -> 0 | AL23: =IF(AND(J23<>0,J23<>"Unknown",J23<>"Stopped",J23<>"Not required"),J23/COUNTRY_INFO!D23, 0) -> 0 | AM23: =IF(AND(P23<>0,P23<>"Unknown",P23<>"Not required"),P23/(COUNTRY_INFO!E23+COUNTRY_INFO!F23), 0) -> 1 | AN23: =IF(AND(Z23<>0,Z23<>"Unknown",Z23<>"Not required"),IF(COUNTRY_INFO!K23=1,1,IF(COUNTRY_INFO!K23=2,0.5*COUNTRY_INFO!F23/(0.5*COUNTRY_INFO!F23+0.2*COUNTRY_INFO!G23),IF(COUNTRY_INFO!K23=3,COUNTRY_INFO!F23/(COUNTRY_INFO!F23+COUNTRY_INFO!G23)))),0) -> 0.5653507091 | AO23: =IF(AND(Z23<>0,Z23<>"Unknown",Z23<>"Not required"),IF(COUNTRY_INFO!K23=1,0,IF(COUNTRY_INFO!K23=2,0.2*COUNTRY_INFO!G23/(0.5*COUNTRY_INFO!F23+0.2*COUNTRY_INFO!G23),IF(COUNTRY_INFO!K23=3,COUNTRY_INFO!G23/(COUNTRY_INFO!F23+COUNTRY_INFO!G23)))),0) -> 0.4346492909 | AP23: =MAX(COUNTRY_INFO!D23*AK23*PROFILE!$G$7,COUNTRY_INFO!D23*AL23*PROFILE!$G$7) -> 0 | AQ23: =MAX(COUNTRY_INFO!D23*AK23*PROFILE!$G$8,COUNTRY_INFO!D23*AL23*PROFILE!$G$8,COUNTRY_INFO!D23*AM23*PROFILE!$G$8) -> 54772.55071 | AR23: =MAX(COUNTRY_INFO!D23*AK23*PROFILE!$G$9,COUNTRY_INFO!D23*AL23*PROFILE!$G$9,COUNTRY_INFO!D23*AM23*PROFILE!$G$9,IF(AND(DISTRICT!Z23<>"Unknown",Z23<>"Not required"),COUNTRY_INFO!O23*DISTRICT!AN23,0)) -> 132071.3184 | AS23: =MAX(COUNTRY_INFO!D23*AK23*PROFILE!$G$10,COUNTRY_INFO!D23*AL23*PROFILE!$G$10,IF(AND(DISTRICT!Z23<>"Unknown",Z23<>"Not required"),COUNTRY_INFO!O23*DISTRICT!AO23,0)) -> 8314.840935 | AT23: 195158.71 | AU23: Y | AV23: =MAX('MDA2'!J23,'MDA5'!J23,'T1'!L23,'T2'!J23,T3_R1!K23,T3_R2!K23) -> 41363 | AW23: =MAX('MDA1'!K23,'MDA2'!K23,'MDA3'!I23,'MDA3'!L23,'MDA5'!K23,'T1'!M23,'T2'!K23,T3_R1!L23,T3_R2!L23) -> 108575 | AX23: =MAX('MDA1'!L23,'MDA2'!L23,'MDA3'!J23,'MDA3'!M23,'MDA5'!L23,'T1'!N23,'T2'!L23,T3_R1!M23,T3_R2!M23) -> 184085 | AY23: 334023 | AZ23: =MAX('MDA2'!J23,'MDA5'!J23,T23) -> 41363 | BA23: =MAX('MDA1'!K23,'MDA2'!K23,'MDA3'!I23,'MDA3'!L23,'MDA5'!K23,V23,AD23) -> 108575 | BB23: =MAX('MDA1'!L23,'MDA2'!L23,'MDA3'!J23,'MDA3'!M23,'MDA5'!L23,AF23) -> 12220 | BC23: 162158 | BD23: 83.09032172
A24: =IF(COUNTRY_INFO!A24=0," ",COUNTRY_INFO!A24) -> Rwanda | B24: =IF(COUNTRY_INFO!B24=0," ",COUNTRY_INFO!B24) -> Eastern | C24: =IF(COUNTRY_INFO!C24=0," ",COUNTRY_INFO!C24) -> Ngoma | D24: =COUNTRY_INFO!L24 -> 0 | G24: =MAX('MDA1'!M24,'MDA2'!M24,'MDA5'!M24) -> 0 | H24: =IF(AND(COUNTRY_INFO!H24>0,COUNTRY_INFO!H24<4),IF(D24>MAX('MDA1'!M24,'MDA2'!M24,'MDA5'!M24),MAX('MDA1'!M24,'MDA2'!M24,'MDA5'!M24),D24),0) -> 0 | I24: =IF(AND(COUNTRY_INFO!H24>0,COUNTRY_INFO!H24<4), IF(G24/D24*100<>0, IF(G24/D24*100>100,100,G24/D24*100), "-"),0) -> 0 | J24: =COUNTRY_INFO!M24 -> 0 | M24: =MAX('MDA1'!M24,MAX('MDA3'!I24,'MDA3'!L24)+MAX('MDA3'!J24,'MDA3'!M24)) -> 0 | N24: =IF(AND(COUNTRY_INFO!I24>0,COUNTRY_INFO!I24<4),IF(J24>MAX('MDA1'!M24,MAX('MDA3'!I24,'MDA3'!L24)+MAX('MDA3'!J24,'MDA3'!M24)),MAX('MDA1'!M24,MAX('MDA3'!I24,'MDA3'!L24)+MAX('MDA3'!J24,'MDA3'!M24)),J24),0) -> 0 | O24: =IF(AND(COUNTRY_INFO!I24>0,COUNTRY_INFO!I24<4), IF(M24/J24*100<>0, IF(M24/J24*100>100,100,M24/J24*100), "-"),0) -> 0 | P24: =COUNTRY_INFO!N24 -> 0 | S24: =SUM(MAX('MDA2'!J24,'MDA5'!J24, 'T1'!L24, MAX(T3_R1!K24, T3_R2!K24)), MAX('MDA1'!K24, 'MDA2'!K24, 'MDA5'!K24,'T1'!M24, MAX(T3_R1!L24, T3_R2!L24)), MAX('MDA1'!L24, 'MDA2'!L24, 'MDA5'!L24,'T1'!N24, MAX(T3_R1!M24, T3_R2!M24))) -> 363795 | T24: =IF(AND(COUNTRY_INFO!J24>1,COUNTRY_INFO!J24<4),IF(COUNTRY_INFO!E24>MAX('MDA2'!J24,'MDA5'!J24,'T1'!L24,MAX(T3_R1!K24,T3_R2!K24)),MAX('MDA2'!J24,'MDA5'!J24,'T1'!L24,MAX(T3_R1!K24,T3_R2!K24)),COUNTRY_INFO!E24),0) -> 0 | U24: =IF(AND(COUNTRY_INFO!J24>1,COUNTRY_INFO!J24<4), IF(T24/COUNTRY_INFO!E24*100<>0, IF(T24/COUNTRY_INFO!E24*100>100,100,T24/COUNTRY_INFO!E24*100), "-"),0) -> 0 | V24: =IF(AND(COUNTRY_INFO!J24>1,COUNTRY_INFO!J24<4),IF(COUNTRY_INFO!F24>MAX('MDA1'!K24,'MDA2'!K24,'MDA5'!K24,'T1'!M24,MAX(T3_R1!L24,T3_R2!L24)),MAX('MDA1'!K24,'MDA2'!K24,'MDA5'!K24,'T1'!M24,MAX(T3_R1!L24,T3_R2!L24)),COUNTRY_INFO!F24),0) -> 0 | W24: =IF(AND(COUNTRY_INFO!J24>1,COUNTRY_INFO!J24<4), IF(V24/COUNTRY_INFO!F24*100<>0, IF(V24/COUNTRY_INFO!F24*100>100,100,V24/COUNTRY_INFO!F24*100), "-"),0) -> 0 | X24: 0 | Y24: =IF(AND(COUNTRY_INFO!J24>1,COUNTRY_INFO!J24<4), IF(S24/P24*100<>0, IF(X24/P24*100>100,100,X24/P24*100), "-"),0) -> 0 | Z24: =COUNTRY_INFO!O24 -> 50770 | AC24: =MAX('T1'!L24,'T2'!J24)+MAX('T1'!M24,'T2'!K24)+MAX('T1'!N24,'T2'!L24) -> 118148 | AD24: =IF(COUNTRY_INFO!K24=1,IF(COUNTRY_INFO!F24*0.33>MAX('T1'!M24,'T2'!K24),MAX('T1'!M24,'T2'!K24),COUNTRY_INFO!F24*0.33),IF(COUNTRY_INFO!K24=2,IF(COUNTRY_INFO!F24*0.5>MAX('T1'!M24,'T2'!K24),MAX('T1'!M24,'T2'!K24),COUNTRY_INFO!F24*0.5),IF(COUNTRY_INFO!K24=3,IF(COUNTRY_INFO!F24>MAX('T1'!M24,'T2'!K24),MAX('T1'!M24,'T2'!K24),COUNTRY_INFO!F24),0))) -> 37616 | AE24: =IF(AND(COUNTRY_INFO!K24>0,COUNTRY_INFO!K24<4),IF(Z24>0,IF(COUNTRY_INFO!K24=1, AD24/(COUNTRY_INFO!F24*0.33)*100, IF(COUNTRY_INFO!K24=2, AD24/(COUNTRY_INFO!F24*0.5)*100, IF(COUNTRY_INFO!K24=3, AD24/COUNTRY_INFO!F24*100))),"-"),0) -> 62.84775756 | AF24: =IF(COUNTRY_INFO!K24=2,IF(COUNTRY_INFO!G24*0.2>MAX('T1'!N24,'T2'!L24),MAX('T1'!N24,'T2'!L24),COUNTRY_INFO!G24*0.2),IF(COUNTRY_INFO!K24=3,IF(COUNTRY_INFO!G24>MAX('T1'!N24,'T2'!L24),MAX('T1'!N24,'T2'!L24),COUNTRY_INFO!G24),0)) -> 44655.9623 | AG24: =IF(AND(COUNTRY_INFO!K24>0,COUNTRY_INFO!K24<4),IF(Z24>0,IF(COUNTRY_INFO!K24=1, 0, IF(COUNTRY_INFO!K24=2, AF24/(COUNTRY_INFO!G24*0.2)*100, IF(COUNTRY_INFO!K24=3, AF24/COUNTRY_INFO!G24*100))),"-"),0) -> 100 | AH24: 82271.9623 | AI24: =IF(AND(COUNTRY_INFO!K24>0,COUNTRY_INFO!K24<4), IF(AC24/Z24*100<>0, IF(AH24/Z24*100>100,100,AH24/Z24*100), "-"),0) -> 100 | AK24: =IF(AND(D24<>0, D24<>"Unknown",D24<>"Stopped",D24<>"Not required"),D24/COUNTRY_INFO!D24, 0) -> 0 | AL24: =IF(AND(J24<>0,J24<>"Unknown",J24<>"Stopped",J24<>"Not required"),J24/COUNTRY_INFO!D24, 0) -> 0 | AM24: =IF(AND(P24<>0,P24<>"Unknown",P24<>"Not required"),P24/(COUNTRY_INFO!E24+COUNTRY_INFO!F24), 0) -> 0 | AN24: =IF(AND(Z24<>0,Z24<>"Unknown",Z24<>"Not required"),IF(COUNTRY_INFO!K24=1,1,IF(COUNTRY_INFO!K24=2,0.5*COUNTRY_INFO!F24/(0.5*COUNTRY_INFO!F24+0.2*COUNTRY_INFO!G24),IF(COUNTRY_INFO!K24=3,COUNTRY_INFO!F24/(COUNTRY_INFO!F24+COUNTRY_INFO!G24)))),0) -> 0.5727051178 | AO24: =IF(AND(Z24<>0,Z24<>"Unknown",Z24<>"Not required"),IF(COUNTRY_INFO!K24=1,0,IF(COUNTRY_INFO!K24=2,0.2*COUNTRY_INFO!G24/(0.5*COUNTRY_INFO!F24+0.2*COUNTRY_INFO!G24),IF(COUNTRY_INFO!K24=3,COUNTRY_INFO!G24/(COUNTRY_INFO!F24+COUNTRY_INFO!G24)))),0) -> 0.4272948822 | AP24: =MAX(COUNTRY_INFO!D24*AK24*PROFILE!$G$7,COUNTRY_INFO!D24*AL24*PROFILE!$G$7) -> 0 | AQ24: =MAX(COUNTRY_INFO!D24*AK24*PROFILE!$G$8,COUNTRY_INFO!D24*AL24*PROFILE!$G$8,COUNTRY_INFO!D24*AM24*PROFILE!$G$8) -> 0 | AR24: =MAX(COUNTRY_INFO!D24*AK24*PROFILE!$G$9,COUNTRY_INFO!D24*AL24*PROFILE!$G$9,COUNTRY_INFO!D24*AM24*PROFILE!$G$9,IF(AND(DISTRICT!Z24<>"Unknown",Z24<>"Not required"),COUNTRY_INFO!O24*DISTRICT!AN24,0)) -> 29076.23883 | AS24: =MAX(COUNTRY_INFO!D24*AK24*PROFILE!$G$10,COUNTRY_INFO!D24*AL24*PROFILE!$G$10,IF(AND(DISTRICT!Z24<>"Unknown",Z24<>"Not required"),COUNTRY_INFO!O24*DISTRICT!AO24,0)) -> 21693.76117 | AT24: 50770 | AU24: Y | AV24: =MAX('MDA2'!J24,'MDA5'!J24,'T1'!L24,'T2'!J24,T3_R1!K24,T3_R2!K24) -> 42538 | AW24: =MAX('MDA1'!K24,'MDA2'!K24,'MDA3'!I24,'MDA3'!L24,'MDA5'!K24,'T1'!M24,'T2'!K24,T3_R1!L24,T3_R2!L24) -> 95824 | AX24: =MAX('MDA1'!L24,'MDA2'!L24,'MDA3'!J24,'MDA3'!M24,'MDA5'!L24,'T1'!N24,'T2'!L24,T3_R1!M24,T3_R2!M24) -> 225433 | AY24: 363795 | AZ24: =MAX('MDA2'!J24,'MDA5'!J24,T24) -> 0 | BA24: =MAX('MDA1'!K24,'MDA2'!K24,'MDA3'!I24,'MDA3'!L24,'MDA5'!K24,V24,AD24) -> 37616 | BB24: =MAX('MDA1'!L24,'MDA2'!L24,'MDA3'!J24,'MDA3'!M24,'MDA5'!L24,AF24) -> 44655.9623 | BC24: 50770 | BD24: 100
A25: =IF(COUNTRY_INFO!A25=0," ",COUNTRY_INFO!A25) -> Rwanda | B25: =IF(COUNTRY_INFO!B25=0," ",COUNTRY_INFO!B25) -> Western | C25: =IF(COUNTRY_INFO!C25=0," ",COUNTRY_INFO!C25) -> Ngororero | D25: =COUNTRY_INFO!L25 -> 0 | G25: =MAX('MDA1'!M25,'MDA2'!M25,'MDA5'!M25) -> 0 | H25: =IF(AND(COUNTRY_INFO!H25>0,COUNTRY_INFO!H25<4),IF(D25>MAX('MDA1'!M25,'MDA2'!M25,'MDA5'!M25),MAX('MDA1'!M25,'MDA2'!M25,'MDA5'!M25),D25),0) -> 0 | I25: =IF(AND(COUNTRY_INFO!H25>0,COUNTRY_INFO!H25<4), IF(G25/D25*100<>0, IF(G25/D25*100>100,100,G25/D25*100), "-"),0) -> 0 | J25: =COUNTRY_INFO!M25 -> 0 | M25: =MAX('MDA1'!M25,MAX('MDA3'!I25,'MDA3'!L25)+MAX('MDA3'!J25,'MDA3'!M25)) -> 0 | N25: =IF(AND(COUNTRY_INFO!I25>0,COUNTRY_INFO!I25<4),IF(J25>MAX('MDA1'!M25,MAX('MDA3'!I25,'MDA3'!L25)+MAX('MDA3'!J25,'MDA3'!M25)),MAX('MDA1'!M25,MAX('MDA3'!I25,'MDA3'!L25)+MAX('MDA3'!J25,'MDA3'!M25)),J25),0) -> 0 | O25: =IF(AND(COUNTRY_INFO!I25>0,COUNTRY_INFO!I25<4), IF(M25/J25*100<>0, IF(M25/J25*100>100,100,M25/J25*100), "-"),0) -> 0 | P25: =COUNTRY_INFO!N25 -> 182855.173 | S25: =SUM(MAX('MDA2'!J25,'MDA5'!J25, 'T1'!L25, MAX(T3_R1!K25, T3_R2!K25)), MAX('MDA1'!K25, 'MDA2'!K25, 'MDA5'!K25,'T1'!M25, MAX(T3_R1!L25, T3_R2!L25)), MAX('MDA1'!L25, 'MDA2'!L25, 'MDA5'!L25,'T1'!N25, MAX(T3_R1!M25, T3_R2!M25))) -> 362962 | T25: =IF(AND(COUNTRY_INFO!J25>1,COUNTRY_INFO!J25<4),IF(COUNTRY_INFO!E25>MAX('MDA2'!J25,'MDA5'!J25,'T1'!L25,MAX(T3_R1!K25,T3_R2!K25)),MAX('MDA2'!J25,'MDA5'!J25,'T1'!L25,MAX(T3_R1!K25,T3_R2!K25)),COUNTRY_INFO!E25),0) -> 49197 | U25: =IF(AND(COUNTRY_INFO!J25>1,COUNTRY_INFO!J25<4), IF(T25/COUNTRY_INFO!E25*100<>0, IF(T25/COUNTRY_INFO!E25*100>100,100,T25/COUNTRY_INFO!E25*100), "-"),0) -> 95.96080719 | V25: =IF(AND(COUNTRY_INFO!J25>1,COUNTRY_INFO!J25<4),IF(COUNTRY_INFO!F25>MAX('MDA1'!K25,'MDA2'!K25,'MDA5'!K25,'T1'!M25,MAX(T3_R1!L25,T3_R2!L25)),MAX('MDA1'!K25,'MDA2'!K25,'MDA5'!K25,'T1'!M25,MAX(T3_R1!L25,T3_R2!L25)),COUNTRY_INFO!F25),0) -> 113173 | W25: =IF(AND(COUNTRY_INFO!J25>1,COUNTRY_INFO!J25<4), IF(V25/COUNTRY_INFO!F25*100<>0, IF(V25/COUNTRY_INFO!F25*100>100,100,V25/COUNTRY_INFO!F25*100), "-"),0) -> 86.00597623 | X25: 162370 | Y25: =IF(AND(COUNTRY_INFO!J25>1,COUNTRY_INFO!J25<4), IF(S25/P25*100<>0, IF(X25/P25*100>100,100,X25/P25*100), "-"),0) -> 88.79705033 | Z25: =COUNTRY_INFO!O25 -> 8795 | AC25: =MAX('T1'!L25,'T2'!J25)+MAX('T1'!M25,'T2'!K25)+MAX('T1'!N25,'T2'!L25) -> 17868 | AD25: =IF(COUNTRY_INFO!K25=1,IF(COUNTRY_INFO!F25*0.33>MAX('T1'!M25,'T2'!K25),MAX('T1'!M25,'T2'!K25),COUNTRY_INFO!F25*0.33),IF(COUNTRY_INFO!K25=2,IF(COUNTRY_INFO!F25*0.5>MAX('T1'!M25,'T2'!K25),MAX('T1'!M25,'T2'!K25),COUNTRY_INFO!F25*0.5),IF(COUNTRY_INFO!K25=3,IF(COUNTRY_INFO!F25>MAX('T1'!M25,'T2'!K25),MAX('T1'!M25,'T2'!K25),COUNTRY_INFO!F25),0))) -> 7737 | AE25: =IF(AND(COUNTRY_INFO!K25>0,COUNTRY_INFO!K25<4),IF(Z25>0,IF(COUNTRY_INFO!K25=1, AD25/(COUNTRY_INFO!F25*0.33)*100, IF(COUNTRY_INFO!K25=2, AD25/(COUNTRY_INFO!F25*0.5)*100, IF(COUNTRY_INFO!K25=3, AD25/COUNTRY_INFO!F25*100))),"-"),0) -> 11.75948748 | AF25: =IF(COUNTRY_INFO!K25=2,IF(COUNTRY_INFO!G25*0.2>MAX('T1'!N25,'T2'!L25),MAX('T1'!N25,'T2'!L25),COUNTRY_INFO!G25*0.2),IF(COUNTRY_INFO!K25=3,IF(COUNTRY_INFO!G25>MAX('T1'!N25,'T2'!L25),MAX('T1'!N25,'T2'!L25),COUNTRY_INFO!G25),0)) -> 10131 | AG25: =IF(AND(COUNTRY_INFO!K25>0,COUNTRY_INFO!K25<4),IF(Z25>0,IF(COUNTRY_INFO!K25=1, 0, IF(COUNTRY_INFO!K25=2, AF25/(COUNTRY_INFO!G25*0.2)*100, IF(COUNTRY_INFO!K25=3, AF25/COUNTRY_INFO!G25*100))),"-"),0) -> 21.91601417 | AH25: 17868 | AI25: =IF(AND(COUNTRY_INFO!K25>0,COUNTRY_INFO!K25<4), IF(AC25/Z25*100<>0, IF(AH25/Z25*100>100,100,AH25/Z25*100), "-"),0) -> 100 | AK25: =IF(AND(D25<>0, D25<>"Unknown",D25<>"Stopped",D25<>"Not required"),D25/COUNTRY_INFO!D25, 0) -> 0 | AL25: =IF(AND(J25<>0,J25<>"Unknown",J25<>"Stopped",J25<>"Not required"),J25/COUNTRY_INFO!D25, 0) -> 0 | AM25: =IF(AND(P25<>0,P25<>"Unknown",P25<>"Not required"),P25/(COUNTRY_INFO!E25+COUNTRY_INFO!F25), 0) -> 1 | AN25: =IF(AND(Z25<>0,Z25<>"Unknown",Z25<>"Not required"),IF(COUNTRY_INFO!K25=1,1,IF(COUNTRY_INFO!K25=2,0.5*COUNTRY_INFO!F25/(0.5*COUNTRY_INFO!F25+0.2*COUNTRY_INFO!G25),IF(COUNTRY_INFO!K25=3,COUNTRY_INFO!F25/(COUNTRY_INFO!F25+COUNTRY_INFO!G25)))),0) -> 0.58733791 | AO25: =IF(AND(Z25<>0,Z25<>"Unknown",Z25<>"Not required"),IF(COUNTRY_INFO!K25=1,0,IF(COUNTRY_INFO!K25=2,0.2*COUNTRY_INFO!G25/(0.5*COUNTRY_INFO!F25+0.2*COUNTRY_INFO!G25),IF(COUNTRY_INFO!K25=3,COUNTRY_INFO!G25/(COUNTRY_INFO!F25+COUNTRY_INFO!G25)))),0) -> 0.41266209 | AP25: =MAX(COUNTRY_INFO!D25*AK25*PROFILE!$G$7,COUNTRY_INFO!D25*AL25*PROFILE!$G$7) -> 0 | AQ25: =MAX(COUNTRY_INFO!D25*AK25*PROFILE!$G$8,COUNTRY_INFO!D25*AL25*PROFILE!$G$8,COUNTRY_INFO!D25*AM25*PROFILE!$G$8) -> 50435.62825 | AR25: =MAX(COUNTRY_INFO!D25*AK25*PROFILE!$G$9,COUNTRY_INFO!D25*AL25*PROFILE!$G$9,COUNTRY_INFO!D25*AM25*PROFILE!$G$9,IF(AND(DISTRICT!Z25<>"Unknown",Z25<>"Not required"),COUNTRY_INFO!O25*DISTRICT!AN25,0)) -> 121613.8345 | AS25: =MAX(COUNTRY_INFO!D25*AK25*PROFILE!$G$10,COUNTRY_INFO!D25*AL25*PROFILE!$G$10,IF(AND(DISTRICT!Z25<>"Unknown",Z25<>"Not required"),COUNTRY_INFO!O25*DISTRICT!AO25,0)) -> 3629.363082 | AT25: 175678.8258 | AU25: Y | AV25: =MAX('MDA2'!J25,'MDA5'!J25,'T1'!L25,'T2'!J25,T3_R1!K25,T3_R2!K25) -> 49197 | AW25: =MAX('MDA1'!K25,'MDA2'!K25,'MDA3'!I25,'MDA3'!L25,'MDA5'!K25,'T1'!M25,'T2'!K25,T3_R1!L25,T3_R2!L25) -> 113173 | AX25: =MAX('MDA1'!L25,'MDA2'!L25,'MDA3'!J25,'MDA3'!M25,'MDA5'!L25,'T1'!N25,'T2'!L25,T3_R1!M25,T3_R2!M25) -> 200592 | AY25: 362962 | AZ25: =MAX('MDA2'!J25,'MDA5'!J25,T25) -> 49197 | BA25: =MAX('MDA1'!K25,'MDA2'!K25,'MDA3'!I25,'MDA3'!L25,'MDA5'!K25,V25,AD25) -> 113173 | BB25: =MAX('MDA1'!L25,'MDA2'!L25,'MDA3'!J25,'MDA3'!M25,'MDA5'!L25,AF25) -> 10131 | BC25: 172501 | BD25: 98.19111621
A26: =IF(COUNTRY_INFO!A26=0," ",COUNTRY_INFO!A26) -> Rwanda | B26: =IF(COUNTRY_INFO!B26=0," ",COUNTRY_INFO!B26) -> Western | C26: =IF(COUNTRY_INFO!C26=0," ",COUNTRY_INFO!C26) -> Nyabihu | D26: =COUNTRY_INFO!L26 -> 0 | G26: =MAX('MDA1'!M26,'MDA2'!M26,'MDA5'!M26) -> 0 | H26: =IF(AND(COUNTRY_INFO!H26>0,COUNTRY_INFO!H26<4),IF(D26>MAX('MDA1'!M26,'MDA2'!M26,'MDA5'!M26),MAX('MDA1'!M26,'MDA2'!M26,'MDA5'!M26),D26),0) -> 0 | I26: =IF(AND(COUNTRY_INFO!H26>0,COUNTRY_INFO!H26<4), IF(G26/D26*100<>0, IF(G26/D26*100>100,100,G26/D26*100), "-"),0) -> 0 | J26: =COUNTRY_INFO!M26 -> 0 | M26: =MAX('MDA1'!M26,MAX('MDA3'!I26,'MDA3'!L26)+MAX('MDA3'!J26,'MDA3'!M26)) -> 0 | N26: =IF(AND(COUNTRY_INFO!I26>0,COUNTRY_INFO!I26<4),IF(J26>MAX('MDA1'!M26,MAX('MDA3'!I26,'MDA3'!L26)+MAX('MDA3'!J26,'MDA3'!M26)),MAX('MDA1'!M26,MAX('MDA3'!I26,'MDA3'!L26)+MAX('MDA3'!J26,'MDA3'!M26)),J26),0) -> 0 | O26: =IF(AND(COUNTRY_INFO!I26>0,COUNTRY_INFO!I26<4), IF(M26/J26*100<>0, IF(M26/J26*100>100,100,M26/J26*100), "-"),0) -> 0 | P26: =COUNTRY_INFO!N26 -> 160787.8892 | S26: =SUM(MAX('MDA2'!J26,'MDA5'!J26, 'T1'!L26, MAX(T3_R1!K26, T3_R2!K26)), MAX('MDA1'!K26, 'MDA2'!K26, 'MDA5'!K26,'T1'!M26, MAX(T3_R1!L26, T3_R2!L26)), MAX('MDA1'!L26, 'MDA2'!L26, 'MDA5'!L26,'T1'!N26, MAX(T3_R1!M26, T3_R2!M26))) -> 291068 | T26: =IF(AND(COUNTRY_INFO!J26>1,COUNTRY_INFO!J26<4),IF(COUNTRY_INFO!E26>MAX('MDA2'!J26,'MDA5'!J26,'T1'!L26,MAX(T3_R1!K26,T3_R2!K26)),MAX('MDA2'!J26,'MDA5'!J26,'T1'!L26,MAX(T3_R1!K26,T3_R2!K26)),COUNTRY_INFO!E26),0) -> 41283 | U26: =IF(AND(COUNTRY_INFO!J26>1,COUNTRY_INFO!J26<4), IF(T26/COUNTRY_INFO!E26*100<>0, IF(T26/COUNTRY_INFO!E26*100>100,100,T26/COUNTRY_INFO!E26*100), "-"),0) -> 94.21581403 | V26: =IF(AND(COUNTRY_INFO!J26>1,COUNTRY_INFO!J26<4),IF(COUNTRY_INFO!F26>MAX('MDA1'!K26,'MDA2'!K26,'MDA5'!K26,'T1'!M26,MAX(T3_R1!L26,T3_R2!L26)),MAX('MDA1'!K26,'MDA2'!K26,'MDA5'!K26,'T1'!M26,MAX(T3_R1!L26,T3_R2!L26)),COUNTRY_INFO!F26),0) -> 103696 | W26: =IF(AND(COUNTRY_INFO!J26>1,COUNTRY_INFO!J26<4), IF(V26/COUNTRY_INFO!F26*100<>0, IF(V26/COUNTRY_INFO!F26*100>100,100,V26/COUNTRY_INFO!F26*100), "-"),0) -> 88.65148459 | X26: 144979 | Y26: =IF(AND(COUNTRY_INFO!J26>1,COUNTRY_INFO!J26<4), IF(S26/P26*100<>0, IF(X26/P26*100>100,100,X26/P26*100), "-"),0) -> 90.16786074 | Z26: =COUNTRY_INFO!O26 -> 38587 | AC26: =MAX('T1'!L26,'T2'!J26)+MAX('T1'!M26,'T2'!K26)+MAX('T1'!N26,'T2'!L26) -> 0 | AD26: =IF(COUNTRY_INFO!K26=1,IF(COUNTRY_INFO!F26*0.33>MAX('T1'!M26,'T2'!K26),MAX('T1'!M26,'T2'!K26),COUNTRY_INFO!F26*0.33),IF(COUNTRY_INFO!K26=2,IF(COUNTRY_INFO!F26*0.5>MAX('T1'!M26,'T2'!K26),MAX('T1'!M26,'T2'!K26),COUNTRY_INFO!F26*0.5),IF(COUNTRY_INFO!K26=3,IF(COUNTRY_INFO!F26>MAX('T1'!M26,'T2'!K26),MAX('T1'!M26,'T2'!K26),COUNTRY_INFO!F26),0))) -> 0 | AE26: =IF(AND(COUNTRY_INFO!K26>0,COUNTRY_INFO!K26<4),IF(Z26>0,IF(COUNTRY_INFO!K26=1, AD26/(COUNTRY_INFO!F26*0.33)*100, IF(COUNTRY_INFO!K26=2, AD26/(COUNTRY_INFO!F26*0.5)*100, IF(COUNTRY_INFO!K26=3, AD26/COUNTRY_INFO!F26*100))),"-"),0) -> 0 | AF26: =IF(COUNTRY_INFO!K26=2,IF(COUNTRY_INFO!G26*0.2>MAX('T1'!N26,'T2'!L26),MAX('T1'!N26,'T2'!L26),COUNTRY_INFO!G26*0.2),IF(COUNTRY_INFO!K26=3,IF(COUNTRY_INFO!G26>MAX('T1'!N26,'T2'!L26),MAX('T1'!N26,'T2'!L26),COUNTRY_INFO!G26),0)) -> 0 | AG26: =IF(AND(COUNTRY_INFO!K26>0,COUNTRY_INFO!K26<4),IF(Z26>0,IF(COUNTRY_INFO!K26=1, 0, IF(COUNTRY_INFO!K26=2, AF26/(COUNTRY_INFO!G26*0.2)*100, IF(COUNTRY_INFO!K26=3, AF26/COUNTRY_INFO!G26*100))),"-"),0) -> 0 | AH26: 0 | AI26: =IF(AND(COUNTRY_INFO!K26>0,COUNTRY_INFO!K26<4), IF(AC26/Z26*100<>0, IF(AH26/Z26*100>100,100,AH26/Z26*100), "-"),0) -> - | AK26: =IF(AND(D26<>0, D26<>"Unknown",D26<>"Stopped",D26<>"Not required"),D26/COUNTRY_INFO!D26, 0) -> 0 | AL26: =IF(AND(J26<>0,J26<>"Unknown",J26<>"Stopped",J26<>"Not required"),J26/COUNTRY_INFO!D26, 0) -> 0 | AM26: =IF(AND(P26<>0,P26<>"Unknown",P26<>"Not required"),P26/(COUNTRY_INFO!E26+COUNTRY_INFO!F26), 0) -> 1 | AN26: =IF(AND(Z26<>0,Z26<>"Unknown",Z26<>"Not required"),IF(COUNTRY_INFO!K26=1,1,IF(COUNTRY_INFO!K26=2,0.5*COUNTRY_INFO!F26/(0.5*COUNTRY_INFO!F26+0.2*COUNTRY_INFO!G26),IF(COUNTRY_INFO!K26=3,COUNTRY_INFO!F26/(COUNTRY_INFO!F26+COUNTRY_INFO!G26)))),0) -> 1 | AO26: =IF(AND(Z26<>0,Z26<>"Unknown",Z26<>"Not required"),IF(COUNTRY_INFO!K26=1,0,IF(COUNTRY_INFO!K26=2,0.2*COUNTRY_INFO!G26/(0.5*COUNTRY_INFO!F26+0.2*COUNTRY_INFO!G26),IF(COUNTRY_INFO!K26=3,COUNTRY_INFO!G26/(COUNTRY_INFO!F26+COUNTRY_INFO!G26)))),0) -> 0 | AP26: =MAX(COUNTRY_INFO!D26*AK26*PROFILE!$G$7,COUNTRY_INFO!D26*AL26*PROFILE!$G$7) -> 0 | AQ26: =MAX(COUNTRY_INFO!D26*AK26*PROFILE!$G$8,COUNTRY_INFO!D26*AL26*PROFILE!$G$8,COUNTRY_INFO!D26*AM26*PROFILE!$G$8) -> 43836.85515 | AR26: =MAX(COUNTRY_INFO!D26*AK26*PROFILE!$G$9,COUNTRY_INFO!D26*AL26*PROFILE!$G$9,COUNTRY_INFO!D26*AM26*PROFILE!$G$9,IF(AND(DISTRICT!Z26<>"Unknown",Z26<>"Not required"),COUNTRY_INFO!O26*DISTRICT!AN26,0)) -> 105702.4217 | AS26: =MAX(COUNTRY_INFO!D26*AK26*PROFILE!$G$10,COUNTRY_INFO!D26*AL26*PROFILE!$G$10,IF(AND(DISTRICT!Z26<>"Unknown",Z26<>"Not required"),COUNTRY_INFO!O26*DISTRICT!AO26,0)) -> 0 | AT26: 149539.2768 | AU26: 0 | AV26: =MAX('MDA2'!J26,'MDA5'!J26,'T1'!L26,'T2'!J26,T3_R1!K26,T3_R2!K26) -> 41283 | AW26: =MAX('MDA1'!K26,'MDA2'!K26,'MDA3'!I26,'MDA3'!L26,'MDA5'!K26,'T1'!M26,'T2'!K26,T3_R1!L26,T3_R2!L26) -> 103696 | AX26: =MAX('MDA1'!L26,'MDA2'!L26,'MDA3'!J26,'MDA3'!M26,'MDA5'!L26,'T1'!N26,'T2'!L26,T3_R1!M26,T3_R2!M26) -> 146089 | AY26: 291068 | AZ26: =MAX('MDA2'!J26,'MDA5'!J26,T26) -> 41283 | BA26: =MAX('MDA1'!K26,'MDA2'!K26,'MDA3'!I26,'MDA3'!L26,'MDA5'!K26,V26,AD26) -> 103696 | BB26: =MAX('MDA1'!L26,'MDA2'!L26,'MDA3'!J26,'MDA3'!M26,'MDA5'!L26,AF26) -> 0 | BC26: 144979 | BD26: 96.95044878
A27: =IF(COUNTRY_INFO!A27=0," ",COUNTRY_INFO!A27) -> Rwanda | B27: =IF(COUNTRY_INFO!B27=0," ",COUNTRY_INFO!B27) -> Eastern | C27: =IF(COUNTRY_INFO!C27=0," ",COUNTRY_INFO!C27) -> Nyagatare | D27: =COUNTRY_INFO!L27 -> 0 | G27: =MAX('MDA1'!M27,'MDA2'!M27,'MDA5'!M27) -> 0 | H27: =IF(AND(COUNTRY_INFO!H27>0,COUNTRY_INFO!H27<4),IF(D27>MAX('MDA1'!M27,'MDA2'!M27,'MDA5'!M27),MAX('MDA1'!M27,'MDA2'!M27,'MDA5'!M27),D27),0) -> 0 | I27: =IF(AND(COUNTRY_INFO!H27>0,COUNTRY_INFO!H27<4), IF(G27/D27*100<>0, IF(G27/D27*100>100,100,G27/D27*100), "-"),0) -> 0 | J27: =COUNTRY_INFO!M27 -> 0 | M27: =MAX('MDA1'!M27,MAX('MDA3'!I27,'MDA3'!L27)+MAX('MDA3'!J27,'MDA3'!M27)) -> 0 | N27: =IF(AND(COUNTRY_INFO!I27>0,COUNTRY_INFO!I27<4),IF(J27>MAX('MDA1'!M27,MAX('MDA3'!I27,'MDA3'!L27)+MAX('MDA3'!J27,'MDA3'!M27)),MAX('MDA1'!M27,MAX('MDA3'!I27,'MDA3'!L27)+MAX('MDA3'!J27,'MDA3'!M27)),J27),0) -> 0 | O27: =IF(AND(COUNTRY_INFO!I27>0,COUNTRY_INFO!I27<4), IF(M27/J27*100<>0, IF(M27/J27*100>100,100,M27/J27*100), "-"),0) -> 0 | P27: =COUNTRY_INFO!N27 -> 254135.2335 | S27: =SUM(MAX('MDA2'!J27,'MDA5'!J27, 'T1'!L27, MAX(T3_R1!K27, T3_R2!K27)), MAX('MDA1'!K27, 'MDA2'!K27, 'MDA5'!K27,'T1'!M27, MAX(T3_R1!L27, T3_R2!L27)), MAX('MDA1'!L27, 'MDA2'!L27, 'MDA5'!L27,'T1'!N27, MAX(T3_R1!M27, T3_R2!M27))) -> 488476 | T27: =IF(AND(COUNTRY_INFO!J27>1,COUNTRY_INFO!J27<4),IF(COUNTRY_INFO!E27>MAX('MDA2'!J27,'MDA5'!J27,'T1'!L27,MAX(T3_R1!K27,T3_R2!K27)),MAX('MDA2'!J27,'MDA5'!J27,'T1'!L27,MAX(T3_R1!K27,T3_R2!K27)),COUNTRY_INFO!E27),0) -> 73364.67481 | U27: =IF(AND(COUNTRY_INFO!J27>1,COUNTRY_INFO!J27<4), IF(T27/COUNTRY_INFO!E27*100<>0, IF(T27/COUNTRY_INFO!E27*100>100,100,T27/COUNTRY_INFO!E27*100), "-"),0) -> 100 | V27: =IF(AND(COUNTRY_INFO!J27>1,COUNTRY_INFO!J27<4),IF(COUNTRY_INFO!F27>MAX('MDA1'!K27,'MDA2'!K27,'MDA5'!K27,'T1'!M27,MAX(T3_R1!L27,T3_R2!L27)),MAX('MDA1'!K27,'MDA2'!K27,'MDA5'!K27,'T1'!M27,MAX(T3_R1!L27,T3_R2!L27)),COUNTRY_INFO!F27),0) -> 180770.5587 | W27: =IF(AND(COUNTRY_INFO!J27>1,COUNTRY_INFO!J27<4), IF(V27/COUNTRY_INFO!F27*100<>0, IF(V27/COUNTRY_INFO!F27*100>100,100,V27/COUNTRY_INFO!F27*100), "-"),0) -> 100 | X27: 254135.2335 | Y27: =IF(AND(COUNTRY_INFO!J27>1,COUNTRY_INFO!J27<4), IF(S27/P27*100<>0, IF(X27/P27*100>100,100,X27/P27*100), "-"),0) -> 100 | Z27: =COUNTRY_INFO!O27 -> 154567 | AC27: =MAX('T1'!L27,'T2'!J27)+MAX('T1'!M27,'T2'!K27)+MAX('T1'!N27,'T2'!L27) -> 413314 | AD27: =IF(COUNTRY_INFO!K27=1,IF(COUNTRY_INFO!F27*0.33>MAX('T1'!M27,'T2'!K27),MAX('T1'!M27,'T2'!K27),COUNTRY_INFO!F27*0.33),IF(COUNTRY_INFO!K27=2,IF(COUNTRY_INFO!F27*0.5>MAX('T1'!M27,'T2'!K27),MAX('T1'!M27,'T2'!K27),COUNTRY_INFO!F27*0.5),IF(COUNTRY_INFO!K27=3,IF(COUNTRY_INFO!F27>MAX('T1'!M27,'T2'!K27),MAX('T1'!M27,'T2'!K27),COUNTRY_INFO!F27),0))) -> 90385.27936 | AE27: =IF(AND(COUNTRY_INFO!K27>0,COUNTRY_INFO!K27<4),IF(Z27>0,IF(COUNTRY_INFO!K27=1, AD27/(COUNTRY_INFO!F27*0.33)*100, IF(COUNTRY_INFO!K27=2, AD27/(COUNTRY_INFO!F27*0.5)*100, IF(COUNTRY_INFO!K27=3, AD27/COUNTRY_INFO!F27*100))),"-"),0) -> 100 | AF27: =IF(COUNTRY_INFO!K27=2,IF(COUNTRY_INFO!G27*0.2>MAX('T1'!N27,'T2'!L27),MAX('T1'!N27,'T2'!L27),COUNTRY_INFO!G27*0.2),IF(COUNTRY_INFO!K27=3,IF(COUNTRY_INFO!G27>MAX('T1'!N27,'T2'!L27),MAX('T1'!N27,'T2'!L27),COUNTRY_INFO!G27),0)) -> 62917.54511 | AG27: =IF(AND(COUNTRY_INFO!K27>0,COUNTRY_INFO!K27<4),IF(Z27>0,IF(COUNTRY_INFO!K27=1, 0, IF(COUNTRY_INFO!K27=2, AF27/(COUNTRY_INFO!G27*0.2)*100, IF(COUNTRY_INFO!K27=3, AF27/COUNTRY_INFO!G27*100))),"-"),0) -> 100 | AH27: 153302.8245 | AI27: =IF(AND(COUNTRY_INFO!K27>0,COUNTRY_INFO!K27<4), IF(AC27/Z27*100<>0, IF(AH27/Z27*100>100,100,AH27/Z27*100), "-"),0) -> 99.18211809 | AK27: =IF(AND(D27<>0, D27<>"Unknown",D27<>"Stopped",D27<>"Not required"),D27/COUNTRY_INFO!D27, 0) -> 0 | AL27: =IF(AND(J27<>0,J27<>"Unknown",J27<>"Stopped",J27<>"Not required"),J27/COUNTRY_INFO!D27, 0) -> 0 | AM27: =IF(AND(P27<>0,P27<>"Unknown",P27<>"Not required"),P27/(COUNTRY_INFO!E27+COUNTRY_INFO!F27), 0) -> 1 | AN27: =IF(AND(Z27<>0,Z27<>"Unknown",Z27<>"Not required"),IF(COUNTRY_INFO!K27=1,1,IF(COUNTRY_INFO!K27=2,0.5*COUNTRY_INFO!F27/(0.5*COUNTRY_INFO!F27+0.2*COUNTRY_INFO!G27),IF(COUNTRY_INFO!K27=3,COUNTRY_INFO!F27/(COUNTRY_INFO!F27+COUNTRY_INFO!G27)))),0) -> 0.5895865237 | AO27: =IF(AND(Z27<>0,Z27<>"Unknown",Z27<>"Not required"),IF(COUNTRY_INFO!K27=1,0,IF(COUNTRY_INFO!K27=2,0.2*COUNTRY_INFO!G27/(0.5*COUNTRY_INFO!F27+0.2*COUNTRY_INFO!G27),IF(COUNTRY_INFO!K27=3,COUNTRY_INFO!G27/(COUNTRY_INFO!F27+COUNTRY_INFO!G27)))),0) -> 0.4104134763 | AP27: =MAX(COUNTRY_INFO!D27*AK27*PROFILE!$G$7,COUNTRY_INFO!D27*AL27*PROFILE!$G$7) -> 0 | AQ27: =MAX(COUNTRY_INFO!D27*AK27*PROFILE!$G$8,COUNTRY_INFO!D27*AL27*PROFILE!$G$8,COUNTRY_INFO!D27*AM27*PROFILE!$G$8) -> 69286.86904 | AR27: =MAX(COUNTRY_INFO!D27*AK27*PROFILE!$G$9,COUNTRY_INFO!D27*AL27*PROFILE!$G$9,COUNTRY_INFO!D27*AM27*PROFILE!$G$9,IF(AND(DISTRICT!Z27<>"Unknown",Z27<>"Not required"),COUNTRY_INFO!O27*DISTRICT!AN27,0)) -> 167069.2349 | AS27: =MAX(COUNTRY_INFO!D27*AK27*PROFILE!$G$10,COUNTRY_INFO!D27*AL27*PROFILE!$G$10,IF(AND(DISTRICT!Z27<>"Unknown",Z27<>"Not required"),COUNTRY_INFO!O27*DISTRICT!AO27,0)) -> 63436.37979 | AT27: 299792.4837 | AU27: Y | AV27: =MAX('MDA2'!J27,'MDA5'!J27,'T1'!L27,'T2'!J27,T3_R1!K27,T3_R2!K27) -> 76063 | AW27: =MAX('MDA1'!K27,'MDA2'!K27,'MDA3'!I27,'MDA3'!L27,'MDA5'!K27,'T1'!M27,'T2'!K27,T3_R1!L27,T3_R2!L27) -> 186514 | AX27: =MAX('MDA1'!L27,'MDA2'!L27,'MDA3'!J27,'MDA3'!M27,'MDA5'!L27,'T1'!N27,'T2'!L27,T3_R1!M27,T3_R2!M27) -> 248815 | AY27: 511392 | AZ27: =MAX('MDA2'!J27,'MDA5'!J27,T27) -> 73364.67481 | BA27: =MAX('MDA1'!K27,'MDA2'!K27,'MDA3'!I27,'MDA3'!L27,'MDA5'!K27,V27,AD27) -> 180770.5587 | BB27: =MAX('MDA1'!L27,'MDA2'!L27,'MDA3'!J27,'MDA3'!M27,'MDA5'!L27,AF27) -> 62917.54511 | BC27: 299792.4837 | BD27: 100
A28: =IF(COUNTRY_INFO!A28=0," ",COUNTRY_INFO!A28) -> Rwanda | B28: =IF(COUNTRY_INFO!B28=0," ",COUNTRY_INFO!B28) -> Southern | C28: =IF(COUNTRY_INFO!C28=0," ",COUNTRY_INFO!C28) -> Nyamagabe | D28: =COUNTRY_INFO!L28 -> 0 | G28: =MAX('MDA1'!M28,'MDA2'!M28,'MDA5'!M28) -> 0 | H28: =IF(AND(COUNTRY_INFO!H28>0,COUNTRY_INFO!H28<4),IF(D28>MAX('MDA1'!M28,'MDA2'!M28,'MDA5'!M28),MAX('MDA1'!M28,'MDA2'!M28,'MDA5'!M28),D28),0) -> 0 | I28: =IF(AND(COUNTRY_INFO!H28>0,COUNTRY_INFO!H28<4), IF(G28/D28*100<>0, IF(G28/D28*100>100,100,G28/D28*100), "-"),0) -> 0 | J28: =COUNTRY_INFO!M28 -> 0 | M28: =MAX('MDA1'!M28,MAX('MDA3'!I28,'MDA3'!L28)+MAX('MDA3'!J28,'MDA3'!M28)) -> 0 | N28: =IF(AND(COUNTRY_INFO!I28>0,COUNTRY_INFO!I28<4),IF(J28>MAX('MDA1'!M28,MAX('MDA3'!I28,'MDA3'!L28)+MAX('MDA3'!J28,'MDA3'!M28)),MAX('MDA1'!M28,MAX('MDA3'!I28,'MDA3'!L28)+MAX('MDA3'!J28,'MDA3'!M28)),J28),0) -> 0 | O28: =IF(AND(COUNTRY_INFO!I28>0,COUNTRY_INFO!I28<4), IF(M28/J28*100<>0, IF(M28/J28*100>100,100,M28/J28*100), "-"),0) -> 0 | P28: =COUNTRY_INFO!N28 -> 178001.3577 | S28: =SUM(MAX('MDA2'!J28,'MDA5'!J28, 'T1'!L28, MAX(T3_R1!K28, T3_R2!K28)), MAX('MDA1'!K28, 'MDA2'!K28, 'MDA5'!K28,'T1'!M28, MAX(T3_R1!L28, T3_R2!L28)), MAX('MDA1'!L28, 'MDA2'!L28, 'MDA5'!L28,'T1'!N28, MAX(T3_R1!M28, T3_R2!M28))) -> 360112 | T28: =IF(AND(COUNTRY_INFO!J28>1,COUNTRY_INFO!J28<4),IF(COUNTRY_INFO!E28>MAX('MDA2'!J28,'MDA5'!J28,'T1'!L28,MAX(T3_R1!K28,T3_R2!K28)),MAX('MDA2'!J28,'MDA5'!J28,'T1'!L28,MAX(T3_R1!K28,T3_R2!K28)),COUNTRY_INFO!E28),0) -> 41352 | U28: =IF(AND(COUNTRY_INFO!J28>1,COUNTRY_INFO!J28<4), IF(T28/COUNTRY_INFO!E28*100<>0, IF(T28/COUNTRY_INFO!E28*100>100,100,T28/COUNTRY_INFO!E28*100), "-"),0) -> 86.90989089 | V28: =IF(AND(COUNTRY_INFO!J28>1,COUNTRY_INFO!J28<4),IF(COUNTRY_INFO!F28>MAX('MDA1'!K28,'MDA2'!K28,'MDA5'!K28,'T1'!M28,MAX(T3_R1!L28,T3_R2!L28)),MAX('MDA1'!K28,'MDA2'!K28,'MDA5'!K28,'T1'!M28,MAX(T3_R1!L28,T3_R2!L28)),COUNTRY_INFO!F28),0) -> 100557 | W28: =IF(AND(COUNTRY_INFO!J28>1,COUNTRY_INFO!J28<4), IF(V28/COUNTRY_INFO!F28*100<>0, IF(V28/COUNTRY_INFO!F28*100>100,100,V28/COUNTRY_INFO!F28*100), "-"),0) -> 77.10182198 | X28: 141909 | Y28: =IF(AND(COUNTRY_INFO!J28>1,COUNTRY_INFO!J28<4), IF(S28/P28*100<>0, IF(X28/P28*100>100,100,X28/P28*100), "-"),0) -> 79.72354923 | Z28: =COUNTRY_INFO!O28 -> 41575 | AC28: =MAX('T1'!L28,'T2'!J28)+MAX('T1'!M28,'T2'!K28)+MAX('T1'!N28,'T2'!L28) -> 0 | AD28: =IF(COUNTRY_INFO!K28=1,IF(COUNTRY_INFO!F28*0.33>MAX('T1'!M28,'T2'!K28),MAX('T1'!M28,'T2'!K28),COUNTRY_INFO!F28*0.33),IF(COUNTRY_INFO!K28=2,IF(COUNTRY_INFO!F28*0.5>MAX('T1'!M28,'T2'!K28),MAX('T1'!M28,'T2'!K28),COUNTRY_INFO!F28*0.5),IF(COUNTRY_INFO!K28=3,IF(COUNTRY_INFO!F28>MAX('T1'!M28,'T2'!K28),MAX('T1'!M28,'T2'!K28),COUNTRY_INFO!F28),0))) -> 0 | AE28: =IF(AND(COUNTRY_INFO!K28>0,COUNTRY_INFO!K28<4),IF(Z28>0,IF(COUNTRY_INFO!K28=1, AD28/(COUNTRY_INFO!F28*0.33)*100, IF(COUNTRY_INFO!K28=2, AD28/(COUNTRY_INFO!F28*0.5)*100, IF(COUNTRY_INFO!K28=3, AD28/COUNTRY_INFO!F28*100))),"-"),0) -> 0 | AF28: =IF(COUNTRY_INFO!K28=2,IF(COUNTRY_INFO!G28*0.2>MAX('T1'!N28,'T2'!L28),MAX('T1'!N28,'T2'!L28),COUNTRY_INFO!G28*0.2),IF(COUNTRY_INFO!K28=3,IF(COUNTRY_INFO!G28>MAX('T1'!N28,'T2'!L28),MAX('T1'!N28,'T2'!L28),COUNTRY_INFO!G28),0)) -> 0 | AG28: =IF(AND(COUNTRY_INFO!K28>0,COUNTRY_INFO!K28<4),IF(Z28>0,IF(COUNTRY_INFO!K28=1, 0, IF(COUNTRY_INFO!K28=2, AF28/(COUNTRY_INFO!G28*0.2)*100, IF(COUNTRY_INFO!K28=3, AF28/COUNTRY_INFO!G28*100))),"-"),0) -> 0 | AH28: 0 | AI28: =IF(AND(COUNTRY_INFO!K28>0,COUNTRY_INFO!K28<4), IF(AC28/Z28*100<>0, IF(AH28/Z28*100>100,100,AH28/Z28*100), "-"),0) -> - | AK28: =IF(AND(D28<>0, D28<>"Unknown",D28<>"Stopped",D28<>"Not required"),D28/COUNTRY_INFO!D28, 0) -> 0 | AL28: =IF(AND(J28<>0,J28<>"Unknown",J28<>"Stopped",J28<>"Not required"),J28/COUNTRY_INFO!D28, 0) -> 0 | AM28: =IF(AND(P28<>0,P28<>"Unknown",P28<>"Not required"),P28/(COUNTRY_INFO!E28+COUNTRY_INFO!F28), 0) -> 1 | AN28: =IF(AND(Z28<>0,Z28<>"Unknown",Z28<>"Not required"),IF(COUNTRY_INFO!K28=1,1,IF(COUNTRY_INFO!K28=2,0.5*COUNTRY_INFO!F28/(0.5*COUNTRY_INFO!F28+0.2*COUNTRY_INFO!G28),IF(COUNTRY_INFO!K28=3,COUNTRY_INFO!F28/(COUNTRY_INFO!F28+COUNTRY_INFO!G28)))),0) -> 1 | AO28: =IF(AND(Z28<>0,Z28<>"Unknown",Z28<>"Not required"),IF(COUNTRY_INFO!K28=1,0,IF(COUNTRY_INFO!K28=2,0.2*COUNTRY_INFO!G28/(0.5*COUNTRY_INFO!F28+0.2*COUNTRY_INFO!G28),IF(COUNTRY_INFO!K28=3,COUNTRY_INFO!G28/(COUNTRY_INFO!F28+COUNTRY_INFO!G28)))),0) -> 0 | AP28: =MAX(COUNTRY_INFO!D28*AK28*PROFILE!$G$7,COUNTRY_INFO!D28*AL28*PROFILE!$G$7) -> 0 | AQ28: =MAX(COUNTRY_INFO!D28*AK28*PROFILE!$G$8,COUNTRY_INFO!D28*AL28*PROFILE!$G$8,COUNTRY_INFO!D28*AM28*PROFILE!$G$8) -> 50151.42121 | AR28: =MAX(COUNTRY_INFO!D28*AK28*PROFILE!$G$9,COUNTRY_INFO!D28*AL28*PROFILE!$G$9,COUNTRY_INFO!D28*AM28*PROFILE!$G$9,IF(AND(DISTRICT!Z28<>"Unknown",Z28<>"Not required"),COUNTRY_INFO!O28*DISTRICT!AN28,0)) -> 120928.535 | AS28: =MAX(COUNTRY_INFO!D28*AK28*PROFILE!$G$10,COUNTRY_INFO!D28*AL28*PROFILE!$G$10,IF(AND(DISTRICT!Z28<>"Unknown",Z28<>"Not required"),COUNTRY_INFO!O28*DISTRICT!AO28,0)) -> 0 | AT28: 171079.9562 | AU28: 0 | AV28: =MAX('MDA2'!J28,'MDA5'!J28,'T1'!L28,'T2'!J28,T3_R1!K28,T3_R2!K28) -> 41352 | AW28: =MAX('MDA1'!K28,'MDA2'!K28,'MDA3'!I28,'MDA3'!L28,'MDA5'!K28,'T1'!M28,'T2'!K28,T3_R1!L28,T3_R2!L28) -> 100557 | AX28: =MAX('MDA1'!L28,'MDA2'!L28,'MDA3'!J28,'MDA3'!M28,'MDA5'!L28,'T1'!N28,'T2'!L28,T3_R1!M28,T3_R2!M28) -> 218203 | AY28: 360112 | AZ28: =MAX('MDA2'!J28,'MDA5'!J28,T28) -> 41352 | BA28: =MAX('MDA1'!K28,'MDA2'!K28,'MDA3'!I28,'MDA3'!L28,'MDA5'!K28,V28,AD28) -> 100557 | BB28: =MAX('MDA1'!L28,'MDA2'!L28,'MDA3'!J28,'MDA3'!M28,'MDA5'!L28,AF28) -> 0 | BC28: 141909 | BD28: 82.94893402
A29: =IF(COUNTRY_INFO!A29=0," ",COUNTRY_INFO!A29) -> Rwanda | B29: =IF(COUNTRY_INFO!B29=0," ",COUNTRY_INFO!B29) -> Western | C29: =IF(COUNTRY_INFO!C29=0," ",COUNTRY_INFO!C29) -> Nyamasheke | D29: =COUNTRY_INFO!L29 -> 0 | G29: =MAX('MDA1'!M29,'MDA2'!M29,'MDA5'!M29) -> 0 | H29: =IF(AND(COUNTRY_INFO!H29>0,COUNTRY_INFO!H29<4),IF(D29>MAX('MDA1'!M29,'MDA2'!M29,'MDA5'!M29),MAX('MDA1'!M29,'MDA2'!M29,'MDA5'!M29),D29),0) -> 0 | I29: =IF(AND(COUNTRY_INFO!H29>0,COUNTRY_INFO!H29<4), IF(G29/D29*100<>0, IF(G29/D29*100>100,100,G29/D29*100), "-"),0) -> 0 | J29: =COUNTRY_INFO!M29 -> 0 | M29: =MAX('MDA1'!M29,MAX('MDA3'!I29,'MDA3'!L29)+MAX('MDA3'!J29,'MDA3'!M29)) -> 0 | N29: =IF(AND(COUNTRY_INFO!I29>0,COUNTRY_INFO!I29<4),IF(J29>MAX('MDA1'!M29,MAX('MDA3'!I29,'MDA3'!L29)+MAX('MDA3'!J29,'MDA3'!M29)),MAX('MDA1'!M29,MAX('MDA3'!I29,'MDA3'!L29)+MAX('MDA3'!J29,'MDA3'!M29)),J29),0) -> 0 | O29: =IF(AND(COUNTRY_INFO!I29>0,COUNTRY_INFO!I29<4), IF(M29/J29*100<>0, IF(M29/J29*100>100,100,M29/J29*100), "-"),0) -> 0 | P29: =COUNTRY_INFO!N29 -> 188688.276 | S29: =SUM(MAX('MDA2'!J29,'MDA5'!J29, 'T1'!L29, MAX(T3_R1!K29, T3_R2!K29)), MAX('MDA1'!K29, 'MDA2'!K29, 'MDA5'!K29,'T1'!M29, MAX(T3_R1!L29, T3_R2!L29)), MAX('MDA1'!L29, 'MDA2'!L29, 'MDA5'!L29,'T1'!N29, MAX(T3_R1!M29, T3_R2!M29))) -> 368809 | T29: =IF(AND(COUNTRY_INFO!J29>1,COUNTRY_INFO!J29<4),IF(COUNTRY_INFO!E29>MAX('MDA2'!J29,'MDA5'!J29,'T1'!L29,MAX(T3_R1!K29,T3_R2!K29)),MAX('MDA2'!J29,'MDA5'!J29,'T1'!L29,MAX(T3_R1!K29,T3_R2!K29)),COUNTRY_INFO!E29),0) -> 57897 | U29: =IF(AND(COUNTRY_INFO!J29>1,COUNTRY_INFO!J29<4), IF(T29/COUNTRY_INFO!E29*100<>0, IF(T29/COUNTRY_INFO!E29*100>100,100,T29/COUNTRY_INFO!E29*100), "-"),0) -> 97.12354999 | V29: =IF(AND(COUNTRY_INFO!J29>1,COUNTRY_INFO!J29<4),IF(COUNTRY_INFO!F29>MAX('MDA1'!K29,'MDA2'!K29,'MDA5'!K29,'T1'!M29,MAX(T3_R1!L29,T3_R2!L29)),MAX('MDA1'!K29,'MDA2'!K29,'MDA5'!K29,'T1'!M29,MAX(T3_R1!L29,T3_R2!L29)),COUNTRY_INFO!F29),0) -> 122463 | W29: =IF(AND(COUNTRY_INFO!J29>1,COUNTRY_INFO!J29<4), IF(V29/COUNTRY_INFO!F29*100<>0, IF(V29/COUNTRY_INFO!F29*100>100,100,V29/COUNTRY_INFO!F29*100), "-"),0) -> 94.876239 | X29: 180360 | Y29: =IF(AND(COUNTRY_INFO!J29>1,COUNTRY_INFO!J29<4), IF(S29/P29*100<>0, IF(X29/P29*100>100,100,X29/P29*100), "-"),0) -> 95.58622498 | Z29: =COUNTRY_INFO!O29 -> 87346 | AC29: =MAX('T1'!L29,'T2'!J29)+MAX('T1'!M29,'T2'!K29)+MAX('T1'!N29,'T2'!L29) -> 212838 | AD29: =IF(COUNTRY_INFO!K29=1,IF(COUNTRY_INFO!F29*0.33>MAX('T1'!M29,'T2'!K29),MAX('T1'!M29,'T2'!K29),COUNTRY_INFO!F29*0.33),IF(COUNTRY_INFO!K29=2,IF(COUNTRY_INFO!F29*0.5>MAX('T1'!M29,'T2'!K29),MAX('T1'!M29,'T2'!K29),COUNTRY_INFO!F29*0.5),IF(COUNTRY_INFO!K29=3,IF(COUNTRY_INFO!F29>MAX('T1'!M29,'T2'!K29),MAX('T1'!M29,'T2'!K29),COUNTRY_INFO!F29),0))) -> 64538.28761 | AE29: =IF(AND(COUNTRY_INFO!K29>0,COUNTRY_INFO!K29<4),IF(Z29>0,IF(COUNTRY_INFO!K29=1, AD29/(COUNTRY_INFO!F29*0.33)*100, IF(COUNTRY_INFO!K29=2, AD29/(COUNTRY_INFO!F29*0.5)*100, IF(COUNTRY_INFO!K29=3, AD29/COUNTRY_INFO!F29*100))),"-"),0) -> 100 | AF29: =IF(COUNTRY_INFO!K29=2,IF(COUNTRY_INFO!G29*0.2>MAX('T1'!N29,'T2'!L29),MAX('T1'!N29,'T2'!L29),COUNTRY_INFO!G29*0.2),IF(COUNTRY_INFO!K29=3,IF(COUNTRY_INFO!G29>MAX('T1'!N29,'T2'!L29),MAX('T1'!N29,'T2'!L29),COUNTRY_INFO!G29),0)) -> 57739.59777 | AG29: =IF(AND(COUNTRY_INFO!K29>0,COUNTRY_INFO!K29<4),IF(Z29>0,IF(COUNTRY_INFO!K29=1, 0, IF(COUNTRY_INFO!K29=2, AF29/(COUNTRY_INFO!G29*0.2)*100, IF(COUNTRY_INFO!K29=3, AF29/COUNTRY_INFO!G29*100))),"-"),0) -> 100 | AH29: 122277.8854 | AI29: =IF(AND(COUNTRY_INFO!K29>0,COUNTRY_INFO!K29<4), IF(AC29/Z29*100<>0, IF(AH29/Z29*100>100,100,AH29/Z29*100), "-"),0) -> 100 | AK29: =IF(AND(D29<>0, D29<>"Unknown",D29<>"Stopped",D29<>"Not required"),D29/COUNTRY_INFO!D29, 0) -> 0 | AL29: =IF(AND(J29<>0,J29<>"Unknown",J29<>"Stopped",J29<>"Not required"),J29/COUNTRY_INFO!D29, 0) -> 0 | AM29: =IF(AND(P29<>0,P29<>"Unknown",P29<>"Not required"),P29/(COUNTRY_INFO!E29+COUNTRY_INFO!F29), 0) -> 1 | AN29: =IF(AND(Z29<>0,Z29<>"Unknown",Z29<>"Not required"),IF(COUNTRY_INFO!K29=1,1,IF(COUNTRY_INFO!K29=2,0.5*COUNTRY_INFO!F29/(0.5*COUNTRY_INFO!F29+0.2*COUNTRY_INFO!G29),IF(COUNTRY_INFO!K29=3,COUNTRY_INFO!F29/(COUNTRY_INFO!F29+COUNTRY_INFO!G29)))),0) -> 0.5278001612 | AO29: =IF(AND(Z29<>0,Z29<>"Unknown",Z29<>"Not required"),IF(COUNTRY_INFO!K29=1,0,IF(COUNTRY_INFO!K29=2,0.2*COUNTRY_INFO!G29/(0.5*COUNTRY_INFO!F29+0.2*COUNTRY_INFO!G29),IF(COUNTRY_INFO!K29=3,COUNTRY_INFO!G29/(COUNTRY_INFO!F29+COUNTRY_INFO!G29)))),0) -> 0.4721998388 | AP29: =MAX(COUNTRY_INFO!D29*AK29*PROFILE!$G$7,COUNTRY_INFO!D29*AL29*PROFILE!$G$7) -> 0 | AQ29: =MAX(COUNTRY_INFO!D29*AK29*PROFILE!$G$8,COUNTRY_INFO!D29*AL29*PROFILE!$G$8,COUNTRY_INFO!D29*AM29*PROFILE!$G$8) -> 58159.42382 | AR29: =MAX(COUNTRY_INFO!D29*AK29*PROFILE!$G$9,COUNTRY_INFO!D29*AL29*PROFILE!$G$9,COUNTRY_INFO!D29*AM29*PROFILE!$G$9,IF(AND(DISTRICT!Z29<>"Unknown",Z29<>"Not required"),COUNTRY_INFO!O29*DISTRICT!AN29,0)) -> 140237.9783 | AS29: =MAX(COUNTRY_INFO!D29*AK29*PROFILE!$G$10,COUNTRY_INFO!D29*AL29*PROFILE!$G$10,IF(AND(DISTRICT!Z29<>"Unknown",Z29<>"Not required"),COUNTRY_INFO!O29*DISTRICT!AO29,0)) -> 41244.76712 | AT29: 239642.1693 | AU29: Y | AV29: =MAX('MDA2'!J29,'MDA5'!J29,'T1'!L29,'T2'!J29,T3_R1!K29,T3_R2!K29) -> 57897 | AW29: =MAX('MDA1'!K29,'MDA2'!K29,'MDA3'!I29,'MDA3'!L29,'MDA5'!K29,'T1'!M29,'T2'!K29,T3_R1!L29,T3_R2!L29) -> 122463 | AX29: =MAX('MDA1'!L29,'MDA2'!L29,'MDA3'!J29,'MDA3'!M29,'MDA5'!L29,'T1'!N29,'T2'!L29,T3_R1!M29,T3_R2!M29) -> 188449 | AY29: 368809 | AZ29: =MAX('MDA2'!J29,'MDA5'!J29,T29) -> 57897 | BA29: =MAX('MDA1'!K29,'MDA2'!K29,'MDA3'!I29,'MDA3'!L29,'MDA5'!K29,V29,AD29) -> 122463 | BB29: =MAX('MDA1'!L29,'MDA2'!L29,'MDA3'!J29,'MDA3'!M29,'MDA5'!L29,AF29) -> 57739.59777 | BC29: 238099.5978 | BD29: 99.35630215
A30: =IF(COUNTRY_INFO!A30=0," ",COUNTRY_INFO!A30) -> Rwanda | B30: =IF(COUNTRY_INFO!B30=0," ",COUNTRY_INFO!B30) -> Southern | C30: =IF(COUNTRY_INFO!C30=0," ",COUNTRY_INFO!C30) -> Nyanza | D30: =COUNTRY_INFO!L30 -> 0 | G30: =MAX('MDA1'!M30,'MDA2'!M30,'MDA5'!M30) -> 0 | H30: =IF(AND(COUNTRY_INFO!H30>0,COUNTRY_INFO!H30<4),IF(D30>MAX('MDA1'!M30,'MDA2'!M30,'MDA5'!M30),MAX('MDA1'!M30,'MDA2'!M30,'MDA5'!M30),D30),0) -> 0 | I30: =IF(AND(COUNTRY_INFO!H30>0,COUNTRY_INFO!H30<4), IF(G30/D30*100<>0, IF(G30/D30*100>100,100,G30/D30*100), "-"),0) -> 0 | J30: =COUNTRY_INFO!M30 -> 0 | M30: =MAX('MDA1'!M30,MAX('MDA3'!I30,'MDA3'!L30)+MAX('MDA3'!J30,'MDA3'!M30)) -> 0 | N30: =IF(AND(COUNTRY_INFO!I30>0,COUNTRY_INFO!I30<4),IF(J30>MAX('MDA1'!M30,MAX('MDA3'!I30,'MDA3'!L30)+MAX('MDA3'!J30,'MDA3'!M30)),MAX('MDA1'!M30,MAX('MDA3'!I30,'MDA3'!L30)+MAX('MDA3'!J30,'MDA3'!M30)),J30),0) -> 0 | O30: =IF(AND(COUNTRY_INFO!I30>0,COUNTRY_INFO!I30<4), IF(M30/J30*100<>0, IF(M30/J30*100>100,100,M30/J30*100), "-"),0) -> 0 | P30: =COUNTRY_INFO!N30 -> 157019.7575 | S30: =SUM(MAX('MDA2'!J30,'MDA5'!J30, 'T1'!L30, MAX(T3_R1!K30, T3_R2!K30)), MAX('MDA1'!K30, 'MDA2'!K30, 'MDA5'!K30,'T1'!M30, MAX(T3_R1!L30, T3_R2!L30)), MAX('MDA1'!L30, 'MDA2'!L30, 'MDA5'!L30,'T1'!N30, MAX(T3_R1!M30, T3_R2!M30))) -> 319560 | T30: =IF(AND(COUNTRY_INFO!J30>1,COUNTRY_INFO!J30<4),IF(COUNTRY_INFO!E30>MAX('MDA2'!J30,'MDA5'!J30,'T1'!L30,MAX(T3_R1!K30,T3_R2!K30)),MAX('MDA2'!J30,'MDA5'!J30,'T1'!L30,MAX(T3_R1!K30,T3_R2!K30)),COUNTRY_INFO!E30),0) -> 35966 | U30: =IF(AND(COUNTRY_INFO!J30>1,COUNTRY_INFO!J30<4), IF(T30/COUNTRY_INFO!E30*100<>0, IF(T30/COUNTRY_INFO!E30*100>100,100,T30/COUNTRY_INFO!E30*100), "-"),0) -> 73.4881511 | V30: =IF(AND(COUNTRY_INFO!J30>1,COUNTRY_INFO!J30<4),IF(COUNTRY_INFO!F30>MAX('MDA1'!K30,'MDA2'!K30,'MDA5'!K30,'T1'!M30,MAX(T3_R1!L30,T3_R2!L30)),MAX('MDA1'!K30,'MDA2'!K30,'MDA5'!K30,'T1'!M30,MAX(T3_R1!L30,T3_R2!L30)),COUNTRY_INFO!F30),0) -> 99069 | W30: =IF(AND(COUNTRY_INFO!J30>1,COUNTRY_INFO!J30<4), IF(V30/COUNTRY_INFO!F30*100<>0, IF(V30/COUNTRY_INFO!F30*100>100,100,V30/COUNTRY_INFO!F30*100), "-"),0) -> 91.66390028 | X30: 135035 | Y30: =IF(AND(COUNTRY_INFO!J30>1,COUNTRY_INFO!J30<4), IF(S30/P30*100<>0, IF(X30/P30*100>100,100,X30/P30*100), "-"),0) -> 85.9987317 | Z30: =COUNTRY_INFO!O30 -> 49773 | AC30: =MAX('T1'!L30,'T2'!J30)+MAX('T1'!M30,'T2'!K30)+MAX('T1'!N30,'T2'!L30) -> 113147 | AD30: =IF(COUNTRY_INFO!K30=1,IF(COUNTRY_INFO!F30*0.33>MAX('T1'!M30,'T2'!K30),MAX('T1'!M30,'T2'!K30),COUNTRY_INFO!F30*0.33),IF(COUNTRY_INFO!K30=2,IF(COUNTRY_INFO!F30*0.5>MAX('T1'!M30,'T2'!K30),MAX('T1'!M30,'T2'!K30),COUNTRY_INFO!F30*0.5),IF(COUNTRY_INFO!K30=3,IF(COUNTRY_INFO!F30>MAX('T1'!M30,'T2'!K30),MAX('T1'!M30,'T2'!K30),COUNTRY_INFO!F30),0))) -> 42350 | AE30: =IF(AND(COUNTRY_INFO!K30>0,COUNTRY_INFO!K30<4),IF(Z30>0,IF(COUNTRY_INFO!K30=1, AD30/(COUNTRY_INFO!F30*0.33)*100, IF(COUNTRY_INFO!K30=2, AD30/(COUNTRY_INFO!F30*0.5)*100, IF(COUNTRY_INFO!K30=3, AD30/COUNTRY_INFO!F30*100))),"-"),0) -> 78.36893835 | AF30: =IF(COUNTRY_INFO!K30=2,IF(COUNTRY_INFO!G30*0.2>MAX('T1'!N30,'T2'!L30),MAX('T1'!N30,'T2'!L30),COUNTRY_INFO!G30*0.2),IF(COUNTRY_INFO!K30=3,IF(COUNTRY_INFO!G30>MAX('T1'!N30,'T2'!L30),MAX('T1'!N30,'T2'!L30),COUNTRY_INFO!G30),0)) -> 47717.69255 | AG30: =IF(AND(COUNTRY_INFO!K30>0,COUNTRY_INFO!K30<4),IF(Z30>0,IF(COUNTRY_INFO!K30=1, 0, IF(COUNTRY_INFO!K30=2, AF30/(COUNTRY_INFO!G30*0.2)*100, IF(COUNTRY_INFO!K30=3, AF30/COUNTRY_INFO!G30*100))),"-"),0) -> 100 | AH30: 90067.69255 | AI30: =IF(AND(COUNTRY_INFO!K30>0,COUNTRY_INFO!K30<4), IF(AC30/Z30*100<>0, IF(AH30/Z30*100>100,100,AH30/Z30*100), "-"),0) -> 100 | AK30: =IF(AND(D30<>0, D30<>"Unknown",D30<>"Stopped",D30<>"Not required"),D30/COUNTRY_INFO!D30, 0) -> 0 | AL30: =IF(AND(J30<>0,J30<>"Unknown",J30<>"Stopped",J30<>"Not required"),J30/COUNTRY_INFO!D30, 0) -> 0 | AM30: =IF(AND(P30<>0,P30<>"Unknown",P30<>"Not required"),P30/(COUNTRY_INFO!E30+COUNTRY_INFO!F30), 0) -> 1 | AN30: =IF(AND(Z30<>0,Z30<>"Unknown",Z30<>"Not required"),IF(COUNTRY_INFO!K30=1,1,IF(COUNTRY_INFO!K30=2,0.5*COUNTRY_INFO!F30/(0.5*COUNTRY_INFO!F30+0.2*COUNTRY_INFO!G30),IF(COUNTRY_INFO!K30=3,COUNTRY_INFO!F30/(COUNTRY_INFO!F30+COUNTRY_INFO!G30)))),0) -> 0.5310621242 | AO30: =IF(AND(Z30<>0,Z30<>"Unknown",Z30<>"Not required"),IF(COUNTRY_INFO!K30=1,0,IF(COUNTRY_INFO!K30=2,0.2*COUNTRY_INFO!G30/(0.5*COUNTRY_INFO!F30+0.2*COUNTRY_INFO!G30),IF(COUNTRY_INFO!K30=3,COUNTRY_INFO!G30/(COUNTRY_INFO!F30+COUNTRY_INFO!G30)))),0) -> 0.4689378758 | AP30: =MAX(COUNTRY_INFO!D30*AK30*PROFILE!$G$7,COUNTRY_INFO!D30*AL30*PROFILE!$G$7) -> 0 | AQ30: =MAX(COUNTRY_INFO!D30*AK30*PROFILE!$G$8,COUNTRY_INFO!D30*AL30*PROFILE!$G$8,COUNTRY_INFO!D30*AM30*PROFILE!$G$8) -> 48146.81087 | AR30: =MAX(COUNTRY_INFO!D30*AK30*PROFILE!$G$9,COUNTRY_INFO!D30*AL30*PROFILE!$G$9,COUNTRY_INFO!D30*AM30*PROFILE!$G$9,IF(AND(DISTRICT!Z30<>"Unknown",Z30<>"Not required"),COUNTRY_INFO!O30*DISTRICT!AN30,0)) -> 116094.8815 | AS30: =MAX(COUNTRY_INFO!D30*AK30*PROFILE!$G$10,COUNTRY_INFO!D30*AL30*PROFILE!$G$10,IF(AND(DISTRICT!Z30<>"Unknown",Z30<>"Not required"),COUNTRY_INFO!O30*DISTRICT!AO30,0)) -> 23340.44489 | AT30: 187582.1373 | AU30: Y | AV30: =MAX('MDA2'!J30,'MDA5'!J30,'T1'!L30,'T2'!J30,T3_R1!K30,T3_R2!K30) -> 35966 | AW30: =MAX('MDA1'!K30,'MDA2'!K30,'MDA3'!I30,'MDA3'!L30,'MDA5'!K30,'T1'!M30,'T2'!K30,T3_R1!L30,T3_R2!L30) -> 99069 | AX30: =MAX('MDA1'!L30,'MDA2'!L30,'MDA3'!J30,'MDA3'!M30,'MDA5'!L30,'T1'!N30,'T2'!L30,T3_R1!M30,T3_R2!M30) -> 184525 | AY30: 319560 | AZ30: =MAX('MDA2'!J30,'MDA5'!J30,T30) -> 35966 | BA30: =MAX('MDA1'!K30,'MDA2'!K30,'MDA3'!I30,'MDA3'!L30,'MDA5'!K30,V30,AD30) -> 99069 | BB30: =MAX('MDA1'!L30,'MDA2'!L30,'MDA3'!J30,'MDA3'!M30,'MDA5'!L30,AF30) -> 47717.69255 | BC30: 182752.6925 | BD30: 97.42542397
A31: =IF(COUNTRY_INFO!A31=0," ",COUNTRY_INFO!A31) -> Rwanda | B31: =IF(COUNTRY_INFO!B31=0," ",COUNTRY_INFO!B31) -> Kigali | C31: =IF(COUNTRY_INFO!C31=0," ",COUNTRY_INFO!C31) -> Nyarugenge | D31: =COUNTRY_INFO!L31 -> 0 | G31: =MAX('MDA1'!M31,'MDA2'!M31,'MDA5'!M31) -> 0 | H31: =IF(AND(COUNTRY_INFO!H31>0,COUNTRY_INFO!H31<4),IF(D31>MAX('MDA1'!M31,'MDA2'!M31,'MDA5'!M31),MAX('MDA1'!M31,'MDA2'!M31,'MDA5'!M31),D31),0) -> 0 | I31: =IF(AND(COUNTRY_INFO!H31>0,COUNTRY_INFO!H31<4), IF(G31/D31*100<>0, IF(G31/D31*100>100,100,G31/D31*100), "-"),0) -> 0 | J31: =COUNTRY_INFO!M31 -> 0 | M31: =MAX('MDA1'!M31,MAX('MDA3'!I31,'MDA3'!L31)+MAX('MDA3'!J31,'MDA3'!M31)) -> 0 | N31: =IF(AND(COUNTRY_INFO!I31>0,COUNTRY_INFO!I31<4),IF(J31>MAX('MDA1'!M31,MAX('MDA3'!I31,'MDA3'!L31)+MAX('MDA3'!J31,'MDA3'!M31)),MAX('MDA1'!M31,MAX('MDA3'!I31,'MDA3'!L31)+MAX('MDA3'!J31,'MDA3'!M31)),J31),0) -> 0 | O31: =IF(AND(COUNTRY_INFO!I31>0,COUNTRY_INFO!I31<4), IF(M31/J31*100<>0, IF(M31/J31*100>100,100,M31/J31*100), "-"),0) -> 0 | P31: =COUNTRY_INFO!N31 -> 0 | S31: =SUM(MAX('MDA2'!J31,'MDA5'!J31, 'T1'!L31, MAX(T3_R1!K31, T3_R2!K31)), MAX('MDA1'!K31, 'MDA2'!K31, 'MDA5'!K31,'T1'!M31, MAX(T3_R1!L31, T3_R2!L31)), MAX('MDA1'!L31, 'MDA2'!L31, 'MDA5'!L31,'T1'!N31, MAX(T3_R1!M31, T3_R2!M31))) -> 302354 | T31: =IF(AND(COUNTRY_INFO!J31>1,COUNTRY_INFO!J31<4),IF(COUNTRY_INFO!E31>MAX('MDA2'!J31,'MDA5'!J31,'T1'!L31,MAX(T3_R1!K31,T3_R2!K31)),MAX('MDA2'!J31,'MDA5'!J31,'T1'!L31,MAX(T3_R1!K31,T3_R2!K31)),COUNTRY_INFO!E31),0) -> 0 | U31: =IF(AND(COUNTRY_INFO!J31>1,COUNTRY_INFO!J31<4), IF(T31/COUNTRY_INFO!E31*100<>0, IF(T31/COUNTRY_INFO!E31*100>100,100,T31/COUNTRY_INFO!E31*100), "-"),0) -> 0 | V31: =IF(AND(COUNTRY_INFO!J31>1,COUNTRY_INFO!J31<4),IF(COUNTRY_INFO!F31>MAX('MDA1'!K31,'MDA2'!K31,'MDA5'!K31,'T1'!M31,MAX(T3_R1!L31,T3_R2!L31)),MAX('MDA1'!K31,'MDA2'!K31,'MDA5'!K31,'T1'!M31,MAX(T3_R1!L31,T3_R2!L31)),COUNTRY_INFO!F31),0) -> 0 | W31: =IF(AND(COUNTRY_INFO!J31>1,COUNTRY_INFO!J31<4), IF(V31/COUNTRY_INFO!F31*100<>0, IF(V31/COUNTRY_INFO!F31*100>100,100,V31/COUNTRY_INFO!F31*100), "-"),0) -> 0 | X31: 0 | Y31: =IF(AND(COUNTRY_INFO!J31>1,COUNTRY_INFO!J31<4), IF(S31/P31*100<>0, IF(X31/P31*100>100,100,X31/P31*100), "-"),0) -> 0 | Z31: =COUNTRY_INFO!O31 -> 6463 | AC31: =MAX('T1'!L31,'T2'!J31)+MAX('T1'!M31,'T2'!K31)+MAX('T1'!N31,'T2'!L31) -> 27577 | AD31: =IF(COUNTRY_INFO!K31=1,IF(COUNTRY_INFO!F31*0.33>MAX('T1'!M31,'T2'!K31),MAX('T1'!M31,'T2'!K31),COUNTRY_INFO!F31*0.33),IF(COUNTRY_INFO!K31=2,IF(COUNTRY_INFO!F31*0.5>MAX('T1'!M31,'T2'!K31),MAX('T1'!M31,'T2'!K31),COUNTRY_INFO!F31*0.5),IF(COUNTRY_INFO!K31=3,IF(COUNTRY_INFO!F31>MAX('T1'!M31,'T2'!K31),MAX('T1'!M31,'T2'!K31),COUNTRY_INFO!F31),0))) -> 12786 | AE31: =IF(AND(COUNTRY_INFO!K31>0,COUNTRY_INFO!K31<4),IF(Z31>0,IF(COUNTRY_INFO!K31=1, AD31/(COUNTRY_INFO!F31*0.33)*100, IF(COUNTRY_INFO!K31=2, AD31/(COUNTRY_INFO!F31*0.5)*100, IF(COUNTRY_INFO!K31=3, AD31/COUNTRY_INFO!F31*100))),"-"),0) -> 32.57003272 | AF31: =IF(COUNTRY_INFO!K31=2,IF(COUNTRY_INFO!G31*0.2>MAX('T1'!N31,'T2'!L31),MAX('T1'!N31,'T2'!L31),COUNTRY_INFO!G31*0.2),IF(COUNTRY_INFO!K31=3,IF(COUNTRY_INFO!G31>MAX('T1'!N31,'T2'!L31),MAX('T1'!N31,'T2'!L31),COUNTRY_INFO!G31),0)) -> 14791 | AG31: =IF(AND(COUNTRY_INFO!K31>0,COUNTRY_INFO!K31<4),IF(Z31>0,IF(COUNTRY_INFO!K31=1, 0, IF(COUNTRY_INFO!K31=2, AF31/(COUNTRY_INFO!G31*0.2)*100, IF(COUNTRY_INFO!K31=3, AF31/COUNTRY_INFO!G31*100))),"-"),0) -> 31.78487139 | AH31: 27577 | AI31: =IF(AND(COUNTRY_INFO!K31>0,COUNTRY_INFO!K31<4), IF(AC31/Z31*100<>0, IF(AH31/Z31*100>100,100,AH31/Z31*100), "-"),0) -> 100 | AK31: =IF(AND(D31<>0, D31<>"Unknown",D31<>"Stopped",D31<>"Not required"),D31/COUNTRY_INFO!D31, 0) -> 0 | AL31: =IF(AND(J31<>0,J31<>"Unknown",J31<>"Stopped",J31<>"Not required"),J31/COUNTRY_INFO!D31, 0) -> 0 | AM31: =IF(AND(P31<>0,P31<>"Unknown",P31<>"Not required"),P31/(COUNTRY_INFO!E31+COUNTRY_INFO!F31), 0) -> 0 | AN31: =IF(AND(Z31<>0,Z31<>"Unknown",Z31<>"Not required"),IF(COUNTRY_INFO!K31=1,1,IF(COUNTRY_INFO!K31=2,0.5*COUNTRY_INFO!F31/(0.5*COUNTRY_INFO!F31+0.2*COUNTRY_INFO!G31),IF(COUNTRY_INFO!K31=3,COUNTRY_INFO!F31/(COUNTRY_INFO!F31+COUNTRY_INFO!G31)))),0) -> 0.4575846218 | AO31: =IF(AND(Z31<>0,Z31<>"Unknown",Z31<>"Not required"),IF(COUNTRY_INFO!K31=1,0,IF(COUNTRY_INFO!K31=2,0.2*COUNTRY_INFO!G31/(0.5*COUNTRY_INFO!F31+0.2*COUNTRY_INFO!G31),IF(COUNTRY_INFO!K31=3,COUNTRY_INFO!G31/(COUNTRY_INFO!F31+COUNTRY_INFO!G31)))),0) -> 0.5424153782 | AP31: =MAX(COUNTRY_INFO!D31*AK31*PROFILE!$G$7,COUNTRY_INFO!D31*AL31*PROFILE!$G$7) -> 0 | AQ31: =MAX(COUNTRY_INFO!D31*AK31*PROFILE!$G$8,COUNTRY_INFO!D31*AL31*PROFILE!$G$8,COUNTRY_INFO!D31*AM31*PROFILE!$G$8) -> 0 | AR31: =MAX(COUNTRY_INFO!D31*AK31*PROFILE!$G$9,COUNTRY_INFO!D31*AL31*PROFILE!$G$9,COUNTRY_INFO!D31*AM31*PROFILE!$G$9,IF(AND(DISTRICT!Z31<>"Unknown",Z31<>"Not required"),COUNTRY_INFO!O31*DISTRICT!AN31,0)) -> 2957.369411 | AS31: =MAX(COUNTRY_INFO!D31*AK31*PROFILE!$G$10,COUNTRY_INFO!D31*AL31*PROFILE!$G$10,IF(AND(DISTRICT!Z31<>"Unknown",Z31<>"Not required"),COUNTRY_INFO!O31*DISTRICT!AO31,0)) -> 3505.630589 | AT31: 6463 | AU31: Y | AV31: =MAX('MDA2'!J31,'MDA5'!J31,'T1'!L31,'T2'!J31,T3_R1!K31,T3_R2!K31) -> 43369 | AW31: =MAX('MDA1'!K31,'MDA2'!K31,'MDA3'!I31,'MDA3'!L31,'MDA5'!K31,'T1'!M31,'T2'!K31,T3_R1!L31,T3_R2!L31) -> 102690 | AX31: =MAX('MDA1'!L31,'MDA2'!L31,'MDA3'!J31,'MDA3'!M31,'MDA5'!L31,'T1'!N31,'T2'!L31,T3_R1!M31,T3_R2!M31) -> 156295 | AY31: 302354 | AZ31: =MAX('MDA2'!J31,'MDA5'!J31,T31) -> 0 | BA31: =MAX('MDA1'!K31,'MDA2'!K31,'MDA3'!I31,'MDA3'!L31,'MDA5'!K31,V31,AD31) -> 12786 | BB31: =MAX('MDA1'!L31,'MDA2'!L31,'MDA3'!J31,'MDA3'!M31,'MDA5'!L31,AF31) -> 14791 | BC31: 6463 | BD31: 100
A32: =IF(COUNTRY_INFO!A32=0," ",COUNTRY_INFO!A32) -> Rwanda | B32: =IF(COUNTRY_INFO!B32=0," ",COUNTRY_INFO!B32) -> Southern | C32: =IF(COUNTRY_INFO!C32=0," ",COUNTRY_INFO!C32) -> Nyaruguru | D32: =COUNTRY_INFO!L32 -> 0 | G32: =MAX('MDA1'!M32,'MDA2'!M32,'MDA5'!M32) -> 0 | H32: =IF(AND(COUNTRY_INFO!H32>0,COUNTRY_INFO!H32<4),IF(D32>MAX('MDA1'!M32,'MDA2'!M32,'MDA5'!M32),MAX('MDA1'!M32,'MDA2'!M32,'MDA5'!M32),D32),0) -> 0 | I32: =IF(AND(COUNTRY_INFO!H32>0,COUNTRY_INFO!H32<4), IF(G32/D32*100<>0, IF(G32/D32*100>100,100,G32/D32*100), "-"),0) -> 0 | J32: =COUNTRY_INFO!M32 -> 0 | M32: =MAX('MDA1'!M32,MAX('MDA3'!I32,'MDA3'!L32)+MAX('MDA3'!J32,'MDA3'!M32)) -> 0 | N32: =IF(AND(COUNTRY_INFO!I32>0,COUNTRY_INFO!I32<4),IF(J32>MAX('MDA1'!M32,MAX('MDA3'!I32,'MDA3'!L32)+MAX('MDA3'!J32,'MDA3'!M32)),MAX('MDA1'!M32,MAX('MDA3'!I32,'MDA3'!L32)+MAX('MDA3'!J32,'MDA3'!M32)),J32),0) -> 0 | O32: =IF(AND(COUNTRY_INFO!I32>0,COUNTRY_INFO!I32<4), IF(M32/J32*100<>0, IF(M32/J32*100>100,100,M32/J32*100), "-"),0) -> 0 | P32: =COUNTRY_INFO!N32 -> 162049.6582 | S32: =SUM(MAX('MDA2'!J32,'MDA5'!J32, 'T1'!L32, MAX(T3_R1!K32, T3_R2!K32)), MAX('MDA1'!K32, 'MDA2'!K32, 'MDA5'!K32,'T1'!M32, MAX(T3_R1!L32, T3_R2!L32)), MAX('MDA1'!L32, 'MDA2'!L32, 'MDA5'!L32,'T1'!N32, MAX(T3_R1!M32, T3_R2!M32))) -> 343582 | T32: =IF(AND(COUNTRY_INFO!J32>1,COUNTRY_INFO!J32<4),IF(COUNTRY_INFO!E32>MAX('MDA2'!J32,'MDA5'!J32,'T1'!L32,MAX(T3_R1!K32,T3_R2!K32)),MAX('MDA2'!J32,'MDA5'!J32,'T1'!L32,MAX(T3_R1!K32,T3_R2!K32)),COUNTRY_INFO!E32),0) -> 41218 | U32: =IF(AND(COUNTRY_INFO!J32>1,COUNTRY_INFO!J32<4), IF(T32/COUNTRY_INFO!E32*100<>0, IF(T32/COUNTRY_INFO!E32*100>100,100,T32/COUNTRY_INFO!E32*100), "-"),0) -> 95.00235493 | V32: =IF(AND(COUNTRY_INFO!J32>1,COUNTRY_INFO!J32<4),IF(COUNTRY_INFO!F32>MAX('MDA1'!K32,'MDA2'!K32,'MDA5'!K32,'T1'!M32,MAX(T3_R1!L32,T3_R2!L32)),MAX('MDA1'!K32,'MDA2'!K32,'MDA5'!K32,'T1'!M32,MAX(T3_R1!L32,T3_R2!L32)),COUNTRY_INFO!F32),0) -> 111393 | W32: =IF(AND(COUNTRY_INFO!J32>1,COUNTRY_INFO!J32<4), IF(V32/COUNTRY_INFO!F32*100<>0, IF(V32/COUNTRY_INFO!F32*100>100,100,V32/COUNTRY_INFO!F32*100), "-"),0) -> 93.87311723 | X32: 152611 | Y32: =IF(AND(COUNTRY_INFO!J32>1,COUNTRY_INFO!J32<4), IF(S32/P32*100<>0, IF(X32/P32*100>100,100,X32/P32*100), "-"),0) -> 94.17545318 | Z32: =COUNTRY_INFO!O32 -> 39145 | AC32: =MAX('T1'!L32,'T2'!J32)+MAX('T1'!M32,'T2'!K32)+MAX('T1'!N32,'T2'!L32) -> 0 | AD32: =IF(COUNTRY_INFO!K32=1,IF(COUNTRY_INFO!F32*0.33>MAX('T1'!M32,'T2'!K32),MAX('T1'!M32,'T2'!K32),COUNTRY_INFO!F32*0.33),IF(COUNTRY_INFO!K32=2,IF(COUNTRY_INFO!F32*0.5>MAX('T1'!M32,'T2'!K32),MAX('T1'!M32,'T2'!K32),COUNTRY_INFO!F32*0.5),IF(COUNTRY_INFO!K32=3,IF(COUNTRY_INFO!F32>MAX('T1'!M32,'T2'!K32),MAX('T1'!M32,'T2'!K32),COUNTRY_INFO!F32),0))) -> 0 | AE32: =IF(AND(COUNTRY_INFO!K32>0,COUNTRY_INFO!K32<4),IF(Z32>0,IF(COUNTRY_INFO!K32=1, AD32/(COUNTRY_INFO!F32*0.33)*100, IF(COUNTRY_INFO!K32=2, AD32/(COUNTRY_INFO!F32*0.5)*100, IF(COUNTRY_INFO!K32=3, AD32/COUNTRY_INFO!F32*100))),"-"),0) -> 0 | AF32: =IF(COUNTRY_INFO!K32=2,IF(COUNTRY_INFO!G32*0.2>MAX('T1'!N32,'T2'!L32),MAX('T1'!N32,'T2'!L32),COUNTRY_INFO!G32*0.2),IF(COUNTRY_INFO!K32=3,IF(COUNTRY_INFO!G32>MAX('T1'!N32,'T2'!L32),MAX('T1'!N32,'T2'!L32),COUNTRY_INFO!G32),0)) -> 0 | AG32: =IF(AND(COUNTRY_INFO!K32>0,COUNTRY_INFO!K32<4),IF(Z32>0,IF(COUNTRY_INFO!K32=1, 0, IF(COUNTRY_INFO!K32=2, AF32/(COUNTRY_INFO!G32*0.2)*100, IF(COUNTRY_INFO!K32=3, AF32/COUNTRY_INFO!G32*100))),"-"),0) -> 0 | AH32: 0 | AI32: =IF(AND(COUNTRY_INFO!K32>0,COUNTRY_INFO!K32<4), IF(AC32/Z32*100<>0, IF(AH32/Z32*100>100,100,AH32/Z32*100), "-"),0) -> - | AK32: =IF(AND(D32<>0, D32<>"Unknown",D32<>"Stopped",D32<>"Not required"),D32/COUNTRY_INFO!D32, 0) -> 0 | AL32: =IF(AND(J32<>0,J32<>"Unknown",J32<>"Stopped",J32<>"Not required"),J32/COUNTRY_INFO!D32, 0) -> 0 | AM32: =IF(AND(P32<>0,P32<>"Unknown",P32<>"Not required"),P32/(COUNTRY_INFO!E32+COUNTRY_INFO!F32), 0) -> 1 | AN32: =IF(AND(Z32<>0,Z32<>"Unknown",Z32<>"Not required"),IF(COUNTRY_INFO!K32=1,1,IF(COUNTRY_INFO!K32=2,0.5*COUNTRY_INFO!F32/(0.5*COUNTRY_INFO!F32+0.2*COUNTRY_INFO!G32),IF(COUNTRY_INFO!K32=3,COUNTRY_INFO!F32/(COUNTRY_INFO!F32+COUNTRY_INFO!G32)))),0) -> 1 | AO32: =IF(AND(Z32<>0,Z32<>"Unknown",Z32<>"Not required"),IF(COUNTRY_INFO!K32=1,0,IF(COUNTRY_INFO!K32=2,0.2*COUNTRY_INFO!G32/(0.5*COUNTRY_INFO!F32+0.2*COUNTRY_INFO!G32),IF(COUNTRY_INFO!K32=3,COUNTRY_INFO!G32/(COUNTRY_INFO!F32+COUNTRY_INFO!G32)))),0) -> 0 | AP32: =MAX(COUNTRY_INFO!D32*AK32*PROFILE!$G$7,COUNTRY_INFO!D32*AL32*PROFILE!$G$7) -> 0 | AQ32: =MAX(COUNTRY_INFO!D32*AK32*PROFILE!$G$8,COUNTRY_INFO!D32*AL32*PROFILE!$G$8,COUNTRY_INFO!D32*AM32*PROFILE!$G$8) -> 43776.4596 | AR32: =MAX(COUNTRY_INFO!D32*AK32*PROFILE!$G$9,COUNTRY_INFO!D32*AL32*PROFILE!$G$9,COUNTRY_INFO!D32*AM32*PROFILE!$G$9,IF(AND(DISTRICT!Z32<>"Unknown",Z32<>"Not required"),COUNTRY_INFO!O32*DISTRICT!AN32,0)) -> 105556.7918 | AS32: =MAX(COUNTRY_INFO!D32*AK32*PROFILE!$G$10,COUNTRY_INFO!D32*AL32*PROFILE!$G$10,IF(AND(DISTRICT!Z32<>"Unknown",Z32<>"Not required"),COUNTRY_INFO!O32*DISTRICT!AO32,0)) -> 0 | AT32: 149333.2514 | AU32: 0 | AV32: =MAX('MDA2'!J32,'MDA5'!J32,'T1'!L32,'T2'!J32,T3_R1!K32,T3_R2!K32) -> 41218 | AW32: =MAX('MDA1'!K32,'MDA2'!K32,'MDA3'!I32,'MDA3'!L32,'MDA5'!K32,'T1'!M32,'T2'!K32,T3_R1!L32,T3_R2!L32) -> 111393 | AX32: =MAX('MDA1'!L32,'MDA2'!L32,'MDA3'!J32,'MDA3'!M32,'MDA5'!L32,'T1'!N32,'T2'!L32,T3_R1!M32,T3_R2!M32) -> 190971 | AY32: 343582 | AZ32: =MAX('MDA2'!J32,'MDA5'!J32,T32) -> 41218 | BA32: =MAX('MDA1'!K32,'MDA2'!K32,'MDA3'!I32,'MDA3'!L32,'MDA5'!K32,V32,AD32) -> 111393 | BB32: =MAX('MDA1'!L32,'MDA2'!L32,'MDA3'!J32,'MDA3'!M32,'MDA5'!L32,AF32) -> 0 | BC32: 149333.2514 | BD32: 100
A33: =IF(COUNTRY_INFO!A33=0," ",COUNTRY_INFO!A33) -> Rwanda | B33: =IF(COUNTRY_INFO!B33=0," ",COUNTRY_INFO!B33) -> Western | C33: =IF(COUNTRY_INFO!C33=0," ",COUNTRY_INFO!C33) -> Rubavu | D33: =COUNTRY_INFO!L33 -> 0 | G33: =MAX('MDA1'!M33,'MDA2'!M33,'MDA5'!M33) -> 0 | H33: =IF(AND(COUNTRY_INFO!H33>0,COUNTRY_INFO!H33<4),IF(D33>MAX('MDA1'!M33,'MDA2'!M33,'MDA5'!M33),MAX('MDA1'!M33,'MDA2'!M33,'MDA5'!M33),D33),0) -> 0 | I33: =IF(AND(COUNTRY_INFO!H33>0,COUNTRY_INFO!H33<4), IF(G33/D33*100<>0, IF(G33/D33*100>100,100,G33/D33*100), "-"),0) -> 0 | J33: =COUNTRY_INFO!M33 -> 0 | M33: =MAX('MDA1'!M33,MAX('MDA3'!I33,'MDA3'!L33)+MAX('MDA3'!J33,'MDA3'!M33)) -> 0 | N33: =IF(AND(COUNTRY_INFO!I33>0,COUNTRY_INFO!I33<4),IF(J33>MAX('MDA1'!M33,MAX('MDA3'!I33,'MDA3'!L33)+MAX('MDA3'!J33,'MDA3'!M33)),MAX('MDA1'!M33,MAX('MDA3'!I33,'MDA3'!L33)+MAX('MDA3'!J33,'MDA3'!M33)),J33),0) -> 0 | O33: =IF(AND(COUNTRY_INFO!I33>0,COUNTRY_INFO!I33<4), IF(M33/J33*100<>0, IF(M33/J33*100>100,100,M33/J33*100), "-"),0) -> 0 | P33: =COUNTRY_INFO!N33 -> 202407.4612 | S33: =SUM(MAX('MDA2'!J33,'MDA5'!J33, 'T1'!L33, MAX(T3_R1!K33, T3_R2!K33)), MAX('MDA1'!K33, 'MDA2'!K33, 'MDA5'!K33,'T1'!M33, MAX(T3_R1!L33, T3_R2!L33)), MAX('MDA1'!L33, 'MDA2'!L33, 'MDA5'!L33,'T1'!N33, MAX(T3_R1!M33, T3_R2!M33))) -> 430377 | T33: =IF(AND(COUNTRY_INFO!J33>1,COUNTRY_INFO!J33<4),IF(COUNTRY_INFO!E33>MAX('MDA2'!J33,'MDA5'!J33,'T1'!L33,MAX(T3_R1!K33,T3_R2!K33)),MAX('MDA2'!J33,'MDA5'!J33,'T1'!L33,MAX(T3_R1!K33,T3_R2!K33)),COUNTRY_INFO!E33),0) -> 65095.86693 | U33: =IF(AND(COUNTRY_INFO!J33>1,COUNTRY_INFO!J33<4), IF(T33/COUNTRY_INFO!E33*100<>0, IF(T33/COUNTRY_INFO!E33*100>100,100,T33/COUNTRY_INFO!E33*100), "-"),0) -> 100 | V33: =IF(AND(COUNTRY_INFO!J33>1,COUNTRY_INFO!J33<4),IF(COUNTRY_INFO!F33>MAX('MDA1'!K33,'MDA2'!K33,'MDA5'!K33,'T1'!M33,MAX(T3_R1!L33,T3_R2!L33)),MAX('MDA1'!K33,'MDA2'!K33,'MDA5'!K33,'T1'!M33,MAX(T3_R1!L33,T3_R2!L33)),COUNTRY_INFO!F33),0) -> 137311.5943 | W33: =IF(AND(COUNTRY_INFO!J33>1,COUNTRY_INFO!J33<4), IF(V33/COUNTRY_INFO!F33*100<>0, IF(V33/COUNTRY_INFO!F33*100>100,100,V33/COUNTRY_INFO!F33*100), "-"),0) -> 100 | X33: 202407.4612 | Y33: =IF(AND(COUNTRY_INFO!J33>1,COUNTRY_INFO!J33<4), IF(S33/P33*100<>0, IF(X33/P33*100>100,100,X33/P33*100), "-"),0) -> 100 | Z33: =COUNTRY_INFO!O33 -> 45365 | AC33: =MAX('T1'!L33,'T2'!J33)+MAX('T1'!M33,'T2'!K33)+MAX('T1'!N33,'T2'!L33) -> 99002 | AD33: =IF(COUNTRY_INFO!K33=1,IF(COUNTRY_INFO!F33*0.33>MAX('T1'!M33,'T2'!K33),MAX('T1'!M33,'T2'!K33),COUNTRY_INFO!F33*0.33),IF(COUNTRY_INFO!K33=2,IF(COUNTRY_INFO!F33*0.5>MAX('T1'!M33,'T2'!K33),MAX('T1'!M33,'T2'!K33),COUNTRY_INFO!F33*0.5),IF(COUNTRY_INFO!K33=3,IF(COUNTRY_INFO!F33>MAX('T1'!M33,'T2'!K33),MAX('T1'!M33,'T2'!K33),COUNTRY_INFO!F33),0))) -> 34895 | AE33: =IF(AND(COUNTRY_INFO!K33>0,COUNTRY_INFO!K33<4),IF(Z33>0,IF(COUNTRY_INFO!K33=1, AD33/(COUNTRY_INFO!F33*0.33)*100, IF(COUNTRY_INFO!K33=2, AD33/(COUNTRY_INFO!F33*0.5)*100, IF(COUNTRY_INFO!K33=3, AD33/COUNTRY_INFO!F33*100))),"-"),0) -> 50.82600661 | AF33: =IF(COUNTRY_INFO!K33=2,IF(COUNTRY_INFO!G33*0.2>MAX('T1'!N33,'T2'!L33),MAX('T1'!N33,'T2'!L33),COUNTRY_INFO!G33*0.2),IF(COUNTRY_INFO!K33=3,IF(COUNTRY_INFO!G33>MAX('T1'!N33,'T2'!L33),MAX('T1'!N33,'T2'!L33),COUNTRY_INFO!G33),0)) -> 57874.29419 | AG33: =IF(AND(COUNTRY_INFO!K33>0,COUNTRY_INFO!K33<4),IF(Z33>0,IF(COUNTRY_INFO!K33=1, 0, IF(COUNTRY_INFO!K33=2, AF33/(COUNTRY_INFO!G33*0.2)*100, IF(COUNTRY_INFO!K33=3, AF33/COUNTRY_INFO!G33*100))),"-"),0) -> 100 | AH33: 92769.29419 | AI33: =IF(AND(COUNTRY_INFO!K33>0,COUNTRY_INFO!K33<4), IF(AC33/Z33*100<>0, IF(AH33/Z33*100>100,100,AH33/Z33*100), "-"),0) -> 100 | AK33: =IF(AND(D33<>0, D33<>"Unknown",D33<>"Stopped",D33<>"Not required"),D33/COUNTRY_INFO!D33, 0) -> 0 | AL33: =IF(AND(J33<>0,J33<>"Unknown",J33<>"Stopped",J33<>"Not required"),J33/COUNTRY_INFO!D33, 0) -> 0 | AM33: =IF(AND(P33<>0,P33<>"Unknown",P33<>"Not required"),P33/(COUNTRY_INFO!E33+COUNTRY_INFO!F33), 0) -> 1 | AN33: =IF(AND(Z33<>0,Z33<>"Unknown",Z33<>"Not required"),IF(COUNTRY_INFO!K33=1,1,IF(COUNTRY_INFO!K33=2,0.5*COUNTRY_INFO!F33/(0.5*COUNTRY_INFO!F33+0.2*COUNTRY_INFO!G33),IF(COUNTRY_INFO!K33=3,COUNTRY_INFO!F33/(COUNTRY_INFO!F33+COUNTRY_INFO!G33)))),0) -> 0.5426045016 | AO33: =IF(AND(Z33<>0,Z33<>"Unknown",Z33<>"Not required"),IF(COUNTRY_INFO!K33=1,0,IF(COUNTRY_INFO!K33=2,0.2*COUNTRY_INFO!G33/(0.5*COUNTRY_INFO!F33+0.2*COUNTRY_INFO!G33),IF(COUNTRY_INFO!K33=3,COUNTRY_INFO!G33/(COUNTRY_INFO!F33+COUNTRY_INFO!G33)))),0) -> 0.4573954984 | AP33: =MAX(COUNTRY_INFO!D33*AK33*PROFILE!$G$7,COUNTRY_INFO!D33*AL33*PROFILE!$G$7) -> 0 | AQ33: =MAX(COUNTRY_INFO!D33*AK33*PROFILE!$G$8,COUNTRY_INFO!D33*AL33*PROFILE!$G$8,COUNTRY_INFO!D33*AM33*PROFILE!$G$8) -> 60036.78098 | AR33: =MAX(COUNTRY_INFO!D33*AK33*PROFILE!$G$9,COUNTRY_INFO!D33*AL33*PROFILE!$G$9,COUNTRY_INFO!D33*AM33*PROFILE!$G$9,IF(AND(DISTRICT!Z33<>"Unknown",Z33<>"Not required"),COUNTRY_INFO!O33*DISTRICT!AN33,0)) -> 144764.7902 | AS33: =MAX(COUNTRY_INFO!D33*AK33*PROFILE!$G$10,COUNTRY_INFO!D33*AL33*PROFILE!$G$10,IF(AND(DISTRICT!Z33<>"Unknown",Z33<>"Not required"),COUNTRY_INFO!O33*DISTRICT!AO33,0)) -> 20749.74678 | AT33: 225551.318 | AU33: Y | AV33: =MAX('MDA2'!J33,'MDA5'!J33,'T1'!L33,'T2'!J33,T3_R1!K33,T3_R2!K33) -> 72548 | AW33: =MAX('MDA1'!K33,'MDA2'!K33,'MDA3'!I33,'MDA3'!L33,'MDA5'!K33,'T1'!M33,'T2'!K33,T3_R1!L33,T3_R2!L33) -> 146058 | AX33: =MAX('MDA1'!L33,'MDA2'!L33,'MDA3'!J33,'MDA3'!M33,'MDA5'!L33,'T1'!N33,'T2'!L33,T3_R1!M33,T3_R2!M33) -> 211771 | AY33: 430377 | AZ33: =MAX('MDA2'!J33,'MDA5'!J33,T33) -> 65095.86693 | BA33: =MAX('MDA1'!K33,'MDA2'!K33,'MDA3'!I33,'MDA3'!L33,'MDA5'!K33,V33,AD33) -> 137311.5943 | BB33: =MAX('MDA1'!L33,'MDA2'!L33,'MDA3'!J33,'MDA3'!M33,'MDA5'!L33,AF33) -> 57874.29419 | BC33: 225551.318 | BD33: 100
A34: =IF(COUNTRY_INFO!A34=0," ",COUNTRY_INFO!A34) -> Rwanda | B34: =IF(COUNTRY_INFO!B34=0," ",COUNTRY_INFO!B34) -> Southern | C34: =IF(COUNTRY_INFO!C34=0," ",COUNTRY_INFO!C34) -> Ruhango | D34: =COUNTRY_INFO!L34 -> 0 | G34: =MAX('MDA1'!M34,'MDA2'!M34,'MDA5'!M34) -> 0 | H34: =IF(AND(COUNTRY_INFO!H34>0,COUNTRY_INFO!H34<4),IF(D34>MAX('MDA1'!M34,'MDA2'!M34,'MDA5'!M34),MAX('MDA1'!M34,'MDA2'!M34,'MDA5'!M34),D34),0) -> 0 | I34: =IF(AND(COUNTRY_INFO!H34>0,COUNTRY_INFO!H34<4), IF(G34/D34*100<>0, IF(G34/D34*100>100,100,G34/D34*100), "-"),0) -> 0 | J34: =COUNTRY_INFO!M34 -> 0 | M34: =MAX('MDA1'!M34,MAX('MDA3'!I34,'MDA3'!L34)+MAX('MDA3'!J34,'MDA3'!M34)) -> 0 | N34: =IF(AND(COUNTRY_INFO!I34>0,COUNTRY_INFO!I34<4),IF(J34>MAX('MDA1'!M34,MAX('MDA3'!I34,'MDA3'!L34)+MAX('MDA3'!J34,'MDA3'!M34)),MAX('MDA1'!M34,MAX('MDA3'!I34,'MDA3'!L34)+MAX('MDA3'!J34,'MDA3'!M34)),J34),0) -> 0 | O34: =IF(AND(COUNTRY_INFO!I34>0,COUNTRY_INFO!I34<4), IF(M34/J34*100<>0, IF(M34/J34*100>100,100,M34/J34*100), "-"),0) -> 0 | P34: =COUNTRY_INFO!N34 -> 145596.4692 | S34: =SUM(MAX('MDA2'!J34,'MDA5'!J34, 'T1'!L34, MAX(T3_R1!K34, T3_R2!K34)), MAX('MDA1'!K34, 'MDA2'!K34, 'MDA5'!K34,'T1'!M34, MAX(T3_R1!L34, T3_R2!L34)), MAX('MDA1'!L34, 'MDA2'!L34, 'MDA5'!L34,'T1'!N34, MAX(T3_R1!M34, T3_R2!M34))) -> 346432 | T34: =IF(AND(COUNTRY_INFO!J34>1,COUNTRY_INFO!J34<4),IF(COUNTRY_INFO!E34>MAX('MDA2'!J34,'MDA5'!J34,'T1'!L34,MAX(T3_R1!K34,T3_R2!K34)),MAX('MDA2'!J34,'MDA5'!J34,'T1'!L34,MAX(T3_R1!K34,T3_R2!K34)),COUNTRY_INFO!E34),0) -> 40303 | U34: =IF(AND(COUNTRY_INFO!J34>1,COUNTRY_INFO!J34<4), IF(T34/COUNTRY_INFO!E34*100<>0, IF(T34/COUNTRY_INFO!E34*100>100,100,T34/COUNTRY_INFO!E34*100), "-"),0) -> 96.16866523 | V34: =IF(AND(COUNTRY_INFO!J34>1,COUNTRY_INFO!J34<4),IF(COUNTRY_INFO!F34>MAX('MDA1'!K34,'MDA2'!K34,'MDA5'!K34,'T1'!M34,MAX(T3_R1!L34,T3_R2!L34)),MAX('MDA1'!K34,'MDA2'!K34,'MDA5'!K34,'T1'!M34,MAX(T3_R1!L34,T3_R2!L34)),COUNTRY_INFO!F34),0) -> 101793 | W34: =IF(AND(COUNTRY_INFO!J34>1,COUNTRY_INFO!J34<4), IF(V34/COUNTRY_INFO!F34*100<>0, IF(V34/COUNTRY_INFO!F34*100>100,100,V34/COUNTRY_INFO!F34*100), "-"),0) -> 98.17258354 | X34: 142096 | Y34: =IF(AND(COUNTRY_INFO!J34>1,COUNTRY_INFO!J34<4), IF(S34/P34*100<>0, IF(X34/P34*100>100,100,X34/P34*100), "-"),0) -> 97.59577331 | Z34: =COUNTRY_INFO!O34 -> 16902 | AC34: =MAX('T1'!L34,'T2'!J34)+MAX('T1'!M34,'T2'!K34)+MAX('T1'!N34,'T2'!L34) -> 40610 | AD34: =IF(COUNTRY_INFO!K34=1,IF(COUNTRY_INFO!F34*0.33>MAX('T1'!M34,'T2'!K34),MAX('T1'!M34,'T2'!K34),COUNTRY_INFO!F34*0.33),IF(COUNTRY_INFO!K34=2,IF(COUNTRY_INFO!F34*0.5>MAX('T1'!M34,'T2'!K34),MAX('T1'!M34,'T2'!K34),COUNTRY_INFO!F34*0.5),IF(COUNTRY_INFO!K34=3,IF(COUNTRY_INFO!F34>MAX('T1'!M34,'T2'!K34),MAX('T1'!M34,'T2'!K34),COUNTRY_INFO!F34),0))) -> 16456 | AE34: =IF(AND(COUNTRY_INFO!K34>0,COUNTRY_INFO!K34<4),IF(Z34>0,IF(COUNTRY_INFO!K34=1, AD34/(COUNTRY_INFO!F34*0.33)*100, IF(COUNTRY_INFO!K34=2, AD34/(COUNTRY_INFO!F34*0.5)*100, IF(COUNTRY_INFO!K34=3, AD34/COUNTRY_INFO!F34*100))),"-"),0) -> 31.74143673 | AF34: =IF(COUNTRY_INFO!K34=2,IF(COUNTRY_INFO!G34*0.2>MAX('T1'!N34,'T2'!L34),MAX('T1'!N34,'T2'!L34),COUNTRY_INFO!G34*0.2),IF(COUNTRY_INFO!K34=3,IF(COUNTRY_INFO!G34>MAX('T1'!N34,'T2'!L34),MAX('T1'!N34,'T2'!L34),COUNTRY_INFO!G34),0)) -> 24154 | AG34: =IF(AND(COUNTRY_INFO!K34>0,COUNTRY_INFO!K34<4),IF(Z34>0,IF(COUNTRY_INFO!K34=1, 0, IF(COUNTRY_INFO!K34=2, AF34/(COUNTRY_INFO!G34*0.2)*100, IF(COUNTRY_INFO!K34=3, AF34/COUNTRY_INFO!G34*100))),"-"),0) -> 61.56210194 | AH34: 40610 | AI34: =IF(AND(COUNTRY_INFO!K34>0,COUNTRY_INFO!K34<4), IF(AC34/Z34*100<>0, IF(AH34/Z34*100>100,100,AH34/Z34*100), "-"),0) -> 100 | AK34: =IF(AND(D34<>0, D34<>"Unknown",D34<>"Stopped",D34<>"Not required"),D34/COUNTRY_INFO!D34, 0) -> 0 | AL34: =IF(AND(J34<>0,J34<>"Unknown",J34<>"Stopped",J34<>"Not required"),J34/COUNTRY_INFO!D34, 0) -> 0 | AM34: =IF(AND(P34<>0,P34<>"Unknown",P34<>"Not required"),P34/(COUNTRY_INFO!E34+COUNTRY_INFO!F34), 0) -> 1 | AN34: =IF(AND(Z34<>0,Z34<>"Unknown",Z34<>"Not required"),IF(COUNTRY_INFO!K34=1,1,IF(COUNTRY_INFO!K34=2,0.5*COUNTRY_INFO!F34/(0.5*COUNTRY_INFO!F34+0.2*COUNTRY_INFO!G34),IF(COUNTRY_INFO!K34=3,COUNTRY_INFO!F34/(COUNTRY_INFO!F34+COUNTRY_INFO!G34)))),0) -> 0.5692185641 | AO34: =IF(AND(Z34<>0,Z34<>"Unknown",Z34<>"Not required"),IF(COUNTRY_INFO!K34=1,0,IF(COUNTRY_INFO!K34=2,0.2*COUNTRY_INFO!G34/(0.5*COUNTRY_INFO!F34+0.2*COUNTRY_INFO!G34),IF(COUNTRY_INFO!K34=3,COUNTRY_INFO!G34/(COUNTRY_INFO!F34+COUNTRY_INFO!G34)))),0) -> 0.4307814359 | AP34: =MAX(COUNTRY_INFO!D34*AK34*PROFILE!$G$7,COUNTRY_INFO!D34*AL34*PROFILE!$G$7) -> 0 | AQ34: =MAX(COUNTRY_INFO!D34*AK34*PROFILE!$G$8,COUNTRY_INFO!D34*AL34*PROFILE!$G$8,COUNTRY_INFO!D34*AM34*PROFILE!$G$8) -> 42650.07016 | AR34: =MAX(COUNTRY_INFO!D34*AK34*PROFILE!$G$9,COUNTRY_INFO!D34*AL34*PROFILE!$G$9,COUNTRY_INFO!D34*AM34*PROFILE!$G$9,IF(AND(DISTRICT!Z34<>"Unknown",Z34<>"Not required"),COUNTRY_INFO!O34*DISTRICT!AN34,0)) -> 102840.7646 | AS34: =MAX(COUNTRY_INFO!D34*AK34*PROFILE!$G$10,COUNTRY_INFO!D34*AL34*PROFILE!$G$10,IF(AND(DISTRICT!Z34<>"Unknown",Z34<>"Not required"),COUNTRY_INFO!O34*DISTRICT!AO34,0)) -> 7281.06783 | AT34: 152771.9026 | AU34: Y | AV34: =MAX('MDA2'!J34,'MDA5'!J34,'T1'!L34,'T2'!J34,T3_R1!K34,T3_R2!K34) -> 40303 | AW34: =MAX('MDA1'!K34,'MDA2'!K34,'MDA3'!I34,'MDA3'!L34,'MDA5'!K34,'T1'!M34,'T2'!K34,T3_R1!L34,T3_R2!L34) -> 101793 | AX34: =MAX('MDA1'!L34,'MDA2'!L34,'MDA3'!J34,'MDA3'!M34,'MDA5'!L34,'T1'!N34,'T2'!L34,T3_R1!M34,T3_R2!M34) -> 204336 | AY34: 346432 | AZ34: =MAX('MDA2'!J34,'MDA5'!J34,T34) -> 40303 | BA34: =MAX('MDA1'!K34,'MDA2'!K34,'MDA3'!I34,'MDA3'!L34,'MDA5'!K34,V34,AD34) -> 101793 | BB34: =MAX('MDA1'!L34,'MDA2'!L34,'MDA3'!J34,'MDA3'!M34,'MDA5'!L34,AF34) -> 24154 | BC34: 152771.9026 | BD34: 100
A35: =IF(COUNTRY_INFO!A35=0," ",COUNTRY_INFO!A35) -> Rwanda | B35: =IF(COUNTRY_INFO!B35=0," ",COUNTRY_INFO!B35) -> Northern | C35: =IF(COUNTRY_INFO!C35=0," ",COUNTRY_INFO!C35) -> Rulindo | D35: =COUNTRY_INFO!L35 -> 0 | G35: =MAX('MDA1'!M35,'MDA2'!M35,'MDA5'!M35) -> 0 | H35: =IF(AND(COUNTRY_INFO!H35>0,COUNTRY_INFO!H35<4),IF(D35>MAX('MDA1'!M35,'MDA2'!M35,'MDA5'!M35),MAX('MDA1'!M35,'MDA2'!M35,'MDA5'!M35),D35),0) -> 0 | I35: =IF(AND(COUNTRY_INFO!H35>0,COUNTRY_INFO!H35<4), IF(G35/D35*100<>0, IF(G35/D35*100>100,100,G35/D35*100), "-"),0) -> 0 | J35: =COUNTRY_INFO!M35 -> 0 | M35: =MAX('MDA1'!M35,MAX('MDA3'!I35,'MDA3'!L35)+MAX('MDA3'!J35,'MDA3'!M35)) -> 0 | N35: =IF(AND(COUNTRY_INFO!I35>0,COUNTRY_INFO!I35<4),IF(J35>MAX('MDA1'!M35,MAX('MDA3'!I35,'MDA3'!L35)+MAX('MDA3'!J35,'MDA3'!M35)),MAX('MDA1'!M35,MAX('MDA3'!I35,'MDA3'!L35)+MAX('MDA3'!J35,'MDA3'!M35)),J35),0) -> 0 | O35: =IF(AND(COUNTRY_INFO!I35>0,COUNTRY_INFO!I35<4), IF(M35/J35*100<>0, IF(M35/J35*100>100,100,M35/J35*100), "-"),0) -> 0 | P35: =COUNTRY_INFO!N35 -> 140265.1368 | S35: =SUM(MAX('MDA2'!J35,'MDA5'!J35, 'T1'!L35, MAX(T3_R1!K35, T3_R2!K35)), MAX('MDA1'!K35, 'MDA2'!K35, 'MDA5'!K35,'T1'!M35, MAX(T3_R1!L35, T3_R2!L35)), MAX('MDA1'!L35, 'MDA2'!L35, 'MDA5'!L35,'T1'!N35, MAX(T3_R1!M35, T3_R2!M35))) -> 339935 | T35: =IF(AND(COUNTRY_INFO!J35>1,COUNTRY_INFO!J35<4),IF(COUNTRY_INFO!E35>MAX('MDA2'!J35,'MDA5'!J35,'T1'!L35,MAX(T3_R1!K35,T3_R2!K35)),MAX('MDA2'!J35,'MDA5'!J35,'T1'!L35,MAX(T3_R1!K35,T3_R2!K35)),COUNTRY_INFO!E35),0) -> 37475.41824 | U35: =IF(AND(COUNTRY_INFO!J35>1,COUNTRY_INFO!J35<4), IF(T35/COUNTRY_INFO!E35*100<>0, IF(T35/COUNTRY_INFO!E35*100>100,100,T35/COUNTRY_INFO!E35*100), "-"),0) -> 100 | V35: =IF(AND(COUNTRY_INFO!J35>1,COUNTRY_INFO!J35<4),IF(COUNTRY_INFO!F35>MAX('MDA1'!K35,'MDA2'!K35,'MDA5'!K35,'T1'!M35,MAX(T3_R1!L35,T3_R2!L35)),MAX('MDA1'!K35,'MDA2'!K35,'MDA5'!K35,'T1'!M35,MAX(T3_R1!L35,T3_R2!L35)),COUNTRY_INFO!F35),0) -> 98704 | W35: =IF(AND(COUNTRY_INFO!J35>1,COUNTRY_INFO!J35<4), IF(V35/COUNTRY_INFO!F35*100<>0, IF(V35/COUNTRY_INFO!F35*100>100,100,V35/COUNTRY_INFO!F35*100), "-"),0) -> 96.02516803 | X35: 136179.4182 | Y35: =IF(AND(COUNTRY_INFO!J35>1,COUNTRY_INFO!J35<4), IF(S35/P35*100<>0, IF(X35/P35*100>100,100,X35/P35*100), "-"),0) -> 97.08714604 | Z35: =COUNTRY_INFO!O35 -> 11953 | AC35: =MAX('T1'!L35,'T2'!J35)+MAX('T1'!M35,'T2'!K35)+MAX('T1'!N35,'T2'!L35) -> 22999 | AD35: =IF(COUNTRY_INFO!K35=1,IF(COUNTRY_INFO!F35*0.33>MAX('T1'!M35,'T2'!K35),MAX('T1'!M35,'T2'!K35),COUNTRY_INFO!F35*0.33),IF(COUNTRY_INFO!K35=2,IF(COUNTRY_INFO!F35*0.5>MAX('T1'!M35,'T2'!K35),MAX('T1'!M35,'T2'!K35),COUNTRY_INFO!F35*0.5),IF(COUNTRY_INFO!K35=3,IF(COUNTRY_INFO!F35>MAX('T1'!M35,'T2'!K35),MAX('T1'!M35,'T2'!K35),COUNTRY_INFO!F35),0))) -> 5037 | AE35: =IF(AND(COUNTRY_INFO!K35>0,COUNTRY_INFO!K35<4),IF(Z35>0,IF(COUNTRY_INFO!K35=1, AD35/(COUNTRY_INFO!F35*0.33)*100, IF(COUNTRY_INFO!K35=2, AD35/(COUNTRY_INFO!F35*0.5)*100, IF(COUNTRY_INFO!K35=3, AD35/COUNTRY_INFO!F35*100))),"-"),0) -> 9.800591088 | AF35: =IF(COUNTRY_INFO!K35=2,IF(COUNTRY_INFO!G35*0.2>MAX('T1'!N35,'T2'!L35),MAX('T1'!N35,'T2'!L35),COUNTRY_INFO!G35*0.2),IF(COUNTRY_INFO!K35=3,IF(COUNTRY_INFO!G35>MAX('T1'!N35,'T2'!L35),MAX('T1'!N35,'T2'!L35),COUNTRY_INFO!G35),0)) -> 17962 | AG35: =IF(AND(COUNTRY_INFO!K35>0,COUNTRY_INFO!K35<4),IF(Z35>0,IF(COUNTRY_INFO!K35=1, 0, IF(COUNTRY_INFO!K35=2, AF35/(COUNTRY_INFO!G35*0.2)*100, IF(COUNTRY_INFO!K35=3, AF35/COUNTRY_INFO!G35*100))),"-"),0) -> 43.45992208 | AH35: 22999 | AI35: =IF(AND(COUNTRY_INFO!K35>0,COUNTRY_INFO!K35<4), IF(AC35/Z35*100<>0, IF(AH35/Z35*100>100,100,AH35/Z35*100), "-"),0) -> 100 | AK35: =IF(AND(D35<>0, D35<>"Unknown",D35<>"Stopped",D35<>"Not required"),D35/COUNTRY_INFO!D35, 0) -> 0 | AL35: =IF(AND(J35<>0,J35<>"Unknown",J35<>"Stopped",J35<>"Not required"),J35/COUNTRY_INFO!D35, 0) -> 0 | AM35: =IF(AND(P35<>0,P35<>"Unknown",P35<>"Not required"),P35/(COUNTRY_INFO!E35+COUNTRY_INFO!F35), 0) -> 1 | AN35: =IF(AND(Z35<>0,Z35<>"Unknown",Z35<>"Not required"),IF(COUNTRY_INFO!K35=1,1,IF(COUNTRY_INFO!K35=2,0.5*COUNTRY_INFO!F35/(0.5*COUNTRY_INFO!F35+0.2*COUNTRY_INFO!G35),IF(COUNTRY_INFO!K35=3,COUNTRY_INFO!F35/(COUNTRY_INFO!F35+COUNTRY_INFO!G35)))),0) -> 0.5542725173 | AO35: =IF(AND(Z35<>0,Z35<>"Unknown",Z35<>"Not required"),IF(COUNTRY_INFO!K35=1,0,IF(COUNTRY_INFO!K35=2,0.2*COUNTRY_INFO!G35/(0.5*COUNTRY_INFO!F35+0.2*COUNTRY_INFO!G35),IF(COUNTRY_INFO!K35=3,COUNTRY_INFO!G35/(COUNTRY_INFO!F35+COUNTRY_INFO!G35)))),0) -> 0.4457274827 | AP35: =MAX(COUNTRY_INFO!D35*AK35*PROFILE!$G$7,COUNTRY_INFO!D35*AL35*PROFILE!$G$7) -> 0 | AQ35: =MAX(COUNTRY_INFO!D35*AK35*PROFILE!$G$8,COUNTRY_INFO!D35*AL35*PROFILE!$G$8,COUNTRY_INFO!D35*AM35*PROFILE!$G$8) -> 42133.84975 | AR35: =MAX(COUNTRY_INFO!D35*AK35*PROFILE!$G$9,COUNTRY_INFO!D35*AL35*PROFILE!$G$9,COUNTRY_INFO!D35*AM35*PROFILE!$G$9,IF(AND(DISTRICT!Z35<>"Unknown",Z35<>"Not required"),COUNTRY_INFO!O35*DISTRICT!AN35,0)) -> 101596.0187 | AS35: =MAX(COUNTRY_INFO!D35*AK35*PROFILE!$G$10,COUNTRY_INFO!D35*AL35*PROFILE!$G$10,IF(AND(DISTRICT!Z35<>"Unknown",Z35<>"Not required"),COUNTRY_INFO!O35*DISTRICT!AO35,0)) -> 5327.7806 | AT35: 149057.649 | AU35: Y | AV35: =MAX('MDA2'!J35,'MDA5'!J35,'T1'!L35,'T2'!J35,T3_R1!K35,T3_R2!K35) -> 45299 | AW35: =MAX('MDA1'!K35,'MDA2'!K35,'MDA3'!I35,'MDA3'!L35,'MDA5'!K35,'T1'!M35,'T2'!K35,T3_R1!L35,T3_R2!L35) -> 98704 | AX35: =MAX('MDA1'!L35,'MDA2'!L35,'MDA3'!J35,'MDA3'!M35,'MDA5'!L35,'T1'!N35,'T2'!L35,T3_R1!M35,T3_R2!M35) -> 195932 | AY35: 339935 | AZ35: =MAX('MDA2'!J35,'MDA5'!J35,T35) -> 37475.41824 | BA35: =MAX('MDA1'!K35,'MDA2'!K35,'MDA3'!I35,'MDA3'!L35,'MDA5'!K35,V35,AD35) -> 98704 | BB35: =MAX('MDA1'!L35,'MDA2'!L35,'MDA3'!J35,'MDA3'!M35,'MDA5'!L35,AF35) -> 17962 | BC35: 149057.649 | BD35: 100
A36: =IF(COUNTRY_INFO!A36=0," ",COUNTRY_INFO!A36) -> Rwanda | B36: =IF(COUNTRY_INFO!B36=0," ",COUNTRY_INFO!B36) -> Western | C36: =IF(COUNTRY_INFO!C36=0," ",COUNTRY_INFO!C36) -> Rusizi | D36: =COUNTRY_INFO!L36 -> 0 | G36: =MAX('MDA1'!M36,'MDA2'!M36,'MDA5'!M36) -> 0 | H36: =IF(AND(COUNTRY_INFO!H36>0,COUNTRY_INFO!H36<4),IF(D36>MAX('MDA1'!M36,'MDA2'!M36,'MDA5'!M36),MAX('MDA1'!M36,'MDA2'!M36,'MDA5'!M36),D36),0) -> 0 | I36: =IF(AND(COUNTRY_INFO!H36>0,COUNTRY_INFO!H36<4), IF(G36/D36*100<>0, IF(G36/D36*100>100,100,G36/D36*100), "-"),0) -> 0 | J36: =COUNTRY_INFO!M36 -> 0 | M36: =MAX('MDA1'!M36,MAX('MDA3'!I36,'MDA3'!L36)+MAX('MDA3'!J36,'MDA3'!M36)) -> 0 | N36: =IF(AND(COUNTRY_INFO!I36>0,COUNTRY_INFO!I36<4),IF(J36>MAX('MDA1'!M36,MAX('MDA3'!I36,'MDA3'!L36)+MAX('MDA3'!J36,'MDA3'!M36)),MAX('MDA1'!M36,MAX('MDA3'!I36,'MDA3'!L36)+MAX('MDA3'!J36,'MDA3'!M36)),J36),0) -> 0 | O36: =IF(AND(COUNTRY_INFO!I36>0,COUNTRY_INFO!I36<4), IF(M36/J36*100<>0, IF(M36/J36*100>100,100,M36/J36*100), "-"),0) -> 0 | P36: =COUNTRY_INFO!N36 -> 207326.5435 | S36: =SUM(MAX('MDA2'!J36,'MDA5'!J36, 'T1'!L36, MAX(T3_R1!K36, T3_R2!K36)), MAX('MDA1'!K36, 'MDA2'!K36, 'MDA5'!K36,'T1'!M36, MAX(T3_R1!L36, T3_R2!L36)), MAX('MDA1'!L36, 'MDA2'!L36, 'MDA5'!L36,'T1'!N36, MAX(T3_R1!M36, T3_R2!M36))) -> 378347 | T36: =IF(AND(COUNTRY_INFO!J36>1,COUNTRY_INFO!J36<4),IF(COUNTRY_INFO!E36>MAX('MDA2'!J36,'MDA5'!J36,'T1'!L36,MAX(T3_R1!K36,T3_R2!K36)),MAX('MDA2'!J36,'MDA5'!J36,'T1'!L36,MAX(T3_R1!K36,T3_R2!K36)),COUNTRY_INFO!E36),0) -> 62350.03632 | U36: =IF(AND(COUNTRY_INFO!J36>1,COUNTRY_INFO!J36<4), IF(T36/COUNTRY_INFO!E36*100<>0, IF(T36/COUNTRY_INFO!E36*100>100,100,T36/COUNTRY_INFO!E36*100), "-"),0) -> 100 | V36: =IF(AND(COUNTRY_INFO!J36>1,COUNTRY_INFO!J36<4),IF(COUNTRY_INFO!F36>MAX('MDA1'!K36,'MDA2'!K36,'MDA5'!K36,'T1'!M36,MAX(T3_R1!L36,T3_R2!L36)),MAX('MDA1'!K36,'MDA2'!K36,'MDA5'!K36,'T1'!M36,MAX(T3_R1!L36,T3_R2!L36)),COUNTRY_INFO!F36),0) -> 113951 | W36: =IF(AND(COUNTRY_INFO!J36>1,COUNTRY_INFO!J36<4), IF(V36/COUNTRY_INFO!F36*100<>0, IF(V36/COUNTRY_INFO!F36*100>100,100,V36/COUNTRY_INFO!F36*100), "-"),0) -> 78.5996312 | X36: 176301.0363 | Y36: =IF(AND(COUNTRY_INFO!J36>1,COUNTRY_INFO!J36<4), IF(S36/P36*100<>0, IF(X36/P36*100>100,100,X36/P36*100), "-"),0) -> 85.03543893 | Z36: =COUNTRY_INFO!O36 -> 132522 | AC36: =MAX('T1'!L36,'T2'!J36)+MAX('T1'!M36,'T2'!K36)+MAX('T1'!N36,'T2'!L36) -> 349482 | AD36: =IF(COUNTRY_INFO!K36=1,IF(COUNTRY_INFO!F36*0.33>MAX('T1'!M36,'T2'!K36),MAX('T1'!M36,'T2'!K36),COUNTRY_INFO!F36*0.33),IF(COUNTRY_INFO!K36=2,IF(COUNTRY_INFO!F36*0.5>MAX('T1'!M36,'T2'!K36),MAX('T1'!M36,'T2'!K36),COUNTRY_INFO!F36*0.5),IF(COUNTRY_INFO!K36=3,IF(COUNTRY_INFO!F36>MAX('T1'!M36,'T2'!K36),MAX('T1'!M36,'T2'!K36),COUNTRY_INFO!F36),0))) -> 72488.25361 | AE36: =IF(AND(COUNTRY_INFO!K36>0,COUNTRY_INFO!K36<4),IF(Z36>0,IF(COUNTRY_INFO!K36=1, AD36/(COUNTRY_INFO!F36*0.33)*100, IF(COUNTRY_INFO!K36=2, AD36/(COUNTRY_INFO!F36*0.5)*100, IF(COUNTRY_INFO!K36=3, AD36/COUNTRY_INFO!F36*100))),"-"),0) -> 100 | AF36: =IF(COUNTRY_INFO!K36=2,IF(COUNTRY_INFO!G36*0.2>MAX('T1'!N36,'T2'!L36),MAX('T1'!N36,'T2'!L36),COUNTRY_INFO!G36*0.2),IF(COUNTRY_INFO!K36=3,IF(COUNTRY_INFO!G36>MAX('T1'!N36,'T2'!L36),MAX('T1'!N36,'T2'!L36),COUNTRY_INFO!G36),0)) -> 56774.01682 | AG36: =IF(AND(COUNTRY_INFO!K36>0,COUNTRY_INFO!K36<4),IF(Z36>0,IF(COUNTRY_INFO!K36=1, 0, IF(COUNTRY_INFO!K36=2, AF36/(COUNTRY_INFO!G36*0.2)*100, IF(COUNTRY_INFO!K36=3, AF36/COUNTRY_INFO!G36*100))),"-"),0) -> 100 | AH36: 129262.2704 | AI36: =IF(AND(COUNTRY_INFO!K36>0,COUNTRY_INFO!K36<4), IF(AC36/Z36*100<>0, IF(AH36/Z36*100>100,100,AH36/Z36*100), "-"),0) -> 97.54023515 | AK36: =IF(AND(D36<>0, D36<>"Unknown",D36<>"Stopped",D36<>"Not required"),D36/COUNTRY_INFO!D36, 0) -> 0 | AL36: =IF(AND(J36<>0,J36<>"Unknown",J36<>"Stopped",J36<>"Not required"),J36/COUNTRY_INFO!D36, 0) -> 0 | AM36: =IF(AND(P36<>0,P36<>"Unknown",P36<>"Not required"),P36/(COUNTRY_INFO!E36+COUNTRY_INFO!F36), 0) -> 1 | AN36: =IF(AND(Z36<>0,Z36<>"Unknown",Z36<>"Not required"),IF(COUNTRY_INFO!K36=1,1,IF(COUNTRY_INFO!K36=2,0.5*COUNTRY_INFO!F36/(0.5*COUNTRY_INFO!F36+0.2*COUNTRY_INFO!G36),IF(COUNTRY_INFO!K36=3,COUNTRY_INFO!F36/(COUNTRY_INFO!F36+COUNTRY_INFO!G36)))),0) -> 0.5607843137 | AO36: =IF(AND(Z36<>0,Z36<>"Unknown",Z36<>"Not required"),IF(COUNTRY_INFO!K36=1,0,IF(COUNTRY_INFO!K36=2,0.2*COUNTRY_INFO!G36/(0.5*COUNTRY_INFO!F36+0.2*COUNTRY_INFO!G36),IF(COUNTRY_INFO!K36=3,COUNTRY_INFO!G36/(COUNTRY_INFO!F36+COUNTRY_INFO!G36)))),0) -> 0.4392156863 | AP36: =MAX(COUNTRY_INFO!D36*AK36*PROFILE!$G$7,COUNTRY_INFO!D36*AL36*PROFILE!$G$7) -> 0 | AQ36: =MAX(COUNTRY_INFO!D36*AK36*PROFILE!$G$8,COUNTRY_INFO!D36*AL36*PROFILE!$G$8,COUNTRY_INFO!D36*AM36*PROFILE!$G$8) -> 59841.92456 | AR36: =MAX(COUNTRY_INFO!D36*AK36*PROFILE!$G$9,COUNTRY_INFO!D36*AL36*PROFILE!$G$9,COUNTRY_INFO!D36*AM36*PROFILE!$G$9,IF(AND(DISTRICT!Z36<>"Unknown",Z36<>"Not required"),COUNTRY_INFO!O36*DISTRICT!AN36,0)) -> 144294.9391 | AS36: =MAX(COUNTRY_INFO!D36*AK36*PROFILE!$G$10,COUNTRY_INFO!D36*AL36*PROFILE!$G$10,IF(AND(DISTRICT!Z36<>"Unknown",Z36<>"Not required"),COUNTRY_INFO!O36*DISTRICT!AO36,0)) -> 58205.74118 | AT36: 262342.6048 | AU36: Y | AV36: =MAX('MDA2'!J36,'MDA5'!J36,'T1'!L36,'T2'!J36,T3_R1!K36,T3_R2!K36) -> 67019 | AW36: =MAX('MDA1'!K36,'MDA2'!K36,'MDA3'!I36,'MDA3'!L36,'MDA5'!K36,'T1'!M36,'T2'!K36,T3_R1!L36,T3_R2!L36) -> 113951 | AX36: =MAX('MDA1'!L36,'MDA2'!L36,'MDA3'!J36,'MDA3'!M36,'MDA5'!L36,'T1'!N36,'T2'!L36,T3_R1!M36,T3_R2!M36) -> 241630 | AY36: 422600 | AZ36: =MAX('MDA2'!J36,'MDA5'!J36,T36) -> 62350.03632 | BA36: =MAX('MDA1'!K36,'MDA2'!K36,'MDA3'!I36,'MDA3'!L36,'MDA5'!K36,V36,AD36) -> 113951 | BB36: =MAX('MDA1'!L36,'MDA2'!L36,'MDA3'!J36,'MDA3'!M36,'MDA5'!L36,AF36) -> 56774.01682 | BC36: 233075.0531 | BD36: 88.84376722
A37: =IF(COUNTRY_INFO!A37=0," ",COUNTRY_INFO!A37) -> Rwanda | B37: =IF(COUNTRY_INFO!B37=0," ",COUNTRY_INFO!B37) -> Western | C37: =IF(COUNTRY_INFO!C37=0," ",COUNTRY_INFO!C37) -> Rutsiro | D37: =COUNTRY_INFO!L37 -> 0 | G37: =MAX('MDA1'!M37,'MDA2'!M37,'MDA5'!M37) -> 0 | H37: =IF(AND(COUNTRY_INFO!H37>0,COUNTRY_INFO!H37<4),IF(D37>MAX('MDA1'!M37,'MDA2'!M37,'MDA5'!M37),MAX('MDA1'!M37,'MDA2'!M37,'MDA5'!M37),D37),0) -> 0 | I37: =IF(AND(COUNTRY_INFO!H37>0,COUNTRY_INFO!H37<4), IF(G37/D37*100<>0, IF(G37/D37*100>100,100,G37/D37*100), "-"),0) -> 0 | J37: =COUNTRY_INFO!M37 -> 0 | M37: =MAX('MDA1'!M37,MAX('MDA3'!I37,'MDA3'!L37)+MAX('MDA3'!J37,'MDA3'!M37)) -> 0 | N37: =IF(AND(COUNTRY_INFO!I37>0,COUNTRY_INFO!I37<4),IF(J37>MAX('MDA1'!M37,MAX('MDA3'!I37,'MDA3'!L37)+MAX('MDA3'!J37,'MDA3'!M37)),MAX('MDA1'!M37,MAX('MDA3'!I37,'MDA3'!L37)+MAX('MDA3'!J37,'MDA3'!M37)),J37),0) -> 0 | O37: =IF(AND(COUNTRY_INFO!I37>0,COUNTRY_INFO!I37<4), IF(M37/J37*100<>0, IF(M37/J37*100>100,100,M37/J37*100), "-"),0) -> 0 | P37: =COUNTRY_INFO!N37 -> 181287.2753 | S37: =SUM(MAX('MDA2'!J37,'MDA5'!J37, 'T1'!L37, MAX(T3_R1!K37, T3_R2!K37)), MAX('MDA1'!K37, 'MDA2'!K37, 'MDA5'!K37,'T1'!M37, MAX(T3_R1!L37, T3_R2!L37)), MAX('MDA1'!L37, 'MDA2'!L37, 'MDA5'!L37,'T1'!N37, MAX(T3_R1!M37, T3_R2!M37))) -> 350101 | T37: =IF(AND(COUNTRY_INFO!J37>1,COUNTRY_INFO!J37<4),IF(COUNTRY_INFO!E37>MAX('MDA2'!J37,'MDA5'!J37,'T1'!L37,MAX(T3_R1!K37,T3_R2!K37)),MAX('MDA2'!J37,'MDA5'!J37,'T1'!L37,MAX(T3_R1!K37,T3_R2!K37)),COUNTRY_INFO!E37),0) -> 40051 | U37: =IF(AND(COUNTRY_INFO!J37>1,COUNTRY_INFO!J37<4), IF(T37/COUNTRY_INFO!E37*100<>0, IF(T37/COUNTRY_INFO!E37*100>100,100,T37/COUNTRY_INFO!E37*100), "-"),0) -> 81.51392815 | V37: =IF(AND(COUNTRY_INFO!J37>1,COUNTRY_INFO!J37<4),IF(COUNTRY_INFO!F37>MAX('MDA1'!K37,'MDA2'!K37,'MDA5'!K37,'T1'!M37,MAX(T3_R1!L37,T3_R2!L37)),MAX('MDA1'!K37,'MDA2'!K37,'MDA5'!K37,'T1'!M37,MAX(T3_R1!L37,T3_R2!L37)),COUNTRY_INFO!F37),0) -> 117390 | W37: =IF(AND(COUNTRY_INFO!J37>1,COUNTRY_INFO!J37<4), IF(V37/COUNTRY_INFO!F37*100<>0, IF(V37/COUNTRY_INFO!F37*100>100,100,V37/COUNTRY_INFO!F37*100), "-"),0) -> 88.82862836 | X37: 157441 | Y37: =IF(AND(COUNTRY_INFO!J37>1,COUNTRY_INFO!J37<4), IF(S37/P37*100<>0, IF(X37/P37*100>100,100,X37/P37*100), "-"),0) -> 86.84613952 | Z37: =COUNTRY_INFO!O37 -> 50377 | AC37: =MAX('T1'!L37,'T2'!J37)+MAX('T1'!M37,'T2'!K37)+MAX('T1'!N37,'T2'!L37) -> 108632 | AD37: =IF(COUNTRY_INFO!K37=1,IF(COUNTRY_INFO!F37*0.33>MAX('T1'!M37,'T2'!K37),MAX('T1'!M37,'T2'!K37),COUNTRY_INFO!F37*0.33),IF(COUNTRY_INFO!K37=2,IF(COUNTRY_INFO!F37*0.5>MAX('T1'!M37,'T2'!K37),MAX('T1'!M37,'T2'!K37),COUNTRY_INFO!F37*0.5),IF(COUNTRY_INFO!K37=3,IF(COUNTRY_INFO!F37>MAX('T1'!M37,'T2'!K37),MAX('T1'!M37,'T2'!K37),COUNTRY_INFO!F37),0))) -> 36579 | AE37: =IF(AND(COUNTRY_INFO!K37>0,COUNTRY_INFO!K37<4),IF(Z37>0,IF(COUNTRY_INFO!K37=1, AD37/(COUNTRY_INFO!F37*0.33)*100, IF(COUNTRY_INFO!K37=2, AD37/(COUNTRY_INFO!F37*0.5)*100, IF(COUNTRY_INFO!K37=3, AD37/COUNTRY_INFO!F37*100))),"-"),0) -> 55.35841889 | AF37: =IF(COUNTRY_INFO!K37=2,IF(COUNTRY_INFO!G37*0.2>MAX('T1'!N37,'T2'!L37),MAX('T1'!N37,'T2'!L37),COUNTRY_INFO!G37*0.2),IF(COUNTRY_INFO!K37=3,IF(COUNTRY_INFO!G37>MAX('T1'!N37,'T2'!L37),MAX('T1'!N37,'T2'!L37),COUNTRY_INFO!G37),0)) -> 45745.38722 | AG37: =IF(AND(COUNTRY_INFO!K37>0,COUNTRY_INFO!K37<4),IF(Z37>0,IF(COUNTRY_INFO!K37=1, 0, IF(COUNTRY_INFO!K37=2, AF37/(COUNTRY_INFO!G37*0.2)*100, IF(COUNTRY_INFO!K37=3, AF37/COUNTRY_INFO!G37*100))),"-"),0) -> 100 | AH37: 82324.38722 | AI37: =IF(AND(COUNTRY_INFO!K37>0,COUNTRY_INFO!K37<4), IF(AC37/Z37*100<>0, IF(AH37/Z37*100>100,100,AH37/Z37*100), "-"),0) -> 100 | AK37: =IF(AND(D37<>0, D37<>"Unknown",D37<>"Stopped",D37<>"Not required"),D37/COUNTRY_INFO!D37, 0) -> 0 | AL37: =IF(AND(J37<>0,J37<>"Unknown",J37<>"Stopped",J37<>"Not required"),J37/COUNTRY_INFO!D37, 0) -> 0 | AM37: =IF(AND(P37<>0,P37<>"Unknown",P37<>"Not required"),P37/(COUNTRY_INFO!E37+COUNTRY_INFO!F37), 0) -> 1 | AN37: =IF(AND(Z37<>0,Z37<>"Unknown",Z37<>"Not required"),IF(COUNTRY_INFO!K37=1,1,IF(COUNTRY_INFO!K37=2,0.5*COUNTRY_INFO!F37/(0.5*COUNTRY_INFO!F37+0.2*COUNTRY_INFO!G37),IF(COUNTRY_INFO!K37=3,COUNTRY_INFO!F37/(COUNTRY_INFO!F37+COUNTRY_INFO!G37)))),0) -> 0.5909090909 | AO37: =IF(AND(Z37<>0,Z37<>"Unknown",Z37<>"Not required"),IF(COUNTRY_INFO!K37=1,0,IF(COUNTRY_INFO!K37=2,0.2*COUNTRY_INFO!G37/(0.5*COUNTRY_INFO!F37+0.2*COUNTRY_INFO!G37),IF(COUNTRY_INFO!K37=3,COUNTRY_INFO!G37/(COUNTRY_INFO!F37+COUNTRY_INFO!G37)))),0) -> 0.4090909091 | AP37: =MAX(COUNTRY_INFO!D37*AK37*PROFILE!$G$7,COUNTRY_INFO!D37*AL37*PROFILE!$G$7) -> 0 | AQ37: =MAX(COUNTRY_INFO!D37*AK37*PROFILE!$G$8,COUNTRY_INFO!D37*AL37*PROFILE!$G$8,COUNTRY_INFO!D37*AM37*PROFILE!$G$8) -> 50003.16629 | AR37: =MAX(COUNTRY_INFO!D37*AK37*PROFILE!$G$9,COUNTRY_INFO!D37*AL37*PROFILE!$G$9,COUNTRY_INFO!D37*AM37*PROFILE!$G$9,IF(AND(DISTRICT!Z37<>"Unknown",Z37<>"Not required"),COUNTRY_INFO!O37*DISTRICT!AN37,0)) -> 120571.0526 | AS37: =MAX(COUNTRY_INFO!D37*AK37*PROFILE!$G$10,COUNTRY_INFO!D37*AL37*PROFILE!$G$10,IF(AND(DISTRICT!Z37<>"Unknown",Z37<>"Not required"),COUNTRY_INFO!O37*DISTRICT!AO37,0)) -> 20608.77273 | AT37: 191182.9916 | AU37: Y | AV37: =MAX('MDA2'!J37,'MDA5'!J37,'T1'!L37,'T2'!J37,T3_R1!K37,T3_R2!K37) -> 40051 | AW37: =MAX('MDA1'!K37,'MDA2'!K37,'MDA3'!I37,'MDA3'!L37,'MDA5'!K37,'T1'!M37,'T2'!K37,T3_R1!L37,T3_R2!L37) -> 117390 | AX37: =MAX('MDA1'!L37,'MDA2'!L37,'MDA3'!J37,'MDA3'!M37,'MDA5'!L37,'T1'!N37,'T2'!L37,T3_R1!M37,T3_R2!M37) -> 192660 | AY37: 350101 | AZ37: =MAX('MDA2'!J37,'MDA5'!J37,T37) -> 40051 | BA37: =MAX('MDA1'!K37,'MDA2'!K37,'MDA3'!I37,'MDA3'!L37,'MDA5'!K37,V37,AD37) -> 117390 | BB37: =MAX('MDA1'!L37,'MDA2'!L37,'MDA3'!J37,'MDA3'!M37,'MDA5'!L37,AF37) -> 45745.38722 | BC37: 191182.9916 | BD37: 100
A38: =IF(COUNTRY_INFO!A38=0," ",COUNTRY_INFO!A38) -> Rwanda | B38: =IF(COUNTRY_INFO!B38=0," ",COUNTRY_INFO!B38) -> Eastern | C38: =IF(COUNTRY_INFO!C38=0," ",COUNTRY_INFO!C38) -> Rwamagana | D38: =COUNTRY_INFO!L38 -> 0 | G38: =MAX('MDA1'!M38,'MDA2'!M38,'MDA5'!M38) -> 0 | H38: =IF(AND(COUNTRY_INFO!H38>0,COUNTRY_INFO!H38<4),IF(D38>MAX('MDA1'!M38,'MDA2'!M38,'MDA5'!M38),MAX('MDA1'!M38,'MDA2'!M38,'MDA5'!M38),D38),0) -> 0 | I38: =IF(AND(COUNTRY_INFO!H38>0,COUNTRY_INFO!H38<4), IF(G38/D38*100<>0, IF(G38/D38*100>100,100,G38/D38*100), "-"),0) -> 0 | J38: =COUNTRY_INFO!M38 -> 0 | M38: =MAX('MDA1'!M38,MAX('MDA3'!I38,'MDA3'!L38)+MAX('MDA3'!J38,'MDA3'!M38)) -> 0 | N38: =IF(AND(COUNTRY_INFO!I38>0,COUNTRY_INFO!I38<4),IF(J38>MAX('MDA1'!M38,MAX('MDA3'!I38,'MDA3'!L38)+MAX('MDA3'!J38,'MDA3'!M38)),MAX('MDA1'!M38,MAX('MDA3'!I38,'MDA3'!L38)+MAX('MDA3'!J38,'MDA3'!M38)),J38),0) -> 0 | O38: =IF(AND(COUNTRY_INFO!I38>0,COUNTRY_INFO!I38<4), IF(M38/J38*100<>0, IF(M38/J38*100>100,100,M38/J38*100), "-"),0) -> 0 | P38: =COUNTRY_INFO!N38 -> 0 | S38: =SUM(MAX('MDA2'!J38,'MDA5'!J38, 'T1'!L38, MAX(T3_R1!K38, T3_R2!K38)), MAX('MDA1'!K38, 'MDA2'!K38, 'MDA5'!K38,'T1'!M38, MAX(T3_R1!L38, T3_R2!L38)), MAX('MDA1'!L38, 'MDA2'!L38, 'MDA5'!L38,'T1'!N38, MAX(T3_R1!M38, T3_R2!M38))) -> 374425 | T38: =IF(AND(COUNTRY_INFO!J38>1,COUNTRY_INFO!J38<4),IF(COUNTRY_INFO!E38>MAX('MDA2'!J38,'MDA5'!J38,'T1'!L38,MAX(T3_R1!K38,T3_R2!K38)),MAX('MDA2'!J38,'MDA5'!J38,'T1'!L38,MAX(T3_R1!K38,T3_R2!K38)),COUNTRY_INFO!E38),0) -> 0 | U38: =IF(AND(COUNTRY_INFO!J38>1,COUNTRY_INFO!J38<4), IF(T38/COUNTRY_INFO!E38*100<>0, IF(T38/COUNTRY_INFO!E38*100>100,100,T38/COUNTRY_INFO!E38*100), "-"),0) -> 0 | V38: =IF(AND(COUNTRY_INFO!J38>1,COUNTRY_INFO!J38<4),IF(COUNTRY_INFO!F38>MAX('MDA1'!K38,'MDA2'!K38,'MDA5'!K38,'T1'!M38,MAX(T3_R1!L38,T3_R2!L38)),MAX('MDA1'!K38,'MDA2'!K38,'MDA5'!K38,'T1'!M38,MAX(T3_R1!L38,T3_R2!L38)),COUNTRY_INFO!F38),0) -> 0 | W38: =IF(AND(COUNTRY_INFO!J38>1,COUNTRY_INFO!J38<4), IF(V38/COUNTRY_INFO!F38*100<>0, IF(V38/COUNTRY_INFO!F38*100>100,100,V38/COUNTRY_INFO!F38*100), "-"),0) -> 0 | X38: 0 | Y38: =IF(AND(COUNTRY_INFO!J38>1,COUNTRY_INFO!J38<4), IF(S38/P38*100<>0, IF(X38/P38*100>100,100,X38/P38*100), "-"),0) -> 0 | Z38: =COUNTRY_INFO!O38 -> 63051 | AC38: =MAX('T1'!L38,'T2'!J38)+MAX('T1'!M38,'T2'!K38)+MAX('T1'!N38,'T2'!L38) -> 164571 | AD38: =IF(COUNTRY_INFO!K38=1,IF(COUNTRY_INFO!F38*0.33>MAX('T1'!M38,'T2'!K38),MAX('T1'!M38,'T2'!K38),COUNTRY_INFO!F38*0.33),IF(COUNTRY_INFO!K38=2,IF(COUNTRY_INFO!F38*0.5>MAX('T1'!M38,'T2'!K38),MAX('T1'!M38,'T2'!K38),COUNTRY_INFO!F38*0.5),IF(COUNTRY_INFO!K38=3,IF(COUNTRY_INFO!F38>MAX('T1'!M38,'T2'!K38),MAX('T1'!M38,'T2'!K38),COUNTRY_INFO!F38),0))) -> 53116.85775 | AE38: =IF(AND(COUNTRY_INFO!K38>0,COUNTRY_INFO!K38<4),IF(Z38>0,IF(COUNTRY_INFO!K38=1, AD38/(COUNTRY_INFO!F38*0.33)*100, IF(COUNTRY_INFO!K38=2, AD38/(COUNTRY_INFO!F38*0.5)*100, IF(COUNTRY_INFO!K38=3, AD38/COUNTRY_INFO!F38*100))),"-"),0) -> 100 | AF38: =IF(COUNTRY_INFO!K38=2,IF(COUNTRY_INFO!G38*0.2>MAX('T1'!N38,'T2'!L38),MAX('T1'!N38,'T2'!L38),COUNTRY_INFO!G38*0.2),IF(COUNTRY_INFO!K38=3,IF(COUNTRY_INFO!G38>MAX('T1'!N38,'T2'!L38),MAX('T1'!N38,'T2'!L38),COUNTRY_INFO!G38),0)) -> 45573.86903 | AG38: =IF(AND(COUNTRY_INFO!K38>0,COUNTRY_INFO!K38<4),IF(Z38>0,IF(COUNTRY_INFO!K38=1, 0, IF(COUNTRY_INFO!K38=2, AF38/(COUNTRY_INFO!G38*0.2)*100, IF(COUNTRY_INFO!K38=3, AF38/COUNTRY_INFO!G38*100))),"-"),0) -> 100 | AH38: 98690.72678 | AI38: =IF(AND(COUNTRY_INFO!K38>0,COUNTRY_INFO!K38<4), IF(AC38/Z38*100<>0, IF(AH38/Z38*100>100,100,AH38/Z38*100), "-"),0) -> 100 | AK38: =IF(AND(D38<>0, D38<>"Unknown",D38<>"Stopped",D38<>"Not required"),D38/COUNTRY_INFO!D38, 0) -> 0 | AL38: =IF(AND(J38<>0,J38<>"Unknown",J38<>"Stopped",J38<>"Not required"),J38/COUNTRY_INFO!D38, 0) -> 0 | AM38: =IF(AND(P38<>0,P38<>"Unknown",P38<>"Not required"),P38/(COUNTRY_INFO!E38+COUNTRY_INFO!F38), 0) -> 0 | AN38: =IF(AND(Z38<>0,Z38<>"Unknown",Z38<>"Not required"),IF(COUNTRY_INFO!K38=1,1,IF(COUNTRY_INFO!K38=2,0.5*COUNTRY_INFO!F38/(0.5*COUNTRY_INFO!F38+0.2*COUNTRY_INFO!G38),IF(COUNTRY_INFO!K38=3,COUNTRY_INFO!F38/(COUNTRY_INFO!F38+COUNTRY_INFO!G38)))),0) -> 0.5382152861 | AO38: =IF(AND(Z38<>0,Z38<>"Unknown",Z38<>"Not required"),IF(COUNTRY_INFO!K38=1,0,IF(COUNTRY_INFO!K38=2,0.2*COUNTRY_INFO!G38/(0.5*COUNTRY_INFO!F38+0.2*COUNTRY_INFO!G38),IF(COUNTRY_INFO!K38=3,COUNTRY_INFO!G38/(COUNTRY_INFO!F38+COUNTRY_INFO!G38)))),0) -> 0.4617847139 | AP38: =MAX(COUNTRY_INFO!D38*AK38*PROFILE!$G$7,COUNTRY_INFO!D38*AL38*PROFILE!$G$7) -> 0 | AQ38: =MAX(COUNTRY_INFO!D38*AK38*PROFILE!$G$8,COUNTRY_INFO!D38*AL38*PROFILE!$G$8,COUNTRY_INFO!D38*AM38*PROFILE!$G$8) -> 0 | AR38: =MAX(COUNTRY_INFO!D38*AK38*PROFILE!$G$9,COUNTRY_INFO!D38*AL38*PROFILE!$G$9,COUNTRY_INFO!D38*AM38*PROFILE!$G$9,IF(AND(DISTRICT!Z38<>"Unknown",Z38<>"Not required"),COUNTRY_INFO!O38*DISTRICT!AN38,0)) -> 33935.012 | AS38: =MAX(COUNTRY_INFO!D38*AK38*PROFILE!$G$10,COUNTRY_INFO!D38*AL38*PROFILE!$G$10,IF(AND(DISTRICT!Z38<>"Unknown",Z38<>"Not required"),COUNTRY_INFO!O38*DISTRICT!AO38,0)) -> 29115.988 | AT38: 63051 | AU38: Y | AV38: =MAX('MDA2'!J38,'MDA5'!J38,'T1'!L38,'T2'!J38,T3_R1!K38,T3_R2!K38) -> 49208 | AW38: =MAX('MDA1'!K38,'MDA2'!K38,'MDA3'!I38,'MDA3'!L38,'MDA5'!K38,'T1'!M38,'T2'!K38,T3_R1!L38,T3_R2!L38) -> 122410 | AX38: =MAX('MDA1'!L38,'MDA2'!L38,'MDA3'!J38,'MDA3'!M38,'MDA5'!L38,'T1'!N38,'T2'!L38,T3_R1!M38,T3_R2!M38) -> 202807 | AY38: 374425 | AZ38: =MAX('MDA2'!J38,'MDA5'!J38,T38) -> 0 | BA38: =MAX('MDA1'!K38,'MDA2'!K38,'MDA3'!I38,'MDA3'!L38,'MDA5'!K38,V38,AD38) -> 53116.85775 | BB38: =MAX('MDA1'!L38,'MDA2'!L38,'MDA3'!J38,'MDA3'!M38,'MDA5'!L38,AF38) -> 45573.86903 | BC38: 63051 | BD38: 100

Sheet SUMMARY
B2: PC Joint Reporting Form v.3.1
B4: Country | D4: =IF(INTRO!$E$34<>0,INTRO!$E$34," ") -> Rwanda | G4: Year | H4: =IF(INTRO!$E$36<>0,INTRO!$E$36," ") -> 2021
B6: National authorities are requested to complete the Joint Reporting Form (JRF) for submission to the World Health Organization any time before 15 August of the current year for reporting data on PC interventions implemented during the previous year.
B14: Number of people received treatment (at least once) for the diseases
E16: PreSAC | F16: SAC | G16: Adults | H16: Total
B17: Lymphatic filariasis | E17: 0 | F17: 0 | G17: 0 | H17: =SUM(E17:G17) -> 0
B18: Onchocerciasis | E18: Not eligible | F18: 0 | G18: 0 | H18: =SUM(E18:G18) -> 0
B19: Soil-transmitted helminthiases | E19: 1516497 | F19: 3562563 | G19: 5907157 | H19: =SUM(E19:G19) -> 10986217
B20: Schistosomiasis | E20: Not targeted | F20: 1027010 | G20: 1829289 | H20: =SUM(E20:G20) -> 2856299
B22: Coverage of PC interventions for the diseases (%)
G24: Geographical | H24: National
B25: Lymphatic filariasis | G25: 0 | H25: 0
B26: Onchocerciasis | G26: 0 | H26: 0
B27: Soil-transmitted helminthiases | G27: 100 | H27: 91.05384507
B28: Schistosomiasis | G28: 76.66666667 | H28: 121.8005798
B30: Number of people treated and programme coverage (%) by PC interventions
D32: PreSAC | E32: SAC | F32: Adults | G32: Total | H32: Coverage (%)
B33: MDA 1 (IVM+ALB) | D33: Not eligible | E33: ='MDA1'!$K$4 -> 0 | F33: ='MDA1'!$L$4 -> 0 | G33: ='MDA1'!$M$4 -> 0 | H33: ='MDA1'!$Q$4 -> 
